{"text_format":"3","workbook":"xlsx","n_sheets":18,"sheets":["Startseite","Bearbeitungshinweise","Deckblatt","Kapitalbedarf","Finanzierung","Zins und Tilgung","Personalkosten 1. Jahr","Personalkosten 2. Jahr","Personalkosten 3. Jahr","übrige Kosten","Unternehmerlohn","Umsatzplanung","Rentabilität","Stundenkostensatz ","Liquiditätsplan-1.Jahr","Liquiditätsplan-2.Jahr","Liquiditätsplan-3.Jahr","Hilfstabelle"],"not_rendered":{"images":3,"macros":1,"external_links":1,"defined_names":16,"comments":15},"read":"whole","date_system":"1900"}

{"sheet":"Startseite","index":0,"n_rows":46,"n_cols":9,"rows_kept":46,"merged":[[6,2,6,4],[7,2,7,4],[8,2,8,4],[9,2,9,4],[10,2,10,4],[11,2,11,4],[12,2,12,4],[13,2,13,4],[14,2,14,4],[15,3,15,4],[21,3,21,7],[22,3,22,7],[22,8,22,10]]}
["Gründungsplaner"]
[]
[]
[]
[]
["Unternehmensdaten:"]
["Vorname Name",{"$nulls":4},"       Empfehlung: Nutzen Sie die Bearbeitungshinweise!"]
["Straße, Hausnummer"]
["Postleitzahl"]
["Ort"]
["Telefonnummer"]
["email"]
["Gewerbe"]
["geplanter Unternehmensname"]
["Rechtsform"]
["Geplantes Gründungsdatum (TT.MM.JJ)",null,null,"2017-01-01"]
[]
[]
[]
["Planungsrechnung:"]
[]
[{"$nulls":3},"Struktur:"]
["Kapitalbedarfs- und Finanzierungsplanung",null,null,"Rentabilitätsvorschau",{"$nulls":4},"Liquiditätsplanung"]
{"$rows_empty":11}
["Einzelunternehmen"]
[]
["Einzelunternehmen"]
["eingetragene Kauffrau  e.K."]
["eingetragener Kaufmann  e.K."]
["Gesellschaft bürgerlichen Rechts (GbR)"]
["OHG"]
["KG"]
["GmbH & Co KG"]
["GmbH"]
["UG (haftungsbeschränkt)"]
["Ltd."]

{"sheet":"Bearbeitungshinweise","index":1,"n_rows":0,"n_cols":0,"rows_kept":0}

{"sheet":"Deckblatt","index":2,"n_rows":48,"n_cols":8,"rows_kept":48,"merged":[[12,0,12,12],[14,0,14,12],[18,0,18,12],[19,0,19,12],[20,0,20,12],[22,0,22,12],[23,0,23,12],[30,0,30,12],[31,0,31,12],[34,0,34,12],[35,0,35,12],[38,0,38,12],[39,0,39,12],[47,7,47,10]]}
{"$rows_empty":12}
["Unternehmenskonzept"]
[]
["von"]
[]
[]
[]
[{"$f":"Startseite!C7","v":0}]
[{"$f":"Startseite!C8","v":0}]
[{"$f":"Startseite!C9& \" \" & Startseite!C10","v":" "}]
[]
[]
["Telefonnummer:"]
[{"$nulls":6},{"$f":"Startseite!C11","v":{"v":0,"d":"0.00E+00"}}]
[]
[{"$nulls":6},"email:"]
[{"$nulls":6},{"$f":"Startseite!C12","v":{"v":0,"d":"0.00E+00"}}]
[]
[]
["Unternehmensname:"]
[{"$f":"Startseite!C14","v":0}]
[]
[]
["Branche:"]
[{"$f":"Startseite!C13","v":0}]
[]
[]
["Rechtsform:"]
[{"$f":"Startseite!A35","v":"Einzelunternehmen"}]
{"$rows_empty":7}
[{"$nulls":7},{"$f":"TEXT(TODAY(),\"TT.MM.JJ\")","v":"02.03.17"}]

{"sheet":"Kapitalbedarf","index":3,"n_rows":30,"n_cols":7,"rows_kept":30,"merged":[[3,1,3,4]]}
[]
[{"$f":"CONCATENATE(\"Kapitalbedarfsplan des Unternehmens: \",Startseite!C14)","v":"Kapitalbedarfsplan des Unternehmens: "}]
[]
[null,"Kapitalbedarfsplanung (Netto-Werte)",{"$nulls":3},"Durchschnittl.","Abschreibung"]
[null,"EUR","EUR","EUR","%","Nutzungsdauer","(AfA)"]
["Bezeichnung","vorhanden","zu beschaffen","Zusammen",null,"(Jahre)","EUR"]
[]
["Firmenwert",null,null,{"$f":"IF(C8=0,0,C8)","v":0},{"$f":"IF(D8=0,\"\",(D8*100)/D$30)","v":""},15,{"$f":"IF(D8=\"\",0,IF(F8=0,0,IF(F8=\"\",0,D8/F8)))","v":0}]
["Grundstücke",null,null,{"$f":"IF(B9+C9=0,0,B9+C9)","v":0},"",0,{"$f":"IF(D9=\"\",0,IF(F9=0,0,IF(F9=\"\",0,D9/F9)))","v":0}]
["Gebäude",null,null,0,"",33,{"$f":"IF(D10=\"\",0,IF(F10=0,0,IF(F10=\"\",0,D10/F10)))","v":0}]
["Umbauten/ Renovierung",null,null,0,"",10,{"$f":"IF(D11=\"\",0,IF(F11=0,0,IF(F11=\"\",0,D11/F11)))","v":0}]
["Maschinen/Geräte/Werkzeuge",null,null,0,"",10,0]
["Fahrzeuge",null,null,0,"",6,0]
["Büroausstattung, EDV",null,null,{"$f":"IF(B14+C14=0,0,B14+C14)","v":0},"",3,0]
["Laden-,Lagereinrichtung",null,null,0,"",8,0]
["Finanzanlagen",null,null,{"$f":"IF(B16+C16=0,0,B16+C16)","v":0},"",0,0]
["Sonstiges",null,null,{"$f":"IF(B17+C17=0,0,B17+C17)","v":0},"",0,0]
[]
["Anlageinvestition",{"$f":"SUM(B8:B17)","v":0},{"$f":"SUM(C8:C17)","v":0},{"$f":"SUM(D7:D17)","v":0},{"$f":"IF(D19=0,\"\",(D19*100)/D$30)","v":""},null,{"$f":"ROUND(SUM(G8:G17),-2)","v":0}]
[]
["Material-/Warenbestand",null,null,{"$f":"IF(B21+C21=0,0,B21+C21)","v":0},{"$f":"IF(D21=0,\"\",(D21*100)/D$30)","v":""}]
["Markterschließungskosten",null,null,{"$f":"IF(B22+C22=0,0,B22+C22)","v":0},""]
["Vorfinanzierungen v. Aufträgen",null,null,{"$f":"IF(C23=0,0,C23)","v":0},""]
["Anlaufkosten",null,null,{"$f":"IF(C24=0,0,C24)","v":0},""]
["Disagio",null,{"$f":"Finanzierung!J26","v":0},{"$f":"IF(C25=0,0,C25)","v":0},""]
["Reserve für Unvorhergesehenes",null,null,{"$f":"IF(B26+C26=0,0,B26+C26)","v":0},""]
["Sonstiges",null,null,{"$f":"IF(B27+C27=0,0,B27+C27)","v":0},""]
[]
["Betriebsmittel",{"$f":"SUM(B21:B28)","v":0},{"$f":"SUM(C21:C28)","v":0},{"$f":"SUM(D21:D28)","v":0},{"$f":"IF(D29=0,\"\",(D29*100)/D$30)","v":""}]
["Gesamtkapitalbedarf",{"$f":"(B19+B29)","v":0},{"$f":"(C19+C29)","v":0},{"$f":"(D19+D29)","v":0},{"$f":"IF(D30=0,\"\",(D30*100)/D$30)","v":""}]

{"sheet":"Finanzierung","index":4,"n_rows":51,"n_cols":82,"rows_kept":51,"merged":[[9,6,13,9],[19,0,19,1],[20,0,20,1],[22,10,26,11],[24,8,25,8]]}
[{"$nulls":55},"Zinsplanung"]
[{"$f":"CONCATENATE(\"Finanzierungsplan des Unternehmens: \",Startseite!C14)","v":"Finanzierungsplan des Unternehmens: "}]
[{"$nulls":55},{"$f":"#REF!","v":{"$error":"#REF!"}},{"$nulls":4},{"$f":"A18","v":"Darlehen 1:"},{"$nulls":4},{"$f":"A19","v":"Darlehen 2:"},{"$nulls":4},{"$f":"H19","v":0},{"$nulls":3},{"$f":"Kapitalbedarf!#REF!","v":{"$error":"#REF!"}}]
[{"$nulls":54},"EUR",{"$f":"#REF!","v":{"$error":"#REF!"}},{"$nulls":3},"EUR",{"$f":"C18","v":0},{"$nulls":3},"EUR",{"$f":"C19","v":0},{"$nulls":3},"EUR",{"$f":"J19","v":0},{"$nulls":3},{"$f":"Kapitalbedarf!#REF!","v":{"$error":"#REF!"}}]
[null,null,"EUR","%",{"$nulls":50},"Zinssatz %",{"$f":"#REF!","v":{"$error":"#REF!"}},null,"ab 6. Jahr",null,"Zinssatz %",{"$f":"E18","v":{"v":0,"d":"0.00"}},{"$nulls":3},"Zinssatz %",{"$f":"E19","v":{"v":0,"d":"0.00"}},{"$nulls":3},"Zinssatz %",{"$f":"L19","v":{"v":0,"d":"0.00"}},{"$nulls":3},6.5]
["Kapitalbedarf lt. Kapitalbedarfsplan:",null,{"$f":"Kapitalbedarf!D30","v":0},{"v":100,"d":"100.0"},{"$nulls":50},"Laufzeit J.",20,{"$nulls":3},"Laufzeit J.",5,{"$nulls":3},"Laufzeit J.",10,{"$nulls":3},"Laufzeit J.",10,{"$nulls":3},10]
[{"$nulls":54},"Tilgungen p.J.",2,{"$nulls":3},"Tilgungen p.J.",2,{"$nulls":3},"Tilgungen p.J.",2,{"$nulls":3},"Tilgungen p.J.",2,{"$nulls":3},2]
[]
[{"$f":"CONCATENATE(\"Finanzierungsplan des Unternehmens: \",Startseite!C14)","v":"Finanzierungsplan des Unternehmens: "},{"$nulls":53},"Zahl Raten",{"$nulls":4},"Zahl Raten",{"$f":"BI6*2-BI10","v":10},{"$nulls":3},"Zahl Raten",{"$f":"BN6*2-BN10","v":20},{"$nulls":3},"Zahl Raten",{"$f":"BS6*2-BS10","v":20},{"$nulls":3},20]
[{"$nulls":6},"Die Angaben zur Fremdfinanzierung sind als erster Planungsansatz zu verstehen. Über den tatsächlichen Finanzierungsweg soll gemeinsam mit der Hausbank beraten werden.",{"$nulls":52},"Tiilgungsfrei",{"$f":"H18*2","v":0},{"$nulls":3},"Tiilgungsfrei",{"$f":"H19*2","v":0},{"$nulls":3},"Tiilgungsfrei",{"$f":"M19*2","v":0}]
["1. Eigenkapital:"," - Barmittel",null,{"$f":"IF(C11=0,\"\",(C11*100)/C$32)","v":""},null," ",{"$nulls":49},{"$f":"+BD3","v":{"$error":"#REF!"}},{"$nulls":4},{"$f":"+BI3","v":"Darlehen 1:"},{"$nulls":4},{"$f":"+BN3","v":"Darlehen 2:"},{"$nulls":4},{"$f":"+BS3","v":0},{"$nulls":3},{"$f":"BW3","v":{"$error":"#REF!"}},{"$nulls":3},"Gesamt"]
[null," - MGP"]
[null," - vorhanden / Sacheinlage",{"$f":"Kapitalbedarf!B$19+Kapitalbedarf!B$29","v":0},{"$f":"IF(C13=0,\"\",(C13*100)/C$32)","v":""},{"$nulls":50},"Periode","Bestand","Zinsen","Tilgung","Kap.D.",null,"Bestand","Zinsen","Tilgung","Kap.D.",null,"Bestand","Zinsen","Tilgung","Kap.D.",null,"Bestand","Zinsen","Tilgung","Kap.D.","Bestand","Zinsen","Tilgung","Kap.D.","Bestand","Zinsen","Tilgung","Kap.D."]
["Eigenkapital gesamt",null,{"$f":"SUM(C11:C13)","v":0},{"$f":"IF(C14=0,\"\",(C14*100)/C$32)","v":""}]
[{"$nulls":7},{"$f":"IF(OR(AND(H18>0,H18<1),H18>36,H18>F18*12,AND(H19>0,H19<1),H19>36,H19>F19*12,AND(H20>0,H20<1),H20>84,H20>F20*12),\"Überprüfe Eingabe: Tilgungsfreie Zeit in Monaten\",\"\")","v":""},{"$nulls":46},"1. Gesch.J.",{"$f":"#REF!-#REF!","v":{"$error":"#REF!"}},{"$f":"+BD15*0/2","v":{"$error":"#REF!"}},0,{"$f":"BE15+BF15","v":{"$error":"#REF!"}},null,{"$f":"#REF!-#REF!","v":{"$error":"#REF!"}},{"$f":"BI15*(BI$5/100)/2","v":{"$error":"#REF!"}},{"$f":"IF(BI$10-0<=0,0,BI$4/(BI$9))","v":0},{"$f":"BJ15+BK15","v":{"$error":"#REF!"}},null,{"$f":"#REF!-#REF!","v":{"$error":"#REF!"}},{"$f":"BN15*(BN$5/100)/2","v":{"$error":"#REF!"}},{"$f":"IF(BN$10-1<=4,0,BN$4/(BN$9))","v":0},{"$f":"BO15+BP15","v":{"$error":"#REF!"}},null,{"$f":"#REF!-#REF!","v":{"$error":"#REF!"}},{"$f":"BS15*(BS$5/100)/2","v":{"$error":"#REF!"}},{"$f":"IF(BS$10-1<=4,0,BS$4/(BS$9))","v":0},{"$f":"BT15+BU15","v":{"$error":"#REF!"}},{"$f":"#REF!-#REF!","v":{"$error":"#REF!"}},{"$f":"(BW15*$CW$59/(100))/($CW$61)","v":{"$error":"#REF!"}},{"$f":"BZ15-BX15","v":{"$error":"#REF!"}},{"$f":"PMT(BW$59/100/2,20,-BW$58,0,0)","v":0},{"$f":"BD15+BI15+BN15+BW15","v":{"$error":"#REF!"}},{"$f":"BE15+BJ15+BO15+BX15","v":{"$error":"#REF!"}},{"$f":"BF15+BK15+BP15+BY15","v":{"$error":"#REF!"}},{"$f":"BG15+BL15+BQ15+BZ15","v":{"$error":"#REF!"}}]
["Fremdmittel:",null,{"$f":"C6-C14","v":0},null,"Aktueller","Laufzeit","Zinsbindung","Tilgungsfreie","Auszahlung","Disagio",{"$nulls":45},{"$f":"BD15-BF15","v":{"$error":"#REF!"}},{"$f":"+BD16*0/2","v":{"$error":"#REF!"}},0,{"$error":"#REF!"},null,{"$f":"BI15-BK15","v":{"$error":"#REF!"}},{"$error":"#REF!"},{"$f":"IF(BI$10-0<=0,0,BI$4/(BI$9))","v":0},{"$error":"#REF!"},null,{"$f":"BN15-BP15","v":{"$error":"#REF!"}},{"$error":"#REF!"},{"$f":"IF(BN$10-2<=4,0,BN$4/(BN$9))","v":0},{"$error":"#REF!"},null,{"$f":"BS15-BU15","v":{"$error":"#REF!"}},{"$error":"#REF!"},{"$f":"IF(BS$10-2<=4,0,BS$4/(BS$9))","v":0},{"$error":"#REF!"},{"$f":"BW15-BY15","v":{"$error":"#REF!"}},{"$error":"#REF!"},{"$f":"BZ16-BX16","v":{"$error":"#REF!"}},0,{"$error":"#REF!"},{"$error":"#REF!"},{"$error":"#REF!"},{"$error":"#REF!"}]
["2. Langfristiges Fremdkapital",{"$nulls":3},"Zinssatz        in %","in Jahren","in Jahren"," Zeit           in Monaten","in %","EUR",{"$nulls":44},"2. Gesch.J.",{"$error":"#REF!"},{"$f":"+BD17*0/2","v":{"$error":"#REF!"}},0,{"$error":"#REF!"},null,{"$f":"BI16-BK16","v":{"$error":"#REF!"}},{"$error":"#REF!"},0,{"$error":"#REF!"},null,{"$f":"BN16-BP16","v":{"$error":"#REF!"}},{"$error":"#REF!"},{"$f":"IF(BN$10-3<=4,0,BN$4/(BN$9))","v":0},{"$error":"#REF!"},null,{"$f":"BS16-BU16","v":{"$error":"#REF!"}},{"$error":"#REF!"},{"$f":"IF(BS$10-3<=4,0,BS$4/(BS$9))","v":0},{"$error":"#REF!"},{"$f":"BW16-BY16","v":{"$error":"#REF!"}},{"$error":"#REF!"},{"$error":"#REF!"},0,{"$error":"#REF!"},{"$error":"#REF!"},{"$error":"#REF!"},{"$error":"#REF!"}]
["Darlehen 1:",null,null,{"$f":"IF(C18=\"\",\"\",(C18*100)/C$32)","v":""},{"$nulls":5},{"$f":"ROUND(IF(I18=\"\",0,C18*(100-I18)/100),-2)","v":0},{"$nulls":44},"3. Gesch.J.",{"$f":"#REF!-#REF!","v":{"$error":"#REF!"}},{"$f":"+BD18*0.03/2","v":{"$error":"#REF!"}},0,{"$error":"#REF!"},null,{"$f":"#REF!-#REF!","v":{"$error":"#REF!"}},{"$error":"#REF!"},0,{"$error":"#REF!"},null,{"$f":"#REF!-#REF!","v":{"$error":"#REF!"}},{"$error":"#REF!"},{"$f":"IF(BN$10-4=4,0,BN$4/(BN$9))","v":0},{"$error":"#REF!"},null,{"$f":"#REF!-#REF!","v":{"$error":"#REF!"}},{"$error":"#REF!"},{"$f":"IF(BS$10-4=4,0,BS$4/(BS$9))","v":0},{"$error":"#REF!"},{"$f":"#REF!-#REF!","v":{"$error":"#REF!"}},{"$error":"#REF!"},{"$error":"#REF!"},0,{"$error":"#REF!"},{"$error":"#REF!"},{"$error":"#REF!"},{"$error":"#REF!"}]
["Darlehen 2:",null,null,{"$f":"IF(C19=\"\",\"\",(C19*100)/C$32)","v":""},{"$nulls":5},{"$f":"ROUND(IF(I19=\"\",0,C19*(100-I19)/100),-2)","v":0},{"$nulls":45},{"$error":"#REF!"},{"$f":"+BD19*0.04/2","v":{"$error":"#REF!"}},0,{"$error":"#REF!"},null,{"$f":"BI18-BK18","v":{"$error":"#REF!"}},{"$error":"#REF!"},0,{"$error":"#REF!"},null,{"$f":"BN18-BP18","v":{"$error":"#REF!"}},{"$error":"#REF!"},0,{"$error":"#REF!"},null,{"$f":"BS18-BU18","v":{"$error":"#REF!"}},{"$error":"#REF!"},0,{"$error":"#REF!"},{"$f":"BW18-BY18","v":{"$error":"#REF!"}},{"$error":"#REF!"},{"$error":"#REF!"},0,{"$error":"#REF!"},{"$error":"#REF!"},{"$error":"#REF!"},{"$error":"#REF!"}]
["Mikromezzanin - Beteiligung",null,null,{"$f":"IF(C20=\"\",\"\",(C20*100)/C$32)","v":""},{"$nulls":4},96.5,{"$f":"ROUND(IF(I20=\"\",0,C20*(100-I20)/100),-2)","v":0},{"$nulls":44},"4. Gesch.J.",{"$error":"#REF!"},{"$f":"+BD20*0.04/2","v":{"$error":"#REF!"}},0,{"$error":"#REF!"},null,{"$f":"BI19-BK19","v":{"$error":"#REF!"}},{"$error":"#REF!"},0,{"$error":"#REF!"},null,{"$f":"BN19-BP19","v":{"$error":"#REF!"}},{"$error":"#REF!"},0,{"$error":"#REF!"},null,{"$f":"BS19-BU19","v":{"$error":"#REF!"}},{"$error":"#REF!"},0,{"$error":"#REF!"},{"$f":"BW19-BY19","v":{"$error":"#REF!"}},{"$error":"#REF!"},{"$error":"#REF!"},0,{"$error":"#REF!"},{"$error":"#REF!"},{"$error":"#REF!"},{"$error":"#REF!"}]
["ERP-Kapital für Gründung",null,null,{"$f":"IF(C21=\"\",\"\",(C21*100)/C$32)","v":""},{"v":0.4,"d":"0.40"},{"$nulls":4},{"$f":"ROUND(IF(I21=\"\",0,C21*(100-I21)/100),-2)","v":0}]
["Avalkredit:",null,null,{"$f":"IF(C22=\"\",\"\",(C22*100)/C$32)","v":""}]
[{"$nulls":5},"Tilgungs- satz in%",null,"Laufzeit in Jahren",null,null,{"$f":"IF(Kapitalbedarf!$D$30-$C$32=0,\"\",IF($J$26<1,\"\",\"Achtung: Kapitalbedarf wurde um Disagio erhöht; Finanzierung muß entsprechend erhöht werden.\" ))","v":""}]
["Annuitätendarlehen:",null,null,{"$f":"IF(C24=\"\",\"\",(C24*100)/C$32)","v":""},{"$nulls":3},{"$f":"IF(F24=0,0,LOG10((E24+F24)/F24)/LOG10(1+E24))","v":{"v":0,"d":"0.0"}},null,{"$f":"ROUND(IF(I24=\"\",0,C24*(100-I24)/100),-2)","v":0},{"$nulls":44},"5. Gesch.J.",{"$f":"#REF!-#REF!","v":{"$error":"#REF!"}},{"$f":"+BD24*0.05/2","v":{"$error":"#REF!"}},0,{"$error":"#REF!"},null,{"$f":"#REF!-#REF!","v":{"$error":"#REF!"}},{"$error":"#REF!"},0,{"$error":"#REF!"},null,{"$f":"#REF!-#REF!","v":{"$error":"#REF!"}},{"$error":"#REF!"},0,{"$error":"#REF!"},null,{"$f":"#REF!-#REF!","v":{"$error":"#REF!"}},{"$error":"#REF!"},0,{"$error":"#REF!"},{"$f":"#REF!-#REF!","v":{"$error":"#REF!"}},{"$f":"(BW24*$CW$59/(100))/($CW$61)","v":{"$error":"#REF!"}},{"$error":"#REF!"},{"$f":"PMT(BW$59/100/2,20,-BW$58,0,0)","v":0},{"$error":"#REF!"},{"$error":"#REF!"},{"$error":"#REF!"},{"$error":"#REF!"}]
[" - Langfristiges Fremdkapital gesamt",null,{"$f":"SUM(C18:C24)","v":0},{"$f":"IF(C25=0,\"\",(C25*100)/C$32)","v":""},{"$nulls":4},"Summe Disagio:"]
[{"$nulls":9},{"$f":"SUM(J18:J22)+J24","v":0},{"$nulls":45},{"$f":"#REF!-#REF!","v":{"$error":"#REF!"}},{"$f":"+BD26*$BD$5%/2","v":{"$error":"#REF!"}},0,{"$error":"#REF!"},{"$nulls":6},{"$f":"#REF!-#REF!","v":{"$error":"#REF!"}},{"$error":"#REF!"},0,{"$error":"#REF!"},null,{"$f":"#REF!-#REF!","v":{"$error":"#REF!"}},{"$error":"#REF!"},0,{"$error":"#REF!"},{"$f":"#REF!-#REF!","v":{"$error":"#REF!"}},{"$f":"(BW26*$CW$59/(100))/($CW$61)","v":{"$error":"#REF!"}},{"$error":"#REF!"},{"$f":"PMT(BW$59/100/2,20,-BW$58,0,0)","v":0},{"$error":"#REF!"},{"$error":"#REF!"},{"$error":"#REF!"},{"$error":"#REF!"}]
["3. Kurzfristiges Fremdkapital",{"$nulls":3},"Zinssatz in %",{"$nulls":49},"8. Gesch.J.",{"$error":"#REF!"},{"$error":"#REF!"},0,{"$error":"#REF!"},{"$nulls":6},{"$f":"BN26-BP26","v":{"$error":"#REF!"}},{"$error":"#REF!"},0,{"$error":"#REF!"},null,{"$f":"BS26-BU26","v":{"$error":"#REF!"}},{"$error":"#REF!"},0,{"$error":"#REF!"},{"$f":"BW26-BY26","v":{"$error":"#REF!"}},{"$f":"(BW27*$CW$59/(100))/($CW$61)","v":{"$error":"#REF!"}},{"$error":"#REF!"},{"$f":"PMT(BW$59/100/2,20,-BW$58,0,0)","v":0},{"$error":"#REF!"},{"$error":"#REF!"},{"$error":"#REF!"},{"$error":"#REF!"}]
["bestehender Kontokorrent",null,null,{"$f":"IF(C28=\"\",\"\",(C28*100)/C$32)","v":""}]
["geplanter Kontokorrent",null,null,{"$f":"IF(C29=\"\",\"\",(C29*100)/C$32)","v":""},{"$nulls":51},{"$f":"#REF!-#REF!","v":{"$error":"#REF!"}},{"$error":"#REF!"},0,{"$error":"#REF!"},{"$nulls":6},{"$f":"#REF!-#REF!","v":{"$error":"#REF!"}},{"$error":"#REF!"},0,{"$error":"#REF!"},null,{"$f":"#REF!-#REF!","v":{"$error":"#REF!"}},{"$error":"#REF!"},0,{"$error":"#REF!"},{"$f":"#REF!-#REF!","v":{"$error":"#REF!"}},{"$f":"(BW29*$CW$59/(100))/($CW$61)","v":{"$error":"#REF!"}},{"$error":"#REF!"},{"$f":"PMT(BW$59/100/2,20,-BW$58,0,0)","v":0},{"$error":"#REF!"},{"$error":"#REF!"},{"$error":"#REF!"},{"$error":"#REF!"}]
[" - Kurzfristiges Fremdkapital gesamt",null,{"$f":"C28+C29","v":0},{"$f":"IF(C30=0,\"\",(C30*100)/C$32)","v":""},{"$nulls":51},{"$f":"#REF!-#REF!","v":{"$error":"#REF!"}},{"$error":"#REF!"},{"$f":"BD$4/20","v":{"$error":"#REF!"}},{"$error":"#REF!"},{"$nulls":19},{"$error":"#REF!"},{"$error":"#REF!"},{"$error":"#REF!"},{"$error":"#REF!"}]
[]
["Gesamtfinanzierung (1. - 3.)",null,{"$f":"C14+C25+C30","v":0},{"$f":"IF(C32=0,\"\",(C32*100)/C$32)","v":""},{"$nulls":50},"12. Gesch.J.",{"$f":"BD30-BF30","v":{"$error":"#REF!"}},{"$error":"#REF!"},{"$error":"#REF!"},{"$error":"#REF!"},{"$nulls":19},{"$error":"#REF!"},{"$error":"#REF!"},{"$error":"#REF!"},{"$error":"#REF!"}]
[{"$f":"IF(C6-C32=0,\"\",IF(C6>C32,CONCATENATE(\"Hinweis: Gesamtfinanzierung um \",TEXT(C34,\"???.???\"),\" EUR niedriger als Kapitalbedarf.\"),CONCATENATE(\"Hinweis: Gesamtfinanzierung um \",TEXT(C34*(-1),\"???.???\"),\"  EUR höher als Kapitalbedarf.\")))","v":""},{"$nulls":54},{"$error":"#REF!"},{"$error":"#REF!"},{"$error":"#REF!"},{"$error":"#REF!"},{"$nulls":19},{"$error":"#REF!"},{"$error":"#REF!"},{"$error":"#REF!"},{"$error":"#REF!"}]
[null,null,{"$f":"C6-C32","v":0},{"$nulls":51},"13. Gesch.J.",{"$error":"#REF!"},{"$error":"#REF!"},{"$error":"#REF!"},{"$error":"#REF!"},{"$nulls":19},{"$error":"#REF!"},{"$error":"#REF!"},{"$error":"#REF!"},{"$error":"#REF!"}]
[{"$nulls":55},{"$error":"#REF!"},{"$error":"#REF!"},{"$error":"#REF!"},{"$error":"#REF!"},{"$nulls":19},{"$error":"#REF!"},{"$error":"#REF!"},{"$error":"#REF!"},{"$error":"#REF!"}]
[{"$nulls":54},"14. Gesch.J.",{"$error":"#REF!"},{"$error":"#REF!"},{"$error":"#REF!"},{"$error":"#REF!"},{"$nulls":19},{"$error":"#REF!"},{"$error":"#REF!"},{"$error":"#REF!"},{"$error":"#REF!"}]
[{"$nulls":55},{"$error":"#REF!"},{"$error":"#REF!"},{"$error":"#REF!"},{"$error":"#REF!"},{"$nulls":19},{"$error":"#REF!"},{"$error":"#REF!"},{"$error":"#REF!"},{"$error":"#REF!"}]
[{"$nulls":54},"15. Gesch.J.",{"$error":"#REF!"},{"$error":"#REF!"},{"$error":"#REF!"},{"$error":"#REF!"},{"$nulls":19},{"$error":"#REF!"},{"$error":"#REF!"},{"$error":"#REF!"},{"$error":"#REF!"}]
[{"$nulls":55},{"$error":"#REF!"},{"$error":"#REF!"},{"$error":"#REF!"},{"$error":"#REF!"},{"$nulls":19},{"$error":"#REF!"},{"$error":"#REF!"},{"$error":"#REF!"},{"$error":"#REF!"}]
[{"$nulls":54},"16. Gesch.J.",{"$error":"#REF!"},{"$error":"#REF!"},{"$error":"#REF!"},{"$error":"#REF!"},{"$nulls":19},{"$error":"#REF!"},{"$error":"#REF!"},{"$error":"#REF!"},{"$error":"#REF!"}]
[{"$nulls":55},{"$error":"#REF!"},{"$error":"#REF!"},{"$error":"#REF!"},{"$error":"#REF!"},{"$nulls":19},{"$error":"#REF!"},{"$error":"#REF!"},{"$error":"#REF!"},{"$error":"#REF!"}]
[{"$nulls":54},"17. Gesch.J.",{"$error":"#REF!"},{"$error":"#REF!"},{"$error":"#REF!"},{"$error":"#REF!"},{"$nulls":19},{"$error":"#REF!"},{"$error":"#REF!"},{"$error":"#REF!"},{"$error":"#REF!"}]
[{"$nulls":55},{"$error":"#REF!"},{"$error":"#REF!"},{"$error":"#REF!"},{"$error":"#REF!"},{"$nulls":19},{"$error":"#REF!"},{"$error":"#REF!"},{"$error":"#REF!"},{"$error":"#REF!"}]
[{"$nulls":54},"18. Gesch.J.",{"$error":"#REF!"},{"$error":"#REF!"},{"$error":"#REF!"},{"$error":"#REF!"},{"$nulls":19},{"$error":"#REF!"},{"$error":"#REF!"},{"$error":"#REF!"},{"$error":"#REF!"}]
[{"$nulls":55},{"$error":"#REF!"},{"$error":"#REF!"},{"$error":"#REF!"},{"$error":"#REF!"},{"$nulls":19},{"$error":"#REF!"},{"$error":"#REF!"},{"$error":"#REF!"},{"$error":"#REF!"}]
[{"$nulls":54},"19. Gesch.J.",{"$error":"#REF!"},{"$error":"#REF!"},{"$error":"#REF!"},{"$error":"#REF!"},{"$nulls":19},{"$error":"#REF!"},{"$error":"#REF!"},{"$error":"#REF!"},{"$error":"#REF!"}]
[{"$nulls":55},{"$error":"#REF!"},{"$error":"#REF!"},{"$error":"#REF!"},{"$error":"#REF!"},{"$nulls":19},{"$error":"#REF!"},{"$error":"#REF!"},{"$error":"#REF!"},{"$error":"#REF!"}]
[{"$nulls":54},"20. Gesch.J.",{"$error":"#REF!"},{"$error":"#REF!"},{"$error":"#REF!"},{"$error":"#REF!"},{"$nulls":19},{"$error":"#REF!"},{"$error":"#REF!"},{"$error":"#REF!"},{"$error":"#REF!"}]
[]
[{"$nulls":54},"DS 1-10 p.a.",{"$f":"AVERAGE(BD15:BD29)","v":{"$error":"#REF!"}},{"$f":"AVERAGE(BE15:BE29)*2","v":{"$error":"#REF!"}},{"$f":"AVERAGE(BF15:BF29)*2","v":0},{"$f":"AVERAGE(BG15:BG29)*2","v":{"$error":"#REF!"}},null,{"$f":"AVERAGE(BI15:BI29)","v":{"$error":"#REF!"}},{"$f":"AVERAGE(BJ15:BJ29)*2","v":{"$error":"#REF!"}},{"$f":"AVERAGE(BK15:BK29)*2","v":0},{"$f":"AVERAGE(BL15:BL29)*2","v":{"$error":"#REF!"}},null,{"$f":"AVERAGE(BN15:BN29)","v":{"$error":"#REF!"}},{"$f":"AVERAGE(BO15:BO29)*2","v":{"$error":"#REF!"}},{"$f":"AVERAGE(BP15:BP29)*2","v":0},{"$f":"AVERAGE(BQ15:BQ29)*2","v":{"$error":"#REF!"}},null,{"$f":"AVERAGE(BS15:BS29)","v":{"$error":"#REF!"}},{"$f":"AVERAGE(BT15:BT29)*2","v":{"$error":"#REF!"}},{"$f":"AVERAGE(BU15:BU29)*2","v":0},{"$f":"AVERAGE(BV15:BV29)*2","v":{"$error":"#REF!"}},{"$nulls":3},"DS 1-10 p.a.",{"$f":"AVERAGE(CA15:CA29)","v":{"$error":"#REF!"}},{"$f":"AVERAGE(CB15:CB29)*2","v":{"$error":"#REF!"}},{"$f":"AVERAGE(CC15:CC29)*2","v":{"$error":"#REF!"}},{"$f":"AVERAGE(CD15:CD29)*2","v":{"$error":"#REF!"}}]
[{"$nulls":54},"DS 1-3 p.a.",{"$f":"AVERAGE(BD15:BD18)","v":{"$error":"#REF!"}},{"$f":"AVERAGE(BE15:BE18)*2","v":{"$error":"#REF!"}},{"$f":"AVERAGE(BF15:BF18)*2","v":0},{"$f":"AVERAGE(BG15:BG18)*2","v":{"$error":"#REF!"}},null,{"$f":"AVERAGE(BI15:BI18)","v":{"$error":"#REF!"}},{"$f":"AVERAGE(BJ15:BJ18)*2","v":{"$error":"#REF!"}},{"$f":"AVERAGE(BK15:BK18)*2","v":0},{"$f":"AVERAGE(BL15:BL18)*2","v":{"$error":"#REF!"}},null,{"$f":"AVERAGE(BN15:BN18)","v":{"$error":"#REF!"}},{"$f":"AVERAGE(BO15:BO18)*2","v":{"$error":"#REF!"}},{"$f":"AVERAGE(BP15:BP18)*2","v":0},{"$f":"AVERAGE(BQ15:BQ18)*2","v":{"$error":"#REF!"}},null,{"$f":"AVERAGE(BS15:BS18)","v":{"$error":"#REF!"}},{"$f":"AVERAGE(BT15:BT18)*2","v":{"$error":"#REF!"}},{"$f":"AVERAGE(BU15:BU18)*2","v":0},{"$f":"AVERAGE(BV15:BV18)*2","v":{"$error":"#REF!"}},{"$nulls":3},"DS 1-3 p.a.",{"$f":"AVERAGE(CA15:CA18)","v":{"$error":"#REF!"}},{"$f":"AVERAGE(CB15:CB18)*2","v":{"$error":"#REF!"}},{"$f":"AVERAGE(CC15:CC18)*2","v":{"$error":"#REF!"}},{"$f":"AVERAGE(CD15:CD18)*2","v":{"$error":"#REF!"}}]

{"sheet":"Zins und Tilgung","index":5,"n_rows":34,"n_cols":40,"rows_kept":34,"merged":[[0,6,0,7],[4,2,7,2],[10,0,11,0],[10,1,11,1],[10,2,11,2],[10,3,11,3],[10,4,11,4],[10,6,11,6],[10,7,11,7],[10,8,11,8],[10,9,11,9],[10,10,11,10],[10,12,11,12],[10,13,11,13],[10,14,11,14],[10,15,11,15],[10,16,11,16],[10,30,11,30],[10,31,11,31],[10,32,11,32],[10,33,11,33],[10,35,11,35],[10,36,11,36],[10,37,11,37],[10,38,11,38],[10,39,11,39]]}
[{"$f":" CONCATENATE( \"Zins- und Tilgungsplan des Unternehmens: \", Startseite!C14)","v":"Zins- und Tilgungsplan des Unternehmens: "}]
[]
[null,"Gesamtwerte",{"$nulls":4},"Darlehen 1:",{"$f":"IF(Finanzierung!B18=0,\"\",Finanzierung!B18)","v":""},{"$nulls":4},"Darlehen 2:",{"$f":"IF(Finanzierung!B19=0,\"\",Finanzierung!B19)","v":""},{"$nulls":4}," Mikromezzanin - Beteiligung",{"$nulls":5},"ERP-Kapital für Gründung",{"$nulls":5},"Avalkredit:",{"$f":"IF(Finanzierung!B22=0,\"\",Finanzierung!B22)","v":""},{"$nulls":3},"Annuitätendarlehen:",null,{"$f":"IF(Finanzierung!B24=0,\"\",Finanzierung!B24)","v":""}]
[null,"EUR",{"$f":"Finanzierung!C25","v":0},{"$nulls":3},"Höhe:",{"$f":"Finanzierung!C18","v":0},"EUR",{"$nulls":3},"Höhe",{"$f":"Finanzierung!C19","v":0},"EUR",{"$nulls":3},"Höhe",{"$f":"Finanzierung!C20","v":0},"EUR",{"$nulls":3},"Höhe",{"$f":"Finanzierung!C21","v":0},"EUR",{"$nulls":3},"Höhe",{"$f":"Finanzierung!C22","v":0},"EUR",null,null,"Höhe",{"$f":"Finanzierung!C24","v":0},"EUR"]
[null,"Zinssatz ","siehe einzelne Darlehen",{"$nulls":3},"Zinssatz ",{"$f":"Finanzierung!E18","v":{"v":0,"d":"0.00"}},"%",{"$nulls":3},"Zinssatz ",{"$f":"Finanzierung!E19","v":{"v":0,"d":"0.00"}},"%",{"$nulls":3},"Vergütung",{"v":8,"d":"8.00"},"%",{"$nulls":3},"Zinssatz %",{"$f":"Finanzierung!E21","v":{"v":0.4,"d":"0.40"}},"1. - 3. Jahr",{"$nulls":3},"Zinssatz",{"$f":"Finanzierung!E22","v":{"v":0,"d":"0.00"}},"%",null,null,"Zinssatz",{"$f":"Finanzierung!E24","v":{"v":0,"d":"0.00%"}}]
[null,"Laufzeit",{"$nulls":4},"Laufzeit",{"$f":"Finanzierung!F18","v":{"v":0,"d":"0.0"}},"Jahre",{"$nulls":3},"Laufzeit",{"$f":"Finanzierung!F19","v":0},"Jahre",{"$nulls":3},"Gewinnbeteiligung",{"v":1.5,"d":"1.50"},"%",{"$nulls":3},"Zinssatz %",2.82,"4. - 10. Jahr",{"$nulls":3},"Laufzeit",{"$f":"ROUND(Finanzierung!F22,0)","v":0},"Jahre",null,null,"Tilgungsatz",{"$f":"Finanzierung!F24","v":{"v":0,"d":"0.00%"}}]
[null,"Tilgungsfreie Zeit",{"$nulls":4},"Tilgungsfreie Zeit",{"$f":"Finanzierung!H18","v":0},"Monate",{"$nulls":3},"Tilgungsfreie Zeit",{"$f":"Finanzierung!H19","v":0},"Monate",{"$nulls":3},"Laufzeit",{"$f":"10","v":10},"Jahre",{"$nulls":3},"Zinssatz %",{"v":5,"d":"5.00"},"ab 11. Jahr",{"$nulls":8}," => Laufzeit",{"$f":"Finanzierung!H24","v":{"v":0,"d":"0.00"}},"Jahre"]
[null,"Tilgungszeitraum",{"$nulls":4},"Tilgungszeitraum",{"$f":"H6-H7/12","v":{"v":0,"d":"0.0"}},"Jahre",{"$nulls":3},"Tilgungszeitraum",{"$f":"N6-N7/12","v":{"v":0,"d":"0.0"}},"Jahre",{"$nulls":3},"Tilgungsfreie Zeit",7,"Jahre",{"$nulls":3},"Garantieentgelt %",{"v":1,"d":"1.00"},"auf offenen Kreditbetrag"]
[{"$nulls":18},"Tilgungszeitraum",{"$f":"T7-T8","v":3},"Jahre",{"$nulls":3},"Laufzeit",15,"Jahre"]
[{"$nulls":24},"Tilgungsfreie Zeit",7,"Jahre"]
["Periode","Bestand       EUR ","Zinsen EUR","Tilgung EUR","Kapitaldienst EUR",null,"Periode","Bestand       EUR ","Zinsen EUR","Tilgung EUR","Kapitaldienst EUR",null,"Periode","Bestand       EUR ","Zinsen EUR","Tilgung EUR","Kapitaldienst EUR",{"$nulls":7},"Tilgungszeitraum",{"$f":"Z9-Z10","v":8},"Jahre",{"$nulls":3},"Periode","Bestand       EUR ","Zinsen EUR","Kapitaldienst EUR",null,"Periode","Bestand       EUR ","Zinsen EUR","Tilgung EUR","Kapitaldienst EUR"]
[{"$nulls":18},"Periode","Bestand","Vergütung /","Rückzahlung","Kapitaldienst EUR"]
[1,{"$f":"H13+N13+T15+Z17+AF13+AK13","v":0},{"$f":"I13+O13+U15+AA17+AG13+AL13","v":0},{"$f":"J13+P13+V15+AB17+AM13","v":0},{"$f":"K13+Q13+W15+AC17+AN13+AH13","v":0},null,1,{"$f":"H4","v":0},{"$f":"Hilfstabelle!N84","v":0},{"$f":"IF(H13=0,0,IF(H7=0,H4/(H6*12-H7)*12,IF(AND(H7>0,H7<12),H4/(H6*12-H7)*(12-H7),0)))","v":0},{"$f":"I13+J13","v":0},null,1,{"$f":"N4","v":0},{"$f":"Hilfstabelle!N85","v":0},{"$f":"IF(N13=0,0,IF(N7=0,N4/(N6*12-N7)*12,IF(AND(N7>0,N7<12),N4/(N6*12-N7)*(12-N7),0)))","v":0},{"$f":"O13+P13","v":0},{"$nulls":3},"Gewinnbeteilig.",{"$nulls":9},1,{"$f":"IF(AF$6>=A13,AF$4,0)","v":0},{"$f":"AF13*AF$5/100","v":0},{"$f":"AG13","v":0},null,1,{"$f":"AK4","v":0},{"$f":"AK13*AK$5","v":0},{"$f":"IF(A13>=AK$7,AK13,AN13-AL13)","v":0},{"$f":"IF(A13=0,0,IF(AK$7>=A13,+PMT(AK$5,AK$7,-AK$4,0,0),0))","v":0}]
[2,0,0,0,0,null,2,{"$f":"IF((H13-J13)<0,0,H13-J13)","v":0},{"$f":"Hilfstabelle!N90","v":0},{"$f":"IF(H14=0,0,IF(H7<=12,H4/(H6*12-H7)*12,IF(AND(H7>12,H7<24),H4/(H6*12-H7)*(24-H7),0)))","v":0},{"$f":"I14+J14","v":0},null,2,{"$f":"IF((N13-P13)<0,0,N13-P13)","v":0},{"$f":"Hilfstabelle!N91","v":0},{"$f":"IF(N14=0,0,IF(N7<=12,N4/(N6*12-N7)*12,IF(AND(N7>12,N7<24),N4/(N6*12-N7)*(24-N7),0)))","v":0},0,null,null,"EUR","EUR","EUR","EUR",null,"Periode","Bestand   ","Zinsen /","Tilgung","Kapitaldienst",null,2,0,0,{"$f":"AG14","v":0},null,2,{"$f":"IF(AK13-AM13<0,0,AK13-AM13)","v":0},0,{"$f":"IF(OR(AK14<AM13,A14>=AK$7),AK14,AN14-AL14)","v":0},{"$f":"IF(A14=0,0,IF(AK$7>=A14,+PMT(AK$5,AK$7,-AK$4,0,0),AL14+AM14))","v":0}]
[3,0,0,0,0,null,3,0,{"$f":"Hilfstabelle!N96","v":0},{"$f":"IF(H15=0,0,IF(H7<=24,H4/(H6*12-H7)*12,IF(AND(H7>24,H7<36),H4/(H6*12-H7)*(36-H7),0)))","v":0},{"$f":"I15+J15","v":0},null,3,0,{"$f":"Hilfstabelle!N97","v":0},{"$f":"IF(N15=0,0,IF(N7<=24,N4/(N6*12-N7)*12,IF(AND(N7>24,N7<36),N4/(N6*12-N7)*(36-N7),0)))","v":0},0,null,1,{"$f":"T4","v":0},{"$f":"T15*T$5/100+T15*T$6/100","v":0},{"$f":"IF(S15<=T$8,0,T$4/T$9)","v":0},{"$f":"U15+V15","v":0},null,null,"EUR","Garantieentg.","EUR","EUR",null,3,0,0,0,null,3,{"$f":"IF(AK14-AM14<0,0,AK14-AM14)","v":0},0,0,0]
[4,0,0,0,0,null,4,0,{"$f":"H16*H$5/100","v":0},{"$f":"IF(H16=0,0,IF(H16<H$4/H$8,H16,H$4/(H$6*12-H$7)*12))","v":0},0,null,4,0,{"$f":"N16*N$5/100","v":0},{"$f":"IF(N16=0,0,IF(N16<N$4/N$8,N16,N$4/(N$6*12-N$7)*12))","v":0},0,null,2,{"$f":"IF((T15-V15)<0,0,T15-V15)","v":0},0,0,0,{"$nulls":3},"EUR",{"$nulls":3},4,0,0,0,null,4,0,0,0,0]
[5,0,0,0,0,null,5,0,0,{"$f":"IF(H17=0,0,IF(H17<H$4/H$8,H17,H$4/(H$6*12-H$7)*12))","v":0},0,null,5,0,0,{"$f":"IF(N17=0,0,IF(N17<N$4/N$8,N17,N$4/(N$6*12-N$7)*12))","v":0},0,null,3,0,0,0,0,null,1,{"$f":"Z4","v":0},{"$f":"Z$5/100*Z17+Z$8/100*Z17","v":0},{"$f":"IF(Y17<=Z$10,0,Z$4/Z$11)","v":0},{"$f":"AA17+AB17","v":0},null,5,0,0,0,null,5,0,0,0,0]
[6,0,0,0,0,null,6,0,0,0,0,null,6,0,0,0,0,null,4,0,0,0,0,null,2,{"$f":"IF((Z17-AB17)<0,0,Z17-AB17)","v":0},{"$f":"Z$5/100*Z18+Z$8/100*Z18","v":0},{"$f":"IF(Y18<=Z$10,0,Z$4/Z$11)","v":0},0,null,6,0,0,0,null,6,0,0,0,0]
[7,0,0,0,0,null,7,0,0,0,0,null,7,0,0,0,0,null,5,0,0,0,0,null,3,{"$f":"IF((Z18-AB18)<0,0,Z18-AB18)","v":0},{"$f":"Z$5/100*Z19+Z$8/100*Z19","v":0},0,0,null,7,0,0,0,null,7,0,0,0,0]
[8,0,0,0,0,null,8,0,0,0,0,null,8,0,0,0,0,null,6,0,0,0,0,null,4,0,{"$f":"Z$6/100*Z20+Z$8/100*Z20","v":0},0,0,null,8,0,0,0,null,8,0,0,0,0]
[9,0,0,0,0,null,9,0,0,0,0,null,9,0,0,0,0,null,7,0,0,0,0,null,5,0,0,0,0,null,9,0,0,0,null,9,0,0,0,0]
[10,0,0,0,0,null,10,0,0,0,0,null,10,0,0,0,0,null,8,0,0,0,0,null,6,0,0,0,0,null,10,0,0,0,null,10,0,0,0,0]
[11,{"$f":"H23+N23+T25+Z27+AF23+AK23","v":0},{"$f":"I23+O23+IF(U25=\"\",0,U25)+AA27+AG23+AL23","v":0},{"$f":"J23+P23+IF(V25=\"\",0,V25)+AB27+AM23","v":0},{"$f":"K23+Q23+IF(W25=\"\",0,W25)+AC27+AN23+AH23","v":0},null,11,0,0,0,0,null,11,0,0,0,0,null,9,0,0,0,0,null,7,0,0,0,0,null,11,0,0,0,null,11,0,0,0,0]
[12,{"$f":"H24+N24+Z28+AF24+AK24","v":0},{"$f":"I24+O24+AA28+AG24+AL24","v":0},{"$f":"J24+P24+AB28+AM24","v":0},{"$f":"K24+Q24+AC28+AN24+AH24","v":0},null,12,0,0,0,0,null,12,0,0,0,0,null,10,0,0,0,0,null,8,0,0,0,0,null,12,0,0,0,null,12,0,0,0,0]
[13,{"$f":"H25+N25+Z29+AF25+AK25","v":0},{"$f":"I25+O25+AA29+AG25+AL25","v":0},{"$f":"J25+P25+AB29+AM25","v":0},{"$f":"K25+Q25+AC29+AN25+AH25","v":0},null,13,0,0,0,0,null,13,0,0,0,0,null,11,0,{"$f":"IF(T25=0,\"\",T25*T$5/100+T$6/100*T25/2)","v":""},{"$f":"IF(S25>T7,\"\",IF(S25<=T$8,\"\",T$4/T$9))","v":""},{"$f":"IF(S25>T7,\"\",U25+V25)","v":""},null,9,0,0,0,0,null,13,0,0,0,null,13,0,0,0,0]
[14,0,{"$f":"I26+O26+AA30+AG26+AL26","v":0},{"$f":"J26+P26+AB30+AM26","v":0},{"$f":"K26+Q26+AC30+AN26+AH26","v":0},null,14,0,0,0,0,null,14,0,0,0,0,{"$nulls":7},10,0,0,0,0,null,14,0,0,0,null,14,0,0,0,0]
[15,0,{"$f":"I27+O27+AA31+AG27+AL27","v":0},{"$f":"J27+P27+AB31+AM27","v":0},{"$f":"K27+Q27+AC31+AN27+AH27","v":0},null,15,0,0,0,0,null,15,0,0,0,0,null,"Summe Zahlungen:",null,{"$f":"SUM(U15:U25)","v":0},{"$f":"SUM(V15:V25)","v":0},{"$f":"SUM(W15:W25)","v":0},null,11,0,{"$f":"Z$7/100*Z27+Z$8/100*Z27","v":0},0,0,null,15,0,0,0,null,15,0,0,0,0]
[16,0,{"$f":"I28+O28+AA32+AG28+AL28","v":0},{"$f":"J28+P28+IF(AB32=\"\",0,AB32)+AM28","v":0},{"$f":"K28+Q28+IF(AC32=\"\",0,AC32)+AN28+AH28","v":0},null,16,0,0,0,0,null,16,0,0,0,0,{"$nulls":7},12,0,{"$f":"Z$7/100*Z28+Z$8/100*Z28","v":0},0,0,null,16,0,0,0,null,16,0,0,0,0]
[17,0,{"$f":"I29+O29+AG29+AL29","v":0},{"$f":"J29+P29+AM29","v":0},{"$f":"K29+Q29+AN29+AH29","v":0},null,17,0,0,0,0,null,17,0,0,0,0,{"$nulls":7},13,0,{"$f":"Z$7/100*Z29+Z$8/100*Z29","v":0},0,0,null,17,0,0,0,null,17,{"$f":"IF(AK28-AM28<0,0,AK28-AM28)","v":0},0,0,0]
[18,0,{"$f":"I30+O30+AG30+AL30","v":0},{"$f":"J30+P30+AM30","v":0},{"$f":"K30+Q30+AN30+AH30","v":0},null,18,0,0,0,0,null,18,0,0,0,0,{"$nulls":7},14,0,{"$f":"Z$7/100*Z30+Z$8/100*Z30","v":0},0,0,null,18,0,0,0,null,18,{"$f":"IF(AK29-AM29<0,0,AK29-AM29)","v":0},0,0,0]
[19,0,{"$f":"I31+O31+AG31+AL31","v":0},{"$f":"J31+P31+AM31","v":0},{"$f":"K31+Q31+AN31+AH31","v":0},null,19,0,0,0,0,null,19,0,0,0,0,{"$nulls":7},15,0,{"$f":"Z$7/100*Z31+Z$8/100*Z31","v":0},0,0,null,19,0,0,0,null,19,{"$f":"IF(AK30-AM30<0,0,AK30-AM30)","v":0},0,0,0]
[20,0,{"$f":"I32+O32+AG32+AL32","v":0},{"$f":"J32+P32+AM32","v":0},{"$f":"K32+Q32+AN32+AH32","v":0},null,20,0,0,0,0,null,20,0,0,0,0,{"$nulls":7},16,0,{"$nulls":4},20,0,0,0,null,20,{"$f":"IF(AK31-AM31<0,0,AK31-AM31)","v":0},0,0,0]
[]
["Summe Zahlungen:",null,{"$f":"SUM(C13:C33)","v":0},{"$f":"SUM(D13:D33)","v":0},{"$f":"SUM(E13:E33)","v":0},null,"Summe Zahlungen:",null,{"$f":"SUM(I13:I33)","v":0},{"$f":"SUM(J13:J33)","v":0},{"$f":"SUM(K13:K33)","v":0},null,"Summe Zahlungen:",null,{"$f":"SUM(O13:O33)","v":0},{"$f":"SUM(P13:P33)","v":0},{"$f":"SUM(Q13:Q33)","v":0},{"$nulls":7},"Summe Zahlungen:",null,{"$f":"SUM(AA17:AA32)","v":0},{"$f":"SUM(AB17:AB32)","v":0},{"$f":"SUM(AC17:AC32)","v":0},null,"Summe Zahlungen:",null,{"$f":"SUM(AG13:AG33)","v":0},{"$f":"SUM(AH13:AH33)","v":0},null,"Summe Zahlungen:",null,{"$f":"SUM(AL13:AL33)","v":0},{"$f":"SUM(AM13:AM33)","v":0},{"$f":"SUM(AN13:AN33)","v":0}]

{"sheet":"Personalkosten 1. Jahr","index":6,"n_rows":32,"n_cols":18,"rows_kept":32,"merged":[[5,5,5,7],[5,13,5,15],[6,3,6,4]]}
[{"$f":" CONCATENATE( \"Personalkosten 1. Jahr des Unternehmens:  \", Startseite!C14)","v":"Personalkosten 1. Jahr des Unternehmens:  "},{"$nulls":7},{"$f":"IF(Startseite!D16=0,\"\",\"       Planungszeitraum:\")","v":"       Planungszeitraum:"},null,{"$f":"IF(Startseite!D16=0,\"\",Startseite!D16)","v":"2017-01-01"},"-",{"$f":"IF(K1=\"\",\"\",K1+350)","v":"2017-12-17"}]
[{"$nulls":8},{"$f":"TEXT(K1, \" - \" )","v":" - "}]
[{"$nulls":6},"Arbeitgeberanteil-Faktor :",null,null,{"$f":"1+0.073+0.01275+0.0935+0.015+0.032+0.0038+0.0009","v":{"v":1.2309499999999998,"d":"1.2310"}}]
[{"$nulls":6},"Arbeitgeberanteil-Faktor Minijobs:",null,null,{"$f":"1+0.13+0.15+0.009+0.003+0.0009+0.02","v":1.3128999999999995}]
[]
[null,null,{"$f":"IF(SUM($C$12:$C$23)>INT(SUM($C$12:$C$23)),\"Beachte Kommentar in C7\",\"\")","v":""},null,null,"Lohn- und Gehaltsangabe",{"$nulls":7},"Mitarbeiterproduktivität"]
["Nr.",null,"Anzahl","zeitliche",null,"Bruttolohn","Stunden","Bruttogehalt","Lohn/Gehalt ","Lohn/Gehalt","Tarifliches","Sonder-","Personalkosten","Anzahl","Anteil ","Produktive"]
[{"$nulls":3},"Einschränkung",null,"pro Std.","pro","pro Monat","pro Monat","pro Monat","Zusatzgehalt","Zahlungen","pro Jahr","Mitarbeiter","produktiv","Kräfte"]
[null,"Name bzw. Tätigkeitsbereich",null,"Beginn","Ende","in EUR","Woche","in EUR","ohne AG-Anteile","incl. AG-Anteile","in %","in EUR","in EUR","gewichtet","in %"]
[{"$nulls":3},"(Monat)","(Monat)",{"$nulls":3},"in EUR","in EUR"]
[]
[1,{"$nulls":7},{"$f":"IF(C12=0,0,IF(C12>=1,IF(AND(OR(F12>=1,G12>=1), H12>1),\"Lohn/Gehalt ???\",C12*IF(F12=\"\",H12,F12*G12*4.33))))","v":{"v":0,"d":"0.00"}},{"$f":"IF(C12*I12<C12*451,I12*J$4,I12*J$3)","v":{"v":0,"d":"0.00"}},null,null,{"$f":"IF(AND(D12=\"\",E12=\"\"),J12*12+K12*J12+L12*IF(I12<401,J$4,J$3),IF(OR(D12=\"\",E12=\"\",D12=0,E12=0,D12>E12),0,J12*(E12-D12+1)+J12*K12+L12*IF(I12<401,J$4,J$3)))","v":0},{"$f":"$C12*(IF($D12=\"\",1,IF($D12=\"bis\",$E12/12,IF($D12=\"ab\",(12-$E12+1)/12,((E12+1)-D12)/12))))","v":{"v":0,"d":"0.00"}},null,{"$f":"N12*O12","v":{"v":0,"d":"0.00"}},{"$f":"IF(AND(C12>0,J12>0,J12<=C12*520,M12>C12*6240),\"Überprüfe ggf. Minijob(s)\",\"\")","v":""},{"$f":"IF(AND($D12=\"\",$E12=\"\"),\"\",IF(OR($D12=\"\",$E12=\"\",$D12=0,$E12=0,$D12>$E12),\"Überprüfe Eingaben in Spalte D und E\",\"\"))","v":""}]
[2,{"$nulls":7},{"$f":"IF(C13=0,0,IF(C13>=1,IF(AND(OR(F13>=1,G13>=1), H13>1),\"Lohn/Gehalt ???\",C13*IF(F13=\"\",H13,F13*G13*4.33))))","v":{"v":0,"d":"0.00"}},{"$f":"IF(C13*I13<C13*451,I13*J$4,I13*J$3)","v":{"v":0,"d":"0.00"}},null,null,{"$f":"IF(AND(D13=\"\",E13=\"\"),J13*12+K13*J13+L13*IF(I13<401,J$4,J$3),IF(OR(D13=\"\",E13=\"\",D13=0,E13=0,D13>E13),0,J13*(E13-D13+1)+J13*K13+L13*IF(I13<401,J$4,J$3)))","v":0},{"v":0,"d":"0.00"},null,{"v":0,"d":"0.00"},{"$f":"IF(AND(C13>0,J13>0,J13<=C13*520,M13>C13*6240),\"Überprüfe ggf. Minijob(s)\",\"\")","v":""},""]
[3,{"$nulls":7},{"$f":"IF(C14=0,0,IF(C14>=1,IF(AND(OR(F14>=1,G14>=1), H14>1),\"Lohn/Gehalt ???\",C14*IF(F14=\"\",H14,F14*G14*4.33))))","v":{"v":0,"d":"0.00"}},{"v":0,"d":"0.00"},null,null,0,{"v":0,"d":"0.00"},null,{"v":0,"d":"0.00"},"",""]
[4,{"$nulls":7},{"v":0,"d":"0.00"},{"v":0,"d":"0.00"},null,null,0,{"v":0,"d":"0.00"},null,{"v":0,"d":"0.00"},"",""]
[5,{"$nulls":7},{"v":0,"d":"0.00"},{"v":0,"d":"0.00"},null,null,0,{"v":0,"d":"0.00"},null,{"v":0,"d":"0.00"},"",""]
[6,{"$nulls":7},{"v":0,"d":"0.00"},{"v":0,"d":"0.00"},null,null,0,{"v":0,"d":"0.00"},null,{"v":0,"d":"0.00"},"",""]
[7,{"$nulls":7},{"v":0,"d":"0.00"},{"v":0,"d":"0.00"},null,null,0,{"v":0,"d":"0.00"},null,{"v":0,"d":"0.00"},"",{"$f":"IF(AND($D18=\"\",$E18=\"\"),\"\",IF(OR($D18=\"\",$E18=\"\",$D18=0,$E18=0,$D18>$E18),\"Überprüfe Eingaben in Spalte D und E\",\"\"))","v":""}]
[8,{"$nulls":7},{"v":0,"d":"0.00"},{"v":0,"d":"0.00"},null,null,0,{"v":0,"d":"0.00"},null,{"v":0,"d":"0.00"},"",{"$f":"IF(AND($D19=\"\",$E19=\"\"),\"\",IF(OR($D19=\"\",$E19=\"\",$D19=0,$E19=0,$D19>$E19),\"Überprüfe Eingaben in Spalte D und E\",\"\"))","v":""}]
[9,"Inhaber/-in oder",1,{"$nulls":10},{"v":1,"d":"1.00"},null,{"v":0,"d":"0.00"}]
[10,"GmbH-Gesellsch./Geschäftsführer/-in",{"$nulls":6},{"$f":"IF(C21=0,0,IF(C21>=1,IF(AND(OR(F21>=1,G21>=1), H21>1),\"Gehalt ???\",C21*IF(F21=\"\",H21,F21*G21*4.33))))","v":{"v":0,"d":"0.00"}},{"$f":"I21","v":{"v":0,"d":"0.00"}},null,null,0,{"$f":"$C21*(IF($D21=\"\",1,IF($D21=\"bis\",$E21/12,IF($D21=\"ab\",(12-$E21+1)/12,((E21+1)-D21)/12))))","v":{"v":0,"d":"0.00"}},null,{"v":0,"d":"0.00"},"",{"$f":"IF(AND($D21=\"\",$E21=\"\"),\"\",IF(OR($D21=\"\",$E21=\"\",$D21=0,$E21=0,$D21>$E21),\"Überprüfe Eingaben in Spalte D und E\",\"\"))","v":""}]
[11,"GmbH-Gesellsch./Geschäftsführer/-in",{"$nulls":6},{"$f":"IF(C22=0,0,IF(C22>=1,IF(AND(OR(F22>=1,G22>=1), H22>1),\"Gehalt ???\",C22*IF(F22=\"\",H22,F22*G22*4.33))))","v":{"v":0,"d":"0.00"}},{"$f":"I22","v":{"v":0,"d":"0.00"}},null,null,0,{"$f":"$C22*(IF($D22=\"\",1,IF($D22=\"bis\",$E22/12,IF($D22=\"ab\",(12-$E22+1)/12,((E22+1)-D22)/12))))","v":{"v":0,"d":"0.00"}},null,{"$f":"N22*O22","v":{"v":0,"d":"0.00"}},"",{"$f":"IF(AND($D22=\"\",$E22=\"\"),\"\",IF(OR($D22=\"\",$E22=\"\",$D22=0,$E22=0,$D22>$E22),\"Überprüfe Eingaben in Spalte D und E\",\"\"))","v":""}]
[12,"GmbH-Gesellsch./Geschäftsführer/-in",{"$nulls":6},{"$f":"IF(C23=0,0,IF(C23>=1,IF(AND(OR(F23>=1,G23>=1), H23>1),\"Gehalt ???\",C23*IF(F23=\"\",H23,F23*G23*4.33))))","v":{"v":0,"d":"0.00"}},{"$f":"I23","v":{"v":0,"d":"0.00"}},null,null,0,{"$f":"$C23*(IF($D23=\"\",1,IF($D23=\"bis\",$E23/12,IF($D23=\"ab\",(12-$E23+1)/12,((E23+1)-D23)/12))))","v":{"v":0,"d":"0.00"}},null,{"$f":"N23*O23","v":{"v":0,"d":"0.00"}},"",{"$f":"IF(AND($D23=\"\",$E23=\"\"),\"\",IF(OR($D23=\"\",$E23=\"\",$D23=0,$E23=0,$D23>$E23),\"Überprüfe Eingaben in Spalte D und E\",\"\"))","v":""}]
["Summe",null,{"$f":"SUM(C12:C23)","v":1},{"$nulls":5},{"$f":"SUM(I12:I23)","v":{"v":0,"d":"0.00"}},{"v":0,"d":"0.00"},{"v":0,"d":"0.00"},{"v":0,"d":"0.00"},0,{"v":1,"d":"1.00"},null,{"$f":"SUM(P12:P23)","v":{"v":0,"d":"0.00"}}]
[{"$nulls":9},"zzgl. Berufsgenossenschaft"]
[{"$nulls":9},"zzgl. Sonstiges"]
[{"$nulls":9},"Personalkosten gesamt",null,null,{"$f":"ROUND(M24+M25+M26,-2)","v":0}]
[{"$nulls":9},"Anzahl Mitarbeiter produktiv",null,null,{"$f":"$P$24","v":{"v":0,"d":"0.00"}}]
[{"$nulls":9},"Planumsatz 1. Geschäftsjahr",null,null,{"$f":"Rentabilität!$C$13","v":0}]
[{"$nulls":9},"Umsatz über Fremdleistungen",null,null,{"$f":"Rentabilität!$C$14","v":0}]
[{"$nulls":9},"Eigene Betriebsleistung je ",null,null,{"$f":"IF((M29-M30)<0,0,IF(M28=0,\"\",(M29-M30)/M28))","v":""}]
[{"$nulls":9},"produktiv Beschäftigtem"]

{"sheet":"Personalkosten 2. Jahr","index":7,"n_rows":32,"n_cols":18,"rows_kept":32,"merged":[[5,5,5,7],[5,13,5,15],[6,3,6,4]]}
[{"$f":" CONCATENATE( \"Personalkosten 2. Jahr des Unternehmens:  \", Startseite!C14)","v":"Personalkosten 2. Jahr des Unternehmens:  "},{"$nulls":7},{"$f":"IF(Startseite!D16=0,\"\",\"        Planungszeitraum:\")","v":"        Planungszeitraum:"},null,{"$f":"IF(Startseite!D16=\"\",\"\",'Personalkosten 1. Jahr'!M1+30)","v":"2018-01-16"},"-",{"$f":"IF(K1=\"\",\"\",K1+330)","v":"2018-12-12"}]
[]
[{"$nulls":6},"Arbeitgeberanteil-Faktor :",null,null,{"$f":"1+0.073+0.01275+0.0935+0.015+0.032+0.0038+0.0009","v":{"v":1.2309499999999998,"d":"1.2310"}}]
[{"$nulls":6},"Arbeitgeberanteil-Faktor Minijobs:",null,null,{"$f":"1+0.13+0.15+0.009+0.003+0.0009+0.02","v":1.3128999999999995}]
[]
[{"$nulls":5},"Lohn- und Gehaltsangabe",{"$nulls":7},"Mitarbeiterproduktivität"]
["Nr.",null,"Anzahl","zeitliche",null,"Bruttolohn","Stunden","Bruttogehalt","Lohn/Gehalt ","Lohn/Gehalt","Tarifliches","Sonder-","Personalkosten","Anzahl","Anteil ","Produktive"]
[{"$nulls":3},"Einschränkung",null,"pro Std.","pro","pro Monat","pro Monat","pro Monat","Zusatzgehalt","Zahlungen","pro Jahr","Mitarbeiter","produktiv","Kräfte"]
[null,"Name bzw. Tätigkeitsbereich",null,"Beginn","Ende","in EUR","Woche","in EUR","ohne AG-Anteile","incl. AG-Anteile","in %","in EUR","in EUR","gewichtet","in %"]
[{"$nulls":3},"(Monat)","(Monat)",{"$nulls":3},"in EUR","in EUR"]
[]
[1,{"$nulls":7},{"$f":"IF(C12=0,0,IF(C12>=1,IF(AND(OR(F12>=1,G12>=1), H12>1),\"Lohn/Gehalt ???\",C12*IF(F12=\"\",H12,F12*G12*4.33))))","v":{"v":0,"d":"0.00"}},{"$f":"IF(C12*I12<C12*451,I12*J$4,I12*J$3)","v":{"v":0,"d":"0.00"}},null,null,{"$f":"IF(AND(D12=\"\",E12=\"\"),J12*12+K12*J12+L12*IF(I12<401,J$4,J$3),IF(OR(D12=\"\",E12=\"\",D12=0,E12=0,D12>E12),0,J12*(E12-D12+1)+J12*K12+L12*IF(I12<401,J$4,J$3)))","v":0},{"$f":"$C12*(IF($D12=\"\",1,IF($D12=\"bis\",$E12/12,IF($D12=\"ab\",(12-$E12+1)/12,((E12+1)-D12)/12))))","v":{"v":0,"d":"0.00"}},null,{"$f":"N12*O12","v":{"v":0,"d":"0.00"}},{"$f":"IF(AND(C12>0,J12>0,J12<=C12*520,M12>C12*6240),\"Überprüfe ggf. Minijob(s)\",\"\")","v":""},{"$f":"IF(AND($D12=\"\",$E12=\"\"),\"\",IF(OR($D12=\"\",$E12=\"\",$D12=0,$E12=0,$D12>$E12),\"Überprüfe Eingaben in Spalte D und E\",\"\"))","v":""}]
[2,{"$nulls":7},{"$f":"IF(C13=0,0,IF(C13>=1,C13*IF(F13=\"\",H13,F13*G13*4.33)))","v":{"v":0,"d":"0.00"}},{"$f":"IF(C13*I13<C13*451,I13*J$4,I13*J$3)","v":{"v":0,"d":"0.00"}},null,null,{"$f":"IF(AND(D13=\"\",E13=\"\"),J13*12+K13*J13+L13*IF(I13<401,J$4,J$3),IF(OR(D13=\"\",E13=\"\",D13=0,E13=0,D13>E13),0,J13*(E13-D13+1)+J13*K13+L13*IF(I13<401,J$4,J$3)))","v":0},{"v":0,"d":"0.00"},null,{"v":0,"d":"0.00"},{"$f":"IF(AND(C13>0,J13>0,J13<=C13*520,M13>C13*6240),\"Überprüfe ggf. Minijob(s)\",\"\")","v":""},""]
[3,{"$nulls":7},{"v":0,"d":"0.00"},{"v":0,"d":"0.00"},null,null,0,{"v":0,"d":"0.00"},null,{"v":0,"d":"0.00"},"",""]
[4,{"$nulls":7},{"v":0,"d":"0.00"},{"v":0,"d":"0.00"},null,null,0,{"v":0,"d":"0.00"},null,{"v":0,"d":"0.00"},"",""]
[5,{"$nulls":7},{"v":0,"d":"0.00"},{"v":0,"d":"0.00"},null,null,0,{"v":0,"d":"0.00"},null,{"v":0,"d":"0.00"},"",""]
[6,{"$nulls":7},{"v":0,"d":"0.00"},{"v":0,"d":"0.00"},null,null,0,{"v":0,"d":"0.00"},null,{"v":0,"d":"0.00"},"",""]
[7,{"$nulls":7},{"v":0,"d":"0.00"},{"v":0,"d":"0.00"},null,null,0,{"v":0,"d":"0.00"},null,{"v":0,"d":"0.00"},"",{"$f":"IF(AND($D18=\"\",$E18=\"\"),\"\",IF(OR($D18=\"\",$E18=\"\",$D18=0,$E18=0,$D18>$E18),\"Überprüfe Eingaben in Spalte D und E\",\"\"))","v":""}]
[8,{"$nulls":7},{"v":0,"d":"0.00"},{"v":0,"d":"0.00"},null,null,0,{"v":0,"d":"0.00"},null,{"v":0,"d":"0.00"},"",{"$f":"IF(AND($D19=\"\",$E19=\"\"),\"\",IF(OR($D19=\"\",$E19=\"\",$D19=0,$E19=0,$D19>$E19),\"Überprüfe Eingaben in Spalte D und E\",\"\"))","v":""}]
[9,"Inhaber/-in oder",1,{"$nulls":10},{"v":1,"d":"1.00"},null,{"v":0,"d":"0.00"}]
[10,"GmbH-Gesellsch./Geschäftsführer/-in",{"$nulls":6},{"$f":"IF(C21=0,0,IF(C21>=1,IF(AND(OR(F21>=1,G21>=1), H21>1),\"Gehalt ???\",C21*IF(F21=\"\",H21,F21*G21*4.33))))","v":{"v":0,"d":"0.00"}},{"$f":"I21","v":{"v":0,"d":"0.00"}},null,null,0,{"v":0,"d":"0.00"},null,{"v":0,"d":"0.00"},"",{"$f":"IF(AND($D21=\"\",$E21=\"\"),\"\",IF(OR($D21=\"\",$E21=\"\",$D21=0,$E21=0,$D21>$E21),\"Überprüfe Eingaben in Spalte D und E\",\"\"))","v":""}]
[11,"GmbH-Gesellsch./Geschäftsführer/-in",{"$nulls":6},{"$f":"IF(C22=0,0,IF(C22>=1,IF(AND(OR(F22>=1,G22>=1), H22>1),\"Gehalt ???\",C22*IF(F22=\"\",H22,F22*G22*4.33))))","v":{"v":0,"d":"0.00"}},{"$f":"I22","v":{"v":0,"d":"0.00"}},null,null,0,{"$f":"$C22*(IF($D22=\"\",1,IF($D22=\"bis\",$E22/12,IF($D22=\"ab\",(12-$E22+1)/12,((E22+1)-D22)/12))))","v":{"v":0,"d":"0.00"}},null,{"$f":"N22*O22","v":{"v":0,"d":"0.00"}},"",{"$f":"IF(AND($D22=\"\",$E22=\"\"),\"\",IF(OR($D22=\"\",$E22=\"\",$D22=0,$E22=0,$D22>$E22),\"Überprüfe Eingaben in Spalte D und E\",\"\"))","v":""}]
[12,"GmbH-Gesellsch./Geschäftsführer/-in",{"$nulls":6},{"$f":"IF(C23=0,0,IF(C23>=1,IF(AND(OR(F23>=1,G23>=1), H23>1),\"Gehalt ???\",C23*IF(F23=\"\",H23,F23*G23*4.33))))","v":{"v":0,"d":"0.00"}},{"$f":"I23","v":{"v":0,"d":"0.00"}},null,null,0,{"$f":"$C23*(IF($D23=\"\",1,IF($D23=\"bis\",$E23/12,IF($D23=\"ab\",(12-$E23+1)/12,((E23+1)-D23)/12))))","v":{"v":0,"d":"0.00"}},null,{"$f":"N23*O23","v":{"v":0,"d":"0.00"}},"",{"$f":"IF(AND($D23=\"\",$E23=\"\"),\"\",IF(OR($D23=\"\",$E23=\"\",$D23=0,$E23=0,$D23>$E23),\"Überprüfe Eingaben in Spalte D und E\",\"\"))","v":""}]
["Summe",null,{"$f":"SUM(C12:C23)","v":1},{"$nulls":5},{"$f":"SUM(I12:I23)","v":{"v":0,"d":"0.00"}},{"v":0,"d":"0.00"},{"v":0,"d":"0.00"},{"v":0,"d":"0.00"},0,{"v":1,"d":"1.00"},null,{"$f":"SUM(P12:P23)","v":{"v":0,"d":"0.00"}}]
[{"$nulls":9},"zzgl. Berufsgenossenschaft"]
[{"$nulls":9},"zzgl. Sonstiges"]
[{"$nulls":9},"Personalkosten gesamt",null,null,{"$f":"ROUND(M24+M25+M26,-2)","v":0}]
[{"$nulls":9},"Anzahl Mitarbeiter produktiv",null,null,{"$f":"$P$24","v":{"v":0,"d":"0.00"}}]
[{"$nulls":9},"Planumsatz 2. Geschäftsjahr",null,null,{"$f":"Rentabilität!$E$13","v":0}]
[{"$nulls":9},"Umsatz über Fremdleistungen",null,null,{"$f":"Rentabilität!$C$14","v":0}]
[{"$nulls":9},"Eigene Betriebsleistung je ",null,null,{"$f":"IF((M29-M30)<0,0,IF(M28=0,\"\",(M29-M30)/M28))","v":""}]
[{"$nulls":9},"produktiv Beschäftigtem"]

{"sheet":"Personalkosten 3. Jahr","index":8,"n_rows":32,"n_cols":33,"rows_kept":32,"merged":[[5,5,5,7],[5,13,5,15],[6,3,6,4]]}
[{"$f":" CONCATENATE( \"Personalkosten 3. Jahr des Unternehmens:  \", Startseite!C14)","v":"Personalkosten 3. Jahr des Unternehmens:  "},{"$nulls":7},{"$f":"IF(Startseite!D16=0,\"\",\"         Planungszeitraum:\")","v":"         Planungszeitraum:"},null,{"$f":"IF(Startseite!D16=\"\",\"\",'Personalkosten 2. Jahr'!M1+30)","v":"2019-01-11"},"-",{"$f":"IF(K1=\"\",\"\",K1+330)","v":"2019-12-07"}]
[{"$nulls":29},"Anzahl Mitarbeiter produktiv",null,null,{"$f":"$P$24","v":{"v":0,"d":"0.00"}}]
[{"$nulls":6},"Arbeitgeberanteil-Faktor :",null,null,{"$f":"1+0.073+0.01275+0.0935+0.015+0.032+0.0038+0.0009","v":{"v":1.2309499999999998,"d":"1.2310"}},{"$nulls":19},"Planumsatz 3. Geschäftsjahr",null,null,{"$f":"Rentabilität!$G$13","v":0}]
[{"$nulls":6},"Arbeitgeberanteil-Faktor Minijobs:",null,null,{"$f":"1+0.13+0.15+0.009+0.003+0.0009+0.02","v":1.3128999999999995},{"$nulls":19},"Umsatz über Fremdleistungen",null,null,{"$f":"Rentabilität!$G$14","v":0}]
[{"$nulls":29},"Eigene Betriebsleistung je ",null,null,{"$f":"IF((AG3-AG4)<0,0,IF(AG2=0,\"\",(AG3-AG4)/AG2))","v":""}]
[{"$nulls":5},"Lohn- und Gehaltsangabe",{"$nulls":7},"Mitarbeiterproduktivität",{"$nulls":15},"produktiv Beschäftigtem"]
["Nr.",null,"Anzahl","zeitliche",null,"Bruttolohn","Stunden","Bruttogehalt","Lohn/Gehalt ","Lohn/Gehalt","Tarifliches","Sonder-","Personalkosten","Anzahl","Anteil ","Produktive"]
[{"$nulls":3},"Einschränkung",null,"pro Std.","pro","pro Monat","pro Monat","pro Monat","Zusatzgehalt","Zahlungen","pro Jahr","Mitarbeiter","produktiv","Kräfte"]
[null,"Name bzw. Tätigkeitsbereich",null,"Beginn","Ende","in EUR","Woche","in EUR","ohne AG-Anteile","incl. AG-Anteile","in %","in EUR","in EUR","gewichtet","in %"]
[{"$nulls":3},"(Monat)","(Monat)",{"$nulls":3},"in EUR","in EUR"]
[]
[1,{"$nulls":7},{"$f":"IF(C12=0,0,IF(C12>=1,IF(AND(OR(F12>=1,G12>=1), H12>1),\"Lohn/Gehalt ???\",C12*IF(F12=\"\",H12,F12*G12*4.33))))","v":{"v":0,"d":"0.00"}},{"$f":"IF(C12*I12<C12*451,I12*J$4,I12*J$3)","v":{"v":0,"d":"0.00"}},null,null,{"$f":"IF(AND(D12=\"\",E12=\"\"),J12*12+K12*J12+L12*IF(I12<401,J$4,J$3),IF(OR(D12=\"\",E12=\"\",D12=0,E12=0,D12>E12),0,J12*(E12-D12+1)+J12*K12+L12*IF(I12<401,J$4,J$3)))","v":0},{"$f":"$C12*(IF($D12=\"\",1,IF($D12=\"bis\",$E12/12,IF($D12=\"ab\",(12-$E12+1)/12,((E12+1)-D12)/12))))","v":{"v":0,"d":"0.00"}},null,{"$f":"N12*O12","v":{"v":0,"d":"0.00"}},{"$f":"IF(AND(C12>0,J12>0,J12<=C12*520,M12>C12*6240),\"Überprüfe ggf. Minijob(s)\",\"\")","v":""},{"$f":"IF(AND($D12=\"\",$E12=\"\"),\"\",IF(OR($D12=\"\",$E12=\"\",$D12=0,$E12=0,$D12>$E12),\"Überprüfe Eingaben in Spalte D und E\",\"\"))","v":""}]
[2,{"$nulls":7},{"$f":"IF(C13=0,0,IF(C13>=1,IF(AND(OR(F13>=1,G13>=1), H13>1),\"Lohn/Gehalt ???\",C13*IF(F13=\"\",H13,F13*G13*4.33))))","v":{"v":0,"d":"0.00"}},{"$f":"IF(C13*I13<C13*451,I13*J$4,I13*J$3)","v":{"v":0,"d":"0.00"}},null,null,{"$f":"IF(AND(D13=\"\",E13=\"\"),J13*12+K13*J13+L13*IF(I13<401,J$4,J$3),IF(OR(D13=\"\",E13=\"\",D13=0,E13=0,D13>E13),0,J13*(E13-D13+1)+J13*K13+L13*IF(I13<401,J$4,J$3)))","v":0},{"v":0,"d":"0.00"},null,{"v":0,"d":"0.00"},{"$f":"IF(AND(C13>0,J13>0,J13<=C13*520,M13>C13*6240),\"Überprüfe ggf. Minijob(s)\",\"\")","v":""},""]
[3,{"$nulls":7},{"v":0,"d":"0.00"},{"v":0,"d":"0.00"},null,null,0,{"v":0,"d":"0.00"},null,{"v":0,"d":"0.00"},"",""]
[4,{"$nulls":7},{"v":0,"d":"0.00"},{"v":0,"d":"0.00"},null,null,0,{"v":0,"d":"0.00"},null,{"v":0,"d":"0.00"},"",""]
[5,{"$nulls":7},{"v":0,"d":"0.00"},{"v":0,"d":"0.00"},null,null,0,{"v":0,"d":"0.00"},null,{"v":0,"d":"0.00"},"",""]
[6,{"$nulls":7},{"v":0,"d":"0.00"},{"v":0,"d":"0.00"},null,null,0,{"v":0,"d":"0.00"},null,{"v":0,"d":"0.00"},"",""]
[7,{"$nulls":7},{"v":0,"d":"0.00"},{"v":0,"d":"0.00"},null,null,0,{"v":0,"d":"0.00"},null,{"v":0,"d":"0.00"},"",{"$f":"IF(AND($D18=\"\",$E18=\"\"),\"\",IF(OR($D18=\"\",$E18=\"\",$D18=0,$E18=0,$D18>$E18),\"Überprüfe Eingaben in Spalte D und E\",\"\"))","v":""}]
[8,{"$nulls":7},{"v":0,"d":"0.00"},{"v":0,"d":"0.00"},null,null,0,{"v":0,"d":"0.00"},null,{"v":0,"d":"0.00"},"",{"$f":"IF(AND($D19=\"\",$E19=\"\"),\"\",IF(OR($D19=\"\",$E19=\"\",$D19=0,$E19=0,$D19>$E19),\"Überprüfe Eingaben in Spalte D und E\",\"\"))","v":""}]
[9,"Inhaber/-in oder",1,{"$nulls":10},{"v":1,"d":"1.00"},null,{"v":0,"d":"0.00"}]
[10,"GmbH-Gesellsch./Geschäftsführer/-in",{"$nulls":6},{"$f":"IF(C21=0,0,IF(C21>=1,IF(AND(OR(F21>=1,G21>=1), H21>1),\"Gehalt ???\",C21*IF(F21=\"\",H21,F21*G21*4.33))))","v":{"v":0,"d":"0.00"}},{"$f":"I21","v":{"v":0,"d":"0.00"}},null,null,0,null,null,{"v":0,"d":"0.00"},"",{"$f":"IF(AND($D21=\"\",$E21=\"\"),\"\",IF(OR($D21=\"\",$E21=\"\",$D21=0,$E21=0,$D21>$E21),\"Überprüfe Eingaben in Spalte D und E\",\"\"))","v":""}]
[11,"GmbH-Gesellsch./Geschäftsführer/-in",{"$nulls":6},{"$f":"IF(C22=0,0,IF(C22>=1,IF(AND(OR(F22>=1,G22>=1), H22>1),\"Gehalt ???\",C22*IF(F22=\"\",H22,F22*G22*4.33))))","v":{"v":0,"d":"0.00"}},{"$f":"I22","v":{"v":0,"d":"0.00"}},null,null,0,{"$f":"$C22*(IF($D22=\"\",1,IF($D22=\"bis\",$E22/12,IF($D22=\"ab\",(12-$E22+1)/12,((E22+1)-D22)/12))))","v":{"v":0,"d":"0.00"}},null,{"$f":"N22*O22","v":{"v":0,"d":"0.00"}},"",{"$f":"IF(AND($D22=\"\",$E22=\"\"),\"\",IF(OR($D22=\"\",$E22=\"\",$D22=0,$E22=0,$D22>$E22),\"Überprüfe Eingaben in Spalte D und E\",\"\"))","v":""}]
[12,"GmbH-Gesellsch./Geschäftsführer/-in",{"$nulls":6},{"$f":"IF(C23=0,0,IF(C23>=1,IF(AND(OR(F23>=1,G23>=1), H23>1),\"Gehalt ???\",C23*IF(F23=\"\",H23,F23*G23*4.33))))","v":{"v":0,"d":"0.00"}},{"$f":"I23","v":{"v":0,"d":"0.00"}},null,null,0,{"$f":"$C23*(IF($D23=\"\",1,IF($D23=\"bis\",$E23/12,IF($D23=\"ab\",(12-$E23+1)/12,((E23+1)-D23)/12))))","v":{"v":0,"d":"0.00"}},null,{"$f":"N23*O23","v":{"v":0,"d":"0.00"}},"",{"$f":"IF(AND($D23=\"\",$E23=\"\"),\"\",IF(OR($D23=\"\",$E23=\"\",$D23=0,$E23=0,$D23>$E23),\"Überprüfe Eingaben in Spalte D und E\",\"\"))","v":""}]
["Summe",null,{"$f":"SUM(C12:C23)","v":1},{"$nulls":5},{"$f":"SUM(I12:I23)","v":{"v":0,"d":"0.00"}},{"v":0,"d":"0.00"},{"v":0,"d":"0.00"},{"v":0,"d":"0.00"},0,{"v":1,"d":"1.00"},null,{"$f":"SUM(P12:P23)","v":{"v":0,"d":"0.00"}}]
[{"$nulls":9},"zzgl. Berufsgenossenschaft"]
[{"$nulls":9},"zzgl. Sonstiges"]
[{"$nulls":9},"Personalkosten gesamt",null,null,{"$f":"ROUND(M24+M25+M26,-2)","v":0}]
[{"$nulls":9},"Anzahl Mitarbeiter produktiv",null,null,{"$f":"$P$24","v":{"v":0,"d":"0.00"}}]
[{"$nulls":9},"Planumsatz 3. Geschäftsjahr",null,null,{"$f":"Rentabilität!$G$13","v":0}]
[{"$nulls":9},"Umsatz über Fremdleistungen",null,null,{"$f":"Rentabilität!$G$14","v":0}]
[{"$nulls":9},"Eigene Betriebsleistung je ",null,null,{"$f":"IF((M29-M30)<0,0,IF(M28=0,\"\",(M29-M30)/M28))","v":""}]
[{"$nulls":9},"produktiv Beschäftigtem"]

{"sheet":"übrige Kosten","index":9,"n_rows":37,"n_cols":8,"rows_kept":37,"merged":[[4,2,4,3],[4,4,4,5],[4,6,4,7],[5,2,6,2],[5,3,6,3],[5,4,6,4],[5,5,6,5],[5,6,6,6],[5,7,6,7]]}
[]
[{"$f":" CONCATENATE( \"übrige Kosten des Unternehmens:  \", Startseite!C14)","v":"übrige Kosten des Unternehmens:  "}]
[]
[null,null," 1.Geschäftsjahr",null," 2.Geschäftsjahr",null," 3.Geschäftsjahr"]
[null,null,{"$f":"CONCATENATE(\"(\",TEXT('Personalkosten 1. Jahr'!$K$1,\"MMM. JJJJ\"),\" - \",TEXT('Personalkosten 1. Jahr'!$M$1,\"MMM. JJJJ\"),\")\")","v":"(Jan. 2017 - Dez. 2017)"},null,{"$f":"CONCATENATE(\"(\",TEXT('Personalkosten 2. Jahr'!$K$1,\"MMM. JJJJ\"),\" - \",TEXT('Personalkosten 2. Jahr'!$M$1,\"MMM. JJJJ\"),\")\")","v":"(Jan. 2018 - Dez. 2018)"},null,{"$f":"CONCATENATE(\"(\",TEXT('Personalkosten 3. Jahr'!$K$1,\"MMM. JJJJ\"),\" - \",TEXT('Personalkosten 3. Jahr'!$M$1,\"MMM. JJJJ\"),\")\")","v":"(Jan. 2019 - Dez. 2019)"}]
["Kostenarten",null,"EUR","%","EUR","%","EUR","%"]
[]
["Raumkosten (Miete, Pacht)",null,null,{"$f":"IF(OR(C8=\"\",C$37=0),\"\",(C8/C$37*100))","v":""},null,{"$f":"IF(OR(E8=\"\",E$37=0),\"\",(E8/E$37*100))","v":""},null,{"$f":"IF(OR(G8=\"\",G$37=0),\"\",(G8/G$37*100))","v":""}]
["Energiekosten (Strom, Heizung, Wasser)",null,null,"",null,"",null,""]
["Versicherung, Beiträge",null,null,"",null,"",null,""]
["Kfz-Kosten (incl. Leasing, Steuern, Vers., Rep., ohne AfA)",null,null,"",null,"",null,""]
["Werbung  / Reisekosten",null,null,"",null,"",null,""]
["Kosten der Warenabgabe (incl.  Gewährleistungen)",null,null,"",null,"",null,""]
["Abschreibungen",null,{"$f":"Kapitalbedarf!$G19","v":0},"",{"$f":"Kapitalbedarf!$G19","v":0},"",{"$f":"Kapitalbedarf!$G19","v":0},""]
["Reparaturen, Instandhaltung",null,null,"",null,"",null,""]
["Büro (Telefon, Telefax, Internet)",null,null,"",null,"",null,""]
["Büro (Porto, Zeitschriften, sonst. Bürobedarf)",null,null,"",null,"",null,""]
["Buchführung und Abschlusskosten / Beratungskosten",null,null,"",null,"",null,""]
["Miete / Leasing (ohne Kfz) für bewegliche Wirtschaftsgüter",null,null,"",null,"",null,""]
["Abraum - und Abfallbeseitigung",null,null,"",null,"",null,""]
["Werkzeug und Kleingeräte GWG",null,null,"",null,"",null,""]
["Betriebsbedarf",null,null,"",null,"",null,""]
["langfristige Zinsen",null,{"$f":"ROUND(IF('Zins und Tilgung'!C13=0,0,'Zins und Tilgung'!C13),-2)","v":0},"",{"$f":"ROUND(IF('Zins und Tilgung'!C14=0,0,'Zins und Tilgung'!C14),-2)","v":0},"",{"$f":"ROUND(IF('Zins und Tilgung'!C15=0,0,'Zins und Tilgung'!C15),-2)","v":0},""]
["kurzfristige Zinsen, Bankgebühren",null,null,"",null,"",null,""]
["Sonstiges",null,null,"",null,"",null,""]
["Sonstiges 2:",null,null,""]
["Sonstiges 3:",null,null,"",null,"",null,""]
["übrige Kosten gesamt",null,{"$f":"SUM(C8:C27)","v":0},"",{"$f":"SUM(E8:E27)","v":0},"",{"$f":"SUM(G8:G27)","v":0},""]
[]
[]
["Steuerabschätzung"]
["Gewerbesteuer / Hebesatz in %",{"v":3.5,"d":"350%"},{"$f":"ROUND(IF(IF(OR(Startseite!$A35=Startseite!$A44,Startseite!$A35=Startseite!$A45,Startseite!$A35=Startseite!$A46),Rentabilität!C24*0.035*'übrige Kosten'!$B$32,(Rentabilität!C24-24500)*0.035*'übrige Kosten'!$B$32)>0,IF(OR(Startseite!$A35=Startseite!$A44,Startseite!$A35=Startseite!$A45,Startseite!$A35=Startseite!$A46),Rentabilität!C24*0.035*'übrige Kosten'!$B$32,(Rentabilität!C24-24500)*0.035*'übrige Kosten'!$B$32),0),-2)","v":0},{"$f":"IF(OR(C32=\"\",C$37=0),\"\",(C32/C$37*100))","v":""},{"$f":"ROUND(IF(IF(OR(Startseite!$A35=Startseite!$A44,Startseite!$A35=Startseite!$A45,Startseite!$A35=Startseite!$A46),Rentabilität!E24*0.035*'übrige Kosten'!$B$32,(Rentabilität!E24-24500)*0.035*'übrige Kosten'!$B$32)>0,IF(OR(Startseite!$A35=Startseite!$A44,Startseite!$A35=Startseite!$A45,Startseite!$A35=Startseite!$A46),Rentabilität!E24*0.035*'übrige Kosten'!$B$32,(Rentabilität!E24-24500)*0.035*'übrige Kosten'!$B$32),0),-2)","v":0},{"$f":"IF(OR(E32=\"\",E$37=0),\"\",(E32/E$37*100))","v":""},{"$f":"ROUND(IF(IF(OR(Startseite!$A35=Startseite!$A44,Startseite!$A35=Startseite!$A45,Startseite!$A35=Startseite!$A46),Rentabilität!G24*0.035*'übrige Kosten'!$B$32,(Rentabilität!G24-24500)*0.035*'übrige Kosten'!$B$32)>0,IF(OR(Startseite!$A35=Startseite!$A44,Startseite!$A35=Startseite!$A45,Startseite!$A35=Startseite!$A46),Rentabilität!G24*0.035*'übrige Kosten'!$B$32,(Rentabilität!G24-24500)*0.035*'übrige Kosten'!$B$32),0),-2)","v":0},{"$f":"IF(OR(G32=\"\",G$37=0),\"\",(G32/G$37*100))","v":""}]
["Körperschaftssteuer incl. Solidaritätszuschlag (15,825%)",null,{"$f":"IF(Rentabilität!E24<=0,0,ROUND(IF(OR(Startseite!$A35=Startseite!$A44,Startseite!$A35=Startseite!$A45,Startseite!$A35=Startseite!$A46),Rentabilität!C24*0.15825,0),-2))","v":0},{"$f":"IF(OR(C33=\"\",C$37=0),\"\",(C33/C$37*100))","v":""},{"$f":"IF(Rentabilität!E24<=0,0,ROUND(IF(OR(Startseite!$A35=Startseite!$A44,Startseite!$A35=Startseite!$A45,Startseite!$A35=Startseite!$A46),Rentabilität!E24*0.15825,0),-2))","v":0},{"$f":"IF(OR(E33=\"\",E$37=0),\"\",(E33/E$37*100))","v":""},{"$f":"IF(Rentabilität!G24<=0,0,ROUND(IF(OR(Startseite!$A35=Startseite!$A44,Startseite!$A35=Startseite!$A45,Startseite!$A35=Startseite!$A46),Rentabilität!G24*0.15825,0),-2))","v":0},{"$f":"IF(OR(G33=\"\",G$37=0),\"\",(G33/G$37*100))","v":""}]
["Summe Betriebssteuern",null,{"$f":"C32+C33","v":0},{"$f":"IF(OR(C34=\"\",C$37=0),\"\",(D32+D33))","v":""},{"$f":"E32+E33","v":0},{"$f":"IF(OR(E34=\"\",E$37=0),\"\",(F32+F33))","v":""},{"$f":"G32+G33","v":0},{"$f":"IF(OR(G34=\"\",G$37=0),\"\",(H32+H33))","v":""}]
[]
[]
["Umsatz ohne USt.",null,{"$f":"(Rentabilität!C$13)","v":0},{"$f":"IF(C37=0,\"\",(C37/C$37*100))","v":""},{"$f":"(Rentabilität!E$13)","v":0},{"$f":"IF(E37=0,\"\",(E37/E$37*100))","v":""},{"$f":"(Rentabilität!G$13)","v":0},{"$f":"IF(G37=0,\"\",(G37/G$37*100))","v":""}]

{"sheet":"Unternehmerlohn","index":10,"n_rows":64,"n_cols":9,"rows_kept":64,"merged":[[4,3,4,4],[4,5,4,6],[4,7,4,8],[5,0,6,2],[5,3,5,4],[5,5,5,6],[5,7,5,8],[6,3,6,4],[6,5,6,6],[6,7,6,8],[9,0,10,2],[29,0,29,2],[35,0,35,2],[36,0,36,2],[37,0,37,2],[56,0,56,1],[57,0,57,1],[59,0,59,1],[60,0,60,1],[61,0,61,1],[67,2,67,6],[67,7,67,8]]}
[]
[{"$f":" CONCATENATE( \"Unternehmerlohn / Private Ausgaben des Unternehmens:  \", Startseite!C14)","v":"Unternehmerlohn / Private Ausgaben des Unternehmens:  "}]
[]
[{"$nulls":3},"1. Geschäftsjahr",null,"2. Geschäftsjahr",null,"3. Geschäftsjahr"]
[{"$nulls":3},{"$f":"CONCATENATE(\"(\",TEXT('Personalkosten 1. Jahr'!$K$1,\"MMM. JJJJ\"),\" - \",TEXT('Personalkosten 1. Jahr'!$M$1,\"MMM. JJJJ\"),\")\")","v":"(Jan. 2017 - Dez. 2017)"},null,{"$f":"CONCATENATE(\"(\",TEXT('Personalkosten 2. Jahr'!$K$1,\"MMM. JJJJ\"),\" - \",TEXT('Personalkosten 2. Jahr'!$M$1,\"MMM. JJJJ\"),\")\")","v":"(Jan. 2018 - Dez. 2018)"},null,{"$f":"CONCATENATE(\"(\",TEXT('Personalkosten 3. Jahr'!$K$1,\"MMM. JJJJ\"),\" - \",TEXT('Personalkosten 3. Jahr'!$M$1,\"MMM. JJJJ\"),\")\")","v":"(Jan. 2019 - Dez. 2019)"}]
["Geplanter Unternehmerlohn",null,null,"EUR",null,"EUR",null,"EUR"]
[]
[]
[]
["Notwendiger Unternehmerlohn",null,null,"1. Geschäftsjahr",null,"2. Geschäftsjahr",null,"3. Geschäftsjahr"]
[{"$nulls":3},"EUR","%","EUR","%","EUR","%"]
[]
[" Private Ausgaben:"]
[null,null,"Lebensunterhalt",null,{"$f":"IF(D14>0,D14/$D$28*$E$28,\" \")","v":" "},null,{"$f":"IF(F14>0,F14/$F$28*$G$28,\" \")","v":" "},null,{"$f":"IF(H14>0,H14/$H$28*$I$28,\" \")","v":" "}]
[null,null,"Miete/Hausaufwendungen",null," ",null," ",null," "]
[null,null,"Energiekosten (Strom, Heizung, Wasser)",null," ",null," ",null," "]
[null,null,"Kommunikation (Telefon, TV)",null," ",null," ",null," "]
[null,null,"Kfz-Kosten",null," ",null," ",null," "]
[null,null,"Altersvorsorge (Renten-, Lebensversicherung)",null," ",null," ",null," "]
[null,null,"Kranken-, Pflegeversicherung",null," ",null," ",null," "]
[null,null,"sonstige Versicherungen",null," ",null," ",null," "]
[null,null,"Urlaub, Reise",null," ",null," ",null," "]
[null,null,"geplante Anschaffungen",null," ",null," ",null," "]
[null,null,"Kreditverpflichtungen",null," ",null," ",null," "]
[null,null,"sonstige Zahlungen / Rücklagen",null," ",null," ",null," "]
[null,null,"geschätzte Einkommensteuer mit Solidaritätszuschlag",null," ",null," ",null," "]
[null,null,"Kirchensteuer",null," ",null," ",null," "]
[" Summe privater Ausgaben",null,null,{"$f":"SUM(D14:D27)","v":0},{"v":100,"d":"100.00"},{"$f":"SUM(F14:F27)","v":0},{"v":100,"d":"100.00"},{"$f":"SUM(H14:H27)","v":0},{"v":100,"d":"100.00"}]
[]
[" Sonstige Private Einnahmen:"]
[null,null,"Nettolohn/-gehalt des Ehe- bzw. Lebenspartners"]
[null,null,"andere Nettolohn/-gehaltseinnahmen"]
[null,null,"Kindergeld"]
[null,null,"Sonstige (dauerhaften) Einkünfte"]
[null,null,"Sonstiges"]
[" Summe sonstige privater Einnahmen ",null,null,{"$f":"SUM(D31:D35)","v":0},{"$f":"IF(AND(D28<>0,D36>0),D36/D28*E28,\" \")","v":" "},{"$f":"SUM(F31:F35)","v":0},{"$f":"IF(AND(F28<>0,F36>0),F36/F28*G28,\" \")","v":" "},{"$f":"SUM(H31:H35)","v":0},{"$f":"IF(AND(H28<>0,H36>0),H36/H28*I28,\" \")","v":" "}]
["Gründerzuschuss oder ALG II und Einstiegegeld",null,null,{"$f":"D52+D63","v":0},null,{"$f":"F52+F63","v":0}]
[" Summe sonstige privater Einnahmen (mit GZ oder ALG II / ESG)",null,null,{"$f":"D36+D37","v":0},null,{"$f":"F36+F37","v":0},null,{"$f":"H36+H37","v":0}]
[" = Saldo der Ausgaben abzüglich der sonstigen Einnahmen "]
["     ~ notwendiger Unternehmerlohn",null,null,{"$f":"D28-D38","v":0},null,{"$f":"F28-F38","v":0},null,{"$f":"H28-H38","v":0}]
[{"$f":"IF(AND(D52>0,D63>0),\"Achtung: Gründerzuschuss und ALG II können nicht gleichzeitig beantragt werden\",\"\")","v":""}]
[]
[]
["Nebenrechnung zur Ermittlung eines Gründerzuschusses (GZ) oder eines Einstiegsgeldes (ESG)"]
["Gründerzuschuss:",null,null,"1. Geschäftsjahr",null,"2. Geschäftsjahr"]
[{"$nulls":3},"EUR",null,"EUR"]
["Phase I","Dauer (Monate)",6]
[null,"ALG I  (EUR)",null,{"$f":"C48*C47","v":0}]
[null,"Monatspauschale (EUR)",300,{"$f":"IF(C48=0,0,C49*C47)","v":0}]
["Phase II","Dauer (Monate)",9]
[null,"Monatspauschale (300 EUR)",null,{"$f":"IF(C48=0,0,(C50-3)*C51)","v":0},null,{"$f":"IF(C48=0,0,3*C51)","v":0}]
[null,null,"Summe Gründerzuschuss",{"$f":"D48+D49+D51","v":0},null,{"$f":"F49+F51","v":0}]
[]
["Arbeitslosengeld II und Einstiegsgeld",null,null,"1. Geschäftsjahr",null,"2. Geschäftsjahr"]
[{"$nulls":3},"EUR",null,"EUR"]
["1. Jahr","Dauer (Monate)",6]
["Verlängerungsoption 1. Jahr (Monate)",{"$nulls":6},{"$f":"IF(OR(C57=\"\",C57=0,C57=6),\"\",\"   überprüfe Eintragung!\")","v":""}]
["ALG II und Einstiegsgeld monatlich (EUR)",null,null,{"$f":"C56*C58+C57*C58","v":0}]
["2.Jahr"]
["Verlängerungsoptionen 2. Jahr (Monate)",{"$nulls":6},{"$f":"IF(OR(C60=\"\",C60=0,C60=6,C60=12),\"\",\"   überprüfe Eintragung!\")","v":""}]
["Zuschussdegression im 2. Jahr (%)",null,{"v":0.34,"d":"34%"}]
["ALG II und Einstiegsgeld monatlich: 2. Jahr (EUR)",null,{"$f":"IF(C60>0,C58*(1-C61),0)","v":0},null,null,{"$f":"C60*C62","v":0}]
[null,null,"Summe Einstiegsgeld",{"$f":"D58","v":0},null,{"$f":"F59+F62","v":0}]
[{"$f":"IF(AND(D52>0,D63>0),\"Achtung: Gründerzuschuss und ALG II können nicht gleichzeitig beantragt werden\",\"\")","v":""}]

{"sheet":"Umsatzplanung","index":11,"n_rows":138,"n_cols":16,"rows_kept":138,"merged":[[24,1,24,5],[24,6,24,10],[24,11,24,15],[72,8,72,10],[72,11,72,12],[72,14,72,15],[73,8,73,10],[73,11,73,12],[73,14,73,15],[74,8,74,10],[74,11,74,12],[74,14,74,15],[75,8,75,10],[75,11,75,12],[75,14,75,15],[76,8,76,10],[76,11,76,12],[76,14,76,15],[77,14,77,15],[82,1,82,2],[84,1,84,2],[108,0,109,0],[108,2,108,4],[108,5,109,7],[109,2,109,4],[109,10,109,13],[110,2,110,4],[110,5,110,7],[110,10,110,12],[111,2,111,4],[111,5,111,7],[112,2,112,4],[112,5,112,7],[113,2,113,4],[113,5,113,7],[114,2,114,4],[114,5,114,7],[115,2,115,4],[115,5,115,7],[116,2,116,4],[116,5,116,7],[117,2,117,4],[117,5,117,7],[118,2,118,4],[118,5,118,7],[119,2,119,4],[119,5,119,7],[121,2,121,4],[124,0,125,0],[124,1,124,2],[124,3,124,4],[124,5,124,6],[124,7,124,8],[124,9,124,10],[124,11,124,12],[125,1,125,2],[125,3,125,4],[125,5,125,6],[125,7,125,8],[125,9,125,10],[125,11,125,12],[126,1,126,2],[126,3,126,4],[126,5,126,6],[126,7,126,8],[126,9,126,10],[126,11,126,12],[127,1,127,2],[127,3,127,4],[127,5,127,6],[127,7,127,8],[127,9,127,10],[127,11,127,12],[128,1,128,2],[128,3,128,4],[128,5,128,6],[128,7,128,8],[128,9,128,10],[128,11,128,12],[129,1,129,2],[129,3,129,4],[129,5,129,6],[129,7,129,8],[129,9,129,10],[129,11,129,12],[130,1,130,2],[130,3,130,4],[130,5,130,6],[130,7,130,8],[130,9,130,10],[130,11,130,12],[131,1,131,2],[131,3,131,4],[131,5,131,6],[131,7,131,8],[131,9,131,10],[131,11,131,12],[132,1,132,2],[132,3,132,4],[132,5,132,6],[132,7,132,8],[132,9,132,10],[132,11,132,12],[133,1,133,2],[133,3,133,4],[133,5,133,6],[133,7,133,8],[133,9,133,10],[133,11,133,12],[134,1,134,2],[134,3,134,4],[134,5,134,6],[134,7,134,8],[134,9,134,10],[134,11,134,12],[135,1,135,2],[135,3,135,4],[135,5,135,6],[135,7,135,8],[135,9,135,10],[135,11,135,12],[136,1,136,2],[136,3,136,4],[136,5,136,6],[136,7,136,8],[136,9,136,10],[136,11,136,12],[137,1,137,2],[137,5,137,6],[137,9,137,10]]}
[{"$f":" CONCATENATE( \"Mindesumsatz und Umsatzplanungen des Unternehmens:  \", Startseite!C14)","v":"Mindesumsatz und Umsatzplanungen des Unternehmens:  "}]
[]
["Mindest- Umsatzbedarf"]
[{"$nulls":10},"Möglichkeiten der Umsatzplanung:"]
["Achtung: Mit Ausnahme des Materialeinsatzes werden alle Kostenarten als fix angenommen!"]
[{"$nulls":3},"1. Geschäftsjahr",null,"2. Geschäftsjahr",null,"3. Geschäftsjahr",null,null,"1.",null,null," - z.B. für Unternehmen im "]
["Bezeichnung",null,null,"EUR","%","EUR","%","EUR","%",{"$nulls":4},"   Bau- und Ausbaugewerbe"]
[]
[" Unternehmerlohn (nicht bei Kapitalgesellschaften)",null,null,{"$f":"IF(OR(Startseite!$A35=Startseite!$A44,Startseite!$A35=Startseite!$A45,Startseite!$A35=Startseite!$A46),0,IF(Unternehmerlohn!D7>=Unternehmerlohn!D40,Unternehmerlohn!D7,Unternehmerlohn!D40))","v":0},{"$f":"IF(D$13=0,\"\",(D9/D$16*100))","v":""},{"$f":"IF(OR(Startseite!$A35=Startseite!$A44,Startseite!$A35=Startseite!$A45,Startseite!$A35=Startseite!$A46),0,IF(Unternehmerlohn!F7>=Unternehmerlohn!F40,Unternehmerlohn!F7,Unternehmerlohn!F40))","v":0},{"$f":"IF(F$13=0,\"\",(F9/F$16*100))","v":""},{"$f":"IF(OR(Startseite!$A35=Startseite!$A44,Startseite!$A35=Startseite!$A45,Startseite!$A35=Startseite!$A46),0,IF(Unternehmerlohn!H7>=Unternehmerlohn!H40,Unternehmerlohn!H7,Unternehmerlohn!H40))","v":0},{"$f":"IF(H$13=0,\"\",(H9/H$16*100))","v":""}]
[{"$nulls":10},"2."]
["+ Personalkosten",null,null,{"$f":"Rentabilität!C21","v":0},{"$f":"IF(D$13=0,\"\",(D11/D$16*100))","v":""},{"$f":"Rentabilität!E21","v":0},{"$f":"IF(F$13=0,\"\",(F11/F$16*100))","v":""},{"$f":"Rentabilität!G21","v":0},{"$f":"IF(H$13=0,\"\",(H11/H$16*100))","v":""},{"$nulls":4},"  - für Ladengeschäfte"]
["+ übrige Kosten",null,null,{"$f":"Rentabilität!C23","v":0},{"$f":"IF(D$13=0,\"\",(D12/D$16*100))","v":""},{"$f":"Rentabilität!E23","v":0},{"$f":"IF(F$13=0,\"\",(F12/F$16*100))","v":""},{"$f":"Rentabilität!G23","v":0},{"$f":"IF(H$13=0,\"\",(H12/H$16*100))","v":""}]
["= mindestens notwendiger Rohgewinn",null,null,{"$f":"D9+D11+D12","v":0},{"$f":"IF(D$16=0,0,(100-E15))","v":0},{"$f":"F9+F11+F12","v":0},{"$f":"IF(F$16=0,\"\",(100-G15))","v":""},{"$f":"H9+H11+H12","v":0},{"$f":"IF(H$16=0,\"\",(100-I15))","v":""}]
[{"$nulls":10},"3.",null,null," - Allgemeine Auftragsplanung"]
["+ Materialeinsatz ",null,null,{"$f":"IF(D13=0,\"\",ROUND(D13/E13*E15,-1))","v":""},null,{"$f":"IF(F13=0,\"\",ROUND(F13/G13*G15,-1))","v":""},0,{"$f":"IF(H13=0,\"\",ROUND(H13/I13*I15,-1))","v":""},0]
["= Mindest - Umsatzbedarf",null,null,{"$f":"ROUND(D13*100/(100-E15),-2)","v":0},null,{"$f":"ROUND(F13*100/(100-G15),-2)","v":0},100,{"$f":"ROUND(H13*100/(100-I15),-2)","v":0},100]
[]
[]
[]
[]
[]
[{"$f":"CONCATENATE(\"Kapazitätsorientierte Umsatzberechnung des Unternehmens:  \",  Startseite!C14)","v":"Kapazitätsorientierte Umsatzberechnung des Unternehmens:  "}]
[]
[]
[null,"Inhaber",{"$nulls":4},"Gesellen",{"$nulls":4},"Auszubildende"]
["Bezeichnung","Tage","Stunden","Std./Jahr","%","EUR","Tage","Stunden","Std./Jahr","%","EUR","Tage","Stunden","Std./Jahr","%","EUR"]
["Arbeitszeit pro Woche",null,null,{"$f":"52*C27","v":0},{"$nulls":4},{"$f":"52*H27","v":0},{"$nulls":4},{"$f":"52*M27","v":0}]
["Tagesarbeitszeit"]
[" - bez. Feiertage",10,null,{"$f":"B29*C$28","v":0},null,null,10,null,{"$f":"G29*H$28","v":0},null,null,10,null,{"$f":"L29*M$28","v":0}]
[" - Urlaubstage",10,null,{"$f":"B30*C$28","v":0},null,null,30,null,{"$f":"G30*H$28","v":0},null,null,30,null,{"$f":"L30*M$28","v":0}]
[" - Krankheitstage",5,null,{"$f":"B31*C$28","v":0},null,null,10,null,{"$f":"G31*H$28","v":0},null,null,10,null,{"$f":"L31*M$28","v":0}]
[" - sonstige Fehltage",5,null,{"$f":"B32*C$28","v":0},null,null,5,null,{"$f":"G32*H$28","v":0},null,null,50,null,{"$f":"L32*M$28","v":0}]
[" = Zwischensumme",null,null,{"$f":"D27-SUM(D29:D32)","v":0},{"$nulls":4},{"$f":"I27-SUM(I29:I32)","v":0},{"$nulls":4},{"$f":"N27-SUM(N29:N32)","v":0}]
[" + Überstunden pro Jahr",{"$nulls":12},{"v":10,"d":"10.00"}]
[" = Anwesenheitszeit",null,null,{"$f":"D33+D34","v":0},{"$nulls":4},{"$f":"I33+I34","v":0},{"$nulls":4},{"$f":"N33+N34","v":10}]
[" - Anteil unproduktiver Stunden in %",null,null,{"$f":"D35*E36","v":0},{"$nulls":4},{"$f":"I35*J36","v":0},{"$nulls":4},{"$f":"N35*O36","v":0}]
[" = verkaufbare Stunden pro Person",null,null,{"$f":"D35-D36","v":0},{"$nulls":4},{"$f":"I35-I36","v":0},{"$nulls":4},{"$f":"N35-N36","v":10}]
[" x Anzahl Mitarbeiter bzw. Inhaber",null,null,1]
[" = verkaufbare Stunden",null,null,{"$f":"D37*D38","v":0},{"$nulls":4},{"$f":"I37*I38","v":0},{"$nulls":4},{"$f":"N37*N38","v":0}]
[" x Stundenverrechnungssatz"]
[" = Lohnumsatz",{"$nulls":4},{"$f":"D39*F40","v":0},{"$nulls":4},{"$f":"I39*K40","v":0},{"$nulls":4},{"$f":"N39*P40","v":0}]
[]
["Gesamtumsatz",{"$nulls":3},"%","EUR"]
["Lohnumsatz gesamt in EUR",{"$nulls":4},{"$f":"F41+K41+P41","v":0}]
[]
["Materialeinsatz in %"]
["Materialaufschlag in %"]
["Materialumsatz in EUR",{"$nulls":4},{"$f":"(F44+F52)/(1-(E46*(1+E47)))-(F44+F52)","v":0}]
[]
["Fremdleistungen Kosten in EUR"]
["Aufschlag auf Fremdleistungen in %"]
["Fremdleistungsumsatz in EUR",{"$nulls":4},{"$f":"F50*(1+E51)","v":0}]
[]
["Gesamtumsatz in EUR",{"$nulls":4},{"$f":"F44+F48+F52","v":0}]
["Gesamtumsatz in EUR gerundet",{"$nulls":4},{"$f":"ROUND(F54,-3)","v":0}]
{"$rows_empty":9}
[{"$f":"CONCATENATE( \"Umsatz nach Anzahl erwarteter Kunden (besonders für Ladengeschäfte) des Unternehmens:  \",Startseite!C14)","v":"Umsatz nach Anzahl erwarteter Kunden (besonders für Ladengeschäfte) des Unternehmens:  "}]
[]
[]
[]
["Tage pro Jahr",null,null,365,"Tage"]
[" - Sonntage und Feiertage",null,null,62,"Tage"]
[" - Samstage (1/2)",{"$nulls":3},"Tage",{"$nulls":3},"Hilfstabelle: Ermittlung Durchschnittsumsatz je Kunde"]
[" - sonstige Tage, an denen geschlossen ist",{"$nulls":3},"Tage"]
[" = Öffnungstage pro Jahr",null,null,{"$f":"D69-D70-D71-D72","v":303},"Tage",{"$nulls":3},"Typische Umsatzart/ Bezeichnung",null,null,"Brutto -Umsatz/ Kunde   EUR ",null,"Anteil an Gesamtumsatz","Gewichteter Umsatz"]
[{"$nulls":8},"Umsatzart 1",{"$nulls":5},{"$f":"L74*N74","v":{"v":0,"d":"0.00 €"}}]
["Durchschnittsumsatz je Kunde",{"$nulls":3},"EUR","brutto!!",null,null,"Umsatzart 2",{"$nulls":5},{"$f":"L75*N75","v":{"v":0,"d":"0.00 €"}}]
[" x Anzahl erwarteter Kunden pro Tag",{"$nulls":3},"Kunden/Tag",{"$nulls":3},"Umsatzart 3",{"$nulls":5},{"$f":"L76*N76","v":{"v":0,"d":"0.00 €"}}]
[" = Tagesumsatz",null,null,{"$f":"D75*D76","v":0},"EUR ","brutto!!",null,null,"Umsatzart 4",{"$nulls":5},{"$f":"L77*N77","v":{"v":0,"d":"0.00 €"}}]
[" x Öffnungstage pro Jahr",null,null,{"$f":"D73","v":303},"Tage",{"$nulls":3},"Durchschnittsumsatz je Kunde brutto",{"$nulls":4},{"$f":"SUM(N74:N77)","v":{"v":0,"d":"0%"}},{"$f":"SUM(O74:O77)","v":{"v":0,"d":"0.00 €"}}]
[" = Jahresumsatz",null,null,{"$f":"D77*D78","v":0},"EUR","brutto!!"]
["Jahresumsatz gerundet",null,null,{"$f":"ROUND(D79,-3)","v":0},"EUR","brutto!!",null,null,{"$f":"IF(N78>100%,\"Achtung: Summe der Umsatzanteile größer 100%\",\"\")","v":""}]
[]
[]
["Umsatz lt. Rentabilitätsvorschau 1. J. (Netto)",{"$f":"Rentabilität!C13","v":0},null,"EUR"]
[" + MWSt",null,{"v":0.19,"d":"19.0%"}]
[" = Umsatz laut Rentabilitätvorschau (Brutto)",null,null,{"$f":"B83+B83*C84","v":0},"EUR"]
[" / Durchschnittsumsatz je Kunde",null,null,{"$f":"D75","v":{"v":0,"d":"0.00"}},"EUR"]
[" = notwendige Kunden pro Jahr",null,null,{"$f":"IF(D86=0,0,D85/D86)","v":0},"Anzahl Kunden"]
[" / Öffnungstage",null,null,{"$f":"D73","v":303},"Tage"]
[" = notwendige Kunden pro Tag",null,null,{"$f":"D87/D88","v":{"v":0,"d":"0.0"}},"Anzahl Kunden"]
{"$rows_empty":17}
[{"$f":" CONCATENATE(\"Umsatz nach Produkten/Dienstleistungen des Unternehmens:  \",Startseite!C14)","v":"Umsatz nach Produkten/Dienstleistungen des Unternehmens:  "}]
[]
["Umsatzbereich",null,"Anzahl erwarteter Aufträge pro:",null,null,"Umsatz pro Auftrag in EUR",null,null,{"$f":"IF(C110=\"Jahr\",\"Jahres-\",IF(C110=\"Monat\",\"Monats-\",IF(C110=\"Woche\",\"Wochen-\",IF(C110=\"Tag\",\"Tages-\"))))","v":"Monats-"}]
[null,null,"Monat",{"$nulls":5},"umsatz in EUR",null,"Geplanter Arbeitseinsatz:"]
["Umsatzbereich 1",{"$nulls":7},{"$f":"ROUND($C111*F111,-1)","v":0},null,"Anzahl Arbeitstage/Woche",null,null,5]
["Umsatzbereich 2",{"$nulls":7},{"$f":"ROUND($C112*F112,-1)","v":0},{"$nulls":4},{"$f":"IF(OR(N111<1,N111>7),\"Falsche Eingabe\",\"\")","v":""}]
["Umsatzbereich 3",{"$nulls":7},0,null,"  Anzahl Arbeitsmonate/Jahr",null,null,12]
["Umsatzbereich 4",{"$nulls":7},0,{"$nulls":4},{"$f":"IF(OR(N113<1,N113>12),\"Falsche Eingabe\",\"\")","v":""}]
["Umsatzbereich 5",{"$nulls":7},0]
["Umsatzbereich 6",{"$nulls":7},0]
["Umsatzbereich 7",{"$nulls":7},0]
["Umsatzbereich 8",{"$nulls":7},0]
["Umsatzbereich 9",{"$nulls":7},0]
["Umsatzbereich 10",{"$nulls":7},0]
[{"$f":"IF(C110=\"Jahr\",\"erwarteter Jahresumsatz in EUR\",IF(C110=\"Monat\",\"erwarteter Monatsumsatz in EUR\",IF(C110=\"Woche\",\"erwarteter Wochenumsatz in EUR\",IF(C110=\"Tag\",\"erwarteter Tagesumsatz in EUR\"))))","v":"erwarteter Monatsumsatz in EUR"},{"$nulls":7},{"$f":"SUM(I111:I120)","v":{"v":0,"d":"0 €"}}]
["erwartete Aufträge",null,{"$f":"SUM(C111:E120)","v":0}]
[]
[]
["Umsatzbereich","Anzahl erwarteter Aufträge pro",null,{"$f":"IF(B$126=\"Jahr\",\"Jahresumsatz\",IF(B$126=\"Monat\",\"Monatsumsatz\",IF(B$126=\"Woche\",\"Wochenumsatz\",IF(B$126=\"Tag\",\"Tagesumsatz\"))))","v":"Tagesumsatz"},null,"Anzahl erwarteter Aufträge pro",null,{"$f":"IF(F$126=\"Jahr\",\"Jahresumsatz\",IF(F$126=\"Monat\",\"Monatsumsatz\",IF(F$126=\"Woche\",\"Wochenumsatz\",IF(F$126=\"Tag\",\"Tagesumsatz\"))))","v":"Wochenumsatz"},null,"Anzahl erwarteter Aufträge pro",null,{"$f":"IF(J$126=\"Jahr\",\"Jahresumsatz\",IF(J$126=\"Monat\",\"Monatsumsatz\",IF(J$126=\"Woche\",\"Wochenumsatz\",IF(J$126=\"Tag\",\"Tagesumsatz\"))))","v":"Jahresumsatz"}]
[null,{"$f":"IF($C$110=\"Jahr\",\"Monat\",IF($C$110=\"Monat\",\"Tag\",IF($C$110=\"Woche\",\"Tag\",IF($C$110=\"Tag\",\"Woche\",\"Falsch in C80\"))))","v":"Tag"},null,"In EUR",null,{"$f":"IF($C110=\"Jahr\",\"Woche\",IF($C110=\"Monat\",\"Woche\",IF($C110=\"Woche\",\"Monat\",IF($C110=\"Tag\",\"Monat\",\"Falsch in C80\"))))","v":"Woche"},null,"In EUR",null,{"$f":"IF($C110=\"Jahr\",\"Tag\",IF($C110=\"Monat\",\"Jahr\",IF($C110=\"Woche\",\"Jahr\",IF($C110=\"Tag\",\"Jahr\",\"Falsch in C80\"))))","v":"Jahr"},null,"In EUR"]
[{"$f":"A111","v":"Umsatzbereich 1"},{"$f":"IF($C$110=\"Jahr\",$C111/N$113,IF($C$110=\"Monat\",$C111/(4.33*N$111),IF($C$110=\"Woche\",$C111/N$111,IF($C$110=\"Tag\",$C111*N$111,\"Falsch in C111\"))))","v":{"v":0,"d":"0.0"}},null,{"$f":"ROUND($F111*B127,0)","v":{"v":0,"d":"0 €"}},null,{"$f":"IF($C$110=\"Jahr\",$C111/(N$113*4.33),IF($C$110=\"Monat\",$C111/4.33,IF($C$110=\"Woche\",$C111*4.33,IF($C$110=\"Tag\",B127*4.33,\"Falsch in C111\"))))","v":{"v":0,"d":"0.0"}},null,{"$f":"ROUND($F111*F127,0)","v":{"v":0,"d":"0 €"}},null,{"$f":"IF($C$110=\"Jahr\",F127/N$111,IF($C$110=\"Monat\",$C111*N$113,IF($C$110=\"Woche\",F127*N$113,IF($C$110=\"Tag\",F127*N$113,\"Falsch in C111\"))))","v":{"v":0,"d":"0.0"}},null,{"$f":"ROUND($F111*J127,0)","v":{"v":0,"d":"0 €"}}]
["Umsatzbereich 2",{"$f":"IF($C$110=\"Jahr\",$C112/N$113,IF($C$110=\"Monat\",$C112/(4.33*N$111),IF($C$110=\"Woche\",$C112/N$111,IF($C$110=\"Tag\",$C112*N$111,\"Falsch in C111\"))))","v":{"v":0,"d":"0.0"}},null,{"$f":"ROUND($F112*B128,0)","v":{"v":0,"d":"0 €"}},null,{"$f":"IF($C$110=\"Jahr\",$C112/(N$113*4.33),IF($C$110=\"Monat\",$C112/4.33,IF($C$110=\"Woche\",$C112*4.33,IF($C$110=\"Tag\",B128*4.33,\"Falsch in C111\"))))","v":{"v":0,"d":"0.0"}},null,{"$f":"ROUND($F112*F128,0)","v":{"v":0,"d":"0 €"}},null,{"$f":"IF($C$110=\"Jahr\",F128/N$111,IF($C$110=\"Monat\",$C112*N$113,IF($C$110=\"Woche\",F128*N$113,IF($C$110=\"Tag\",F128*N$113,\"Falsch in C111\"))))","v":{"v":0,"d":"0.0"}},null,{"v":0,"d":"0 €"}]
["Umsatzbereich 3",{"v":0,"d":"0.0"},null,{"$f":"ROUND($F113*B129,0)","v":{"v":0,"d":"0 €"}},null,{"v":0,"d":"0.0"},null,{"v":0,"d":"0 €"},null,{"v":0,"d":"0.0"},null,{"v":0,"d":"0 €"}]
["Umsatzbereich 4",{"v":0,"d":"0.0"},null,{"v":0,"d":"0 €"},null,{"v":0,"d":"0.0"},null,{"v":0,"d":"0 €"},null,{"v":0,"d":"0.0"},null,{"v":0,"d":"0 €"}]
["Umsatzbereich 5",{"v":0,"d":"0.0"},null,{"v":0,"d":"0 €"},null,{"v":0,"d":"0.0"},null,{"v":0,"d":"0 €"},null,{"v":0,"d":"0.0"},null,{"v":0,"d":"0 €"}]
["Umsatzbereich 6",{"v":0,"d":"0.0"},null,{"v":0,"d":"0 €"},null,{"v":0,"d":"0.0"},null,{"v":0,"d":"0 €"},null,{"v":0,"d":"0.0"},null,{"v":0,"d":"0 €"}]
["Umsatzbereich 7",{"v":0,"d":"0.0"},null,{"v":0,"d":"0 €"},null,{"v":0,"d":"0.0"},null,{"v":0,"d":"0 €"},null,{"v":0,"d":"0.0"},null,{"v":0,"d":"0 €"}]
["Umsatzbereich 8",{"v":0,"d":"0.0"},null,{"v":0,"d":"0 €"},null,{"v":0,"d":"0.0"},null,{"v":0,"d":"0 €"},null,{"v":0,"d":"0.0"},null,{"v":0,"d":"0 €"}]
["Umsatzbereich 9",{"v":0,"d":"0.0"},null,{"v":0,"d":"0 €"},null,{"v":0,"d":"0.0"},null,{"v":0,"d":"0 €"},null,{"v":0,"d":"0.0"},null,{"v":0,"d":"0 €"}]
["Umsatzbereich 10",{"v":0,"d":"0.0"},null,{"$f":"ROUND($F120*B136,0)","v":{"v":0,"d":"0 €"}},null,{"v":0,"d":"0.0"},null,{"$f":"ROUND($F120*F136,0)","v":{"v":0,"d":"0 €"}},null,{"v":0,"d":"0.0"},null,{"v":0,"d":"0 €"}]
["erwarteter Umsatz",null,null,{"$f":"SUM(D127:E136)","v":{"v":0,"d":"0 €"}},{"$nulls":3},{"$f":"SUM(H127:I136)","v":{"v":0,"d":"0 €"}},{"$nulls":3},{"$f":"SUM(L127:M136)","v":{"v":0,"d":"0 €"}}]
["erwartete Aufträge",{"$f":"SUM(B127:C136)","v":0},{"$nulls":3},{"$f":"SUM(F127:G136)","v":0},{"$nulls":3},{"$f":"IF(SUM(J127:K136)<0.01,\"\",SUM(J127:K136))","v":""}]

{"sheet":"Rentabilität","index":12,"n_rows":31,"n_cols":8,"rows_kept":31,"merged":[[3,2,3,3],[3,4,3,5],[3,6,3,7],[4,2,5,2],[4,3,5,3],[4,4,5,4],[4,5,5,5],[4,6,5,6],[4,7,5,7]]}
[{"$f":" CONCATENATE( \"Rentabilitätsvorschau des Unternehmens:  \", Startseite!C14)","v":"Rentabilitätsvorschau des Unternehmens:  "}]
[]
[null,null,"1. Geschäftsjahr",null,"2. Geschäftsjahr",null,"3. Geschäftsjahr"]
[null,null,{"$f":"CONCATENATE(\"(\",TEXT('Personalkosten 1. Jahr'!$K$1,\"MMM. JJJJ\"),\" - \",TEXT('Personalkosten 1. Jahr'!$M$1,\"MMM. JJJJ\"),\")\")","v":"(Jan. 2017 - Dez. 2017)"},null,{"$f":"CONCATENATE(\"(\",TEXT('Personalkosten 2. Jahr'!$K$1,\"MMM. JJJJ\"),\" - \",TEXT('Personalkosten 2. Jahr'!$M$1,\"MMM. JJJJ\"),\")\")","v":"(Jan. 2018 - Dez. 2018)"},null,{"$f":"CONCATENATE(\"(\",TEXT('Personalkosten 3. Jahr'!$K$1,\"MMM. JJJJ\"),\" - \",TEXT('Personalkosten 3. Jahr'!$M$1,\"MMM. JJJJ\"),\")\")","v":"(Jan. 2019 - Dez. 2019)"}]
["Bezeichnung",null,"EUR","%","EUR","%","EUR","%"]
[]
["Geplanter Umsatz:",{"$nulls":4},{"$f":"IF(E$13=0,\"\",(E7/E$13*100))","v":""},null,{"$f":"IF(G$13=0,\"\",(G7/G$13*100))","v":""}]
["Bereich 1",null,null,{"$f":"IF(C$13=0,\"\",(C8/C$13*100))","v":""},null,{"$f":"IF(E$13=0,\"\",(E8/E$13*100))","v":""},null,{"$f":"IF(G$13=0,\"\",(G8/G$13*100))","v":""}]
["Bereich 2",null,null,{"$f":"IF(C$13=0,\"\",(C9/C$13*100))","v":""},null,{"$f":"IF(E$13=0,\"\",(E9/E$13*100))","v":""},null,{"$f":"IF(G$13=0,\"\",(G9/G$13*100))","v":""}]
["Bereich 3",null,null,{"$f":"IF(C$13=0,\"\",(C10/C$13*100))","v":""},null,{"$f":"IF(E$13=0,\"\",(E10/E$13*100))","v":""},null,{"$f":"IF(G$13=0,\"\",(G10/G$13*100))","v":""}]
["Bereich 4",null,null,{"$f":"IF(C$13=0,\"\",(C11/C$13*100))","v":""},null,{"$f":"IF(E$13=0,\"\",(E11/E$13*100))","v":""},null,{"$f":"IF(G$13=0,\"\",(G11/G$13*100))","v":""}]
[]
[" = Betriebsleistung gesamt",null,{"$f":"SUM(C7:C11)","v":0},{"$f":"IF(C$13=0,\"\",(C13/C$13*100))","v":""},{"$f":"SUM(E7:E11)","v":0},{"$f":"IF(E$13=0,\"\",(E13/E$13*100))","v":""},{"$f":"SUM(G7:G11)","v":0},{"$f":"IF(G$13=0,\"\",(G13/G$13*100))","v":""}]
[" - Fremdleistungen",null,null,{"$f":"IF(C$13=0,0,(C14/C$13*100))","v":{"v":0,"d":"0.00"}},null,{"$f":"IF(E$13=0,0,(E14/E$13*100))","v":{"v":0,"d":"0.00"}},null,{"$f":"IF(G$13=0,0,(G14/G$13*100))","v":{"v":0,"d":"0.00"}}]
[null," - Materialeinsatz Bereich 1",{"$f":"IF(D15=\"\",0,C8*D15/100)","v":0},null,{"$f":"IF(F15=\"\",0,E8*F15/100)","v":0},null,{"$f":"IF(H15=\"\",0,G8*H15/100)","v":0}]
[null," - Materialeinsatz Bereich 2",{"$f":"IF(D16=\"\",0,C9*D16/100)","v":0},null,0,null,{"$f":"IF(H16=\"\",0,G9*H16/100)","v":0}]
[null," - Materialeinsatz Bereich 3",0,null,0,null,{"$f":"IF(H17=\"\",0,G10*H17/100)","v":0}]
[null," - Materialeinsatz Bereich 4",0,null,0,null,{"$f":"IF(H18=\"\",0,G11*H18/100)","v":0}]
[" - Materialeinsatz gesamt",null,{"$f":"SUM(C15:C18)","v":0},{"$f":"IF(C$13=0,0,(C19/C$13*100))","v":{"v":0,"d":"0.00"}},{"$f":"SUM(E15:E18)","v":0},{"$f":"IF(E$13=0,0,(E19/E$13*100))","v":{"v":0,"d":"0.00"}},{"$f":"SUM(G15:G18)","v":0},{"$f":"IF(G$13=0,0,(G19/G$13*100))","v":{"v":0,"d":"0.00"}}]
[" = Rohgewinn 1",null,{"$f":"(C13-C14-C19)","v":0},{"$f":"IF(C$13=0,\"\",(C20/C$13*100))","v":""},{"$f":"(E13-E14-E19)","v":0},{"$f":"IF(E$13=0,\"\",(E20/E$13*100))","v":""},{"$f":"(G13-G14-G19)","v":0},{"$f":"IF(G$13=0,\"\",(G20/G$13*100))","v":""}]
[" - Personalkosten",null,{"$f":"'Personalkosten 1. Jahr'!M27","v":0},"",{"$f":"'Personalkosten 2. Jahr'!M27","v":0},"",{"$f":"'Personalkosten 3. Jahr'!M27","v":0},""]
[" = Rohgewinn 2",null,{"$f":"(C20-C21)","v":0},"",{"$f":"(E20-E21)","v":0},"",{"$f":"(G20-G21)","v":0},""]
[" - übrige Kosten",null,{"$f":"'übrige Kosten'!$C$28","v":0},"",{"$f":"'übrige Kosten'!$E$28","v":0},"",{"$f":"'übrige Kosten'!$G$28","v":0},""]
[" = Betriebsergebnis",null,{"$f":"C22-C23","v":0},"",{"$f":"E22-E23","v":0},"",{"$f":"G22-G23","v":0},""]
[" - Gewerbesteuer und Körperschaftssteuer",null,{"$f":"'übrige Kosten'!C32+'übrige Kosten'!C33","v":0},"",{"$f":"'übrige Kosten'!E32+'übrige Kosten'!E33","v":0},"",{"$f":"'übrige Kosten'!G32+'übrige Kosten'!G33","v":0},""]
[" = Gewinn / Verlust nach Gewerbesteuer",null,{"$f":"(C24-C25)","v":0},{"$f":"IF(C$13=0,\"\",(C26/C$13*100))","v":""},{"$f":"(E24-E25)","v":0},{"$f":"IF(E$13=0,\"\",(E26/E$13*100))","v":""},{"$f":"(G24-G25)","v":0},{"$f":"IF(G$13=0,\"\",(G26/G$13*100))","v":""}]
[]
[" + Abschreibungen",null,{"$f":"'übrige Kosten'!C14","v":0},{"$f":"IF(C$13=0,\"\",(C28/C$13*100))","v":""},{"$f":"'übrige Kosten'!E14","v":0},{"$f":"IF(E$13=0,\"\",(E28/E$13*100))","v":""},{"$f":"'übrige Kosten'!G14","v":0},{"$f":"IF(G$13=0,\"\",(G28/G$13*100))","v":""}]
["  - Tilgungen",null,{"$f":"ROUND('Zins und Tilgung'!D13,-2)","v":0},{"$f":"IF(C$13=0,\"\",(C29/C$13*100))","v":""},{"$f":"ROUND('Zins und Tilgung'!D14,-2)","v":0},{"$f":"IF(E$13=0,\"\",(E29/E$13*100))","v":""},{"$f":"ROUND('Zins und Tilgung'!D15,-2)","v":0},{"$f":"IF(G$13=0,\"\",(G29/G$13*100))","v":""}]
[{"$f":"IF(Unternehmerlohn!D7>=Unternehmerlohn!D40,\"  - Geplanter Unternehmerlohn\",\"  - Notwendiger Unternehmerlohn\")","v":"  - Geplanter Unternehmerlohn"},null,{"$f":"IF(OR(Startseite!$A35=Startseite!$A44,Startseite!$A35=Startseite!$A45,Startseite!$A35=Startseite!$A46),0,IF(Unternehmerlohn!D7>=Unternehmerlohn!D40,Unternehmerlohn!D7,Unternehmerlohn!D40))","v":0},{"$f":"IF(C$13=0,\"\",(C30/C$13*100))","v":""},{"$f":"IF(OR(Startseite!$A35=Startseite!$A44,Startseite!$A35=Startseite!$A45,Startseite!$A35=Startseite!$A46),0,IF(Unternehmerlohn!F7>=Unternehmerlohn!F40,Unternehmerlohn!F7,Unternehmerlohn!F40))","v":0},{"$f":"IF(E$13=0,\"\",(E30/E$13*100))","v":""},{"$f":"IF(OR(Startseite!$A35=Startseite!$A44,Startseite!$A35=Startseite!$A45,Startseite!$A35=Startseite!$A46),0,IF(Unternehmerlohn!H7>=Unternehmerlohn!H40,Unternehmerlohn!H7,Unternehmerlohn!H40))","v":0},{"$f":"IF(G$13=0,\"\",(G30/G$13*100))","v":""}]
[" = Überschuß / Fehlbetrag",null,{"$f":"C26+C28-C29-C30","v":0},{"$f":"IF(Rentabilität!C$13=0,\"\",(C31/Rentabilität!C$13*100))","v":""},{"$f":"E26+E28-E29-E30","v":0},{"$f":"IF(Rentabilität!E$13=0,\"\",(E31/Rentabilität!E$13*100))","v":""},{"$f":"G26+G28-G29-G30","v":0},{"$f":"IF(Rentabilität!G$13=0,\"\",(G31/Rentabilität!G$13*100))","v":""}]

{"sheet":"Stundenkostensatz ","index":13,"n_rows":132,"n_cols":16,"rows_kept":132,"hidden":true,"merged":[[4,3,4,4],[5,3,5,4],[6,3,7,3],[6,4,7,4],[9,0,9,2],[10,0,10,2],[11,0,11,2],[12,0,12,2],[14,6,14,7],[15,0,15,2],[15,6,15,7],[16,0,16,2],[16,6,16,7],[17,0,17,2],[17,6,17,7],[18,0,18,2],[18,6,18,7],[37,2,37,5],[37,6,37,9],[37,10,37,13],[57,0,58,0],[57,2,57,3],[57,4,58,4],[57,6,58,6],[57,7,58,7],[57,8,58,8],[58,2,58,3],[71,0,71,2],[72,0,72,2],[73,0,73,2],[74,0,74,2],[75,0,75,2],[90,4,91,4],[90,9,91,9],[90,11,91,11],[97,4,97,5],[105,2,105,6],[107,4,107,6],[115,2,115,6],[117,4,117,6]]}
[{"$f":" CONCATENATE( \"Ermittlung des Stundenkostensatzes des Unternehmens:  \", Startseite!C14)","v":"Ermittlung des Stundenkostensatzes des Unternehmens:  "}]
[]
[]
[]
[{"$nulls":3},"2. Geschäftsjahr"]
[{"$nulls":3},{"$f":"IF(D5=\"2. Geschäftsjahr\",CONCATENATE(\"(\",TEXT('[1]Personalkosten 2. Jahr'!$K$1,\"MMM. JJJJ\"),\" - \",TEXT('[1]Personalkosten 2. Jahr'!$M$1,\"MMM. JJJJ\"),\")\"),\"\")","v":"(Okt. 2017 - Sep. 2018)"}]
["Bezeichnung",null,null,"EUR","%"]
[]
["Geplanter Umsatz:"]
[{"$f":" CONCATENATE([1]Rentabilität!A8,\":   \",  [1]Rentabilität!B8)","v":"Bereich 1:   Subunternehmer /Lohnarbeiten"},null,null,{"$f":"Rentabilität!E8","v":0},{"$f":"IF(D$14=0,\"\",(D10/D$14*100))","v":""}]
[{"$f":" CONCATENATE([1]Rentabilität!A9,\":   \",  [1]Rentabilität!B9)","v":"Bereich 2:   Handwerklich"},null,null,{"$f":"Rentabilität!E9","v":0},{"$f":"IF(D$14=0,\"\",(D11/D$14*100))","v":""}]
[{"$f":" CONCATENATE([1]Rentabilität!A10,\":   \",  [1]Rentabilität!B10)","v":"Bereich 3:   "},null,null,{"$f":"Rentabilität!E10","v":0},{"$f":"IF(D$14=0,\"\",(D12/D$14*100))","v":""},null,"Ermittlung der Material- und Fremdleistungszuschläge:"]
[{"$f":" CONCATENATE([1]Rentabilität!A11,\":   \",  [1]Rentabilität!B11)","v":"Bereich 4:   "},null,null,{"$f":"Rentabilität!E11","v":0},{"$f":"IF(D$14=0,\"\",(D13/D$14*100))","v":""}]
[" = Betriebsleistung gesamt",null,null,{"$f":"SUM(D9:D13)","v":0},{"$f":"IF(D$14=0,\"\",(D14/D$14*100))","v":""},null,"Aufschläge",null,"%","EUR"]
[" - Fremdleistungen",null,null,{"$f":"Rentabilität!C14","v":0},{"$f":"IF(D$14=0,0,(D15/D$14*100))","v":{"v":0,"d":"0.00"}},null,"Fremdleistungsaufschlag ",null,null,{"$f":"D15*I15","v":0}]
[" - Materialeinsatz Bereich 1",null,null,{"$f":"IF(E16=\"\",0,D10*E16/100)","v":0},{"$f":"Rentabilität!F15","v":0},null,"Materialaufschlag Bereich 1  ",null,null,{"$f":"D16*I16","v":0}]
[" - Materialeinsatz Bereich 2",null,null,{"$f":"IF(E17=\"\",0,D10*E17/100)","v":0},{"$f":"Rentabilität!F16","v":0},null,"Materialaufschlag Bereich 2 ",null,null,{"$f":"D17*I17","v":0}]
[" - Materialeinsatz Bereich 3",null,null,{"$f":"IF(E18=\"\",0,D11*E18/100)","v":0},{"$f":"Rentabilität!F17","v":0},null,"Materialaufschlag Bereich 3  ",null,null,{"$f":"D18*I18","v":0}]
[" - Materialeinsatz Bereich 4",null,null,{"$f":"IF(E19=\"\",0,D12*E19/100)","v":0},{"$f":"Rentabilität!F18","v":0},null,"Materialaufschlag Bereich 4  ",null,null,{"$f":"D19*I19","v":0}]
[" - Fremdleistungen und Materialeinsatz  gesamt",null,null,{"$f":"SUM(D15:D19)","v":0},{"$f":"IF(D$14=0,0,(D20/D$14*100))","v":{"v":0,"d":"0.00"}},null,"Summe Aufschläge",null,null,{"$f":"SUM(J15:J19)","v":0}]
[" = Rohgewinn 1",null,null,{"$f":"(D14-D15-D20)","v":0},{"$f":"IF(D$14=0,0,(D21/D$14*100))","v":{"v":0,"d":"0.00"}}]
[" - Personalkosten",null,null,{"$f":"'Personalkosten 2. Jahr'!M27","v":0},{"v":0,"d":"0.00"}]
[" = Rohgewinn 2",null,null,{"$f":"(D21-D22)","v":0},{"v":0,"d":"0.00"},null,"Über den Stundenkostensatz abzurechnende Kosten:"]
[" - übrige Kosten",null,null,{"$f":"'übrige Kosten'!$E$28","v":0},{"v":0,"d":"0.00"},{"$nulls":4},"EUR"]
[" = Betriebsergebnis",null,null,{"$f":"D23-D24","v":0},{"v":0,"d":"0.00"},null,"Personalkosten:",null,null,{"$f":"$D$22","v":0}]
[" - Gewerbesteuer und Körperschaftssteuer",null,null,{"$f":"'übrige Kosten'!E31+'übrige Kosten'!E32","v":0},{"v":0,"d":"0.00"},null,"Übrige Kosten:",null,null,{"$f":"$D$24","v":0}]
[" = Gewinn / Verlust nach Gewerbesteuer",null,null,{"$f":"(D25-D26)","v":0},{"v":0,"d":"0.00"},null,"Betriebssteuern",null,null,{"$f":"$D$26","v":0}]
[{"$f":"IF([1]Unternehmerlohn!D6>=[1]Unternehmerlohn!D39,\"  - Geplanter Unternehmerlohn\",\"  - Notwendiger Unternehmerlohn\")","v":"  - Geplanter Unternehmerlohn"},null,null,{"$f":"Unternehmerlohn!F40","v":0},{"$f":"IF(D$14=0,0,(D28/D$14*100))","v":{"v":0,"d":"0.00"}},null,"Kalkulatorische Kosten",null,null,{"$f":"$D$28+$D$29","v":0}]
[" -  sonstige kalkulatorische Kosten",{"$nulls":3},{"$f":"IF(D$14=0,0,(D29/D$14*100))","v":{"v":0,"d":"0.00"}},null,"Überschuß / Fehlbetrag",null,null,{"$f":"D32","v":0},{"$f":"IF(J29<0,\"Überprüfung der Gesamtsituation erforderlich\",\"\")","v":""}]
[" - Summe Kalkulatorische Kosten",null,null,{"$f":"D28+D29","v":0},{"$f":"IF(D$14=0,0,(D30/D$14*100))","v":{"v":0,"d":"0.00"}},null,"Zwischensumme",null,null,{"$f":"SUM(J25:J29)","v":0}]
[{"$nulls":6}," - FL und Materialzuschläge:",null,null,{"$f":"J20","v":0}]
[" = Überschuß / Fehlbetrag",null,null,{"$f":"D27-D28-D29","v":0},{"$f":"IF([1]Rentabilität!C$13=0,\"\",(D32/[1]Rentabilität!C$13*100))","v":{"v":0,"d":"0.00"}},null,"über Stunden abzurechnende Kosten",null,null,{"$f":"J30-J31","v":0}]
[]
[]
[]
["Ermittlung der abrechenbaren Stunden:"]
[]
[null,null,"Inhaber / Meister",{"$nulls":3},"Gesellen",{"$nulls":3},"Auszubildende"]
["Bezeichnung",null,"Tage","Stunden","Std./Jahr","%","Tage","Stunden","Std./Jahr","%","Tage","Stunden","Std./Jahr","%"]
["Arbeitszeit pro Woche",{"$nulls":3},{"$f":"52*D40","v":0},{"$nulls":3},{"$f":"52*H40","v":0},{"$nulls":3},{"$f":"52*L40","v":0}]
["Tagesarbeitszeit"]
[" - bez. Feiertage",null,10,null,{"$f":"C42*D$41","v":0},null,10,null,{"$f":"G42*H$41","v":0},null,10,null,{"$f":"K42*L$41","v":0}]
[" - Urlaubstage",null,10,null,{"$f":"C43*D$41","v":0},null,30,null,{"$f":"G43*H$41","v":0},null,30,null,{"$f":"K43*L$41","v":0}]
[" - Krankheitstage",null,5,null,{"$f":"C44*D$41","v":0},null,10,null,{"$f":"G44*H$41","v":0},null,10,null,{"$f":"K44*L$41","v":0}]
[" - sonstige Fehltage",null,5,null,{"$f":"C45*D$41","v":0},null,5,null,{"$f":"G45*H$41","v":0},null,50,null,{"$f":"K45*L$41","v":0}]
[" = Zwischensumme",{"$nulls":3},{"$f":"E40-SUM(E42:E45)","v":0},{"$nulls":3},{"$f":"I40-SUM(I42:I45)","v":0},{"$nulls":3},{"$f":"M40-SUM(M42:M45)","v":0}]
[" + Überstunden pro Jahr",{"$nulls":11},{"v":10,"d":"10.00"}]
[" = Anwesenheitszeit",{"$nulls":3},{"$f":"E46+E47","v":0},{"$nulls":3},{"$f":"I46+I47","v":0},{"$nulls":3},{"$f":"M46+M47","v":10}]
[" - Anteil unproduktiver Stunden in %",{"$nulls":3},{"$f":"E48*F49","v":0},{"v":0.3,"d":"30%"},null,null,{"$f":"I48*J49","v":0},{"v":0.1,"d":"10%"},null,null,{"$f":"M48*N49","v":5},{"v":0.5,"d":"50%"}]
[" = abrechenbare Stunden pro Person",{"$nulls":3},{"$f":"E48-E49","v":0},{"$nulls":3},{"$f":"I48-I49","v":0},{"$nulls":3},{"$f":"M48-M49","v":5}]
[" x Anzahl Mitarbeiter bzw. Inhaber",{"$nulls":3},1,{"$nulls":3},1,{"$nulls":3},2]
[" = abrechenbare Stunden",{"$nulls":3},{"$f":"E50*E51","v":0},{"$nulls":3},{"$f":"I50*I51","v":0},{"$nulls":3},{"$f":"M50*M51","v":10}]
["Summe abrechenbarer Stunden",{"$nulls":3},{"$f":"E52+I52+M52","v":10}]
[]
[]
["Der Stundenkostensatz:"]
[]
["Stundenkostensatz = ",null,"über Sunden abzurechnende Kosten",null,"=",{"$f":"$J$32","v":0},"=",{"$f":"F58/F59","v":{"v":0,"d":"0.00"}},"EUR"]
[null,null,"abrechenbare Stunden",null,null,{"$f":"E53","v":10}]
[]
[]
[]
[]
["Variantenrechner: Einfluss von Zuschlagsätzen und Produktivität auf Stundenkostensatz"]
[]
[]
["Einfluss alternativer Fremdleistungs- und Materialzuschläge auf den Stundenverrechnungssatz:"]
[]
["Planungsrechnung",{"$nulls":5},"Variante 1",{"$nulls":3},"Variante 2"]
[]
["Fremdleistungs-, Materialumsatz:",null,null," %","EUR",null,"Fremdleistungs-, Materialumsatz:",null,null,"EUR",null,"EUR"]
["Fremdleistungsaufschlag in %",null,null,{"$f":"I15","v":{"v":0,"d":"0%"}},{"$f":"$D15*(1+$I15)","v":0},null,"Fremdleistungsaufschlag in %",null,{"v":0.2,"d":"20%"},{"$f":"$D15*(1+$I72)","v":0},{"v":0.1,"d":"10%"},{"$f":"$D15*(1+$K72)","v":0}]
["Materialaufschlag Bereich 1 in % ",null,null,{"$f":"I16","v":{"v":0,"d":"0%"}},{"$f":"$D16*(1+$I16)","v":0},null,"Materialaufschlag Bereich 1 in % ",null,{"v":0.25,"d":"25%"},{"$f":"$D16*(1+$I73)","v":0},{"v":0.3,"d":"30%"},{"$f":"$D16*(1+$K73)","v":0}]
["Materialaufschlag Bereich 2 in % ",null,null,{"$f":"I17","v":{"v":0,"d":"0%"}},{"$f":"$D17*(1+$I17)","v":0},null,"Materialaufschlag Bereich 2 in % ",null,{"v":0.2,"d":"20%"},{"$f":"$D17*(1+$I74)","v":0},{"v":0.4,"d":"40%"},{"$f":"$D17*(1+$K74)","v":0}]
["Materialaufschlag Bereich 3 in % ",null,null,{"$f":"I18","v":{"v":0,"d":"0%"}},{"$f":"$D18*(1+$I18)","v":0},null,"Materialaufschlag Bereich 3 in % ",null,{"v":0.1,"d":"10%"},{"$f":"$D18*(1+$I75)","v":0},{"v":0.5,"d":"50%"},{"$f":"$D18*(1+$K75)","v":0}]
["Materialaufschlag Bereich 4 in % ",null,null,{"$f":"I19","v":{"v":0,"d":"0%"}},{"$f":"$D19*(1+$I19)","v":0},null,"Materialaufschlag Bereich 4 in % ",null,{"v":0.03,"d":"3%"},{"$f":"$D19*(1+$I76)","v":0},{"v":0.4,"d":"40%"},{"$f":"$D19*(1+$K76)","v":0}]
["Summe FL und Materialumsätze",{"$nulls":3},{"$f":"SUM(E72:E76)","v":0},null,"Summe FL und Materialumsätze",null,null,{"$f":"SUM(J72:J76)","v":0},null,{"$f":"SUM(L72:L76)","v":0}]
["Höhe der Kostenübernahme",{"$nulls":3},{"$f":"E77-D20","v":0},null,"Höhe der Kostenübernahme",null,null,{"$f":"J77-D15-D20","v":0},null,{"$f":"L77-D15-D20","v":0},"???"]
[]
[]
["Über den Stundenkostensatz abzurechnende Kosten",{"$nulls":5},"Über den Stundenkostensatz abzurechnende Kosten"]
["Personalkosten:",{"$nulls":3},{"$f":"$D$22","v":0},null,"Personalkosten:",null,null,{"$f":"D22","v":0},null,{"$f":"D22","v":0}]
["Übrige Kosten:",{"$nulls":3},{"$f":"$D$24","v":0},null,"Übrige Kosten:",null,null,{"$f":"D24","v":0},null,{"$f":"D24","v":0}]
["Betriebssteuern",{"$nulls":3},{"$f":"$D$26","v":0},null,"Betriebssteuern",null,null,{"$f":"D26","v":0},null,{"$f":"D26","v":0}]
["Kalkulatorische Kosten",{"$nulls":3},{"$f":"$D$28+$D$29","v":0},null,"Kalkulatorische Kosten",null,null,{"$f":"D28+D29","v":0},null,{"$f":"D28+D29","v":0}]
["Zwischensumme",{"$nulls":3},{"$f":"SUM(E82:E85)","v":0},null,"Zwischensumme",null,null,{"$f":"SUM(J82:J85)","v":0},null,{"$f":"SUM(L82:L85)","v":0}]
[" - FL und Materialzuschläge:",{"$nulls":3},{"$f":"$E$78","v":0},null," - FL und Materialzuschläge:",null,null,{"$f":"J78","v":0},null,{"$f":"L78","v":0}]
["über Stunden abzurechnende Kosten",{"$nulls":3},{"$f":"E86-E87","v":0},null,"über Stunden abzurechnende Kosten",null,null,{"$f":"J86-J87","v":0},null,{"$f":"L86-L87","v":0},"???"]
[]
["Sundenkostensatz =",{"$nulls":3},"EUR",null,"Sundenkostensatz =",null,null,"EUR",null,"EUR"]
["über Sunden abzurechnende Kosten "," = ",{"$f":"$J$32","v":0},"=",{"$f":"C91/C92","v":{"v":0,"d":"0.00"}},null,null,{"$f":"J88","v":0}," = ",{"$f":"H91/H92","v":{"v":0,"d":"0.00"}},{"$f":"L88","v":0},{"$f":"K91/K92","v":{"v":0,"d":"0.00"}}]
["abrechenbare Stunden",null,{"$f":"E53","v":10},{"$nulls":4},{"$f":"E53","v":10},null,null,{"$f":"E53","v":10}]
[]
[]
[]
["Einfluss unproduktiver Zeiten auf den Stundenkostensatz"]
[]
["Zusammenfassung der",null,"Arbeitsstunden","unproduktiver","Arbeitsstunden",{"$nulls":3},"Stundenkostansatz"]
["Planungsrechnung",null,"MA","Anteil  %","unproduktiv","produktiv"]
[{"$f":"$C$38","v":"Inhaber / Meister"},null,{"$f":"$E$48*$E$51","v":0},{"$f":"$F49","v":{"v":0.3,"d":"30%"}},{"$f":"$C100*D100","v":0},{"$f":"$C100-E100","v":0},{"$nulls":3},"über Sunden abzurechnende Kosten",null,"=",{"$f":"$J$32","v":0},"=",{"$f":"M100/M101","v":{"v":0,"d":"0.00"}},"EUR"]
[{"$f":"$G$38","v":"Gesellen"},null,{"$f":"$I$48*$I$51","v":0},{"$f":"J49","v":{"v":0.1,"d":"10%"}},{"$f":"$C101*D101","v":0},{"$f":"$C101-E101","v":0},{"$nulls":3},"Abrechenbare Stunden",null,null,{"$f":"E53","v":10}]
[{"$f":"$K$38","v":"Auszubildende"},null,{"$f":"$M$48*$M$51","v":20},{"$f":"N49","v":{"v":0.5,"d":"50%"}},{"$f":"$C102*D102","v":10},{"$f":"$C102-E102","v":10}]
["Summe abrechenbarer Stunden",null,null,{"$f":"(E100+E101+E102)/(C100+C101+C102)","v":{"v":0.5,"d":"50%"}},null,{"$f":"F100+F101+F102","v":10}]
[]
[]
["Variante 1",null,"Änderung unproduktiver Arbeitsanteil:"]
[]
[null,null,"Anwesenheit","Änderung der","Arbeitsstunden"]
[{"$nulls":3},"Prodiktivität","unprodukt.",{"$nulls":3},"Geänderter Stundenkostensatz: Variante 1:"]
[null,null,"alle MA","in %","Anteil  in %","unproduktiv","produktiv"]
[{"$f":"$C$38","v":"Inhaber / Meister"},null,{"$f":"$E$48*$E$51","v":0},{"v":0.1,"d":"10%"},{"$f":"$D100*(1-D111)","v":{"v":0.27,"d":"27%"}},{"$f":"C111*E111","v":0},{"$f":"C111-F111","v":0},null,null,"über Sunden abzrechnende Kosten",null,"=",{"$f":"$J$32","v":0},"=",{"$f":"M111/M112","v":{"v":0,"d":"0.00"}},"EUR"]
[{"$f":"$G$38","v":"Gesellen"},null,{"$f":"$I$48*$I$51","v":0},{"v":0.1,"d":"10%"},{"$f":"$D101*(1-D112)","v":{"v":0.09000000000000001,"d":"9%"}},{"$f":"C112*E112","v":0},{"$f":"C112-F112","v":0},null,null,"Abrechenbare Stunden",null,null,{"$f":"G114","v":13}]
[{"$f":"$K$38","v":"Auszubildende"},null,{"$f":"$M$48*$M$51","v":20},{"v":0.3,"d":"30%"},{"$f":"$D102*(1-D113)","v":{"v":0.35,"d":"35%"}},{"$f":"C113*E113","v":7},{"$f":"C113-F113","v":13}]
["Summe abrechenbarer Stunden",{"$nulls":3},{"$f":"(F111+F112+F113)/(C111+C112+C113)","v":{"v":0.35,"d":"35%"}},null,{"$f":"G111+G112+G113","v":13}]
[]
["Variante 2",null,"Änderung unproduktiver Arbeitsanteil:"]
[]
[null,null,"Anwesenheit","Änderung der","Arbeitsstunden",{"$nulls":3},"Geänderter Stundenkostensatz: Variante 2:"]
[{"$nulls":3},"Prodiktivität","unprodukt."]
[null,null,"alle MA","in %","Anteil  in %","unproduktiv","produktiv",null,null,"über Sunden abzrechnende Kosten",null,"=",{"$f":"$J$32","v":0},"=",{"$f":"M120/M121","v":{"v":0,"d":"0.00"}},"EUR"]
[{"$f":"$C$38","v":"Inhaber / Meister"},null,{"$f":"$E$48*$E$51","v":0},{"v":-0.2,"d":"-20%"},{"$f":"$D100*(1-D121)","v":{"v":0.36,"d":"36%"}},{"$f":"C121*E121","v":0},{"$f":"C121-F121","v":0},null,null,"Abrechenbare Stunden",null,null,{"$f":"G124","v":{"v":9.399999999999999,"d":"9"}}]
[{"$f":"$G$38","v":"Gesellen"},null,{"$f":"$I$48*$I$51","v":0},{"v":-0.15,"d":"-15%"},{"$f":"$D101*(1-D122)","v":{"v":0.11499999999999999,"d":"12%"}},{"$f":"C122*E122","v":0},{"$f":"C122-F122","v":0}]
[{"$f":"$K$38","v":"Auszubildende"},null,{"$f":"$M$48*$M$51","v":20},{"v":-0.06,"d":"-6%"},{"$f":"$D102*(1-D123)","v":{"v":0.53,"d":"53%"}},{"$f":"C123*E123","v":{"v":10.600000000000001,"d":"11"}},{"$f":"C123-F123","v":{"v":9.399999999999999,"d":"9"}}]
["Summe abrechenbarer Stunden",{"$nulls":3},{"$f":"(F121+F122+F123)/(C121+C122+C123)","v":{"v":0.53,"d":"53%"}},null,{"$f":"G121+G122+G123","v":{"v":9.399999999999999,"d":"9"}}]
[]
[]
["Zusammenfürung von Änderungen der Fremdleistungs- /Materialzuschläge und von Produktivitätsänderungen auf den Stundenkostensatz"]
[]
["Stundenkostensatzvarianten EUR",null,"Planung FMZ ","FMZ Var 1","FMZ Var 2"]
["Planung up Std.",null,{"$f":"O100","v":{"v":0,"d":"0.00"}},{"$f":"J91","v":{"v":0,"d":"0.00"}},{"$f":"L91","v":{"v":0,"d":"0.00"}}]
["up Std. Var 1",null,{"$f":"O111","v":{"v":0,"d":"0.00"}},{"$f":"H91/M112","v":{"v":0,"d":"0.00"}},{"$f":"K91/M121","v":{"v":0,"d":"0.00"}}]
["up St Var 2",null,{"$f":"O120","v":{"v":0,"d":"0.00"}},{"$f":"H91/M121","v":{"v":0,"d":"0.00"}},{"$f":"K91/M121","v":{"v":0,"d":"0.00"}}]

{"sheet":"Liquiditätsplan-1.Jahr","index":14,"n_rows":55,"n_cols":17,"rows_kept":55}
[{"$f":" CONCATENATE( \"Liquiditätsplanung des 1. Geschäftsjahres des Unternehmens :  \", Startseite!C14)","v":"Liquiditätsplanung des 1. Geschäftsjahres des Unternehmens :  "},{"$nulls":7},{"$f":"'Personalkosten 1. Jahr'!K1","v":"2017-01-01"}," -",{"$f":"'Personalkosten 1. Jahr'!M1","v":"2017-12-17"}]
[]
[null,"Angaben zu den Zahlungszielen, und zur Umsatzsteuer:"]
[null,{"v":0.5,"d":"50%"},"der Kunden zahlt noch im Monat der Rechnungsstellung"]
[null,{"v":0.4,"d":"40%"},"der Kunden zahlt im Folgemonat"]
[null,{"v":0.1,"d":"10%"},"der Kunden zahlt erst nach zwei Monaten"]
[null,{"v":0.19,"d":"19%"},"Umsatzsteuersatz"]
[null,{"v":0.19,"d":"19%"},"Vorsteuersatz"]
[]
[null,"USt ","EURO",{"$f":"Startseite!D16","v":"2017-01-01"},{"$f":"D10+32","v":"2017-02-02"},{"$f":"E10+31","v":"2017-03-05"},"2017-04-05","2017-05-06","2017-06-06","2017-07-07","2017-08-07","2017-09-07","2017-10-08","2017-11-08","2017-12-09","Jahr 1"]
["Umsatzplan (netto)",null,{"$f":"Rentabilität!C13","v":0},{"$nulls":12},{"$f":"SUM(D11:O11)","v":0},{"$f":"IF(AND(ABS(P11-C11)>100,P11<>0),\"Überprüfe Eintragung\",\"\")","v":""}]
["Umsatzsteuer (USt)",null,{"$f":"C11*$B$7","v":0},0,0,0,0,0,0,0,0,0,0,0,0,{"$f":"SUM(D12:O12)","v":0}]
[]
["Einzahlungen "]
["1. aus Umsatz incl. USt",null,{"$f":"C11+C12","v":0},{"$f":"(D11+D12)*$B$4","v":0},{"$f":"(D11+D12)*B5+(E11+E12)*B4","v":0},{"$f":"(D11+D12)*$B$6+(E11+E12)*$B$5+(F11+F12)*$B$4","v":0},0,0,0,0,0,0,0,0,0,{"$f":"SUM(D15:O15)","v":0}]
["2. sonstige Einzahlungen",null,{"$f":"Finanzierung!C11+Finanzierung!C25","v":0},{"$nulls":12},{"$f":"SUM(D16:O16)","v":0},{"$f":"IF(AND(ABS(P16-C16)>100,P16<>0),\"Überprüfe Eintragung\",\"\")","v":""}]
[]
["I. Summe Einzahlungen (Bruttowerte)",null,null,{"$f":"D15+D16","v":0},0,0,0,0,0,0,0,0,0,0,0,{"$f":"SUM(D18:O18)","v":0}]
[]
["Auszahlungen (Nettowerte)"]
["Material-/Wareneinsatz","ja",{"$f":"Rentabilität!C19","v":0},{"$nulls":12},{"$f":"SUM(D21:O21)","v":0},{"$f":"IF(AND(P21<>C21,P21<>0),\"Überprüfe Eintragung\",\"\")","v":""}]
["Fremdleistungen","ja",{"$f":"Rentabilität!C14","v":0},{"$nulls":12},0,{"$f":"IF(AND(P22<>C22,P22<>0),\"Überprüfe Eintragung\",\"\")","v":""}]
["Personal","nein",{"$f":"Rentabilität!C21","v":0},{"$nulls":12},0,{"$f":"IF(AND(ABS(P23-C23)>100,P23<>0),\"Überprüfe Eintragung\",\"\")","v":""}]
[{"$f":"'übrige Kosten'!A8","v":"Raumkosten (Miete, Pacht)"},"nein",{"$f":"'übrige Kosten'!C8","v":0},{"$nulls":12},0,{"$f":"IF(AND(ABS(P24-C24)>10,P24<>0),\"Überprüfe Eintragung\",\"\")","v":""}]
[{"$f":"'übrige Kosten'!A9","v":"Energiekosten (Strom, Heizung, Wasser)"},"ja",{"$f":"'übrige Kosten'!C9","v":0},{"$nulls":12},0,""]
[{"$f":"'übrige Kosten'!A10","v":"Versicherung, Beiträge"},"nein",{"$f":"'übrige Kosten'!C10","v":0},{"$nulls":12},0,""]
[{"$f":"'übrige Kosten'!A11","v":"Kfz-Kosten (incl. Leasing, Steuern, Vers., Rep., ohne AfA)"},"ja",{"$f":"'übrige Kosten'!C11","v":0},{"$nulls":12},0,""]
[{"$f":"'übrige Kosten'!A12","v":"Werbung  / Reisekosten"},"ja",{"$f":"'übrige Kosten'!C12","v":0},{"$nulls":12},0,""]
[{"$f":"'übrige Kosten'!A13","v":"Kosten der Warenabgabe (incl.  Gewährleistungen)"},"ja",{"$f":"'übrige Kosten'!C13","v":0},{"$nulls":12},0,""]
[{"$f":"'übrige Kosten'!A15","v":"Reparaturen, Instandhaltung"},"ja",{"$f":"'übrige Kosten'!C15","v":0},{"$nulls":12},{"$f":"SUM(D30:O30)","v":0},""]
[{"$f":"'übrige Kosten'!A16","v":"Büro (Telefon, Telefax, Internet)"},"ja",{"$f":"'übrige Kosten'!C16","v":0},{"$nulls":12},0,""]
[{"$f":"'übrige Kosten'!A17","v":"Büro (Porto, Zeitschriften, sonst. Bürobedarf)"},"ja",{"$f":"'übrige Kosten'!C17","v":0},{"$nulls":12},0,""]
[{"$f":"'übrige Kosten'!A18","v":"Buchführung und Abschlusskosten / Beratungskosten"},"ja",{"$f":"'übrige Kosten'!C18","v":0},{"$nulls":12},0,""]
[{"$f":"'übrige Kosten'!A19","v":"Miete / Leasing (ohne Kfz) für bewegliche Wirtschaftsgüter"},"ja",{"$f":"'übrige Kosten'!C19","v":0},{"$nulls":12},0,""]
[{"$f":"'übrige Kosten'!A20","v":"Abraum - und Abfallbeseitigung"},"ja",{"$f":"'übrige Kosten'!C20","v":0},{"$nulls":12},0,""]
[{"$f":"'übrige Kosten'!A21","v":"Werkzeug und Kleingeräte GWG"},"ja",{"$f":"'übrige Kosten'!C21","v":0},{"$nulls":12},0,{"$f":"IF(AND(ABS(P36-C36)>100,P36<>0),\"Überprüfe Eintragung\",\"\")","v":""}]
[{"$f":"'übrige Kosten'!A22","v":"Betriebsbedarf"},"ja",{"$f":"'übrige Kosten'!C22","v":0},{"$nulls":12},0,""]
[{"$f":"'übrige Kosten'!A23","v":"langfristige Zinsen"},"nein",{"$f":"'übrige Kosten'!C23","v":0},{"$nulls":12},0,{"$f":"IF(AND(ABS(P38-C38)>50,P38<>0),\"Überprüfe Eintragung\",\"\")","v":""}]
[{"$f":"'übrige Kosten'!A24","v":"kurzfristige Zinsen, Bankgebühren"},"nein",{"$f":"'übrige Kosten'!C24","v":0},{"$nulls":12},{"$f":"SUM(D39:O39)","v":0},{"$f":"IF(AND(ABS(P39-C39)>10,P39<>0),\"Überprüfe Eintragung\",\"\")","v":""}]
[{"$f":"'übrige Kosten'!A25","v":"Sonstiges"},"ja",{"$f":"'übrige Kosten'!C25+'übrige Kosten'!C26+'übrige Kosten'!C27","v":0},{"$nulls":12},0,{"$f":"IF(AND(ABS(P40-C40)>10,P40<>0),\"Überprüfe Eintragung\",\"\")","v":""}]
[{"$f":"'übrige Kosten'!A27","v":"Sonstiges 3:"},{"$nulls":14},0,""]
[{"$f":"'übrige Kosten'!A28","v":"übrige Kosten gesamt"},{"$nulls":14},0,""]
[{"$f":"'übrige Kosten'!A29","v":0},{"$nulls":14},0,""]
["Gewerbesteuer / Körperschaftssteuer","nein",{"$f":"'übrige Kosten'!C34","v":0},{"$nulls":12},0,""]
["Investitionen, und weitere Ausgaben gemäß Kapitalbedarfsplan","ja",{"$f":"Kapitalbedarf!C19+Kapitalbedarf!C21+Kapitalbedarf!C22","v":0},{"$nulls":12},0,""]
["Privatentnahmen","nein",{"$f":"IF(OR(Startseite!A35=Startseite!A44,Startseite!A35=Startseite!A45,Startseite!A35=Startseite!A46),0,Unternehmerlohn!D40)","v":0},{"$nulls":12},0,""]
["Tilgung ","nein",{"$f":"Rentabilität!C29","v":0},{"$nulls":12},0]
["Vorsteuer",null,{"$f":"(C21+C22+IF($B24=\"ja\",C24,0)+C25+C27+C28+C29+C30+C31+C32+C33+C34+C35+C36+C37+C40+C41+C42+C43+IF($B45=\"ja\",C45,0))*$B$8","v":0},{"$f":"(SUM(D21:D47)-D23-IF($B24=\"nein\",D24,0)-D26-D38-D39-D44-IF($B45=\"nein\",D45,0)-D46-D47)*$B$8","v":0},{"$f":"(SUM(E21:E47)-E23-IF($B24=\"nein\",E24,0)-E26-E38-E39-E44-IF($B45=\"nein\",E45,0)-E46-E47)*$B$8","v":0},0,0,0,0,0,0,0,0,0,0,0]
["II. Summe Auszahlungen (incl. Vorsteuer)",null,{"$f":"SUM(C21:C48)","v":0},{"$f":"SUM(D21:D48)","v":0},{"$f":"SUM(E21:E48)","v":0},0,0,0,0,0,0,0,0,0,0,0]
["USt-Zahllast (-) oder Erstattung (+)",{"$nulls":3},{"$f":"-D12+D48","v":0},{"$f":"-E12+E48","v":0},{"$f":"-F12+F48","v":0},0,0,0,0,0,0,0,0,{"$f":"SUM(D50:O50)","v":0}]
[]
["III. Liquiditätssaldo",null,{"$f":"-Finanzierung!C28","v":0},{"$f":"D18-D49+D50","v":0},0,0,0,0,0,0,0,0,0,0,0,{"$f":"SUM(C52:O52)","v":0}]
["Liquiditätssaldo kumuliert",null,null,{"$f":"C52+D52","v":0},{"$f":"D53+E52","v":0},0,0,0,0,0,0,0,0,0,0]
[]
["Kontokorrentrahmen",null,{"$f":"Finanzierung!C30","v":0},{"$f":"$C55","v":0},{"$f":"$C55","v":0},0,0,0,0,0,0,0,0,0,0]

{"sheet":"Liquiditätsplan-2.Jahr","index":15,"n_rows":55,"n_cols":17,"rows_kept":55}
[{"$f":" CONCATENATE( \"Liquiditätsplanung des 2. Geschäftsjahres des Unternehmens :  \", Startseite!C14)","v":"Liquiditätsplanung des 2. Geschäftsjahres des Unternehmens :  "},{"$nulls":7},{"$f":"'Personalkosten 2. Jahr'!K1","v":"2018-01-16"}," - ",{"$f":"'Personalkosten 2. Jahr'!M1","v":"2018-12-12"}]
[]
[null,"Angaben zu den Zahlungszielen, und zur Umsatzsteuer:"]
[null,{"$f":"'Liquiditätsplan-1.Jahr'!B4","v":{"v":0.5,"d":"50%"}},"der Kunden zahlt noch im Monat der Rechnungsstellung"]
[null,{"$f":"'Liquiditätsplan-1.Jahr'!B5","v":{"v":0.4,"d":"40%"}},"der Kunden zahlt im Folgemonat"]
[null,{"$f":"'Liquiditätsplan-1.Jahr'!B6","v":{"v":0.1,"d":"10%"}},"der Kunden zahlt erst nach zwei Monaten"]
[null,{"$f":"'Liquiditätsplan-1.Jahr'!B7","v":{"v":0.19,"d":"19%"}},"Umsatzsteuersatz"]
[null,{"$f":"'Liquiditätsplan-1.Jahr'!B8","v":{"v":0.19,"d":"19%"}},"Vorsteuersatz"]
[]
[null,"USt","EURO",{"$f":"Startseite!D16","v":"2017-01-01"},{"$f":"D10+32","v":"2017-02-02"},{"$f":"E10+31","v":"2017-03-05"},"2017-04-05","2017-05-06","2017-06-06","2017-07-07","2017-08-07","2017-09-07","2017-10-08","2017-11-08","2017-12-09","Jahr 1"]
["Umsatzplan (netto)",null,{"$f":"Rentabilität!E13","v":0},{"$nulls":12},{"$f":"SUM(D11:O11)","v":0},{"$f":"IF(AND(ABS(P11-C11)>100,P11<>0),\"Überprüfe Eintragung\",\"\")","v":""}]
["Umsatzsteuer (USt)",null,{"$f":"C11*$B$7","v":0},0,0,0,0,0,0,0,0,0,0,0,0,{"$f":"SUM(D12:O12)","v":0}]
[]
["Einzahlungen "]
["1. aus Umsatz incl. USt",null,{"$f":"C11+C12","v":0},{"$f":"(D11+D12)*$B$4","v":0},{"$f":"(D11+D12)*B5+(E11+E12)*B4","v":0},{"$f":"(D11+D12)*$B$6+(E11+E12)*$B$5+(F11+F12)*$B$4","v":0},0,0,0,0,0,0,0,0,0,{"$f":"SUM(D15:O15)","v":0}]
["2. Einzahlungen aus Vorjahr",null,{"$f":"('Liquiditätsplan-1.Jahr'!N11+'Liquiditätsplan-1.Jahr'!N12)*'Liquiditätsplan-1.Jahr'!B6+('Liquiditätsplan-1.Jahr'!O11+'Liquiditätsplan-1.Jahr'!O12)*('Liquiditätsplan-2.Jahr'!B5+B6)","v":0},{"$f":"('Liquiditätsplan-1.Jahr'!N11+'Liquiditätsplan-1.Jahr'!N12)*'Liquiditätsplan-1.Jahr'!B6+('Liquiditätsplan-1.Jahr'!O11+'Liquiditätsplan-1.Jahr'!O12)*'Liquiditätsplan-1.Jahr'!B5","v":0},{"$f":"('Liquiditätsplan-1.Jahr'!O11+'Liquiditätsplan-1.Jahr'!O12)*'Liquiditätsplan-1.Jahr'!B6","v":0},{"$nulls":10},{"$f":"SUM(D16:O16)","v":0}]
["3. Sonstige Einzahlungen",{"$nulls":14},{"$f":"SUM(D17:O17)","v":0},{"$f":"IF(ABS(P17-C17)>100,\"Überprüfe Eintragung\",\"\")","v":""}]
["I. Summe Einzahlungen (Bruttowerte)",null,{"$f":"C15+C16+C17","v":0},{"$f":"D15+D16+D17","v":0},{"$f":"E15+E16+E17","v":0},0,0,0,0,0,0,0,0,0,0,{"$f":"SUM(D18:O18)","v":0}]
[]
["Auszahlungen (Nettowerte)"]
["Material-/Wareneinsatz","ja",{"$f":"Rentabilität!E19","v":0},{"$nulls":12},{"$f":"SUM(D21:O21)","v":0},{"$f":"IF(AND(P21<>C21,P21<>0),\"Überprüfe Eintragung\",\"\")","v":""}]
["Fremdleistungen","ja",{"$f":"Rentabilität!E14","v":0},{"$nulls":12},{"$f":"SUM(D22:O22)","v":0},{"$f":"IF(AND(P22<>C22,P22<>0),\"Überprüfe Eintragung\",\"\")","v":""}]
["Personal","nein",{"$f":"Rentabilität!E21","v":0},{"$nulls":12},{"$f":"SUM(D23:O23)","v":0},{"$f":"IF(AND(ABS(P23-C23)>100,P23<>0),\"Überprüfe Eintragung\",\"\")","v":""}]
[{"$f":"'übrige Kosten'!A8","v":"Raumkosten (Miete, Pacht)"},"nein",{"$f":"'übrige Kosten'!E8","v":0},{"$nulls":12},0,{"$f":"IF(AND(ABS(P24-C24)>10,P24<>0),\"Überprüfe Eintragung\",\"\")","v":""}]
[{"$f":"'übrige Kosten'!A9","v":"Energiekosten (Strom, Heizung, Wasser)"},"ja",{"$f":"'übrige Kosten'!E9","v":0},{"$nulls":12},0,""]
[{"$f":"'übrige Kosten'!A10","v":"Versicherung, Beiträge"},"nein",{"$f":"'übrige Kosten'!E10","v":0},{"$nulls":12},0,""]
[{"$f":"'übrige Kosten'!A11","v":"Kfz-Kosten (incl. Leasing, Steuern, Vers., Rep., ohne AfA)"},"ja",{"$f":"'übrige Kosten'!E11","v":0},{"$nulls":12},0,""]
[{"$f":"'übrige Kosten'!A12","v":"Werbung  / Reisekosten"},"ja",{"$f":"'übrige Kosten'!E12","v":0},{"$nulls":12},0,""]
[{"$f":"'übrige Kosten'!A13","v":"Kosten der Warenabgabe (incl.  Gewährleistungen)"},"ja",{"$f":"'übrige Kosten'!E13","v":0},{"$nulls":12},0,""]
[{"$f":"'übrige Kosten'!A15","v":"Reparaturen, Instandhaltung"},"ja",{"$f":"'übrige Kosten'!E15","v":0},{"$nulls":12},0,""]
[{"$f":"'übrige Kosten'!A16","v":"Büro (Telefon, Telefax, Internet)"},"ja",{"$f":"'übrige Kosten'!E16","v":0},{"$nulls":12},0,""]
[{"$f":"'übrige Kosten'!A17","v":"Büro (Porto, Zeitschriften, sonst. Bürobedarf)"},"ja",{"$f":"'übrige Kosten'!E17","v":0},{"$nulls":12},0,""]
[{"$f":"'übrige Kosten'!A18","v":"Buchführung und Abschlusskosten / Beratungskosten"},"ja",{"$f":"'übrige Kosten'!E18","v":0},{"$nulls":12},0,""]
[{"$f":"'übrige Kosten'!A19","v":"Miete / Leasing (ohne Kfz) für bewegliche Wirtschaftsgüter"},"ja",{"$f":"'übrige Kosten'!E19","v":0},{"$nulls":12},0,""]
[{"$f":"'übrige Kosten'!A20","v":"Abraum - und Abfallbeseitigung"},"ja",{"$f":"'übrige Kosten'!E20","v":0},{"$nulls":12},0,""]
[{"$f":"'übrige Kosten'!A21","v":"Werkzeug und Kleingeräte GWG"},"ja",{"$f":"'übrige Kosten'!E21","v":0},{"$nulls":12},0,{"$f":"IF(AND(ABS(P36-C36)>100,P36<>0),\"Überprüfe Eintragung\",\"\")","v":""}]
[{"$f":"'übrige Kosten'!A22","v":"Betriebsbedarf"},"ja",{"$f":"'übrige Kosten'!E22","v":0},{"$nulls":12},0,""]
[{"$f":"'übrige Kosten'!A23","v":"langfristige Zinsen"},"nein",{"$f":"'übrige Kosten'!E23","v":0},{"$nulls":12},0,{"$f":"IF(AND(ABS(P38-C38)>50,P38<>0),\"Überprüfe Eintragung\",\"\")","v":""}]
[{"$f":"'übrige Kosten'!A24","v":"kurzfristige Zinsen, Bankgebühren"},"nein",{"$f":"'übrige Kosten'!E24","v":0},{"$nulls":12},0,""]
[{"$f":"'übrige Kosten'!A25","v":"Sonstiges"},"ja",{"$f":"'übrige Kosten'!E25+'übrige Kosten'!E26+'übrige Kosten'!E27","v":0},{"$nulls":12},0,""]
[{"$nulls":15},0,""]
[{"$nulls":15},0,""]
[{"$nulls":15},0,""]
["Gewerbesteuer / Körperschaftssteuer","nein",{"$f":"'übrige Kosten'!E34","v":0},{"$nulls":12},0,""]
["Im zweiten Jahr zusätzlich geplante Investitionen","ja",{"$nulls":13},0,{"$f":"IF(ABS(P45-C45)>100,\"Überprüfe Eintragung\",\"\")","v":""}]
["Privatentnahmen","nein",{"$f":"IF(OR(Startseite!A35=Startseite!A44,Startseite!A35=Startseite!A45,Startseite!A35=Startseite!A46),0,Unternehmerlohn!F40)","v":0},{"$nulls":12},0,""]
["Tilgung","nein",{"$f":"Rentabilität!E29","v":0},{"$nulls":12},0,{"$f":"IF(AND(ABS(P47-C47)>100,P47<>0),\"Überprüfe Eintragung\",\"\")","v":""}]
["Vorsteuer",null,{"$f":"(C21+C22+IF($B24=\"ja\",C24,0)+C25+C27+C28+C29+C30+C31+C32+C33+C34+C35+C36+C37+C40+C41+C42+C43+IF($B45=\"ja\",C45,0))*$B$8","v":0},{"$f":"(SUM(D21:D47)-D23-IF($B24=\"nein\",D24,0)-D26-D38-D39-D44-IF($B45=\"nein\",D45,0)-D46-D47)*$B$8","v":0},{"$f":"(SUM(E21:E47)-E23-IF($B24=\"nein\",E24,0)-E26-E38-E39-E44-IF($B45=\"nein\",E45,0)-E46-E47)*$B$8","v":0},0,0,0,0,0,0,0,0,0,0,{"$f":"SUM(E48:O48)","v":0}]
["II. Summe Auszahlungen (incl. Vorsteuer)",null,{"$f":"SUM(C21:C48)","v":0},{"$f":"SUM(D21:D48)","v":0},{"$f":"SUM(E21:E48)","v":0},0,0,0,0,0,0,0,0,0,{"$f":"SUM(O21:O48)","v":0},0]
["USt-Zahllast (-) oder Erstattung (+)",null,null,{"$f":"-'Liquiditätsplan-1.Jahr'!O12+'Liquiditätsplan-1.Jahr'!O48","v":0},{"$f":"-D12+D48","v":0},{"$f":"-E12+E48","v":0},0,0,0,0,0,0,0,0,0,0]
[]
["III: Liquiditätssaldo",null,{"$f":"'Liquiditätsplan-1.Jahr'!O53","v":0},{"$f":"D18-D49+D50","v":0},0,0,0,0,0,0,0,0,0,0,0,{"$f":"SUM(C52:O52)","v":0}]
["Liquiditätssaldo kumuliert",null,null,{"$f":"D52+C52","v":0},{"$f":"D53+E52","v":0},0,0,0,0,0,0,0,0,0,0]
[]
["Kontokorrentrahmen",null,{"$f":"'Liquiditätsplan-1.Jahr'!O55","v":0},{"$f":"$C55","v":0},0,0,0,0,0,0,0,0,0,0,0]

{"sheet":"Liquiditätsplan-3.Jahr","index":16,"n_rows":56,"n_cols":17,"rows_kept":56}
[{"$f":" CONCATENATE( \"Liquiditätsplanung des 3. Geschäftsjahres des Unternehmens :  \", Startseite!C14)","v":"Liquiditätsplanung des 3. Geschäftsjahres des Unternehmens :  "},{"$nulls":7},{"$f":"'Personalkosten 3. Jahr'!K1","v":"2019-01-11"}," -",{"$f":"'Personalkosten 3. Jahr'!M1","v":"2019-12-07"}]
[]
[null,"Angaben zu den Zahlungszielen, und zur Umsatzsteuer:"]
[null,{"$f":"'Liquiditätsplan-1.Jahr'!B4","v":{"v":0.5,"d":"50%"}},"der Kunden zahlt noch im Monat der Rechnungsstellung"]
[null,{"$f":"'Liquiditätsplan-1.Jahr'!B5","v":{"v":0.4,"d":"40%"}},"der Kunden zahlt im Folgemonat"]
[null,{"$f":"'Liquiditätsplan-1.Jahr'!B6","v":{"v":0.1,"d":"10%"}},"der Kunden zahlt erst nach zwei Monaten"]
[null,{"$f":"'Liquiditätsplan-1.Jahr'!B7","v":{"v":0.19,"d":"19%"}},"Umsatzsteuersatz"]
[null,{"$f":"'Liquiditätsplan-1.Jahr'!B8","v":{"v":0.19,"d":"19%"}},"Vorsteuersatz"]
[]
[null,"USt","EURO",{"$f":"Startseite!D16","v":"2017-01-01"},{"$f":"D10+32","v":"2017-02-02"},{"$f":"E10+31","v":"2017-03-05"},"2017-04-05","2017-05-06","2017-06-06","2017-07-07","2017-08-07","2017-09-07","2017-10-08","2017-11-08","2017-12-09","Jahr 1"]
["Umsatzplan (netto)",null,{"$f":"Rentabilität!G13","v":0},{"$nulls":12},{"$f":"SUM(D11:O11)","v":0},{"$f":"IF(AND(P11<>C11,P11<>0),\"Überprüfe Eintragung\",\"\")","v":""}]
["Umsatzsteuer (USt)",null,{"$f":"C11*$B$7","v":0},0,0,0,0,0,0,0,0,0,0,0,0,{"$f":"SUM(D12:O12)","v":0}]
[]
["Einzahlungen "]
["1. aus Umsatz incl. USt",null,{"$f":"C11+C12","v":0},{"$f":"(D11+D12)*$B$4","v":0},{"$f":"(D11+D12)*B5+(E11+E12)*B4","v":0},{"$f":"(D11+D12)*$B$6+(E11+E12)*$B$5+(F11+F12)*$B$4","v":0},0,0,0,0,0,0,0,0,0,{"$f":"SUM(D15:O15)","v":0}]
["2. Einzahlungen aus Vorjahr",null,{"$f":"('Liquiditätsplan-2.Jahr'!N11+'Liquiditätsplan-2.Jahr'!N12)*'Liquiditätsplan-2.Jahr'!B6+('Liquiditätsplan-2.Jahr'!O11+'Liquiditätsplan-2.Jahr'!O12)*(B5+B6)","v":0},{"$f":"('Liquiditätsplan-2.Jahr'!N11+'Liquiditätsplan-2.Jahr'!N12)*'Liquiditätsplan-2.Jahr'!B6+('Liquiditätsplan-2.Jahr'!O11+'Liquiditätsplan-2.Jahr'!O12)*'Liquiditätsplan-2.Jahr'!B5","v":0},{"$f":"('Liquiditätsplan-2.Jahr'!O11+'Liquiditätsplan-2.Jahr'!O12)*'Liquiditätsplan-2.Jahr'!B6","v":0},{"$nulls":10},{"$f":"SUM(D16:O16)","v":0}]
["3. Sonstige Einzahlungen",{"$nulls":14},{"$f":"SUM(D17:O17)","v":0}]
["I. Summe Einzahlungen (Bruttowerte)",null,{"$f":"C15+C16+C17","v":0},{"$f":"D15+D16+D17","v":0},0,0,0,0,0,0,0,0,0,0,0,{"$f":"SUM(D18:O18)","v":0}]
[]
["Auszahlungen (Nettowerte)"]
["Material-/Wareneinsatz","ja",{"$f":"Rentabilität!G19","v":0},{"$nulls":12},{"$f":"SUM(D21:O21)","v":0},{"$f":"IF(AND(P21<>C21,P21<>0),\"Überprüfe Eintragung\",\"\")","v":""}]
["Fremdleistungen","ja",{"$f":"Rentabilität!G14","v":0},{"$nulls":12},{"$f":"SUM(D22:O22)","v":0},{"$f":"IF(AND(P22<>C22,P22<>0),\"Überprüfe Eintragung\",\"\")","v":""}]
["Personal","nein",{"$f":"Rentabilität!G21","v":0},{"$nulls":12},{"$f":"SUM(D23:O23)","v":0},{"$f":"IF(AND(ABS(P23-C23)>100,P23<>0),\"Überprüfe Eintragung\",\"\")","v":""}]
[{"$f":"'übrige Kosten'!A8","v":"Raumkosten (Miete, Pacht)"},"nein",{"$f":"'übrige Kosten'!G8","v":0},{"$nulls":12},{"$f":"SUM(D24:O24)","v":0},{"$f":"IF(AND(P24<>C24,P24<>0),\"Überprüfe Eintragung\",\"\")","v":""}]
[{"$f":"'übrige Kosten'!A9","v":"Energiekosten (Strom, Heizung, Wasser)"},"ja",{"$f":"'übrige Kosten'!G9","v":0},{"$nulls":12},0,""]
[{"$f":"'übrige Kosten'!A10","v":"Versicherung, Beiträge"},"nein",{"$f":"'übrige Kosten'!G10","v":0},{"$nulls":12},0,""]
[{"$f":"'übrige Kosten'!A11","v":"Kfz-Kosten (incl. Leasing, Steuern, Vers., Rep., ohne AfA)"},"ja",{"$f":"'übrige Kosten'!G11","v":0},{"$nulls":12},0,""]
[{"$f":"'übrige Kosten'!A12","v":"Werbung  / Reisekosten"},"ja",{"$f":"'übrige Kosten'!G12","v":0},{"$nulls":12},0,""]
[{"$f":"'übrige Kosten'!A13","v":"Kosten der Warenabgabe (incl.  Gewährleistungen)"},"ja",{"$f":"'übrige Kosten'!G13","v":0},{"$nulls":12},0,""]
[{"$f":"'übrige Kosten'!A15","v":"Reparaturen, Instandhaltung"},"ja",{"$f":"'übrige Kosten'!G15","v":0},{"$nulls":12},0,""]
[{"$f":"'übrige Kosten'!A16","v":"Büro (Telefon, Telefax, Internet)"},"ja",{"$f":"'übrige Kosten'!G16","v":0},{"$nulls":12},0,""]
[{"$f":"'übrige Kosten'!A17","v":"Büro (Porto, Zeitschriften, sonst. Bürobedarf)"},"ja",{"$f":"'übrige Kosten'!G17","v":0},{"$nulls":12},0,""]
[{"$f":"'übrige Kosten'!A18","v":"Buchführung und Abschlusskosten / Beratungskosten"},"ja",{"$f":"'übrige Kosten'!G18","v":0},{"$nulls":12},0,""]
[{"$f":"'übrige Kosten'!A19","v":"Miete / Leasing (ohne Kfz) für bewegliche Wirtschaftsgüter"},"ja",{"$f":"'übrige Kosten'!G19","v":0},{"$nulls":12},0,""]
[{"$f":"'übrige Kosten'!A20","v":"Abraum - und Abfallbeseitigung"},"ja",{"$f":"'übrige Kosten'!G20","v":0},{"$nulls":12},0,""]
[{"$f":"'übrige Kosten'!A21","v":"Werkzeug und Kleingeräte GWG"},"ja",{"$f":"'übrige Kosten'!G21","v":0},{"$nulls":12},0,{"$f":"IF(AND(ABS(P36-C36)>100,P36<>0),\"Überprüfe Eintragung\",\"\")","v":""}]
[{"$f":"'übrige Kosten'!A22","v":"Betriebsbedarf"},"ja",{"$f":"'übrige Kosten'!G22","v":0},{"$nulls":12},0,""]
[{"$f":"'übrige Kosten'!A23","v":"langfristige Zinsen"},"nein",{"$f":"'übrige Kosten'!G23","v":0},{"$nulls":12},0,{"$f":"IF(AND(ABS(P38-C38)>500,P38<>0),\"Überprüfe Eintragung\",\"\")","v":""}]
[{"$f":"'übrige Kosten'!A24","v":"kurzfristige Zinsen, Bankgebühren"},"nein",{"$f":"'übrige Kosten'!G24","v":0},{"$nulls":12},0,""]
[{"$f":"'übrige Kosten'!A25","v":"Sonstiges"},"ja",{"$f":"'übrige Kosten'!G25+'übrige Kosten'!G26+'übrige Kosten'!G27","v":0},{"$nulls":12},0,""]
[{"$nulls":15},0,""]
[{"$nulls":15},0,""]
[{"$nulls":15},0,""]
["Gewerbesteuer / Körperschaftssteuer","nein",{"$f":"'übrige Kosten'!G34","v":0},{"$nulls":12},0,""]
["Im 3.  Jahr zusätzlich geplante Investitionen ","ja",{"$nulls":13},0,""]
["Privatentnahmen","nein",{"$f":"IF(OR(Startseite!A35=Startseite!A44,Startseite!A35=Startseite!A45,Startseite!A35=Startseite!A46),0,Unternehmerlohn!H40)","v":0},{"$nulls":12},0,""]
["Tilgung ","nein",{"$f":"Rentabilität!G29","v":0},{"$nulls":12},0,{"$f":"IF(AND(ABS(P47-C47)>100,P47<>0),\"Überprüfe Eintragung\",\"\")","v":""}]
["Vorsteuer",null,{"$f":"(C21+C22+IF($B24=\"ja\",C24,0)+C25+C27+C28+C29+C30+C31+C32+C33+C34+C35+C36+C37+C40+C41+C42+C43+IF(B45=\"ja\",C45,0))*$B$8","v":0},{"$f":"(SUM(D21:D47)-D23-IF($B24=\"nein\",D24,0)-D26-D38-D39-D44-IF($B45=\"nein\",D45,0)-D46-D47)*$B$8","v":0},{"$f":"(SUM(E21:E47)-E23-IF($B24=\"nein\",E24,0)-E26-E38-E39-E44-IF($B45=\"nein\",E45,0)-E46-E47)*$B$8","v":0},0,0,0,0,0,0,0,0,0,0,0]
["II. Summe Auszahlungen (incl. Vorsteuer)",null,{"$f":"SUM(C21:C48)","v":0},{"$f":"SUM(D21:D48)","v":0},0,0,0,0,0,0,0,0,0,0,0,0]
["USt-Zahllast (-) oder Erstattung (+)",null,null,{"$f":"-'Liquiditätsplan-2.Jahr'!O12+'Liquiditätsplan-2.Jahr'!O48","v":0},{"$f":"-D12+D48","v":0},{"$f":"-E12+E48","v":0},0,0,0,0,0,0,0,0,{"$f":"-N12+N48","v":0},0]
[]
["Liquiditätssaldo",null,{"$f":"'Liquiditätsplan-2.Jahr'!O53","v":0},{"$f":"D18-D49+D50","v":0},0,0,0,0,0,0,0,0,0,0,0,{"$f":"SUM(C52:O52)","v":0}]
["Liquiditätssaldo kumuliert",null,null,{"$f":"D52+C52","v":0},{"$f":"D53+E52","v":0},0,0,0,0,0,0,0,0,0,0]
[]
["Kontokorrentrahmen",null,{"$f":"'Liquiditätsplan-2.Jahr'!O55","v":0},{"$f":"$C55","v":0},0,0,0,0,0,0,0,0,0,0,0]
[{"$nulls":3},{"$f":"IF(OR(-D53>D55,-E53>E55,-F53>F55),\"Kreditrahmen überzogen!\",\"\")","v":""},null,null,{"$f":"IF(OR(-G53>G55,-H53>H55,-I53>I55),\"Kreditrahmen überzogen!\",\"\")","v":""},null,null,{"$f":"IF(OR(-J53>J55,-K53>K55,-L53>L55),\"Kreditrahmen überzogen!\",\"\")","v":""},null,null,{"$f":"IF(OR(-M53>M55,-N53>N55,-O53>O55),\"Kreditrahmen überzogen!\",\"\")","v":""}]

{"sheet":"Hilfstabelle","index":17,"n_rows":99,"n_cols":15,"rows_kept":99}
["1. Personalkostenverteilung 3 Jahre"]
["1. Jahr",1,2,3,4,5,6,7,8,9,10,11,12,"Gesamt"]
[1,{"$f":"IF('Personalkosten 1. Jahr'!D12>0,IF('Personalkosten 1. Jahr'!D12<=Hilfstabelle!$B$2=AND('Personalkosten 1. Jahr'!E12>=Hilfstabelle!$B$2),'Personalkosten 1. Jahr'!M12/('Personalkosten 1. Jahr'!E12-'Personalkosten 1. Jahr'!D12+1),0),IF('Personalkosten 1. Jahr'!C12>0,'Personalkosten 1. Jahr'!M12/12,0))","v":0},{"$f":"IF('Personalkosten 1. Jahr'!D12>0,IF('Personalkosten 1. Jahr'!D12<=Hilfstabelle!$C$2=AND('Personalkosten 1. Jahr'!E12>=Hilfstabelle!$C$2),'Personalkosten 1. Jahr'!M12/('Personalkosten 1. Jahr'!E12-'Personalkosten 1. Jahr'!D12+1),0),IF('Personalkosten 1. Jahr'!C12>0,'Personalkosten 1. Jahr'!M12/12,0))","v":0},{"$f":"IF('Personalkosten 1. Jahr'!D12>0,IF('Personalkosten 1. Jahr'!D12<=Hilfstabelle!$D$2=AND('Personalkosten 1. Jahr'!E12>=Hilfstabelle!$D$2),'Personalkosten 1. Jahr'!M12/('Personalkosten 1. Jahr'!E12-'Personalkosten 1. Jahr'!D12+1),0),IF('Personalkosten 1. Jahr'!C12>0,'Personalkosten 1. Jahr'!M12/12,0))","v":0},{"$f":"IF('Personalkosten 1. Jahr'!D12>0,IF('Personalkosten 1. Jahr'!D12<=Hilfstabelle!$E$2=AND('Personalkosten 1. Jahr'!E12>=Hilfstabelle!$E$2),'Personalkosten 1. Jahr'!M12/('Personalkosten 1. Jahr'!E12-'Personalkosten 1. Jahr'!D12+1),0),IF('Personalkosten 1. Jahr'!C12>0,'Personalkosten 1. Jahr'!M12/12,0))","v":0},{"$f":"IF('Personalkosten 1. Jahr'!D12>0,IF('Personalkosten 1. Jahr'!D12<=Hilfstabelle!$F$2=AND('Personalkosten 1. Jahr'!E12>=Hilfstabelle!$F$2),'Personalkosten 1. Jahr'!M12/('Personalkosten 1. Jahr'!E12-'Personalkosten 1. Jahr'!D12+1),0),IF('Personalkosten 1. Jahr'!C12>0,'Personalkosten 1. Jahr'!M12/12,0))","v":0},{"$f":"IF('Personalkosten 1. Jahr'!D12>0,IF('Personalkosten 1. Jahr'!D12<=Hilfstabelle!$G$2=AND('Personalkosten 1. Jahr'!E12>=Hilfstabelle!$G$2),'Personalkosten 1. Jahr'!M12/('Personalkosten 1. Jahr'!E12-'Personalkosten 1. Jahr'!D12+1),0),IF('Personalkosten 1. Jahr'!C12>0,'Personalkosten 1. Jahr'!M12/12,0))","v":0},{"$f":"IF('Personalkosten 1. Jahr'!D12>0,IF('Personalkosten 1. Jahr'!D12<=Hilfstabelle!$H$2=AND('Personalkosten 1. Jahr'!E12>=Hilfstabelle!$H$2),'Personalkosten 1. Jahr'!M12/('Personalkosten 1. Jahr'!E12-'Personalkosten 1. Jahr'!D12+1),0),IF('Personalkosten 1. Jahr'!C12>0,'Personalkosten 1. Jahr'!M12/12,0))","v":0},{"$f":"IF('Personalkosten 1. Jahr'!D12>0,IF('Personalkosten 1. Jahr'!D12<=Hilfstabelle!$I$2=AND('Personalkosten 1. Jahr'!E12>=Hilfstabelle!$I$2),'Personalkosten 1. Jahr'!M12/('Personalkosten 1. Jahr'!E12-'Personalkosten 1. Jahr'!D12+1),0),IF('Personalkosten 1. Jahr'!C12>0,'Personalkosten 1. Jahr'!M12/12,0))","v":0},{"$f":"IF('Personalkosten 1. Jahr'!D12>0,IF('Personalkosten 1. Jahr'!D12<=Hilfstabelle!$J$2=AND('Personalkosten 1. Jahr'!E12>=Hilfstabelle!$J$2),'Personalkosten 1. Jahr'!M12/('Personalkosten 1. Jahr'!E12-'Personalkosten 1. Jahr'!D12+1),0),IF('Personalkosten 1. Jahr'!C12>0,'Personalkosten 1. Jahr'!M12/12,0))","v":0},{"$f":"IF('Personalkosten 1. Jahr'!D12>0,IF('Personalkosten 1. Jahr'!D12<=Hilfstabelle!$K$2=AND('Personalkosten 1. Jahr'!E12>=Hilfstabelle!$K$2),'Personalkosten 1. Jahr'!M12/('Personalkosten 1. Jahr'!E12-'Personalkosten 1. Jahr'!D12+1),0),IF('Personalkosten 1. Jahr'!C12>0,'Personalkosten 1. Jahr'!M12/12,0))","v":0},{"$f":"IF('Personalkosten 1. Jahr'!D12>0,IF('Personalkosten 1. Jahr'!D12<=Hilfstabelle!$L$2=AND('Personalkosten 1. Jahr'!E12>=Hilfstabelle!$L$2),'Personalkosten 1. Jahr'!M12/('Personalkosten 1. Jahr'!E12-'Personalkosten 1. Jahr'!D12+1),0),IF('Personalkosten 1. Jahr'!C12>0,'Personalkosten 1. Jahr'!M12/12,0))","v":0},{"$f":"IF('Personalkosten 1. Jahr'!D12>0,IF('Personalkosten 1. Jahr'!D12<=Hilfstabelle!$M$2=AND('Personalkosten 1. Jahr'!E12>=Hilfstabelle!$M$2),'Personalkosten 1. Jahr'!M12/('Personalkosten 1. Jahr'!E12-'Personalkosten 1. Jahr'!D12+1),0),IF('Personalkosten 1. Jahr'!C12>0,'Personalkosten 1. Jahr'!M12/12,0))","v":0},{"$f":"SUM(B3:M3)","v":0}]
[2,{"$f":"IF('Personalkosten 1. Jahr'!D13>0,IF('Personalkosten 1. Jahr'!D13<=Hilfstabelle!$B$2=AND('Personalkosten 1. Jahr'!E13>=Hilfstabelle!$B$2),'Personalkosten 1. Jahr'!M13/('Personalkosten 1. Jahr'!E13-'Personalkosten 1. Jahr'!D13+1),0),IF('Personalkosten 1. Jahr'!C13>0,'Personalkosten 1. Jahr'!M13/12,0))","v":0},{"$f":"IF('Personalkosten 1. Jahr'!D13>0,IF('Personalkosten 1. Jahr'!D13<=Hilfstabelle!$C$2=AND('Personalkosten 1. Jahr'!E13>=Hilfstabelle!$C$2),'Personalkosten 1. Jahr'!M13/('Personalkosten 1. Jahr'!E13-'Personalkosten 1. Jahr'!D13+1),0),IF('Personalkosten 1. Jahr'!C13>0,'Personalkosten 1. Jahr'!M13/12,0))","v":0},{"$f":"IF('Personalkosten 1. Jahr'!D13>0,IF('Personalkosten 1. Jahr'!D13<=Hilfstabelle!$D$2=AND('Personalkosten 1. Jahr'!E13>=Hilfstabelle!$D$2),'Personalkosten 1. Jahr'!M13/('Personalkosten 1. Jahr'!E13-'Personalkosten 1. Jahr'!D13+1),0),IF('Personalkosten 1. Jahr'!C13>0,'Personalkosten 1. Jahr'!M13/12,0))","v":0},{"$f":"IF('Personalkosten 1. Jahr'!D13>0,IF('Personalkosten 1. Jahr'!D13<=Hilfstabelle!$E$2=AND('Personalkosten 1. Jahr'!E13>=Hilfstabelle!$E$2),'Personalkosten 1. Jahr'!M13/('Personalkosten 1. Jahr'!E13-'Personalkosten 1. Jahr'!D13+1),0),IF('Personalkosten 1. Jahr'!C13>0,'Personalkosten 1. Jahr'!M13/12,0))","v":0},{"$f":"IF('Personalkosten 1. Jahr'!D13>0,IF('Personalkosten 1. Jahr'!D13<=Hilfstabelle!$F$2=AND('Personalkosten 1. Jahr'!E13>=Hilfstabelle!$F$2),'Personalkosten 1. Jahr'!M13/('Personalkosten 1. Jahr'!E13-'Personalkosten 1. Jahr'!D13+1),0),IF('Personalkosten 1. Jahr'!C13>0,'Personalkosten 1. Jahr'!M13/12,0))","v":0},{"$f":"IF('Personalkosten 1. Jahr'!D13>0,IF('Personalkosten 1. Jahr'!D13<=Hilfstabelle!$G$2=AND('Personalkosten 1. Jahr'!E13>=Hilfstabelle!$G$2),'Personalkosten 1. Jahr'!M13/('Personalkosten 1. Jahr'!E13-'Personalkosten 1. Jahr'!D13+1),0),IF('Personalkosten 1. Jahr'!C13>0,'Personalkosten 1. Jahr'!M13/12,0))","v":0},{"$f":"IF('Personalkosten 1. Jahr'!D13>0,IF('Personalkosten 1. Jahr'!D13<=Hilfstabelle!$H$2=AND('Personalkosten 1. Jahr'!E13>=Hilfstabelle!$H$2),'Personalkosten 1. Jahr'!M13/('Personalkosten 1. Jahr'!E13-'Personalkosten 1. Jahr'!D13+1),0),IF('Personalkosten 1. Jahr'!C13>0,'Personalkosten 1. Jahr'!M13/12,0))","v":0},{"$f":"IF('Personalkosten 1. Jahr'!D13>0,IF('Personalkosten 1. Jahr'!D13<=Hilfstabelle!$I$2=AND('Personalkosten 1. Jahr'!E13>=Hilfstabelle!$I$2),'Personalkosten 1. Jahr'!M13/('Personalkosten 1. Jahr'!E13-'Personalkosten 1. Jahr'!D13+1),0),IF('Personalkosten 1. Jahr'!C13>0,'Personalkosten 1. Jahr'!M13/12,0))","v":0},{"$f":"IF('Personalkosten 1. Jahr'!D13>0,IF('Personalkosten 1. Jahr'!D13<=Hilfstabelle!$J$2=AND('Personalkosten 1. Jahr'!E13>=Hilfstabelle!$J$2),'Personalkosten 1. Jahr'!M13/('Personalkosten 1. Jahr'!E13-'Personalkosten 1. Jahr'!D13+1),0),IF('Personalkosten 1. Jahr'!C13>0,'Personalkosten 1. Jahr'!M13/12,0))","v":0},{"$f":"IF('Personalkosten 1. Jahr'!D13>0,IF('Personalkosten 1. Jahr'!D13<=Hilfstabelle!$K$2=AND('Personalkosten 1. Jahr'!E13>=Hilfstabelle!$K$2),'Personalkosten 1. Jahr'!M13/('Personalkosten 1. Jahr'!E13-'Personalkosten 1. Jahr'!D13+1),0),IF('Personalkosten 1. Jahr'!C13>0,'Personalkosten 1. Jahr'!M13/12,0))","v":0},{"$f":"IF('Personalkosten 1. Jahr'!D13>0,IF('Personalkosten 1. Jahr'!D13<=Hilfstabelle!$L$2=AND('Personalkosten 1. Jahr'!E13>=Hilfstabelle!$L$2),'Personalkosten 1. Jahr'!M13/('Personalkosten 1. Jahr'!E13-'Personalkosten 1. Jahr'!D13+1),0),IF('Personalkosten 1. Jahr'!C13>0,'Personalkosten 1. Jahr'!M13/12,0))","v":0},{"$f":"IF('Personalkosten 1. Jahr'!D13>0,IF('Personalkosten 1. Jahr'!D13<=Hilfstabelle!$M$2=AND('Personalkosten 1. Jahr'!E13>=Hilfstabelle!$M$2),'Personalkosten 1. Jahr'!M13/('Personalkosten 1. Jahr'!E13-'Personalkosten 1. Jahr'!D13+1),0),IF('Personalkosten 1. Jahr'!C13>0,'Personalkosten 1. Jahr'!M13/12,0))","v":0},0]
[3,{"$f":"IF('Personalkosten 1. Jahr'!D14>0,IF('Personalkosten 1. Jahr'!D14<=Hilfstabelle!$B$2=AND('Personalkosten 1. Jahr'!E14>=Hilfstabelle!$B$2),'Personalkosten 1. Jahr'!M14/('Personalkosten 1. Jahr'!E14-'Personalkosten 1. Jahr'!D14+1),0),IF('Personalkosten 1. Jahr'!C14>0,'Personalkosten 1. Jahr'!M14/12,0))","v":0},{"$f":"IF('Personalkosten 1. Jahr'!D14>0,IF('Personalkosten 1. Jahr'!D14<=Hilfstabelle!$C$2=AND('Personalkosten 1. Jahr'!E14>=Hilfstabelle!$C$2),'Personalkosten 1. Jahr'!M14/('Personalkosten 1. Jahr'!E14-'Personalkosten 1. Jahr'!D14+1),0),IF('Personalkosten 1. Jahr'!C14>0,'Personalkosten 1. Jahr'!M14/12,0))","v":0},{"$f":"IF('Personalkosten 1. Jahr'!D14>0,IF('Personalkosten 1. Jahr'!D14<=Hilfstabelle!$D$2=AND('Personalkosten 1. Jahr'!E14>=Hilfstabelle!$D$2),'Personalkosten 1. Jahr'!M14/('Personalkosten 1. Jahr'!E14-'Personalkosten 1. Jahr'!D14+1),0),IF('Personalkosten 1. Jahr'!C14>0,'Personalkosten 1. Jahr'!M14/12,0))","v":0},{"$f":"IF('Personalkosten 1. Jahr'!D14>0,IF('Personalkosten 1. Jahr'!D14<=Hilfstabelle!$E$2=AND('Personalkosten 1. Jahr'!E14>=Hilfstabelle!$E$2),'Personalkosten 1. Jahr'!M14/('Personalkosten 1. Jahr'!E14-'Personalkosten 1. Jahr'!D14+1),0),IF('Personalkosten 1. Jahr'!C14>0,'Personalkosten 1. Jahr'!M14/12,0))","v":0},{"$f":"IF('Personalkosten 1. Jahr'!D14>0,IF('Personalkosten 1. Jahr'!D14<=Hilfstabelle!$F$2=AND('Personalkosten 1. Jahr'!E14>=Hilfstabelle!$F$2),'Personalkosten 1. Jahr'!M14/('Personalkosten 1. Jahr'!E14-'Personalkosten 1. Jahr'!D14+1),0),IF('Personalkosten 1. Jahr'!C14>0,'Personalkosten 1. Jahr'!M14/12,0))","v":0},{"$f":"IF('Personalkosten 1. Jahr'!D14>0,IF('Personalkosten 1. Jahr'!D14<=Hilfstabelle!$G$2=AND('Personalkosten 1. Jahr'!E14>=Hilfstabelle!$G$2),'Personalkosten 1. Jahr'!M14/('Personalkosten 1. Jahr'!E14-'Personalkosten 1. Jahr'!D14+1),0),IF('Personalkosten 1. Jahr'!C14>0,'Personalkosten 1. Jahr'!M14/12,0))","v":0},{"$f":"IF('Personalkosten 1. Jahr'!D14>0,IF('Personalkosten 1. Jahr'!D14<=Hilfstabelle!$H$2=AND('Personalkosten 1. Jahr'!E14>=Hilfstabelle!$H$2),'Personalkosten 1. Jahr'!M14/('Personalkosten 1. Jahr'!E14-'Personalkosten 1. Jahr'!D14+1),0),IF('Personalkosten 1. Jahr'!C14>0,'Personalkosten 1. Jahr'!M14/12,0))","v":0},{"$f":"IF('Personalkosten 1. Jahr'!D14>0,IF('Personalkosten 1. Jahr'!D14<=Hilfstabelle!$I$2=AND('Personalkosten 1. Jahr'!E14>=Hilfstabelle!$I$2),'Personalkosten 1. Jahr'!M14/('Personalkosten 1. Jahr'!E14-'Personalkosten 1. Jahr'!D14+1),0),IF('Personalkosten 1. Jahr'!C14>0,'Personalkosten 1. Jahr'!M14/12,0))","v":0},{"$f":"IF('Personalkosten 1. Jahr'!D14>0,IF('Personalkosten 1. Jahr'!D14<=Hilfstabelle!$J$2=AND('Personalkosten 1. Jahr'!E14>=Hilfstabelle!$J$2),'Personalkosten 1. Jahr'!M14/('Personalkosten 1. Jahr'!E14-'Personalkosten 1. Jahr'!D14+1),0),IF('Personalkosten 1. Jahr'!C14>0,'Personalkosten 1. Jahr'!M14/12,0))","v":0},{"$f":"IF('Personalkosten 1. Jahr'!D14>0,IF('Personalkosten 1. Jahr'!D14<=Hilfstabelle!$K$2=AND('Personalkosten 1. Jahr'!E14>=Hilfstabelle!$K$2),'Personalkosten 1. Jahr'!M14/('Personalkosten 1. Jahr'!E14-'Personalkosten 1. Jahr'!D14+1),0),IF('Personalkosten 1. Jahr'!C14>0,'Personalkosten 1. Jahr'!M14/12,0))","v":0},{"$f":"IF('Personalkosten 1. Jahr'!D14>0,IF('Personalkosten 1. Jahr'!D14<=Hilfstabelle!$L$2=AND('Personalkosten 1. Jahr'!E14>=Hilfstabelle!$L$2),'Personalkosten 1. Jahr'!M14/('Personalkosten 1. Jahr'!E14-'Personalkosten 1. Jahr'!D14+1),0),IF('Personalkosten 1. Jahr'!C14>0,'Personalkosten 1. Jahr'!M14/12,0))","v":0},{"$f":"IF('Personalkosten 1. Jahr'!D14>0,IF('Personalkosten 1. Jahr'!D14<=Hilfstabelle!$M$2=AND('Personalkosten 1. Jahr'!E14>=Hilfstabelle!$M$2),'Personalkosten 1. Jahr'!M14/('Personalkosten 1. Jahr'!E14-'Personalkosten 1. Jahr'!D14+1),0),IF('Personalkosten 1. Jahr'!C14>0,'Personalkosten 1. Jahr'!M14/12,0))","v":0},0]
[4,{"$f":"IF('Personalkosten 1. Jahr'!D15>0,IF('Personalkosten 1. Jahr'!D15<=Hilfstabelle!$B$2=AND('Personalkosten 1. Jahr'!E15>=Hilfstabelle!$B$2),'Personalkosten 1. Jahr'!M15/('Personalkosten 1. Jahr'!E15-'Personalkosten 1. Jahr'!D15+1),0),IF('Personalkosten 1. Jahr'!C15>0,'Personalkosten 1. Jahr'!M15/12,0))","v":0},{"$f":"IF('Personalkosten 1. Jahr'!D15>0,IF('Personalkosten 1. Jahr'!D15<=Hilfstabelle!$C$2=AND('Personalkosten 1. Jahr'!E15>=Hilfstabelle!$C$2),'Personalkosten 1. Jahr'!M15/('Personalkosten 1. Jahr'!E15-'Personalkosten 1. Jahr'!D15+1),0),IF('Personalkosten 1. Jahr'!C15>0,'Personalkosten 1. Jahr'!M15/12,0))","v":0},{"$f":"IF('Personalkosten 1. Jahr'!D15>0,IF('Personalkosten 1. Jahr'!D15<=Hilfstabelle!$D$2=AND('Personalkosten 1. Jahr'!E15>=Hilfstabelle!$D$2),'Personalkosten 1. Jahr'!M15/('Personalkosten 1. Jahr'!E15-'Personalkosten 1. Jahr'!D15+1),0),IF('Personalkosten 1. Jahr'!C15>0,'Personalkosten 1. Jahr'!M15/12,0))","v":0},{"$f":"IF('Personalkosten 1. Jahr'!D15>0,IF('Personalkosten 1. Jahr'!D15<=Hilfstabelle!$E$2=AND('Personalkosten 1. Jahr'!E15>=Hilfstabelle!$E$2),'Personalkosten 1. Jahr'!M15/('Personalkosten 1. Jahr'!E15-'Personalkosten 1. Jahr'!D15+1),0),IF('Personalkosten 1. Jahr'!C15>0,'Personalkosten 1. Jahr'!M15/12,0))","v":0},{"$f":"IF('Personalkosten 1. Jahr'!D15>0,IF('Personalkosten 1. Jahr'!D15<=Hilfstabelle!$F$2=AND('Personalkosten 1. Jahr'!E15>=Hilfstabelle!$F$2),'Personalkosten 1. Jahr'!M15/('Personalkosten 1. Jahr'!E15-'Personalkosten 1. Jahr'!D15+1),0),IF('Personalkosten 1. Jahr'!C15>0,'Personalkosten 1. Jahr'!M15/12,0))","v":0},{"$f":"IF('Personalkosten 1. Jahr'!D15>0,IF('Personalkosten 1. Jahr'!D15<=Hilfstabelle!$G$2=AND('Personalkosten 1. Jahr'!E15>=Hilfstabelle!$G$2),'Personalkosten 1. Jahr'!M15/('Personalkosten 1. Jahr'!E15-'Personalkosten 1. Jahr'!D15+1),0),IF('Personalkosten 1. Jahr'!C15>0,'Personalkosten 1. Jahr'!M15/12,0))","v":0},{"$f":"IF('Personalkosten 1. Jahr'!D15>0,IF('Personalkosten 1. Jahr'!D15<=Hilfstabelle!$H$2=AND('Personalkosten 1. Jahr'!E15>=Hilfstabelle!$H$2),'Personalkosten 1. Jahr'!M15/('Personalkosten 1. Jahr'!E15-'Personalkosten 1. Jahr'!D15+1),0),IF('Personalkosten 1. Jahr'!C15>0,'Personalkosten 1. Jahr'!M15/12,0))","v":0},{"$f":"IF('Personalkosten 1. Jahr'!D15>0,IF('Personalkosten 1. Jahr'!D15<=Hilfstabelle!$I$2=AND('Personalkosten 1. Jahr'!E15>=Hilfstabelle!$I$2),'Personalkosten 1. Jahr'!M15/('Personalkosten 1. Jahr'!E15-'Personalkosten 1. Jahr'!D15+1),0),IF('Personalkosten 1. Jahr'!C15>0,'Personalkosten 1. Jahr'!M15/12,0))","v":0},{"$f":"IF('Personalkosten 1. Jahr'!D15>0,IF('Personalkosten 1. Jahr'!D15<=Hilfstabelle!$J$2=AND('Personalkosten 1. Jahr'!E15>=Hilfstabelle!$J$2),'Personalkosten 1. Jahr'!M15/('Personalkosten 1. Jahr'!E15-'Personalkosten 1. Jahr'!D15+1),0),IF('Personalkosten 1. Jahr'!C15>0,'Personalkosten 1. Jahr'!M15/12,0))","v":0},{"$f":"IF('Personalkosten 1. Jahr'!D15>0,IF('Personalkosten 1. Jahr'!D15<=Hilfstabelle!$K$2=AND('Personalkosten 1. Jahr'!E15>=Hilfstabelle!$K$2),'Personalkosten 1. Jahr'!M15/('Personalkosten 1. Jahr'!E15-'Personalkosten 1. Jahr'!D15+1),0),IF('Personalkosten 1. Jahr'!C15>0,'Personalkosten 1. Jahr'!M15/12,0))","v":0},{"$f":"IF('Personalkosten 1. Jahr'!D15>0,IF('Personalkosten 1. Jahr'!D15<=Hilfstabelle!$L$2=AND('Personalkosten 1. Jahr'!E15>=Hilfstabelle!$L$2),'Personalkosten 1. Jahr'!M15/('Personalkosten 1. Jahr'!E15-'Personalkosten 1. Jahr'!D15+1),0),IF('Personalkosten 1. Jahr'!C15>0,'Personalkosten 1. Jahr'!M15/12,0))","v":0},{"$f":"IF('Personalkosten 1. Jahr'!D15>0,IF('Personalkosten 1. Jahr'!D15<=Hilfstabelle!$M$2=AND('Personalkosten 1. Jahr'!E15>=Hilfstabelle!$M$2),'Personalkosten 1. Jahr'!M15/('Personalkosten 1. Jahr'!E15-'Personalkosten 1. Jahr'!D15+1),0),IF('Personalkosten 1. Jahr'!C15>0,'Personalkosten 1. Jahr'!M15/12,0))","v":0},0]
[5,{"$f":"IF('Personalkosten 1. Jahr'!D16>0,IF('Personalkosten 1. Jahr'!D16<=Hilfstabelle!$B$2=AND('Personalkosten 1. Jahr'!E16>=Hilfstabelle!$B$2),'Personalkosten 1. Jahr'!M16/('Personalkosten 1. Jahr'!E16-'Personalkosten 1. Jahr'!D16+1),0),IF('Personalkosten 1. Jahr'!C16>0,'Personalkosten 1. Jahr'!M16/12,0))","v":0},{"$f":"IF('Personalkosten 1. Jahr'!D16>0,IF('Personalkosten 1. Jahr'!D16<=Hilfstabelle!$C$2=AND('Personalkosten 1. Jahr'!E16>=Hilfstabelle!$C$2),'Personalkosten 1. Jahr'!M16/('Personalkosten 1. Jahr'!E16-'Personalkosten 1. Jahr'!D16+1),0),IF('Personalkosten 1. Jahr'!C16>0,'Personalkosten 1. Jahr'!M16/12,0))","v":0},{"$f":"IF('Personalkosten 1. Jahr'!D16>0,IF('Personalkosten 1. Jahr'!D16<=Hilfstabelle!$D$2=AND('Personalkosten 1. Jahr'!E16>=Hilfstabelle!$D$2),'Personalkosten 1. Jahr'!M16/('Personalkosten 1. Jahr'!E16-'Personalkosten 1. Jahr'!D16+1),0),IF('Personalkosten 1. Jahr'!C16>0,'Personalkosten 1. Jahr'!M16/12,0))","v":0},{"$f":"IF('Personalkosten 1. Jahr'!D16>0,IF('Personalkosten 1. Jahr'!D16<=Hilfstabelle!$E$2=AND('Personalkosten 1. Jahr'!E16>=Hilfstabelle!$E$2),'Personalkosten 1. Jahr'!M16/('Personalkosten 1. Jahr'!E16-'Personalkosten 1. Jahr'!D16+1),0),IF('Personalkosten 1. Jahr'!C16>0,'Personalkosten 1. Jahr'!M16/12,0))","v":0},{"$f":"IF('Personalkosten 1. Jahr'!D16>0,IF('Personalkosten 1. Jahr'!D16<=Hilfstabelle!$F$2=AND('Personalkosten 1. Jahr'!E16>=Hilfstabelle!$F$2),'Personalkosten 1. Jahr'!M16/('Personalkosten 1. Jahr'!E16-'Personalkosten 1. Jahr'!D16+1),0),IF('Personalkosten 1. Jahr'!C16>0,'Personalkosten 1. Jahr'!M16/12,0))","v":0},{"$f":"IF('Personalkosten 1. Jahr'!D16>0,IF('Personalkosten 1. Jahr'!D16<=Hilfstabelle!$G$2=AND('Personalkosten 1. Jahr'!E16>=Hilfstabelle!$G$2),'Personalkosten 1. Jahr'!M16/('Personalkosten 1. Jahr'!E16-'Personalkosten 1. Jahr'!D16+1),0),IF('Personalkosten 1. Jahr'!C16>0,'Personalkosten 1. Jahr'!M16/12,0))","v":0},{"$f":"IF('Personalkosten 1. Jahr'!D16>0,IF('Personalkosten 1. Jahr'!D16<=Hilfstabelle!$H$2=AND('Personalkosten 1. Jahr'!E16>=Hilfstabelle!$H$2),'Personalkosten 1. Jahr'!M16/('Personalkosten 1. Jahr'!E16-'Personalkosten 1. Jahr'!D16+1),0),IF('Personalkosten 1. Jahr'!C16>0,'Personalkosten 1. Jahr'!M16/12,0))","v":0},{"$f":"IF('Personalkosten 1. Jahr'!D16>0,IF('Personalkosten 1. Jahr'!D16<=Hilfstabelle!$I$2=AND('Personalkosten 1. Jahr'!E16>=Hilfstabelle!$I$2),'Personalkosten 1. Jahr'!M16/('Personalkosten 1. Jahr'!E16-'Personalkosten 1. Jahr'!D16+1),0),IF('Personalkosten 1. Jahr'!C16>0,'Personalkosten 1. Jahr'!M16/12,0))","v":0},{"$f":"IF('Personalkosten 1. Jahr'!D16>0,IF('Personalkosten 1. Jahr'!D16<=Hilfstabelle!$J$2=AND('Personalkosten 1. Jahr'!E16>=Hilfstabelle!$J$2),'Personalkosten 1. Jahr'!M16/('Personalkosten 1. Jahr'!E16-'Personalkosten 1. Jahr'!D16+1),0),IF('Personalkosten 1. Jahr'!C16>0,'Personalkosten 1. Jahr'!M16/12,0))","v":0},{"$f":"IF('Personalkosten 1. Jahr'!D16>0,IF('Personalkosten 1. Jahr'!D16<=Hilfstabelle!$K$2=AND('Personalkosten 1. Jahr'!E16>=Hilfstabelle!$K$2),'Personalkosten 1. Jahr'!M16/('Personalkosten 1. Jahr'!E16-'Personalkosten 1. Jahr'!D16+1),0),IF('Personalkosten 1. Jahr'!C16>0,'Personalkosten 1. Jahr'!M16/12,0))","v":0},{"$f":"IF('Personalkosten 1. Jahr'!D16>0,IF('Personalkosten 1. Jahr'!D16<=Hilfstabelle!$L$2=AND('Personalkosten 1. Jahr'!E16>=Hilfstabelle!$L$2),'Personalkosten 1. Jahr'!M16/('Personalkosten 1. Jahr'!E16-'Personalkosten 1. Jahr'!D16+1),0),IF('Personalkosten 1. Jahr'!C16>0,'Personalkosten 1. Jahr'!M16/12,0))","v":0},{"$f":"IF('Personalkosten 1. Jahr'!D16>0,IF('Personalkosten 1. Jahr'!D16<=Hilfstabelle!$M$2=AND('Personalkosten 1. Jahr'!E16>=Hilfstabelle!$M$2),'Personalkosten 1. Jahr'!M16/('Personalkosten 1. Jahr'!E16-'Personalkosten 1. Jahr'!D16+1),0),IF('Personalkosten 1. Jahr'!C16>0,'Personalkosten 1. Jahr'!M16/12,0))","v":0},0]
[6,{"$f":"IF('Personalkosten 1. Jahr'!D17>0,IF('Personalkosten 1. Jahr'!D17<=Hilfstabelle!$B$2=AND('Personalkosten 1. Jahr'!E17>=Hilfstabelle!$B$2),'Personalkosten 1. Jahr'!M17/('Personalkosten 1. Jahr'!E17-'Personalkosten 1. Jahr'!D17+1),0),IF('Personalkosten 1. Jahr'!C17>0,'Personalkosten 1. Jahr'!M17/12,0))","v":0},{"$f":"IF('Personalkosten 1. Jahr'!D17>0,IF('Personalkosten 1. Jahr'!D17<=Hilfstabelle!$C$2=AND('Personalkosten 1. Jahr'!E17>=Hilfstabelle!$C$2),'Personalkosten 1. Jahr'!M17/('Personalkosten 1. Jahr'!E17-'Personalkosten 1. Jahr'!D17+1),0),IF('Personalkosten 1. Jahr'!C17>0,'Personalkosten 1. Jahr'!M17/12,0))","v":0},{"$f":"IF('Personalkosten 1. Jahr'!D17>0,IF('Personalkosten 1. Jahr'!D17<=Hilfstabelle!$D$2=AND('Personalkosten 1. Jahr'!E17>=Hilfstabelle!$D$2),'Personalkosten 1. Jahr'!M17/('Personalkosten 1. Jahr'!E17-'Personalkosten 1. Jahr'!D17+1),0),IF('Personalkosten 1. Jahr'!C17>0,'Personalkosten 1. Jahr'!M17/12,0))","v":0},{"$f":"IF('Personalkosten 1. Jahr'!D17>0,IF('Personalkosten 1. Jahr'!D17<=Hilfstabelle!$E$2=AND('Personalkosten 1. Jahr'!E17>=Hilfstabelle!$E$2),'Personalkosten 1. Jahr'!M17/('Personalkosten 1. Jahr'!E17-'Personalkosten 1. Jahr'!D17+1),0),IF('Personalkosten 1. Jahr'!C17>0,'Personalkosten 1. Jahr'!M17/12,0))","v":0},{"$f":"IF('Personalkosten 1. Jahr'!D17>0,IF('Personalkosten 1. Jahr'!D17<=Hilfstabelle!$F$2=AND('Personalkosten 1. Jahr'!E17>=Hilfstabelle!$F$2),'Personalkosten 1. Jahr'!M17/('Personalkosten 1. Jahr'!E17-'Personalkosten 1. Jahr'!D17+1),0),IF('Personalkosten 1. Jahr'!C17>0,'Personalkosten 1. Jahr'!M17/12,0))","v":0},{"$f":"IF('Personalkosten 1. Jahr'!D17>0,IF('Personalkosten 1. Jahr'!D17<=Hilfstabelle!$G$2=AND('Personalkosten 1. Jahr'!E17>=Hilfstabelle!$G$2),'Personalkosten 1. Jahr'!M17/('Personalkosten 1. Jahr'!E17-'Personalkosten 1. Jahr'!D17+1),0),IF('Personalkosten 1. Jahr'!C17>0,'Personalkosten 1. Jahr'!M17/12,0))","v":0},{"$f":"IF('Personalkosten 1. Jahr'!D17>0,IF('Personalkosten 1. Jahr'!D17<=Hilfstabelle!$H$2=AND('Personalkosten 1. Jahr'!E17>=Hilfstabelle!$H$2),'Personalkosten 1. Jahr'!M17/('Personalkosten 1. Jahr'!E17-'Personalkosten 1. Jahr'!D17+1),0),IF('Personalkosten 1. Jahr'!C17>0,'Personalkosten 1. Jahr'!M17/12,0))","v":0},{"$f":"IF('Personalkosten 1. Jahr'!D17>0,IF('Personalkosten 1. Jahr'!D17<=Hilfstabelle!$I$2=AND('Personalkosten 1. Jahr'!E17>=Hilfstabelle!$I$2),'Personalkosten 1. Jahr'!M17/('Personalkosten 1. Jahr'!E17-'Personalkosten 1. Jahr'!D17+1),0),IF('Personalkosten 1. Jahr'!C17>0,'Personalkosten 1. Jahr'!M17/12,0))","v":0},{"$f":"IF('Personalkosten 1. Jahr'!D17>0,IF('Personalkosten 1. Jahr'!D17<=Hilfstabelle!$J$2=AND('Personalkosten 1. Jahr'!E17>=Hilfstabelle!$J$2),'Personalkosten 1. Jahr'!M17/('Personalkosten 1. Jahr'!E17-'Personalkosten 1. Jahr'!D17+1),0),IF('Personalkosten 1. Jahr'!C17>0,'Personalkosten 1. Jahr'!M17/12,0))","v":0},{"$f":"IF('Personalkosten 1. Jahr'!D17>0,IF('Personalkosten 1. Jahr'!D17<=Hilfstabelle!$K$2=AND('Personalkosten 1. Jahr'!E17>=Hilfstabelle!$K$2),'Personalkosten 1. Jahr'!M17/('Personalkosten 1. Jahr'!E17-'Personalkosten 1. Jahr'!D17+1),0),IF('Personalkosten 1. Jahr'!C17>0,'Personalkosten 1. Jahr'!M17/12,0))","v":0},{"$f":"IF('Personalkosten 1. Jahr'!D17>0,IF('Personalkosten 1. Jahr'!D17<=Hilfstabelle!$L$2=AND('Personalkosten 1. Jahr'!E17>=Hilfstabelle!$L$2),'Personalkosten 1. Jahr'!M17/('Personalkosten 1. Jahr'!E17-'Personalkosten 1. Jahr'!D17+1),0),IF('Personalkosten 1. Jahr'!C17>0,'Personalkosten 1. Jahr'!M17/12,0))","v":0},{"$f":"IF('Personalkosten 1. Jahr'!D17>0,IF('Personalkosten 1. Jahr'!D17<=Hilfstabelle!$M$2=AND('Personalkosten 1. Jahr'!E17>=Hilfstabelle!$M$2),'Personalkosten 1. Jahr'!M17/('Personalkosten 1. Jahr'!E17-'Personalkosten 1. Jahr'!D17+1),0),IF('Personalkosten 1. Jahr'!C17>0,'Personalkosten 1. Jahr'!M17/12,0))","v":0},0]
[7,{"$f":"IF('Personalkosten 1. Jahr'!D18>0,IF('Personalkosten 1. Jahr'!D18<=Hilfstabelle!$B$2=AND('Personalkosten 1. Jahr'!E18>=Hilfstabelle!$B$2),'Personalkosten 1. Jahr'!M18/('Personalkosten 1. Jahr'!E18-'Personalkosten 1. Jahr'!D18+1),0),IF('Personalkosten 1. Jahr'!C18>0,'Personalkosten 1. Jahr'!M18/12,0))","v":0},{"$f":"IF('Personalkosten 1. Jahr'!D18>0,IF('Personalkosten 1. Jahr'!D18<=Hilfstabelle!$C$2=AND('Personalkosten 1. Jahr'!E18>=Hilfstabelle!$C$2),'Personalkosten 1. Jahr'!M18/('Personalkosten 1. Jahr'!E18-'Personalkosten 1. Jahr'!D18+1),0),IF('Personalkosten 1. Jahr'!C18>0,'Personalkosten 1. Jahr'!M18/12,0))","v":0},{"$f":"IF('Personalkosten 1. Jahr'!D18>0,IF('Personalkosten 1. Jahr'!D18<=Hilfstabelle!$D$2=AND('Personalkosten 1. Jahr'!E18>=Hilfstabelle!$D$2),'Personalkosten 1. Jahr'!M18/('Personalkosten 1. Jahr'!E18-'Personalkosten 1. Jahr'!D18+1),0),IF('Personalkosten 1. Jahr'!C18>0,'Personalkosten 1. Jahr'!M18/12,0))","v":0},{"$f":"IF('Personalkosten 1. Jahr'!D18>0,IF('Personalkosten 1. Jahr'!D18<=Hilfstabelle!$E$2=AND('Personalkosten 1. Jahr'!E18>=Hilfstabelle!$E$2),'Personalkosten 1. Jahr'!M18/('Personalkosten 1. Jahr'!E18-'Personalkosten 1. Jahr'!D18+1),0),IF('Personalkosten 1. Jahr'!C18>0,'Personalkosten 1. Jahr'!M18/12,0))","v":0},{"$f":"IF('Personalkosten 1. Jahr'!D18>0,IF('Personalkosten 1. Jahr'!D18<=Hilfstabelle!$F$2=AND('Personalkosten 1. Jahr'!E18>=Hilfstabelle!$F$2),'Personalkosten 1. Jahr'!M18/('Personalkosten 1. Jahr'!E18-'Personalkosten 1. Jahr'!D18+1),0),IF('Personalkosten 1. Jahr'!C18>0,'Personalkosten 1. Jahr'!M18/12,0))","v":0},{"$f":"IF('Personalkosten 1. Jahr'!D18>0,IF('Personalkosten 1. Jahr'!D18<=Hilfstabelle!$G$2=AND('Personalkosten 1. Jahr'!E18>=Hilfstabelle!$G$2),'Personalkosten 1. Jahr'!M18/('Personalkosten 1. Jahr'!E18-'Personalkosten 1. Jahr'!D18+1),0),IF('Personalkosten 1. Jahr'!C18>0,'Personalkosten 1. Jahr'!M18/12,0))","v":0},{"$f":"IF('Personalkosten 1. Jahr'!D18>0,IF('Personalkosten 1. Jahr'!D18<=Hilfstabelle!$H$2=AND('Personalkosten 1. Jahr'!E18>=Hilfstabelle!$H$2),'Personalkosten 1. Jahr'!M18/('Personalkosten 1. Jahr'!E18-'Personalkosten 1. Jahr'!D18+1),0),IF('Personalkosten 1. Jahr'!C18>0,'Personalkosten 1. Jahr'!M18/12,0))","v":0},{"$f":"IF('Personalkosten 1. Jahr'!D18>0,IF('Personalkosten 1. Jahr'!D18<=Hilfstabelle!$I$2=AND('Personalkosten 1. Jahr'!E18>=Hilfstabelle!$I$2),'Personalkosten 1. Jahr'!M18/('Personalkosten 1. Jahr'!E18-'Personalkosten 1. Jahr'!D18+1),0),IF('Personalkosten 1. Jahr'!C18>0,'Personalkosten 1. Jahr'!M18/12,0))","v":0},{"$f":"IF('Personalkosten 1. Jahr'!D18>0,IF('Personalkosten 1. Jahr'!D18<=Hilfstabelle!$J$2=AND('Personalkosten 1. Jahr'!E18>=Hilfstabelle!$J$2),'Personalkosten 1. Jahr'!M18/('Personalkosten 1. Jahr'!E18-'Personalkosten 1. Jahr'!D18+1),0),IF('Personalkosten 1. Jahr'!C18>0,'Personalkosten 1. Jahr'!M18/12,0))","v":0},{"$f":"IF('Personalkosten 1. Jahr'!D18>0,IF('Personalkosten 1. Jahr'!D18<=Hilfstabelle!$K$2=AND('Personalkosten 1. Jahr'!E18>=Hilfstabelle!$K$2),'Personalkosten 1. Jahr'!M18/('Personalkosten 1. Jahr'!E18-'Personalkosten 1. Jahr'!D18+1),0),IF('Personalkosten 1. Jahr'!C18>0,'Personalkosten 1. Jahr'!M18/12,0))","v":0},{"$f":"IF('Personalkosten 1. Jahr'!D18>0,IF('Personalkosten 1. Jahr'!D18<=Hilfstabelle!$L$2=AND('Personalkosten 1. Jahr'!E18>=Hilfstabelle!$L$2),'Personalkosten 1. Jahr'!M18/('Personalkosten 1. Jahr'!E18-'Personalkosten 1. Jahr'!D18+1),0),IF('Personalkosten 1. Jahr'!C18>0,'Personalkosten 1. Jahr'!M18/12,0))","v":0},{"$f":"IF('Personalkosten 1. Jahr'!D18>0,IF('Personalkosten 1. Jahr'!D18<=Hilfstabelle!$M$2=AND('Personalkosten 1. Jahr'!E18>=Hilfstabelle!$M$2),'Personalkosten 1. Jahr'!M18/('Personalkosten 1. Jahr'!E18-'Personalkosten 1. Jahr'!D18+1),0),IF('Personalkosten 1. Jahr'!C18>0,'Personalkosten 1. Jahr'!M18/12,0))","v":0},0]
[8,{"$f":"IF('Personalkosten 1. Jahr'!D19>0,IF('Personalkosten 1. Jahr'!D19<=Hilfstabelle!$B$2=AND('Personalkosten 1. Jahr'!E19>=Hilfstabelle!$B$2),'Personalkosten 1. Jahr'!M19/('Personalkosten 1. Jahr'!E19-'Personalkosten 1. Jahr'!D19+1),0),IF('Personalkosten 1. Jahr'!C19>0,'Personalkosten 1. Jahr'!M19/12,0))","v":0},{"$f":"IF('Personalkosten 1. Jahr'!D19>0,IF('Personalkosten 1. Jahr'!D19<=Hilfstabelle!$C$2=AND('Personalkosten 1. Jahr'!E19>=Hilfstabelle!$C$2),'Personalkosten 1. Jahr'!M19/('Personalkosten 1. Jahr'!E19-'Personalkosten 1. Jahr'!D19+1),0),IF('Personalkosten 1. Jahr'!C19>0,'Personalkosten 1. Jahr'!M19/12,0))","v":0},{"$f":"IF('Personalkosten 1. Jahr'!D19>0,IF('Personalkosten 1. Jahr'!D19<=Hilfstabelle!$D$2=AND('Personalkosten 1. Jahr'!E19>=Hilfstabelle!$D$2),'Personalkosten 1. Jahr'!M19/('Personalkosten 1. Jahr'!E19-'Personalkosten 1. Jahr'!D19+1),0),IF('Personalkosten 1. Jahr'!C19>0,'Personalkosten 1. Jahr'!M19/12,0))","v":0},{"$f":"IF('Personalkosten 1. Jahr'!D19>0,IF('Personalkosten 1. Jahr'!D19<=Hilfstabelle!$E$2=AND('Personalkosten 1. Jahr'!E19>=Hilfstabelle!$E$2),'Personalkosten 1. Jahr'!M19/('Personalkosten 1. Jahr'!E19-'Personalkosten 1. Jahr'!D19+1),0),IF('Personalkosten 1. Jahr'!C19>0,'Personalkosten 1. Jahr'!M19/12,0))","v":0},{"$f":"IF('Personalkosten 1. Jahr'!D19>0,IF('Personalkosten 1. Jahr'!D19<=Hilfstabelle!$F$2=AND('Personalkosten 1. Jahr'!E19>=Hilfstabelle!$F$2),'Personalkosten 1. Jahr'!M19/('Personalkosten 1. Jahr'!E19-'Personalkosten 1. Jahr'!D19+1),0),IF('Personalkosten 1. Jahr'!C19>0,'Personalkosten 1. Jahr'!M19/12,0))","v":0},{"$f":"IF('Personalkosten 1. Jahr'!D19>0,IF('Personalkosten 1. Jahr'!D19<=Hilfstabelle!$G$2=AND('Personalkosten 1. Jahr'!E19>=Hilfstabelle!$G$2),'Personalkosten 1. Jahr'!M19/('Personalkosten 1. Jahr'!E19-'Personalkosten 1. Jahr'!D19+1),0),IF('Personalkosten 1. Jahr'!C19>0,'Personalkosten 1. Jahr'!M19/12,0))","v":0},{"$f":"IF('Personalkosten 1. Jahr'!D19>0,IF('Personalkosten 1. Jahr'!D19<=Hilfstabelle!$H$2=AND('Personalkosten 1. Jahr'!E19>=Hilfstabelle!$H$2),'Personalkosten 1. Jahr'!M19/('Personalkosten 1. Jahr'!E19-'Personalkosten 1. Jahr'!D19+1),0),IF('Personalkosten 1. Jahr'!C19>0,'Personalkosten 1. Jahr'!M19/12,0))","v":0},{"$f":"IF('Personalkosten 1. Jahr'!D19>0,IF('Personalkosten 1. Jahr'!D19<=Hilfstabelle!$I$2=AND('Personalkosten 1. Jahr'!E19>=Hilfstabelle!$I$2),'Personalkosten 1. Jahr'!M19/('Personalkosten 1. Jahr'!E19-'Personalkosten 1. Jahr'!D19+1),0),IF('Personalkosten 1. Jahr'!C19>0,'Personalkosten 1. Jahr'!M19/12,0))","v":0},{"$f":"IF('Personalkosten 1. Jahr'!D19>0,IF('Personalkosten 1. Jahr'!D19<=Hilfstabelle!$J$2=AND('Personalkosten 1. Jahr'!E19>=Hilfstabelle!$J$2),'Personalkosten 1. Jahr'!M19/('Personalkosten 1. Jahr'!E19-'Personalkosten 1. Jahr'!D19+1),0),IF('Personalkosten 1. Jahr'!C19>0,'Personalkosten 1. Jahr'!M19/12,0))","v":0},{"$f":"IF('Personalkosten 1. Jahr'!D19>0,IF('Personalkosten 1. Jahr'!D19<=Hilfstabelle!$K$2=AND('Personalkosten 1. Jahr'!E19>=Hilfstabelle!$K$2),'Personalkosten 1. Jahr'!M19/('Personalkosten 1. Jahr'!E19-'Personalkosten 1. Jahr'!D19+1),0),IF('Personalkosten 1. Jahr'!C19>0,'Personalkosten 1. Jahr'!M19/12,0))","v":0},{"$f":"IF('Personalkosten 1. Jahr'!D19>0,IF('Personalkosten 1. Jahr'!D19<=Hilfstabelle!$L$2=AND('Personalkosten 1. Jahr'!E19>=Hilfstabelle!$L$2),'Personalkosten 1. Jahr'!M19/('Personalkosten 1. Jahr'!E19-'Personalkosten 1. Jahr'!D19+1),0),IF('Personalkosten 1. Jahr'!C19>0,'Personalkosten 1. Jahr'!M19/12,0))","v":0},{"$f":"IF('Personalkosten 1. Jahr'!D19>0,IF('Personalkosten 1. Jahr'!D19<=Hilfstabelle!$M$2=AND('Personalkosten 1. Jahr'!E19>=Hilfstabelle!$M$2),'Personalkosten 1. Jahr'!M19/('Personalkosten 1. Jahr'!E19-'Personalkosten 1. Jahr'!D19+1),0),IF('Personalkosten 1. Jahr'!C19>0,'Personalkosten 1. Jahr'!M19/12,0))","v":0},0]
[9,{"$f":"IF('Personalkosten 1. Jahr'!D20>0,IF('Personalkosten 1. Jahr'!D20<=Hilfstabelle!$B$2=AND('Personalkosten 1. Jahr'!E20>=Hilfstabelle!$B$2),'Personalkosten 1. Jahr'!M20/('Personalkosten 1. Jahr'!E20-'Personalkosten 1. Jahr'!D20+1),0),IF('Personalkosten 1. Jahr'!C20>0,'Personalkosten 1. Jahr'!M20/12,0))","v":0},{"$f":"IF('Personalkosten 1. Jahr'!D20>0,IF('Personalkosten 1. Jahr'!D20<=Hilfstabelle!$C$2=AND('Personalkosten 1. Jahr'!E20>=Hilfstabelle!$C$2),'Personalkosten 1. Jahr'!M20/('Personalkosten 1. Jahr'!E20-'Personalkosten 1. Jahr'!D20+1),0),IF('Personalkosten 1. Jahr'!C20>0,'Personalkosten 1. Jahr'!M20/12,0))","v":0},{"$f":"$C11/12","v":0},{"$f":"$C11/12","v":0},0,0,0,0,0,0,0,0,0]
[10,{"$f":"IF('Personalkosten 1. Jahr'!D21>0,IF('Personalkosten 1. Jahr'!D21<=Hilfstabelle!$B$2=AND('Personalkosten 1. Jahr'!E21>=Hilfstabelle!$B$2),'Personalkosten 1. Jahr'!M21/('Personalkosten 1. Jahr'!E21-'Personalkosten 1. Jahr'!D21+1),0),IF('Personalkosten 1. Jahr'!C21>0,'Personalkosten 1. Jahr'!M21/12,0))","v":0},{"$f":"IF('Personalkosten 1. Jahr'!D21>0,IF('Personalkosten 1. Jahr'!D21<=Hilfstabelle!$C$2=AND('Personalkosten 1. Jahr'!E21>=Hilfstabelle!$C$2),'Personalkosten 1. Jahr'!M21/('Personalkosten 1. Jahr'!E21-'Personalkosten 1. Jahr'!D21+1),0),IF('Personalkosten 1. Jahr'!C21>0,'Personalkosten 1. Jahr'!M21/12,0))","v":0},{"$f":"IF('Personalkosten 1. Jahr'!D21>0,IF('Personalkosten 1. Jahr'!D21<=Hilfstabelle!$D$2=AND('Personalkosten 1. Jahr'!E21>=Hilfstabelle!$D$2),'Personalkosten 1. Jahr'!M21/('Personalkosten 1. Jahr'!E21-'Personalkosten 1. Jahr'!D21+1),0),IF('Personalkosten 1. Jahr'!C21>0,'Personalkosten 1. Jahr'!M21/12,0))","v":0},{"$f":"IF('Personalkosten 1. Jahr'!D21>0,IF('Personalkosten 1. Jahr'!D21<=Hilfstabelle!$E$2=AND('Personalkosten 1. Jahr'!E21>=Hilfstabelle!$E$2),'Personalkosten 1. Jahr'!M21/('Personalkosten 1. Jahr'!E21-'Personalkosten 1. Jahr'!D21+1),0),IF('Personalkosten 1. Jahr'!C21>0,'Personalkosten 1. Jahr'!M21/12,0))","v":0},{"$f":"IF('Personalkosten 1. Jahr'!D21>0,IF('Personalkosten 1. Jahr'!D21<=Hilfstabelle!$F$2=AND('Personalkosten 1. Jahr'!E21>=Hilfstabelle!$F$2),'Personalkosten 1. Jahr'!M21/('Personalkosten 1. Jahr'!E21-'Personalkosten 1. Jahr'!D21+1),0),IF('Personalkosten 1. Jahr'!C21>0,'Personalkosten 1. Jahr'!M21/12,0))","v":0},{"$f":"IF('Personalkosten 1. Jahr'!D21>0,IF('Personalkosten 1. Jahr'!D21<=Hilfstabelle!$G$2=AND('Personalkosten 1. Jahr'!E21>=Hilfstabelle!$G$2),'Personalkosten 1. Jahr'!M21/('Personalkosten 1. Jahr'!E21-'Personalkosten 1. Jahr'!D21+1),0),IF('Personalkosten 1. Jahr'!C21>0,'Personalkosten 1. Jahr'!M21/12,0))","v":0},{"$f":"IF('Personalkosten 1. Jahr'!D21>0,IF('Personalkosten 1. Jahr'!D21<=Hilfstabelle!$H$2=AND('Personalkosten 1. Jahr'!E21>=Hilfstabelle!$H$2),'Personalkosten 1. Jahr'!M21/('Personalkosten 1. Jahr'!E21-'Personalkosten 1. Jahr'!D21+1),0),IF('Personalkosten 1. Jahr'!C21>0,'Personalkosten 1. Jahr'!M21/12,0))","v":0},{"$f":"IF('Personalkosten 1. Jahr'!D21>0,IF('Personalkosten 1. Jahr'!D21<=Hilfstabelle!$I$2=AND('Personalkosten 1. Jahr'!E21>=Hilfstabelle!$I$2),'Personalkosten 1. Jahr'!M21/('Personalkosten 1. Jahr'!E21-'Personalkosten 1. Jahr'!D21+1),0),IF('Personalkosten 1. Jahr'!C21>0,'Personalkosten 1. Jahr'!M21/12,0))","v":0},{"$f":"IF('Personalkosten 1. Jahr'!D21>0,IF('Personalkosten 1. Jahr'!D21<=Hilfstabelle!$J$2=AND('Personalkosten 1. Jahr'!E21>=Hilfstabelle!$J$2),'Personalkosten 1. Jahr'!M21/('Personalkosten 1. Jahr'!E21-'Personalkosten 1. Jahr'!D21+1),0),IF('Personalkosten 1. Jahr'!C21>0,'Personalkosten 1. Jahr'!M21/12,0))","v":0},{"$f":"IF('Personalkosten 1. Jahr'!D21>0,IF('Personalkosten 1. Jahr'!D21<=Hilfstabelle!$K$2=AND('Personalkosten 1. Jahr'!E21>=Hilfstabelle!$K$2),'Personalkosten 1. Jahr'!M21/('Personalkosten 1. Jahr'!E21-'Personalkosten 1. Jahr'!D21+1),0),IF('Personalkosten 1. Jahr'!C21>0,'Personalkosten 1. Jahr'!M21/12,0))","v":0},{"$f":"IF('Personalkosten 1. Jahr'!D21>0,IF('Personalkosten 1. Jahr'!D21<=Hilfstabelle!$L$2=AND('Personalkosten 1. Jahr'!E21>=Hilfstabelle!$L$2),'Personalkosten 1. Jahr'!M21/('Personalkosten 1. Jahr'!E21-'Personalkosten 1. Jahr'!D21+1),0),IF('Personalkosten 1. Jahr'!C21>0,'Personalkosten 1. Jahr'!M21/12,0))","v":0},{"$f":"IF('Personalkosten 1. Jahr'!D21>0,IF('Personalkosten 1. Jahr'!D21<=Hilfstabelle!$M$2=AND('Personalkosten 1. Jahr'!E21>=Hilfstabelle!$M$2),'Personalkosten 1. Jahr'!M21/('Personalkosten 1. Jahr'!E21-'Personalkosten 1. Jahr'!D21+1),0),IF('Personalkosten 1. Jahr'!C21>0,'Personalkosten 1. Jahr'!M21/12,0))","v":0},0]
[11,{"$f":"IF('Personalkosten 1. Jahr'!D22>0,IF('Personalkosten 1. Jahr'!D22<=Hilfstabelle!$B$2=AND('Personalkosten 1. Jahr'!E22>=Hilfstabelle!$B$2),'Personalkosten 1. Jahr'!M22/('Personalkosten 1. Jahr'!E22-'Personalkosten 1. Jahr'!D22+1),0),IF('Personalkosten 1. Jahr'!C22>0,'Personalkosten 1. Jahr'!M22/12,0))","v":0},{"$f":"IF('Personalkosten 1. Jahr'!D22>0,IF('Personalkosten 1. Jahr'!D22<=Hilfstabelle!$C$2=AND('Personalkosten 1. Jahr'!E22>=Hilfstabelle!$C$2),'Personalkosten 1. Jahr'!M22/('Personalkosten 1. Jahr'!E22-'Personalkosten 1. Jahr'!D22+1),0),IF('Personalkosten 1. Jahr'!C22>0,'Personalkosten 1. Jahr'!M22/12,0))","v":0},{"$f":"IF('Personalkosten 1. Jahr'!D22>0,IF('Personalkosten 1. Jahr'!D22<=Hilfstabelle!$D$2=AND('Personalkosten 1. Jahr'!E22>=Hilfstabelle!$D$2),'Personalkosten 1. Jahr'!M22/('Personalkosten 1. Jahr'!E22-'Personalkosten 1. Jahr'!D22+1),0),IF('Personalkosten 1. Jahr'!C22>0,'Personalkosten 1. Jahr'!M22/12,0))","v":0},{"$f":"IF('Personalkosten 1. Jahr'!D22>0,IF('Personalkosten 1. Jahr'!D22<=Hilfstabelle!$E$2=AND('Personalkosten 1. Jahr'!E22>=Hilfstabelle!$E$2),'Personalkosten 1. Jahr'!M22/('Personalkosten 1. Jahr'!E22-'Personalkosten 1. Jahr'!D22+1),0),IF('Personalkosten 1. Jahr'!C22>0,'Personalkosten 1. Jahr'!M22/12,0))","v":0},{"$f":"IF('Personalkosten 1. Jahr'!D22>0,IF('Personalkosten 1. Jahr'!D22<=Hilfstabelle!$F$2=AND('Personalkosten 1. Jahr'!E22>=Hilfstabelle!$F$2),'Personalkosten 1. Jahr'!M22/('Personalkosten 1. Jahr'!E22-'Personalkosten 1. Jahr'!D22+1),0),IF('Personalkosten 1. Jahr'!C22>0,'Personalkosten 1. Jahr'!M22/12,0))","v":0},{"$f":"IF('Personalkosten 1. Jahr'!D22>0,IF('Personalkosten 1. Jahr'!D22<=Hilfstabelle!$G$2=AND('Personalkosten 1. Jahr'!E22>=Hilfstabelle!$G$2),'Personalkosten 1. Jahr'!M22/('Personalkosten 1. Jahr'!E22-'Personalkosten 1. Jahr'!D22+1),0),IF('Personalkosten 1. Jahr'!C22>0,'Personalkosten 1. Jahr'!M22/12,0))","v":0},{"$f":"IF('Personalkosten 1. Jahr'!D22>0,IF('Personalkosten 1. Jahr'!D22<=Hilfstabelle!$H$2=AND('Personalkosten 1. Jahr'!E22>=Hilfstabelle!$H$2),'Personalkosten 1. Jahr'!M22/('Personalkosten 1. Jahr'!E22-'Personalkosten 1. Jahr'!D22+1),0),IF('Personalkosten 1. Jahr'!C22>0,'Personalkosten 1. Jahr'!M22/12,0))","v":0},{"$f":"IF('Personalkosten 1. Jahr'!D22>0,IF('Personalkosten 1. Jahr'!D22<=Hilfstabelle!$I$2=AND('Personalkosten 1. Jahr'!E22>=Hilfstabelle!$I$2),'Personalkosten 1. Jahr'!M22/('Personalkosten 1. Jahr'!E22-'Personalkosten 1. Jahr'!D22+1),0),IF('Personalkosten 1. Jahr'!C22>0,'Personalkosten 1. Jahr'!M22/12,0))","v":0},{"$f":"IF('Personalkosten 1. Jahr'!D22>0,IF('Personalkosten 1. Jahr'!D22<=Hilfstabelle!$J$2=AND('Personalkosten 1. Jahr'!E22>=Hilfstabelle!$J$2),'Personalkosten 1. Jahr'!M22/('Personalkosten 1. Jahr'!E22-'Personalkosten 1. Jahr'!D22+1),0),IF('Personalkosten 1. Jahr'!C22>0,'Personalkosten 1. Jahr'!M22/12,0))","v":0},{"$f":"IF('Personalkosten 1. Jahr'!D22>0,IF('Personalkosten 1. Jahr'!D22<=Hilfstabelle!$K$2=AND('Personalkosten 1. Jahr'!E22>=Hilfstabelle!$K$2),'Personalkosten 1. Jahr'!M22/('Personalkosten 1. Jahr'!E22-'Personalkosten 1. Jahr'!D22+1),0),IF('Personalkosten 1. Jahr'!C22>0,'Personalkosten 1. Jahr'!M22/12,0))","v":0},{"$f":"IF('Personalkosten 1. Jahr'!D22>0,IF('Personalkosten 1. Jahr'!D22<=Hilfstabelle!$L$2=AND('Personalkosten 1. Jahr'!E22>=Hilfstabelle!$L$2),'Personalkosten 1. Jahr'!M22/('Personalkosten 1. Jahr'!E22-'Personalkosten 1. Jahr'!D22+1),0),IF('Personalkosten 1. Jahr'!C22>0,'Personalkosten 1. Jahr'!M22/12,0))","v":0},{"$f":"IF('Personalkosten 1. Jahr'!D22>0,IF('Personalkosten 1. Jahr'!D22<=Hilfstabelle!$M$2=AND('Personalkosten 1. Jahr'!E22>=Hilfstabelle!$M$2),'Personalkosten 1. Jahr'!M22/('Personalkosten 1. Jahr'!E22-'Personalkosten 1. Jahr'!D22+1),0),IF('Personalkosten 1. Jahr'!C22>0,'Personalkosten 1. Jahr'!M22/12,0))","v":0},0]
[12,{"$f":"IF('Personalkosten 1. Jahr'!D23>0,IF('Personalkosten 1. Jahr'!D23<=Hilfstabelle!$B$2=AND('Personalkosten 1. Jahr'!E23>=Hilfstabelle!$B$2),'Personalkosten 1. Jahr'!M23/('Personalkosten 1. Jahr'!E23-'Personalkosten 1. Jahr'!D23+1),0),IF('Personalkosten 1. Jahr'!C23>0,'Personalkosten 1. Jahr'!M23/12,0))","v":0},{"$f":"IF('Personalkosten 1. Jahr'!D23>0,IF('Personalkosten 1. Jahr'!D23<=Hilfstabelle!$C$2=AND('Personalkosten 1. Jahr'!E23>=Hilfstabelle!$C$2),'Personalkosten 1. Jahr'!M23/('Personalkosten 1. Jahr'!E23-'Personalkosten 1. Jahr'!D23+1),0),IF('Personalkosten 1. Jahr'!C23>0,'Personalkosten 1. Jahr'!M23/12,0))","v":0},{"$f":"IF('Personalkosten 1. Jahr'!D23>0,IF('Personalkosten 1. Jahr'!D23<=Hilfstabelle!$D$2=AND('Personalkosten 1. Jahr'!E23>=Hilfstabelle!$D$2),'Personalkosten 1. Jahr'!M23/('Personalkosten 1. Jahr'!E23-'Personalkosten 1. Jahr'!D23+1),0),IF('Personalkosten 1. Jahr'!C23>0,'Personalkosten 1. Jahr'!M23/12,0))","v":0},{"$f":"IF('Personalkosten 1. Jahr'!D23>0,IF('Personalkosten 1. Jahr'!D23<=Hilfstabelle!$E$2=AND('Personalkosten 1. Jahr'!E23>=Hilfstabelle!$E$2),'Personalkosten 1. Jahr'!M23/('Personalkosten 1. Jahr'!E23-'Personalkosten 1. Jahr'!D23+1),0),IF('Personalkosten 1. Jahr'!C23>0,'Personalkosten 1. Jahr'!M23/12,0))","v":0},{"$f":"IF('Personalkosten 1. Jahr'!D23>0,IF('Personalkosten 1. Jahr'!D23<=Hilfstabelle!$F$2=AND('Personalkosten 1. Jahr'!E23>=Hilfstabelle!$F$2),'Personalkosten 1. Jahr'!M23/('Personalkosten 1. Jahr'!E23-'Personalkosten 1. Jahr'!D23+1),0),IF('Personalkosten 1. Jahr'!C23>0,'Personalkosten 1. Jahr'!M23/12,0))","v":0},{"$f":"IF('Personalkosten 1. Jahr'!D23>0,IF('Personalkosten 1. Jahr'!D23<=Hilfstabelle!$G$2=AND('Personalkosten 1. Jahr'!E23>=Hilfstabelle!$G$2),'Personalkosten 1. Jahr'!M23/('Personalkosten 1. Jahr'!E23-'Personalkosten 1. Jahr'!D23+1),0),IF('Personalkosten 1. Jahr'!C23>0,'Personalkosten 1. Jahr'!M23/12,0))","v":0},{"$f":"IF('Personalkosten 1. Jahr'!D23>0,IF('Personalkosten 1. Jahr'!D23<=Hilfstabelle!$H$2=AND('Personalkosten 1. Jahr'!E23>=Hilfstabelle!$H$2),'Personalkosten 1. Jahr'!M23/('Personalkosten 1. Jahr'!E23-'Personalkosten 1. Jahr'!D23+1),0),IF('Personalkosten 1. Jahr'!C23>0,'Personalkosten 1. Jahr'!M23/12,0))","v":0},{"$f":"IF('Personalkosten 1. Jahr'!D23>0,IF('Personalkosten 1. Jahr'!D23<=Hilfstabelle!$I$2=AND('Personalkosten 1. Jahr'!E23>=Hilfstabelle!$I$2),'Personalkosten 1. Jahr'!M23/('Personalkosten 1. Jahr'!E23-'Personalkosten 1. Jahr'!D23+1),0),IF('Personalkosten 1. Jahr'!C23>0,'Personalkosten 1. Jahr'!M23/12,0))","v":0},{"$f":"IF('Personalkosten 1. Jahr'!D23>0,IF('Personalkosten 1. Jahr'!D23<=Hilfstabelle!$J$2=AND('Personalkosten 1. Jahr'!E23>=Hilfstabelle!$J$2),'Personalkosten 1. Jahr'!M23/('Personalkosten 1. Jahr'!E23-'Personalkosten 1. Jahr'!D23+1),0),IF('Personalkosten 1. Jahr'!C23>0,'Personalkosten 1. Jahr'!M23/12,0))","v":0},{"$f":"IF('Personalkosten 1. Jahr'!D23>0,IF('Personalkosten 1. Jahr'!D23<=Hilfstabelle!$K$2=AND('Personalkosten 1. Jahr'!E23>=Hilfstabelle!$K$2),'Personalkosten 1. Jahr'!M23/('Personalkosten 1. Jahr'!E23-'Personalkosten 1. Jahr'!D23+1),0),IF('Personalkosten 1. Jahr'!C23>0,'Personalkosten 1. Jahr'!M23/12,0))","v":0},{"$f":"IF('Personalkosten 1. Jahr'!D23>0,IF('Personalkosten 1. Jahr'!D23<=Hilfstabelle!$L$2=AND('Personalkosten 1. Jahr'!E23>=Hilfstabelle!$L$2),'Personalkosten 1. Jahr'!M23/('Personalkosten 1. Jahr'!E23-'Personalkosten 1. Jahr'!D23+1),0),IF('Personalkosten 1. Jahr'!C23>0,'Personalkosten 1. Jahr'!M23/12,0))","v":0},{"$f":"IF('Personalkosten 1. Jahr'!D23>0,IF('Personalkosten 1. Jahr'!D23<=Hilfstabelle!$M$2=AND('Personalkosten 1. Jahr'!E23>=Hilfstabelle!$M$2),'Personalkosten 1. Jahr'!M23/('Personalkosten 1. Jahr'!E23-'Personalkosten 1. Jahr'!D23+1),0),IF('Personalkosten 1. Jahr'!C23>0,'Personalkosten 1. Jahr'!M23/12,0))","v":0},0]
["BG+",{"$f":"('Personalkosten 1. Jahr'!$M$25+'Personalkosten 1. Jahr'!$M$26)*Hilfstabelle!B16/'Personalkosten 1. Jahr'!$M$24","v":{"$error":"#DIV/0!"}},{"$f":"('Personalkosten 1. Jahr'!$M$25+'Personalkosten 1. Jahr'!$M$26)*Hilfstabelle!C16/'Personalkosten 1. Jahr'!$M$24","v":{"$error":"#DIV/0!"}},{"$f":"('Personalkosten 1. Jahr'!$M$25+'Personalkosten 1. Jahr'!$M$26)*Hilfstabelle!D16/'Personalkosten 1. Jahr'!$M$24","v":{"$error":"#DIV/0!"}},{"$f":"('Personalkosten 1. Jahr'!$M$25+'Personalkosten 1. Jahr'!$M$26)*Hilfstabelle!E16/'Personalkosten 1. Jahr'!$M$24","v":{"$error":"#DIV/0!"}},{"$f":"('Personalkosten 1. Jahr'!$M$25+'Personalkosten 1. Jahr'!$M$26)*Hilfstabelle!F16/'Personalkosten 1. Jahr'!$M$24","v":{"$error":"#DIV/0!"}},{"$f":"('Personalkosten 1. Jahr'!$M$25+'Personalkosten 1. Jahr'!$M$26)*Hilfstabelle!G16/'Personalkosten 1. Jahr'!$M$24","v":{"$error":"#DIV/0!"}},{"$f":"('Personalkosten 1. Jahr'!$M$25+'Personalkosten 1. Jahr'!$M$26)*Hilfstabelle!H16/'Personalkosten 1. Jahr'!$M$24","v":{"$error":"#DIV/0!"}},{"$f":"('Personalkosten 1. Jahr'!$M$25+'Personalkosten 1. Jahr'!$M$26)*Hilfstabelle!I16/'Personalkosten 1. Jahr'!$M$24","v":{"$error":"#DIV/0!"}},{"$f":"('Personalkosten 1. Jahr'!$M$25+'Personalkosten 1. Jahr'!$M$26)*Hilfstabelle!J16/'Personalkosten 1. Jahr'!$M$24","v":{"$error":"#DIV/0!"}},{"$f":"('Personalkosten 1. Jahr'!$M$25+'Personalkosten 1. Jahr'!$M$26)*Hilfstabelle!K16/'Personalkosten 1. Jahr'!$M$24","v":{"$error":"#DIV/0!"}},{"$f":"('Personalkosten 1. Jahr'!$M$25+'Personalkosten 1. Jahr'!$M$26)*Hilfstabelle!L16/'Personalkosten 1. Jahr'!$M$24","v":{"$error":"#DIV/0!"}},{"$f":"('Personalkosten 1. Jahr'!$M$25+'Personalkosten 1. Jahr'!$M$26)*Hilfstabelle!M16/'Personalkosten 1. Jahr'!$M$24","v":{"$error":"#DIV/0!"}},{"$error":"#DIV/0!"}]
["Gesamt",{"$f":"SUM(B3:B14)","v":0},0,0,0,0,0,0,0,0,0,0,0,0]
["Gesamt",{"$f":"IF(B16>0,B15+B16,B16)","v":0},0,0,0,0,0,0,0,0,0,0,0,0]
[]
[]
[]
[]
[]
["2. Jahr",1,2,3,4,5,6,7,8,9,10,11,12,"Gesamt"]
[1,{"$f":"IF('Personalkosten 2. Jahr'!$D12>0,IF('Personalkosten 2. Jahr'!$D12<=Hilfstabelle!B$2=AND('Personalkosten 2. Jahr'!$E12>=Hilfstabelle!B$2),'Personalkosten 2. Jahr'!$M12/('Personalkosten 2. Jahr'!$E12-'Personalkosten 2. Jahr'!$D12+1),0),IF('Personalkosten 2. Jahr'!$C12>0,'Personalkosten 2. Jahr'!$M12/12,0))","v":0},{"$f":"IF('Personalkosten 2. Jahr'!$D12>0,IF('Personalkosten 2. Jahr'!$D12<=Hilfstabelle!C$2=AND('Personalkosten 2. Jahr'!$E12>=Hilfstabelle!C$2),'Personalkosten 2. Jahr'!$M12/('Personalkosten 2. Jahr'!$E12-'Personalkosten 2. Jahr'!$D12+1),0),IF('Personalkosten 2. Jahr'!$C12>0,'Personalkosten 2. Jahr'!$M12/12,0))","v":0},{"$f":"IF('Personalkosten 2. Jahr'!$D12>0,IF('Personalkosten 2. Jahr'!$D12<=Hilfstabelle!D$2=AND('Personalkosten 2. Jahr'!$E12>=Hilfstabelle!D$2),'Personalkosten 2. Jahr'!$M12/('Personalkosten 2. Jahr'!$E12-'Personalkosten 2. Jahr'!$D12+1),0),IF('Personalkosten 2. Jahr'!$C12>0,'Personalkosten 2. Jahr'!$M12/12,0))","v":0},{"$f":"IF('Personalkosten 2. Jahr'!$D12>0,IF('Personalkosten 2. Jahr'!$D12<=Hilfstabelle!E$2=AND('Personalkosten 2. Jahr'!$E12>=Hilfstabelle!E$2),'Personalkosten 2. Jahr'!$M12/('Personalkosten 2. Jahr'!$E12-'Personalkosten 2. Jahr'!$D12+1),0),IF('Personalkosten 2. Jahr'!$C12>0,'Personalkosten 2. Jahr'!$M12/12,0))","v":0},{"$f":"IF('Personalkosten 2. Jahr'!$D12>0,IF('Personalkosten 2. Jahr'!$D12<=Hilfstabelle!F$2=AND('Personalkosten 2. Jahr'!$E12>=Hilfstabelle!F$2),'Personalkosten 2. Jahr'!$M12/('Personalkosten 2. Jahr'!$E12-'Personalkosten 2. Jahr'!$D12+1),0),IF('Personalkosten 2. Jahr'!$C12>0,'Personalkosten 2. Jahr'!$M12/12,0))","v":0},{"$f":"IF('Personalkosten 2. Jahr'!$D12>0,IF('Personalkosten 2. Jahr'!$D12<=Hilfstabelle!G$2=AND('Personalkosten 2. Jahr'!$E12>=Hilfstabelle!G$2),'Personalkosten 2. Jahr'!$M12/('Personalkosten 2. Jahr'!$E12-'Personalkosten 2. Jahr'!$D12+1),0),IF('Personalkosten 2. Jahr'!$C12>0,'Personalkosten 2. Jahr'!$M12/12,0))","v":0},{"$f":"IF('Personalkosten 2. Jahr'!$D12>0,IF('Personalkosten 2. Jahr'!$D12<=Hilfstabelle!H$2=AND('Personalkosten 2. Jahr'!$E12>=Hilfstabelle!H$2),'Personalkosten 2. Jahr'!$M12/('Personalkosten 2. Jahr'!$E12-'Personalkosten 2. Jahr'!$D12+1),0),IF('Personalkosten 2. Jahr'!$C12>0,'Personalkosten 2. Jahr'!$M12/12,0))","v":0},{"$f":"IF('Personalkosten 2. Jahr'!$D12>0,IF('Personalkosten 2. Jahr'!$D12<=Hilfstabelle!I$2=AND('Personalkosten 2. Jahr'!$E12>=Hilfstabelle!I$2),'Personalkosten 2. Jahr'!$M12/('Personalkosten 2. Jahr'!$E12-'Personalkosten 2. Jahr'!$D12+1),0),IF('Personalkosten 2. Jahr'!$C12>0,'Personalkosten 2. Jahr'!$M12/12,0))","v":0},{"$f":"IF('Personalkosten 2. Jahr'!$D12>0,IF('Personalkosten 2. Jahr'!$D12<=Hilfstabelle!J$2=AND('Personalkosten 2. Jahr'!$E12>=Hilfstabelle!J$2),'Personalkosten 2. Jahr'!$M12/('Personalkosten 2. Jahr'!$E12-'Personalkosten 2. Jahr'!$D12+1),0),IF('Personalkosten 2. Jahr'!$C12>0,'Personalkosten 2. Jahr'!$M12/12,0))","v":0},{"$f":"IF('Personalkosten 2. Jahr'!$D12>0,IF('Personalkosten 2. Jahr'!$D12<=Hilfstabelle!K$2=AND('Personalkosten 2. Jahr'!$E12>=Hilfstabelle!K$2),'Personalkosten 2. Jahr'!$M12/('Personalkosten 2. Jahr'!$E12-'Personalkosten 2. Jahr'!$D12+1),0),IF('Personalkosten 2. Jahr'!$C12>0,'Personalkosten 2. Jahr'!$M12/12,0))","v":0},{"$f":"IF('Personalkosten 2. Jahr'!$D12>0,IF('Personalkosten 2. Jahr'!$D12<=Hilfstabelle!L$2=AND('Personalkosten 2. Jahr'!$E12>=Hilfstabelle!L$2),'Personalkosten 2. Jahr'!$M12/('Personalkosten 2. Jahr'!$E12-'Personalkosten 2. Jahr'!$D12+1),0),IF('Personalkosten 2. Jahr'!$C12>0,'Personalkosten 2. Jahr'!$M12/12,0))","v":0},{"$f":"IF('Personalkosten 2. Jahr'!$D12>0,IF('Personalkosten 2. Jahr'!$D12<=Hilfstabelle!M$2=AND('Personalkosten 2. Jahr'!$E12>=Hilfstabelle!M$2),'Personalkosten 2. Jahr'!$M12/('Personalkosten 2. Jahr'!$E12-'Personalkosten 2. Jahr'!$D12+1),0),IF('Personalkosten 2. Jahr'!$C12>0,'Personalkosten 2. Jahr'!$M12/12,0))","v":0},{"$f":"SUM(B24:M24)","v":0}]
[2,{"$f":"IF('Personalkosten 2. Jahr'!$D13>0,IF('Personalkosten 2. Jahr'!$D13<=Hilfstabelle!B$2=AND('Personalkosten 2. Jahr'!$E13>=Hilfstabelle!B$2),'Personalkosten 2. Jahr'!$M13/('Personalkosten 2. Jahr'!$E13-'Personalkosten 2. Jahr'!$D13+1),0),IF('Personalkosten 2. Jahr'!$C13>0,'Personalkosten 2. Jahr'!$M13/12,0))","v":0},{"$f":"IF('Personalkosten 2. Jahr'!$D13>0,IF('Personalkosten 2. Jahr'!$D13<=Hilfstabelle!C$2=AND('Personalkosten 2. Jahr'!$E13>=Hilfstabelle!C$2),'Personalkosten 2. Jahr'!$M13/('Personalkosten 2. Jahr'!$E13-'Personalkosten 2. Jahr'!$D13+1),0),IF('Personalkosten 2. Jahr'!$C13>0,'Personalkosten 2. Jahr'!$M13/12,0))","v":0},{"$f":"IF('Personalkosten 2. Jahr'!$D13>0,IF('Personalkosten 2. Jahr'!$D13<=Hilfstabelle!D$2=AND('Personalkosten 2. Jahr'!$E13>=Hilfstabelle!D$2),'Personalkosten 2. Jahr'!$M13/('Personalkosten 2. Jahr'!$E13-'Personalkosten 2. Jahr'!$D13+1),0),IF('Personalkosten 2. Jahr'!$C13>0,'Personalkosten 2. Jahr'!$M13/12,0))","v":0},{"$f":"IF('Personalkosten 2. Jahr'!$D13>0,IF('Personalkosten 2. Jahr'!$D13<=Hilfstabelle!E$2=AND('Personalkosten 2. Jahr'!$E13>=Hilfstabelle!E$2),'Personalkosten 2. Jahr'!$M13/('Personalkosten 2. Jahr'!$E13-'Personalkosten 2. Jahr'!$D13+1),0),IF('Personalkosten 2. Jahr'!$C13>0,'Personalkosten 2. Jahr'!$M13/12,0))","v":0},{"$f":"IF('Personalkosten 2. Jahr'!$D13>0,IF('Personalkosten 2. Jahr'!$D13<=Hilfstabelle!F$2=AND('Personalkosten 2. Jahr'!$E13>=Hilfstabelle!F$2),'Personalkosten 2. Jahr'!$M13/('Personalkosten 2. Jahr'!$E13-'Personalkosten 2. Jahr'!$D13+1),0),IF('Personalkosten 2. Jahr'!$C13>0,'Personalkosten 2. Jahr'!$M13/12,0))","v":0},{"$f":"IF('Personalkosten 2. Jahr'!$D13>0,IF('Personalkosten 2. Jahr'!$D13<=Hilfstabelle!G$2=AND('Personalkosten 2. Jahr'!$E13>=Hilfstabelle!G$2),'Personalkosten 2. Jahr'!$M13/('Personalkosten 2. Jahr'!$E13-'Personalkosten 2. Jahr'!$D13+1),0),IF('Personalkosten 2. Jahr'!$C13>0,'Personalkosten 2. Jahr'!$M13/12,0))","v":0},{"$f":"IF('Personalkosten 2. Jahr'!$D13>0,IF('Personalkosten 2. Jahr'!$D13<=Hilfstabelle!H$2=AND('Personalkosten 2. Jahr'!$E13>=Hilfstabelle!H$2),'Personalkosten 2. Jahr'!$M13/('Personalkosten 2. Jahr'!$E13-'Personalkosten 2. Jahr'!$D13+1),0),IF('Personalkosten 2. Jahr'!$C13>0,'Personalkosten 2. Jahr'!$M13/12,0))","v":0},{"$f":"IF('Personalkosten 2. Jahr'!$D13>0,IF('Personalkosten 2. Jahr'!$D13<=Hilfstabelle!I$2=AND('Personalkosten 2. Jahr'!$E13>=Hilfstabelle!I$2),'Personalkosten 2. Jahr'!$M13/('Personalkosten 2. Jahr'!$E13-'Personalkosten 2. Jahr'!$D13+1),0),IF('Personalkosten 2. Jahr'!$C13>0,'Personalkosten 2. Jahr'!$M13/12,0))","v":0},{"$f":"IF('Personalkosten 2. Jahr'!$D13>0,IF('Personalkosten 2. Jahr'!$D13<=Hilfstabelle!J$2=AND('Personalkosten 2. Jahr'!$E13>=Hilfstabelle!J$2),'Personalkosten 2. Jahr'!$M13/('Personalkosten 2. Jahr'!$E13-'Personalkosten 2. Jahr'!$D13+1),0),IF('Personalkosten 2. Jahr'!$C13>0,'Personalkosten 2. Jahr'!$M13/12,0))","v":0},{"$f":"IF('Personalkosten 2. Jahr'!$D13>0,IF('Personalkosten 2. Jahr'!$D13<=Hilfstabelle!K$2=AND('Personalkosten 2. Jahr'!$E13>=Hilfstabelle!K$2),'Personalkosten 2. Jahr'!$M13/('Personalkosten 2. Jahr'!$E13-'Personalkosten 2. Jahr'!$D13+1),0),IF('Personalkosten 2. Jahr'!$C13>0,'Personalkosten 2. Jahr'!$M13/12,0))","v":0},{"$f":"IF('Personalkosten 2. Jahr'!$D13>0,IF('Personalkosten 2. Jahr'!$D13<=Hilfstabelle!L$2=AND('Personalkosten 2. Jahr'!$E13>=Hilfstabelle!L$2),'Personalkosten 2. Jahr'!$M13/('Personalkosten 2. Jahr'!$E13-'Personalkosten 2. Jahr'!$D13+1),0),IF('Personalkosten 2. Jahr'!$C13>0,'Personalkosten 2. Jahr'!$M13/12,0))","v":0},{"$f":"IF('Personalkosten 2. Jahr'!$D13>0,IF('Personalkosten 2. Jahr'!$D13<=Hilfstabelle!M$2=AND('Personalkosten 2. Jahr'!$E13>=Hilfstabelle!M$2),'Personalkosten 2. Jahr'!$M13/('Personalkosten 2. Jahr'!$E13-'Personalkosten 2. Jahr'!$D13+1),0),IF('Personalkosten 2. Jahr'!$C13>0,'Personalkosten 2. Jahr'!$M13/12,0))","v":0},0]
[3,{"$f":"IF('Personalkosten 2. Jahr'!$D14>0,IF('Personalkosten 2. Jahr'!$D14<=Hilfstabelle!B$2=AND('Personalkosten 2. Jahr'!$E14>=Hilfstabelle!B$2),'Personalkosten 2. Jahr'!$M14/('Personalkosten 2. Jahr'!$E14-'Personalkosten 2. Jahr'!$D14+1),0),IF('Personalkosten 2. Jahr'!$C14>0,'Personalkosten 2. Jahr'!$M14/12,0))","v":0},{"$f":"IF('Personalkosten 2. Jahr'!$D14>0,IF('Personalkosten 2. Jahr'!$D14<=Hilfstabelle!C$2=AND('Personalkosten 2. Jahr'!$E14>=Hilfstabelle!C$2),'Personalkosten 2. Jahr'!$M14/('Personalkosten 2. Jahr'!$E14-'Personalkosten 2. Jahr'!$D14+1),0),IF('Personalkosten 2. Jahr'!$C14>0,'Personalkosten 2. Jahr'!$M14/12,0))","v":0},{"$f":"IF('Personalkosten 2. Jahr'!$D14>0,IF('Personalkosten 2. Jahr'!$D14<=Hilfstabelle!D$2=AND('Personalkosten 2. Jahr'!$E14>=Hilfstabelle!D$2),'Personalkosten 2. Jahr'!$M14/('Personalkosten 2. Jahr'!$E14-'Personalkosten 2. Jahr'!$D14+1),0),IF('Personalkosten 2. Jahr'!$C14>0,'Personalkosten 2. Jahr'!$M14/12,0))","v":0},{"$f":"IF('Personalkosten 2. Jahr'!$D14>0,IF('Personalkosten 2. Jahr'!$D14<=Hilfstabelle!E$2=AND('Personalkosten 2. Jahr'!$E14>=Hilfstabelle!E$2),'Personalkosten 2. Jahr'!$M14/('Personalkosten 2. Jahr'!$E14-'Personalkosten 2. Jahr'!$D14+1),0),IF('Personalkosten 2. Jahr'!$C14>0,'Personalkosten 2. Jahr'!$M14/12,0))","v":0},{"$f":"IF('Personalkosten 2. Jahr'!$D14>0,IF('Personalkosten 2. Jahr'!$D14<=Hilfstabelle!F$2=AND('Personalkosten 2. Jahr'!$E14>=Hilfstabelle!F$2),'Personalkosten 2. Jahr'!$M14/('Personalkosten 2. Jahr'!$E14-'Personalkosten 2. Jahr'!$D14+1),0),IF('Personalkosten 2. Jahr'!$C14>0,'Personalkosten 2. Jahr'!$M14/12,0))","v":0},{"$f":"IF('Personalkosten 2. Jahr'!$D14>0,IF('Personalkosten 2. Jahr'!$D14<=Hilfstabelle!G$2=AND('Personalkosten 2. Jahr'!$E14>=Hilfstabelle!G$2),'Personalkosten 2. Jahr'!$M14/('Personalkosten 2. Jahr'!$E14-'Personalkosten 2. Jahr'!$D14+1),0),IF('Personalkosten 2. Jahr'!$C14>0,'Personalkosten 2. Jahr'!$M14/12,0))","v":0},{"$f":"IF('Personalkosten 2. Jahr'!$D14>0,IF('Personalkosten 2. Jahr'!$D14<=Hilfstabelle!H$2=AND('Personalkosten 2. Jahr'!$E14>=Hilfstabelle!H$2),'Personalkosten 2. Jahr'!$M14/('Personalkosten 2. Jahr'!$E14-'Personalkosten 2. Jahr'!$D14+1),0),IF('Personalkosten 2. Jahr'!$C14>0,'Personalkosten 2. Jahr'!$M14/12,0))","v":0},{"$f":"IF('Personalkosten 2. Jahr'!$D14>0,IF('Personalkosten 2. Jahr'!$D14<=Hilfstabelle!I$2=AND('Personalkosten 2. Jahr'!$E14>=Hilfstabelle!I$2),'Personalkosten 2. Jahr'!$M14/('Personalkosten 2. Jahr'!$E14-'Personalkosten 2. Jahr'!$D14+1),0),IF('Personalkosten 2. Jahr'!$C14>0,'Personalkosten 2. Jahr'!$M14/12,0))","v":0},{"$f":"IF('Personalkosten 2. Jahr'!$D14>0,IF('Personalkosten 2. Jahr'!$D14<=Hilfstabelle!J$2=AND('Personalkosten 2. Jahr'!$E14>=Hilfstabelle!J$2),'Personalkosten 2. Jahr'!$M14/('Personalkosten 2. Jahr'!$E14-'Personalkosten 2. Jahr'!$D14+1),0),IF('Personalkosten 2. Jahr'!$C14>0,'Personalkosten 2. Jahr'!$M14/12,0))","v":0},{"$f":"IF('Personalkosten 2. Jahr'!$D14>0,IF('Personalkosten 2. Jahr'!$D14<=Hilfstabelle!K$2=AND('Personalkosten 2. Jahr'!$E14>=Hilfstabelle!K$2),'Personalkosten 2. Jahr'!$M14/('Personalkosten 2. Jahr'!$E14-'Personalkosten 2. Jahr'!$D14+1),0),IF('Personalkosten 2. Jahr'!$C14>0,'Personalkosten 2. Jahr'!$M14/12,0))","v":0},{"$f":"IF('Personalkosten 2. Jahr'!$D14>0,IF('Personalkosten 2. Jahr'!$D14<=Hilfstabelle!L$2=AND('Personalkosten 2. Jahr'!$E14>=Hilfstabelle!L$2),'Personalkosten 2. Jahr'!$M14/('Personalkosten 2. Jahr'!$E14-'Personalkosten 2. Jahr'!$D14+1),0),IF('Personalkosten 2. Jahr'!$C14>0,'Personalkosten 2. Jahr'!$M14/12,0))","v":0},{"$f":"IF('Personalkosten 2. Jahr'!$D14>0,IF('Personalkosten 2. Jahr'!$D14<=Hilfstabelle!M$2=AND('Personalkosten 2. Jahr'!$E14>=Hilfstabelle!M$2),'Personalkosten 2. Jahr'!$M14/('Personalkosten 2. Jahr'!$E14-'Personalkosten 2. Jahr'!$D14+1),0),IF('Personalkosten 2. Jahr'!$C14>0,'Personalkosten 2. Jahr'!$M14/12,0))","v":0},0]
[4,{"$f":"IF('Personalkosten 2. Jahr'!$D15>0,IF('Personalkosten 2. Jahr'!$D15<=Hilfstabelle!B$2=AND('Personalkosten 2. Jahr'!$E15>=Hilfstabelle!B$2),'Personalkosten 2. Jahr'!$M15/('Personalkosten 2. Jahr'!$E15-'Personalkosten 2. Jahr'!$D15+1),0),IF('Personalkosten 2. Jahr'!$C15>0,'Personalkosten 2. Jahr'!$M15/12,0))","v":0},{"$f":"IF('Personalkosten 2. Jahr'!$D15>0,IF('Personalkosten 2. Jahr'!$D15<=Hilfstabelle!C$2=AND('Personalkosten 2. Jahr'!$E15>=Hilfstabelle!C$2),'Personalkosten 2. Jahr'!$M15/('Personalkosten 2. Jahr'!$E15-'Personalkosten 2. Jahr'!$D15+1),0),IF('Personalkosten 2. Jahr'!$C15>0,'Personalkosten 2. Jahr'!$M15/12,0))","v":0},{"$f":"IF('Personalkosten 2. Jahr'!$D15>0,IF('Personalkosten 2. Jahr'!$D15<=Hilfstabelle!D$2=AND('Personalkosten 2. Jahr'!$E15>=Hilfstabelle!D$2),'Personalkosten 2. Jahr'!$M15/('Personalkosten 2. Jahr'!$E15-'Personalkosten 2. Jahr'!$D15+1),0),IF('Personalkosten 2. Jahr'!$C15>0,'Personalkosten 2. Jahr'!$M15/12,0))","v":0},{"$f":"IF('Personalkosten 2. Jahr'!$D15>0,IF('Personalkosten 2. Jahr'!$D15<=Hilfstabelle!E$2=AND('Personalkosten 2. Jahr'!$E15>=Hilfstabelle!E$2),'Personalkosten 2. Jahr'!$M15/('Personalkosten 2. Jahr'!$E15-'Personalkosten 2. Jahr'!$D15+1),0),IF('Personalkosten 2. Jahr'!$C15>0,'Personalkosten 2. Jahr'!$M15/12,0))","v":0},{"$f":"IF('Personalkosten 2. Jahr'!$D15>0,IF('Personalkosten 2. Jahr'!$D15<=Hilfstabelle!F$2=AND('Personalkosten 2. Jahr'!$E15>=Hilfstabelle!F$2),'Personalkosten 2. Jahr'!$M15/('Personalkosten 2. Jahr'!$E15-'Personalkosten 2. Jahr'!$D15+1),0),IF('Personalkosten 2. Jahr'!$C15>0,'Personalkosten 2. Jahr'!$M15/12,0))","v":0},{"$f":"IF('Personalkosten 2. Jahr'!$D15>0,IF('Personalkosten 2. Jahr'!$D15<=Hilfstabelle!G$2=AND('Personalkosten 2. Jahr'!$E15>=Hilfstabelle!G$2),'Personalkosten 2. Jahr'!$M15/('Personalkosten 2. Jahr'!$E15-'Personalkosten 2. Jahr'!$D15+1),0),IF('Personalkosten 2. Jahr'!$C15>0,'Personalkosten 2. Jahr'!$M15/12,0))","v":0},{"$f":"IF('Personalkosten 2. Jahr'!$D15>0,IF('Personalkosten 2. Jahr'!$D15<=Hilfstabelle!H$2=AND('Personalkosten 2. Jahr'!$E15>=Hilfstabelle!H$2),'Personalkosten 2. Jahr'!$M15/('Personalkosten 2. Jahr'!$E15-'Personalkosten 2. Jahr'!$D15+1),0),IF('Personalkosten 2. Jahr'!$C15>0,'Personalkosten 2. Jahr'!$M15/12,0))","v":0},{"$f":"IF('Personalkosten 2. Jahr'!$D15>0,IF('Personalkosten 2. Jahr'!$D15<=Hilfstabelle!I$2=AND('Personalkosten 2. Jahr'!$E15>=Hilfstabelle!I$2),'Personalkosten 2. Jahr'!$M15/('Personalkosten 2. Jahr'!$E15-'Personalkosten 2. Jahr'!$D15+1),0),IF('Personalkosten 2. Jahr'!$C15>0,'Personalkosten 2. Jahr'!$M15/12,0))","v":0},{"$f":"IF('Personalkosten 2. Jahr'!$D15>0,IF('Personalkosten 2. Jahr'!$D15<=Hilfstabelle!J$2=AND('Personalkosten 2. Jahr'!$E15>=Hilfstabelle!J$2),'Personalkosten 2. Jahr'!$M15/('Personalkosten 2. Jahr'!$E15-'Personalkosten 2. Jahr'!$D15+1),0),IF('Personalkosten 2. Jahr'!$C15>0,'Personalkosten 2. Jahr'!$M15/12,0))","v":0},{"$f":"IF('Personalkosten 2. Jahr'!$D15>0,IF('Personalkosten 2. Jahr'!$D15<=Hilfstabelle!K$2=AND('Personalkosten 2. Jahr'!$E15>=Hilfstabelle!K$2),'Personalkosten 2. Jahr'!$M15/('Personalkosten 2. Jahr'!$E15-'Personalkosten 2. Jahr'!$D15+1),0),IF('Personalkosten 2. Jahr'!$C15>0,'Personalkosten 2. Jahr'!$M15/12,0))","v":0},{"$f":"IF('Personalkosten 2. Jahr'!$D15>0,IF('Personalkosten 2. Jahr'!$D15<=Hilfstabelle!L$2=AND('Personalkosten 2. Jahr'!$E15>=Hilfstabelle!L$2),'Personalkosten 2. Jahr'!$M15/('Personalkosten 2. Jahr'!$E15-'Personalkosten 2. Jahr'!$D15+1),0),IF('Personalkosten 2. Jahr'!$C15>0,'Personalkosten 2. Jahr'!$M15/12,0))","v":0},{"$f":"IF('Personalkosten 2. Jahr'!$D15>0,IF('Personalkosten 2. Jahr'!$D15<=Hilfstabelle!M$2=AND('Personalkosten 2. Jahr'!$E15>=Hilfstabelle!M$2),'Personalkosten 2. Jahr'!$M15/('Personalkosten 2. Jahr'!$E15-'Personalkosten 2. Jahr'!$D15+1),0),IF('Personalkosten 2. Jahr'!$C15>0,'Personalkosten 2. Jahr'!$M15/12,0))","v":0},0]
[5,{"$f":"IF('Personalkosten 2. Jahr'!$D16>0,IF('Personalkosten 2. Jahr'!$D16<=Hilfstabelle!B$2=AND('Personalkosten 2. Jahr'!$E16>=Hilfstabelle!B$2),'Personalkosten 2. Jahr'!$M16/('Personalkosten 2. Jahr'!$E16-'Personalkosten 2. Jahr'!$D16+1),0),IF('Personalkosten 2. Jahr'!$C16>0,'Personalkosten 2. Jahr'!$M16/12,0))","v":0},{"$f":"IF('Personalkosten 2. Jahr'!$D16>0,IF('Personalkosten 2. Jahr'!$D16<=Hilfstabelle!C$2=AND('Personalkosten 2. Jahr'!$E16>=Hilfstabelle!C$2),'Personalkosten 2. Jahr'!$M16/('Personalkosten 2. Jahr'!$E16-'Personalkosten 2. Jahr'!$D16+1),0),IF('Personalkosten 2. Jahr'!$C16>0,'Personalkosten 2. Jahr'!$M16/12,0))","v":0},{"$f":"IF('Personalkosten 2. Jahr'!$D16>0,IF('Personalkosten 2. Jahr'!$D16<=Hilfstabelle!D$2=AND('Personalkosten 2. Jahr'!$E16>=Hilfstabelle!D$2),'Personalkosten 2. Jahr'!$M16/('Personalkosten 2. Jahr'!$E16-'Personalkosten 2. Jahr'!$D16+1),0),IF('Personalkosten 2. Jahr'!$C16>0,'Personalkosten 2. Jahr'!$M16/12,0))","v":0},{"$f":"IF('Personalkosten 2. Jahr'!$D16>0,IF('Personalkosten 2. Jahr'!$D16<=Hilfstabelle!E$2=AND('Personalkosten 2. Jahr'!$E16>=Hilfstabelle!E$2),'Personalkosten 2. Jahr'!$M16/('Personalkosten 2. Jahr'!$E16-'Personalkosten 2. Jahr'!$D16+1),0),IF('Personalkosten 2. Jahr'!$C16>0,'Personalkosten 2. Jahr'!$M16/12,0))","v":0},{"$f":"IF('Personalkosten 2. Jahr'!$D16>0,IF('Personalkosten 2. Jahr'!$D16<=Hilfstabelle!F$2=AND('Personalkosten 2. Jahr'!$E16>=Hilfstabelle!F$2),'Personalkosten 2. Jahr'!$M16/('Personalkosten 2. Jahr'!$E16-'Personalkosten 2. Jahr'!$D16+1),0),IF('Personalkosten 2. Jahr'!$C16>0,'Personalkosten 2. Jahr'!$M16/12,0))","v":0},{"$f":"IF('Personalkosten 2. Jahr'!$D16>0,IF('Personalkosten 2. Jahr'!$D16<=Hilfstabelle!G$2=AND('Personalkosten 2. Jahr'!$E16>=Hilfstabelle!G$2),'Personalkosten 2. Jahr'!$M16/('Personalkosten 2. Jahr'!$E16-'Personalkosten 2. Jahr'!$D16+1),0),IF('Personalkosten 2. Jahr'!$C16>0,'Personalkosten 2. Jahr'!$M16/12,0))","v":0},{"$f":"IF('Personalkosten 2. Jahr'!$D16>0,IF('Personalkosten 2. Jahr'!$D16<=Hilfstabelle!H$2=AND('Personalkosten 2. Jahr'!$E16>=Hilfstabelle!H$2),'Personalkosten 2. Jahr'!$M16/('Personalkosten 2. Jahr'!$E16-'Personalkosten 2. Jahr'!$D16+1),0),IF('Personalkosten 2. Jahr'!$C16>0,'Personalkosten 2. Jahr'!$M16/12,0))","v":0},{"$f":"IF('Personalkosten 2. Jahr'!$D16>0,IF('Personalkosten 2. Jahr'!$D16<=Hilfstabelle!I$2=AND('Personalkosten 2. Jahr'!$E16>=Hilfstabelle!I$2),'Personalkosten 2. Jahr'!$M16/('Personalkosten 2. Jahr'!$E16-'Personalkosten 2. Jahr'!$D16+1),0),IF('Personalkosten 2. Jahr'!$C16>0,'Personalkosten 2. Jahr'!$M16/12,0))","v":0},{"$f":"IF('Personalkosten 2. Jahr'!$D16>0,IF('Personalkosten 2. Jahr'!$D16<=Hilfstabelle!J$2=AND('Personalkosten 2. Jahr'!$E16>=Hilfstabelle!J$2),'Personalkosten 2. Jahr'!$M16/('Personalkosten 2. Jahr'!$E16-'Personalkosten 2. Jahr'!$D16+1),0),IF('Personalkosten 2. Jahr'!$C16>0,'Personalkosten 2. Jahr'!$M16/12,0))","v":0},{"$f":"IF('Personalkosten 2. Jahr'!$D16>0,IF('Personalkosten 2. Jahr'!$D16<=Hilfstabelle!K$2=AND('Personalkosten 2. Jahr'!$E16>=Hilfstabelle!K$2),'Personalkosten 2. Jahr'!$M16/('Personalkosten 2. Jahr'!$E16-'Personalkosten 2. Jahr'!$D16+1),0),IF('Personalkosten 2. Jahr'!$C16>0,'Personalkosten 2. Jahr'!$M16/12,0))","v":0},{"$f":"IF('Personalkosten 2. Jahr'!$D16>0,IF('Personalkosten 2. Jahr'!$D16<=Hilfstabelle!L$2=AND('Personalkosten 2. Jahr'!$E16>=Hilfstabelle!L$2),'Personalkosten 2. Jahr'!$M16/('Personalkosten 2. Jahr'!$E16-'Personalkosten 2. Jahr'!$D16+1),0),IF('Personalkosten 2. Jahr'!$C16>0,'Personalkosten 2. Jahr'!$M16/12,0))","v":0},{"$f":"IF('Personalkosten 2. Jahr'!$D16>0,IF('Personalkosten 2. Jahr'!$D16<=Hilfstabelle!M$2=AND('Personalkosten 2. Jahr'!$E16>=Hilfstabelle!M$2),'Personalkosten 2. Jahr'!$M16/('Personalkosten 2. Jahr'!$E16-'Personalkosten 2. Jahr'!$D16+1),0),IF('Personalkosten 2. Jahr'!$C16>0,'Personalkosten 2. Jahr'!$M16/12,0))","v":0},0]
[6,{"$f":"IF('Personalkosten 2. Jahr'!$D17>0,IF('Personalkosten 2. Jahr'!$D17<=Hilfstabelle!B$2=AND('Personalkosten 2. Jahr'!$E17>=Hilfstabelle!B$2),'Personalkosten 2. Jahr'!$M17/('Personalkosten 2. Jahr'!$E17-'Personalkosten 2. Jahr'!$D17+1),0),IF('Personalkosten 2. Jahr'!$C17>0,'Personalkosten 2. Jahr'!$M17/12,0))","v":0},{"$f":"IF('Personalkosten 2. Jahr'!$D17>0,IF('Personalkosten 2. Jahr'!$D17<=Hilfstabelle!C$2=AND('Personalkosten 2. Jahr'!$E17>=Hilfstabelle!C$2),'Personalkosten 2. Jahr'!$M17/('Personalkosten 2. Jahr'!$E17-'Personalkosten 2. Jahr'!$D17+1),0),IF('Personalkosten 2. Jahr'!$C17>0,'Personalkosten 2. Jahr'!$M17/12,0))","v":0},{"$f":"IF('Personalkosten 2. Jahr'!$D17>0,IF('Personalkosten 2. Jahr'!$D17<=Hilfstabelle!D$2=AND('Personalkosten 2. Jahr'!$E17>=Hilfstabelle!D$2),'Personalkosten 2. Jahr'!$M17/('Personalkosten 2. Jahr'!$E17-'Personalkosten 2. Jahr'!$D17+1),0),IF('Personalkosten 2. Jahr'!$C17>0,'Personalkosten 2. Jahr'!$M17/12,0))","v":0},{"$f":"IF('Personalkosten 2. Jahr'!$D17>0,IF('Personalkosten 2. Jahr'!$D17<=Hilfstabelle!E$2=AND('Personalkosten 2. Jahr'!$E17>=Hilfstabelle!E$2),'Personalkosten 2. Jahr'!$M17/('Personalkosten 2. Jahr'!$E17-'Personalkosten 2. Jahr'!$D17+1),0),IF('Personalkosten 2. Jahr'!$C17>0,'Personalkosten 2. Jahr'!$M17/12,0))","v":0},{"$f":"IF('Personalkosten 2. Jahr'!$D17>0,IF('Personalkosten 2. Jahr'!$D17<=Hilfstabelle!F$2=AND('Personalkosten 2. Jahr'!$E17>=Hilfstabelle!F$2),'Personalkosten 2. Jahr'!$M17/('Personalkosten 2. Jahr'!$E17-'Personalkosten 2. Jahr'!$D17+1),0),IF('Personalkosten 2. Jahr'!$C17>0,'Personalkosten 2. Jahr'!$M17/12,0))","v":0},{"$f":"IF('Personalkosten 2. Jahr'!$D17>0,IF('Personalkosten 2. Jahr'!$D17<=Hilfstabelle!G$2=AND('Personalkosten 2. Jahr'!$E17>=Hilfstabelle!G$2),'Personalkosten 2. Jahr'!$M17/('Personalkosten 2. Jahr'!$E17-'Personalkosten 2. Jahr'!$D17+1),0),IF('Personalkosten 2. Jahr'!$C17>0,'Personalkosten 2. Jahr'!$M17/12,0))","v":0},{"$f":"IF('Personalkosten 2. Jahr'!$D17>0,IF('Personalkosten 2. Jahr'!$D17<=Hilfstabelle!H$2=AND('Personalkosten 2. Jahr'!$E17>=Hilfstabelle!H$2),'Personalkosten 2. Jahr'!$M17/('Personalkosten 2. Jahr'!$E17-'Personalkosten 2. Jahr'!$D17+1),0),IF('Personalkosten 2. Jahr'!$C17>0,'Personalkosten 2. Jahr'!$M17/12,0))","v":0},{"$f":"IF('Personalkosten 2. Jahr'!$D17>0,IF('Personalkosten 2. Jahr'!$D17<=Hilfstabelle!I$2=AND('Personalkosten 2. Jahr'!$E17>=Hilfstabelle!I$2),'Personalkosten 2. Jahr'!$M17/('Personalkosten 2. Jahr'!$E17-'Personalkosten 2. Jahr'!$D17+1),0),IF('Personalkosten 2. Jahr'!$C17>0,'Personalkosten 2. Jahr'!$M17/12,0))","v":0},{"$f":"IF('Personalkosten 2. Jahr'!$D17>0,IF('Personalkosten 2. Jahr'!$D17<=Hilfstabelle!J$2=AND('Personalkosten 2. Jahr'!$E17>=Hilfstabelle!J$2),'Personalkosten 2. Jahr'!$M17/('Personalkosten 2. Jahr'!$E17-'Personalkosten 2. Jahr'!$D17+1),0),IF('Personalkosten 2. Jahr'!$C17>0,'Personalkosten 2. Jahr'!$M17/12,0))","v":0},{"$f":"IF('Personalkosten 2. Jahr'!$D17>0,IF('Personalkosten 2. Jahr'!$D17<=Hilfstabelle!K$2=AND('Personalkosten 2. Jahr'!$E17>=Hilfstabelle!K$2),'Personalkosten 2. Jahr'!$M17/('Personalkosten 2. Jahr'!$E17-'Personalkosten 2. Jahr'!$D17+1),0),IF('Personalkosten 2. Jahr'!$C17>0,'Personalkosten 2. Jahr'!$M17/12,0))","v":0},{"$f":"IF('Personalkosten 2. Jahr'!$D17>0,IF('Personalkosten 2. Jahr'!$D17<=Hilfstabelle!L$2=AND('Personalkosten 2. Jahr'!$E17>=Hilfstabelle!L$2),'Personalkosten 2. Jahr'!$M17/('Personalkosten 2. Jahr'!$E17-'Personalkosten 2. Jahr'!$D17+1),0),IF('Personalkosten 2. Jahr'!$C17>0,'Personalkosten 2. Jahr'!$M17/12,0))","v":0},{"$f":"IF('Personalkosten 2. Jahr'!$D17>0,IF('Personalkosten 2. Jahr'!$D17<=Hilfstabelle!M$2=AND('Personalkosten 2. Jahr'!$E17>=Hilfstabelle!M$2),'Personalkosten 2. Jahr'!$M17/('Personalkosten 2. Jahr'!$E17-'Personalkosten 2. Jahr'!$D17+1),0),IF('Personalkosten 2. Jahr'!$C17>0,'Personalkosten 2. Jahr'!$M17/12,0))","v":0},0]
[7,{"$f":"IF('Personalkosten 2. Jahr'!$D18>0,IF('Personalkosten 2. Jahr'!$D18<=Hilfstabelle!B$2=AND('Personalkosten 2. Jahr'!$E18>=Hilfstabelle!B$2),'Personalkosten 2. Jahr'!$M18/('Personalkosten 2. Jahr'!$E18-'Personalkosten 2. Jahr'!$D18+1),0),IF('Personalkosten 2. Jahr'!$C18>0,'Personalkosten 2. Jahr'!$M18/12,0))","v":0},{"$f":"IF('Personalkosten 2. Jahr'!$D18>0,IF('Personalkosten 2. Jahr'!$D18<=Hilfstabelle!C$2=AND('Personalkosten 2. Jahr'!$E18>=Hilfstabelle!C$2),'Personalkosten 2. Jahr'!$M18/('Personalkosten 2. Jahr'!$E18-'Personalkosten 2. Jahr'!$D18+1),0),IF('Personalkosten 2. Jahr'!$C18>0,'Personalkosten 2. Jahr'!$M18/12,0))","v":0},{"$f":"IF('Personalkosten 2. Jahr'!$D18>0,IF('Personalkosten 2. Jahr'!$D18<=Hilfstabelle!D$2=AND('Personalkosten 2. Jahr'!$E18>=Hilfstabelle!D$2),'Personalkosten 2. Jahr'!$M18/('Personalkosten 2. Jahr'!$E18-'Personalkosten 2. Jahr'!$D18+1),0),IF('Personalkosten 2. Jahr'!$C18>0,'Personalkosten 2. Jahr'!$M18/12,0))","v":0},{"$f":"IF('Personalkosten 2. Jahr'!$D18>0,IF('Personalkosten 2. Jahr'!$D18<=Hilfstabelle!E$2=AND('Personalkosten 2. Jahr'!$E18>=Hilfstabelle!E$2),'Personalkosten 2. Jahr'!$M18/('Personalkosten 2. Jahr'!$E18-'Personalkosten 2. Jahr'!$D18+1),0),IF('Personalkosten 2. Jahr'!$C18>0,'Personalkosten 2. Jahr'!$M18/12,0))","v":0},{"$f":"IF('Personalkosten 2. Jahr'!$D18>0,IF('Personalkosten 2. Jahr'!$D18<=Hilfstabelle!F$2=AND('Personalkosten 2. Jahr'!$E18>=Hilfstabelle!F$2),'Personalkosten 2. Jahr'!$M18/('Personalkosten 2. Jahr'!$E18-'Personalkosten 2. Jahr'!$D18+1),0),IF('Personalkosten 2. Jahr'!$C18>0,'Personalkosten 2. Jahr'!$M18/12,0))","v":0},{"$f":"IF('Personalkosten 2. Jahr'!$D18>0,IF('Personalkosten 2. Jahr'!$D18<=Hilfstabelle!G$2=AND('Personalkosten 2. Jahr'!$E18>=Hilfstabelle!G$2),'Personalkosten 2. Jahr'!$M18/('Personalkosten 2. Jahr'!$E18-'Personalkosten 2. Jahr'!$D18+1),0),IF('Personalkosten 2. Jahr'!$C18>0,'Personalkosten 2. Jahr'!$M18/12,0))","v":0},{"$f":"IF('Personalkosten 2. Jahr'!$D18>0,IF('Personalkosten 2. Jahr'!$D18<=Hilfstabelle!H$2=AND('Personalkosten 2. Jahr'!$E18>=Hilfstabelle!H$2),'Personalkosten 2. Jahr'!$M18/('Personalkosten 2. Jahr'!$E18-'Personalkosten 2. Jahr'!$D18+1),0),IF('Personalkosten 2. Jahr'!$C18>0,'Personalkosten 2. Jahr'!$M18/12,0))","v":0},{"$f":"IF('Personalkosten 2. Jahr'!$D18>0,IF('Personalkosten 2. Jahr'!$D18<=Hilfstabelle!I$2=AND('Personalkosten 2. Jahr'!$E18>=Hilfstabelle!I$2),'Personalkosten 2. Jahr'!$M18/('Personalkosten 2. Jahr'!$E18-'Personalkosten 2. Jahr'!$D18+1),0),IF('Personalkosten 2. Jahr'!$C18>0,'Personalkosten 2. Jahr'!$M18/12,0))","v":0},{"$f":"IF('Personalkosten 2. Jahr'!$D18>0,IF('Personalkosten 2. Jahr'!$D18<=Hilfstabelle!J$2=AND('Personalkosten 2. Jahr'!$E18>=Hilfstabelle!J$2),'Personalkosten 2. Jahr'!$M18/('Personalkosten 2. Jahr'!$E18-'Personalkosten 2. Jahr'!$D18+1),0),IF('Personalkosten 2. Jahr'!$C18>0,'Personalkosten 2. Jahr'!$M18/12,0))","v":0},{"$f":"IF('Personalkosten 2. Jahr'!$D18>0,IF('Personalkosten 2. Jahr'!$D18<=Hilfstabelle!K$2=AND('Personalkosten 2. Jahr'!$E18>=Hilfstabelle!K$2),'Personalkosten 2. Jahr'!$M18/('Personalkosten 2. Jahr'!$E18-'Personalkosten 2. Jahr'!$D18+1),0),IF('Personalkosten 2. Jahr'!$C18>0,'Personalkosten 2. Jahr'!$M18/12,0))","v":0},{"$f":"IF('Personalkosten 2. Jahr'!$D18>0,IF('Personalkosten 2. Jahr'!$D18<=Hilfstabelle!L$2=AND('Personalkosten 2. Jahr'!$E18>=Hilfstabelle!L$2),'Personalkosten 2. Jahr'!$M18/('Personalkosten 2. Jahr'!$E18-'Personalkosten 2. Jahr'!$D18+1),0),IF('Personalkosten 2. Jahr'!$C18>0,'Personalkosten 2. Jahr'!$M18/12,0))","v":0},{"$f":"IF('Personalkosten 2. Jahr'!$D18>0,IF('Personalkosten 2. Jahr'!$D18<=Hilfstabelle!M$2=AND('Personalkosten 2. Jahr'!$E18>=Hilfstabelle!M$2),'Personalkosten 2. Jahr'!$M18/('Personalkosten 2. Jahr'!$E18-'Personalkosten 2. Jahr'!$D18+1),0),IF('Personalkosten 2. Jahr'!$C18>0,'Personalkosten 2. Jahr'!$M18/12,0))","v":0},0]
[8,{"$f":"IF('Personalkosten 2. Jahr'!$D19>0,IF('Personalkosten 2. Jahr'!$D19<=Hilfstabelle!B$2=AND('Personalkosten 2. Jahr'!$E19>=Hilfstabelle!B$2),'Personalkosten 2. Jahr'!$M19/('Personalkosten 2. Jahr'!$E19-'Personalkosten 2. Jahr'!$D19+1),0),IF('Personalkosten 2. Jahr'!$C19>0,'Personalkosten 2. Jahr'!$M19/12,0))","v":0},{"$f":"IF('Personalkosten 2. Jahr'!$D19>0,IF('Personalkosten 2. Jahr'!$D19<=Hilfstabelle!C$2=AND('Personalkosten 2. Jahr'!$E19>=Hilfstabelle!C$2),'Personalkosten 2. Jahr'!$M19/('Personalkosten 2. Jahr'!$E19-'Personalkosten 2. Jahr'!$D19+1),0),IF('Personalkosten 2. Jahr'!$C19>0,'Personalkosten 2. Jahr'!$M19/12,0))","v":0},{"$f":"IF('Personalkosten 2. Jahr'!$D19>0,IF('Personalkosten 2. Jahr'!$D19<=Hilfstabelle!D$2=AND('Personalkosten 2. Jahr'!$E19>=Hilfstabelle!D$2),'Personalkosten 2. Jahr'!$M19/('Personalkosten 2. Jahr'!$E19-'Personalkosten 2. Jahr'!$D19+1),0),IF('Personalkosten 2. Jahr'!$C19>0,'Personalkosten 2. Jahr'!$M19/12,0))","v":0},{"$f":"IF('Personalkosten 2. Jahr'!$D19>0,IF('Personalkosten 2. Jahr'!$D19<=Hilfstabelle!E$2=AND('Personalkosten 2. Jahr'!$E19>=Hilfstabelle!E$2),'Personalkosten 2. Jahr'!$M19/('Personalkosten 2. Jahr'!$E19-'Personalkosten 2. Jahr'!$D19+1),0),IF('Personalkosten 2. Jahr'!$C19>0,'Personalkosten 2. Jahr'!$M19/12,0))","v":0},{"$f":"IF('Personalkosten 2. Jahr'!$D19>0,IF('Personalkosten 2. Jahr'!$D19<=Hilfstabelle!F$2=AND('Personalkosten 2. Jahr'!$E19>=Hilfstabelle!F$2),'Personalkosten 2. Jahr'!$M19/('Personalkosten 2. Jahr'!$E19-'Personalkosten 2. Jahr'!$D19+1),0),IF('Personalkosten 2. Jahr'!$C19>0,'Personalkosten 2. Jahr'!$M19/12,0))","v":0},{"$f":"IF('Personalkosten 2. Jahr'!$D19>0,IF('Personalkosten 2. Jahr'!$D19<=Hilfstabelle!G$2=AND('Personalkosten 2. Jahr'!$E19>=Hilfstabelle!G$2),'Personalkosten 2. Jahr'!$M19/('Personalkosten 2. Jahr'!$E19-'Personalkosten 2. Jahr'!$D19+1),0),IF('Personalkosten 2. Jahr'!$C19>0,'Personalkosten 2. Jahr'!$M19/12,0))","v":0},{"$f":"IF('Personalkosten 2. Jahr'!$D19>0,IF('Personalkosten 2. Jahr'!$D19<=Hilfstabelle!H$2=AND('Personalkosten 2. Jahr'!$E19>=Hilfstabelle!H$2),'Personalkosten 2. Jahr'!$M19/('Personalkosten 2. Jahr'!$E19-'Personalkosten 2. Jahr'!$D19+1),0),IF('Personalkosten 2. Jahr'!$C19>0,'Personalkosten 2. Jahr'!$M19/12,0))","v":0},{"$f":"IF('Personalkosten 2. Jahr'!$D19>0,IF('Personalkosten 2. Jahr'!$D19<=Hilfstabelle!I$2=AND('Personalkosten 2. Jahr'!$E19>=Hilfstabelle!I$2),'Personalkosten 2. Jahr'!$M19/('Personalkosten 2. Jahr'!$E19-'Personalkosten 2. Jahr'!$D19+1),0),IF('Personalkosten 2. Jahr'!$C19>0,'Personalkosten 2. Jahr'!$M19/12,0))","v":0},{"$f":"IF('Personalkosten 2. Jahr'!$D19>0,IF('Personalkosten 2. Jahr'!$D19<=Hilfstabelle!J$2=AND('Personalkosten 2. Jahr'!$E19>=Hilfstabelle!J$2),'Personalkosten 2. Jahr'!$M19/('Personalkosten 2. Jahr'!$E19-'Personalkosten 2. Jahr'!$D19+1),0),IF('Personalkosten 2. Jahr'!$C19>0,'Personalkosten 2. Jahr'!$M19/12,0))","v":0},{"$f":"IF('Personalkosten 2. Jahr'!$D19>0,IF('Personalkosten 2. Jahr'!$D19<=Hilfstabelle!K$2=AND('Personalkosten 2. Jahr'!$E19>=Hilfstabelle!K$2),'Personalkosten 2. Jahr'!$M19/('Personalkosten 2. Jahr'!$E19-'Personalkosten 2. Jahr'!$D19+1),0),IF('Personalkosten 2. Jahr'!$C19>0,'Personalkosten 2. Jahr'!$M19/12,0))","v":0},{"$f":"IF('Personalkosten 2. Jahr'!$D19>0,IF('Personalkosten 2. Jahr'!$D19<=Hilfstabelle!L$2=AND('Personalkosten 2. Jahr'!$E19>=Hilfstabelle!L$2),'Personalkosten 2. Jahr'!$M19/('Personalkosten 2. Jahr'!$E19-'Personalkosten 2. Jahr'!$D19+1),0),IF('Personalkosten 2. Jahr'!$C19>0,'Personalkosten 2. Jahr'!$M19/12,0))","v":0},{"$f":"IF('Personalkosten 2. Jahr'!$D19>0,IF('Personalkosten 2. Jahr'!$D19<=Hilfstabelle!M$2=AND('Personalkosten 2. Jahr'!$E19>=Hilfstabelle!M$2),'Personalkosten 2. Jahr'!$M19/('Personalkosten 2. Jahr'!$E19-'Personalkosten 2. Jahr'!$D19+1),0),IF('Personalkosten 2. Jahr'!$C19>0,'Personalkosten 2. Jahr'!$M19/12,0))","v":0},0]
[9,{"$f":"IF('Personalkosten 2. Jahr'!$D20>0,IF('Personalkosten 2. Jahr'!$D20<=Hilfstabelle!B$2=AND('Personalkosten 2. Jahr'!$E20>=Hilfstabelle!B$2),'Personalkosten 2. Jahr'!$M20/('Personalkosten 2. Jahr'!$E20-'Personalkosten 2. Jahr'!$D20+1),0),IF('Personalkosten 2. Jahr'!$C20>0,'Personalkosten 2. Jahr'!$M20/12,0))","v":0},{"$f":"IF('Personalkosten 2. Jahr'!$D20>0,IF('Personalkosten 2. Jahr'!$D20<=Hilfstabelle!C$2=AND('Personalkosten 2. Jahr'!$E20>=Hilfstabelle!C$2),'Personalkosten 2. Jahr'!$M20/('Personalkosten 2. Jahr'!$E20-'Personalkosten 2. Jahr'!$D20+1),0),IF('Personalkosten 2. Jahr'!$C20>0,'Personalkosten 2. Jahr'!$M20/12,0))","v":0},{"$f":"IF('Personalkosten 2. Jahr'!$D20>0,IF('Personalkosten 2. Jahr'!$D20<=Hilfstabelle!D$2=AND('Personalkosten 2. Jahr'!$E20>=Hilfstabelle!D$2),'Personalkosten 2. Jahr'!$M20/('Personalkosten 2. Jahr'!$E20-'Personalkosten 2. Jahr'!$D20+1),0),IF('Personalkosten 2. Jahr'!$C20>0,'Personalkosten 2. Jahr'!$M20/12,0))","v":0},{"$f":"IF('Personalkosten 2. Jahr'!$D20>0,IF('Personalkosten 2. Jahr'!$D20<=Hilfstabelle!E$2=AND('Personalkosten 2. Jahr'!$E20>=Hilfstabelle!E$2),'Personalkosten 2. Jahr'!$M20/('Personalkosten 2. Jahr'!$E20-'Personalkosten 2. Jahr'!$D20+1),0),IF('Personalkosten 2. Jahr'!$C20>0,'Personalkosten 2. Jahr'!$M20/12,0))","v":0},{"$f":"IF('Personalkosten 2. Jahr'!$D20>0,IF('Personalkosten 2. Jahr'!$D20<=Hilfstabelle!F$2=AND('Personalkosten 2. Jahr'!$E20>=Hilfstabelle!F$2),'Personalkosten 2. Jahr'!$M20/('Personalkosten 2. Jahr'!$E20-'Personalkosten 2. Jahr'!$D20+1),0),IF('Personalkosten 2. Jahr'!$C20>0,'Personalkosten 2. Jahr'!$M20/12,0))","v":0},{"$f":"IF('Personalkosten 2. Jahr'!$D20>0,IF('Personalkosten 2. Jahr'!$D20<=Hilfstabelle!G$2=AND('Personalkosten 2. Jahr'!$E20>=Hilfstabelle!G$2),'Personalkosten 2. Jahr'!$M20/('Personalkosten 2. Jahr'!$E20-'Personalkosten 2. Jahr'!$D20+1),0),IF('Personalkosten 2. Jahr'!$C20>0,'Personalkosten 2. Jahr'!$M20/12,0))","v":0},{"$f":"IF('Personalkosten 2. Jahr'!$D20>0,IF('Personalkosten 2. Jahr'!$D20<=Hilfstabelle!H$2=AND('Personalkosten 2. Jahr'!$E20>=Hilfstabelle!H$2),'Personalkosten 2. Jahr'!$M20/('Personalkosten 2. Jahr'!$E20-'Personalkosten 2. Jahr'!$D20+1),0),IF('Personalkosten 2. Jahr'!$C20>0,'Personalkosten 2. Jahr'!$M20/12,0))","v":0},{"$f":"IF('Personalkosten 2. Jahr'!$D20>0,IF('Personalkosten 2. Jahr'!$D20<=Hilfstabelle!I$2=AND('Personalkosten 2. Jahr'!$E20>=Hilfstabelle!I$2),'Personalkosten 2. Jahr'!$M20/('Personalkosten 2. Jahr'!$E20-'Personalkosten 2. Jahr'!$D20+1),0),IF('Personalkosten 2. Jahr'!$C20>0,'Personalkosten 2. Jahr'!$M20/12,0))","v":0},{"$f":"IF('Personalkosten 2. Jahr'!$D20>0,IF('Personalkosten 2. Jahr'!$D20<=Hilfstabelle!J$2=AND('Personalkosten 2. Jahr'!$E20>=Hilfstabelle!J$2),'Personalkosten 2. Jahr'!$M20/('Personalkosten 2. Jahr'!$E20-'Personalkosten 2. Jahr'!$D20+1),0),IF('Personalkosten 2. Jahr'!$C20>0,'Personalkosten 2. Jahr'!$M20/12,0))","v":0},{"$f":"IF('Personalkosten 2. Jahr'!$D20>0,IF('Personalkosten 2. Jahr'!$D20<=Hilfstabelle!K$2=AND('Personalkosten 2. Jahr'!$E20>=Hilfstabelle!K$2),'Personalkosten 2. Jahr'!$M20/('Personalkosten 2. Jahr'!$E20-'Personalkosten 2. Jahr'!$D20+1),0),IF('Personalkosten 2. Jahr'!$C20>0,'Personalkosten 2. Jahr'!$M20/12,0))","v":0},{"$f":"IF('Personalkosten 2. Jahr'!$D20>0,IF('Personalkosten 2. Jahr'!$D20<=Hilfstabelle!L$2=AND('Personalkosten 2. Jahr'!$E20>=Hilfstabelle!L$2),'Personalkosten 2. Jahr'!$M20/('Personalkosten 2. Jahr'!$E20-'Personalkosten 2. Jahr'!$D20+1),0),IF('Personalkosten 2. Jahr'!$C20>0,'Personalkosten 2. Jahr'!$M20/12,0))","v":0},{"$f":"IF('Personalkosten 2. Jahr'!$D20>0,IF('Personalkosten 2. Jahr'!$D20<=Hilfstabelle!M$2=AND('Personalkosten 2. Jahr'!$E20>=Hilfstabelle!M$2),'Personalkosten 2. Jahr'!$M20/('Personalkosten 2. Jahr'!$E20-'Personalkosten 2. Jahr'!$D20+1),0),IF('Personalkosten 2. Jahr'!$C20>0,'Personalkosten 2. Jahr'!$M20/12,0))","v":0},0]
[10,{"$f":"IF('Personalkosten 2. Jahr'!$D21>0,IF('Personalkosten 2. Jahr'!$D21<=Hilfstabelle!B$2=AND('Personalkosten 2. Jahr'!$E21>=Hilfstabelle!B$2),'Personalkosten 2. Jahr'!$M21/('Personalkosten 2. Jahr'!$E21-'Personalkosten 2. Jahr'!$D21+1),0),IF('Personalkosten 2. Jahr'!$C21>0,'Personalkosten 2. Jahr'!$M21/12,0))","v":0},{"$f":"IF('Personalkosten 2. Jahr'!$D21>0,IF('Personalkosten 2. Jahr'!$D21<=Hilfstabelle!C$2=AND('Personalkosten 2. Jahr'!$E21>=Hilfstabelle!C$2),'Personalkosten 2. Jahr'!$M21/('Personalkosten 2. Jahr'!$E21-'Personalkosten 2. Jahr'!$D21+1),0),IF('Personalkosten 2. Jahr'!$C21>0,'Personalkosten 2. Jahr'!$M21/12,0))","v":0},{"$f":"IF('Personalkosten 2. Jahr'!$D21>0,IF('Personalkosten 2. Jahr'!$D21<=Hilfstabelle!D$2=AND('Personalkosten 2. Jahr'!$E21>=Hilfstabelle!D$2),'Personalkosten 2. Jahr'!$M21/('Personalkosten 2. Jahr'!$E21-'Personalkosten 2. Jahr'!$D21+1),0),IF('Personalkosten 2. Jahr'!$C21>0,'Personalkosten 2. Jahr'!$M21/12,0))","v":0},{"$f":"IF('Personalkosten 2. Jahr'!$D21>0,IF('Personalkosten 2. Jahr'!$D21<=Hilfstabelle!E$2=AND('Personalkosten 2. Jahr'!$E21>=Hilfstabelle!E$2),'Personalkosten 2. Jahr'!$M21/('Personalkosten 2. Jahr'!$E21-'Personalkosten 2. Jahr'!$D21+1),0),IF('Personalkosten 2. Jahr'!$C21>0,'Personalkosten 2. Jahr'!$M21/12,0))","v":0},{"$f":"IF('Personalkosten 2. Jahr'!$D21>0,IF('Personalkosten 2. Jahr'!$D21<=Hilfstabelle!F$2=AND('Personalkosten 2. Jahr'!$E21>=Hilfstabelle!F$2),'Personalkosten 2. Jahr'!$M21/('Personalkosten 2. Jahr'!$E21-'Personalkosten 2. Jahr'!$D21+1),0),IF('Personalkosten 2. Jahr'!$C21>0,'Personalkosten 2. Jahr'!$M21/12,0))","v":0},{"$f":"IF('Personalkosten 2. Jahr'!$D21>0,IF('Personalkosten 2. Jahr'!$D21<=Hilfstabelle!G$2=AND('Personalkosten 2. Jahr'!$E21>=Hilfstabelle!G$2),'Personalkosten 2. Jahr'!$M21/('Personalkosten 2. Jahr'!$E21-'Personalkosten 2. Jahr'!$D21+1),0),IF('Personalkosten 2. Jahr'!$C21>0,'Personalkosten 2. Jahr'!$M21/12,0))","v":0},{"$f":"IF('Personalkosten 2. Jahr'!$D21>0,IF('Personalkosten 2. Jahr'!$D21<=Hilfstabelle!H$2=AND('Personalkosten 2. Jahr'!$E21>=Hilfstabelle!H$2),'Personalkosten 2. Jahr'!$M21/('Personalkosten 2. Jahr'!$E21-'Personalkosten 2. Jahr'!$D21+1),0),IF('Personalkosten 2. Jahr'!$C21>0,'Personalkosten 2. Jahr'!$M21/12,0))","v":0},{"$f":"IF('Personalkosten 2. Jahr'!$D21>0,IF('Personalkosten 2. Jahr'!$D21<=Hilfstabelle!I$2=AND('Personalkosten 2. Jahr'!$E21>=Hilfstabelle!I$2),'Personalkosten 2. Jahr'!$M21/('Personalkosten 2. Jahr'!$E21-'Personalkosten 2. Jahr'!$D21+1),0),IF('Personalkosten 2. Jahr'!$C21>0,'Personalkosten 2. Jahr'!$M21/12,0))","v":0},{"$f":"IF('Personalkosten 2. Jahr'!$D21>0,IF('Personalkosten 2. Jahr'!$D21<=Hilfstabelle!J$2=AND('Personalkosten 2. Jahr'!$E21>=Hilfstabelle!J$2),'Personalkosten 2. Jahr'!$M21/('Personalkosten 2. Jahr'!$E21-'Personalkosten 2. Jahr'!$D21+1),0),IF('Personalkosten 2. Jahr'!$C21>0,'Personalkosten 2. Jahr'!$M21/12,0))","v":0},{"$f":"IF('Personalkosten 2. Jahr'!$D21>0,IF('Personalkosten 2. Jahr'!$D21<=Hilfstabelle!K$2=AND('Personalkosten 2. Jahr'!$E21>=Hilfstabelle!K$2),'Personalkosten 2. Jahr'!$M21/('Personalkosten 2. Jahr'!$E21-'Personalkosten 2. Jahr'!$D21+1),0),IF('Personalkosten 2. Jahr'!$C21>0,'Personalkosten 2. Jahr'!$M21/12,0))","v":0},{"$f":"IF('Personalkosten 2. Jahr'!$D21>0,IF('Personalkosten 2. Jahr'!$D21<=Hilfstabelle!L$2=AND('Personalkosten 2. Jahr'!$E21>=Hilfstabelle!L$2),'Personalkosten 2. Jahr'!$M21/('Personalkosten 2. Jahr'!$E21-'Personalkosten 2. Jahr'!$D21+1),0),IF('Personalkosten 2. Jahr'!$C21>0,'Personalkosten 2. Jahr'!$M21/12,0))","v":0},{"$f":"IF('Personalkosten 2. Jahr'!$D21>0,IF('Personalkosten 2. Jahr'!$D21<=Hilfstabelle!M$2=AND('Personalkosten 2. Jahr'!$E21>=Hilfstabelle!M$2),'Personalkosten 2. Jahr'!$M21/('Personalkosten 2. Jahr'!$E21-'Personalkosten 2. Jahr'!$D21+1),0),IF('Personalkosten 2. Jahr'!$C21>0,'Personalkosten 2. Jahr'!$M21/12,0))","v":0},0]
[11,{"$f":"IF('Personalkosten 2. Jahr'!$D22>0,IF('Personalkosten 2. Jahr'!$D22<=Hilfstabelle!B$2=AND('Personalkosten 2. Jahr'!$E22>=Hilfstabelle!B$2),'Personalkosten 2. Jahr'!$M22/('Personalkosten 2. Jahr'!$E22-'Personalkosten 2. Jahr'!$D22+1),0),IF('Personalkosten 2. Jahr'!$C22>0,'Personalkosten 2. Jahr'!$M22/12,0))","v":0},{"$f":"IF('Personalkosten 2. Jahr'!$D22>0,IF('Personalkosten 2. Jahr'!$D22<=Hilfstabelle!C$2=AND('Personalkosten 2. Jahr'!$E22>=Hilfstabelle!C$2),'Personalkosten 2. Jahr'!$M22/('Personalkosten 2. Jahr'!$E22-'Personalkosten 2. Jahr'!$D22+1),0),IF('Personalkosten 2. Jahr'!$C22>0,'Personalkosten 2. Jahr'!$M22/12,0))","v":0},{"$f":"IF('Personalkosten 2. Jahr'!$D22>0,IF('Personalkosten 2. Jahr'!$D22<=Hilfstabelle!D$2=AND('Personalkosten 2. Jahr'!$E22>=Hilfstabelle!D$2),'Personalkosten 2. Jahr'!$M22/('Personalkosten 2. Jahr'!$E22-'Personalkosten 2. Jahr'!$D22+1),0),IF('Personalkosten 2. Jahr'!$C22>0,'Personalkosten 2. Jahr'!$M22/12,0))","v":0},{"$f":"IF('Personalkosten 2. Jahr'!$D22>0,IF('Personalkosten 2. Jahr'!$D22<=Hilfstabelle!E$2=AND('Personalkosten 2. Jahr'!$E22>=Hilfstabelle!E$2),'Personalkosten 2. Jahr'!$M22/('Personalkosten 2. Jahr'!$E22-'Personalkosten 2. Jahr'!$D22+1),0),IF('Personalkosten 2. Jahr'!$C22>0,'Personalkosten 2. Jahr'!$M22/12,0))","v":0},{"$f":"IF('Personalkosten 2. Jahr'!$D22>0,IF('Personalkosten 2. Jahr'!$D22<=Hilfstabelle!F$2=AND('Personalkosten 2. Jahr'!$E22>=Hilfstabelle!F$2),'Personalkosten 2. Jahr'!$M22/('Personalkosten 2. Jahr'!$E22-'Personalkosten 2. Jahr'!$D22+1),0),IF('Personalkosten 2. Jahr'!$C22>0,'Personalkosten 2. Jahr'!$M22/12,0))","v":0},{"$f":"IF('Personalkosten 2. Jahr'!$D22>0,IF('Personalkosten 2. Jahr'!$D22<=Hilfstabelle!G$2=AND('Personalkosten 2. Jahr'!$E22>=Hilfstabelle!G$2),'Personalkosten 2. Jahr'!$M22/('Personalkosten 2. Jahr'!$E22-'Personalkosten 2. Jahr'!$D22+1),0),IF('Personalkosten 2. Jahr'!$C22>0,'Personalkosten 2. Jahr'!$M22/12,0))","v":0},{"$f":"IF('Personalkosten 2. Jahr'!$D22>0,IF('Personalkosten 2. Jahr'!$D22<=Hilfstabelle!H$2=AND('Personalkosten 2. Jahr'!$E22>=Hilfstabelle!H$2),'Personalkosten 2. Jahr'!$M22/('Personalkosten 2. Jahr'!$E22-'Personalkosten 2. Jahr'!$D22+1),0),IF('Personalkosten 2. Jahr'!$C22>0,'Personalkosten 2. Jahr'!$M22/12,0))","v":0},{"$f":"IF('Personalkosten 2. Jahr'!$D22>0,IF('Personalkosten 2. Jahr'!$D22<=Hilfstabelle!I$2=AND('Personalkosten 2. Jahr'!$E22>=Hilfstabelle!I$2),'Personalkosten 2. Jahr'!$M22/('Personalkosten 2. Jahr'!$E22-'Personalkosten 2. Jahr'!$D22+1),0),IF('Personalkosten 2. Jahr'!$C22>0,'Personalkosten 2. Jahr'!$M22/12,0))","v":0},{"$f":"IF('Personalkosten 2. Jahr'!$D22>0,IF('Personalkosten 2. Jahr'!$D22<=Hilfstabelle!J$2=AND('Personalkosten 2. Jahr'!$E22>=Hilfstabelle!J$2),'Personalkosten 2. Jahr'!$M22/('Personalkosten 2. Jahr'!$E22-'Personalkosten 2. Jahr'!$D22+1),0),IF('Personalkosten 2. Jahr'!$C22>0,'Personalkosten 2. Jahr'!$M22/12,0))","v":0},{"$f":"IF('Personalkosten 2. Jahr'!$D22>0,IF('Personalkosten 2. Jahr'!$D22<=Hilfstabelle!K$2=AND('Personalkosten 2. Jahr'!$E22>=Hilfstabelle!K$2),'Personalkosten 2. Jahr'!$M22/('Personalkosten 2. Jahr'!$E22-'Personalkosten 2. Jahr'!$D22+1),0),IF('Personalkosten 2. Jahr'!$C22>0,'Personalkosten 2. Jahr'!$M22/12,0))","v":0},{"$f":"IF('Personalkosten 2. Jahr'!$D22>0,IF('Personalkosten 2. Jahr'!$D22<=Hilfstabelle!L$2=AND('Personalkosten 2. Jahr'!$E22>=Hilfstabelle!L$2),'Personalkosten 2. Jahr'!$M22/('Personalkosten 2. Jahr'!$E22-'Personalkosten 2. Jahr'!$D22+1),0),IF('Personalkosten 2. Jahr'!$C22>0,'Personalkosten 2. Jahr'!$M22/12,0))","v":0},{"$f":"IF('Personalkosten 2. Jahr'!$D22>0,IF('Personalkosten 2. Jahr'!$D22<=Hilfstabelle!M$2=AND('Personalkosten 2. Jahr'!$E22>=Hilfstabelle!M$2),'Personalkosten 2. Jahr'!$M22/('Personalkosten 2. Jahr'!$E22-'Personalkosten 2. Jahr'!$D22+1),0),IF('Personalkosten 2. Jahr'!$C22>0,'Personalkosten 2. Jahr'!$M22/12,0))","v":0},0]
[12,{"$f":"IF('Personalkosten 2. Jahr'!$D23>0,IF('Personalkosten 2. Jahr'!$D23<=Hilfstabelle!B$2=AND('Personalkosten 2. Jahr'!$E23>=Hilfstabelle!B$2),'Personalkosten 2. Jahr'!$M23/('Personalkosten 2. Jahr'!$E23-'Personalkosten 2. Jahr'!$D23+1),0),IF('Personalkosten 2. Jahr'!$C23>0,'Personalkosten 2. Jahr'!$M23/12,0))","v":0},{"$f":"IF('Personalkosten 2. Jahr'!$D23>0,IF('Personalkosten 2. Jahr'!$D23<=Hilfstabelle!C$2=AND('Personalkosten 2. Jahr'!$E23>=Hilfstabelle!C$2),'Personalkosten 2. Jahr'!$M23/('Personalkosten 2. Jahr'!$E23-'Personalkosten 2. Jahr'!$D23+1),0),IF('Personalkosten 2. Jahr'!$C23>0,'Personalkosten 2. Jahr'!$M23/12,0))","v":0},{"$f":"IF('Personalkosten 2. Jahr'!$D23>0,IF('Personalkosten 2. Jahr'!$D23<=Hilfstabelle!D$2=AND('Personalkosten 2. Jahr'!$E23>=Hilfstabelle!D$2),'Personalkosten 2. Jahr'!$M23/('Personalkosten 2. Jahr'!$E23-'Personalkosten 2. Jahr'!$D23+1),0),IF('Personalkosten 2. Jahr'!$C23>0,'Personalkosten 2. Jahr'!$M23/12,0))","v":0},{"$f":"IF('Personalkosten 2. Jahr'!$D23>0,IF('Personalkosten 2. Jahr'!$D23<=Hilfstabelle!E$2=AND('Personalkosten 2. Jahr'!$E23>=Hilfstabelle!E$2),'Personalkosten 2. Jahr'!$M23/('Personalkosten 2. Jahr'!$E23-'Personalkosten 2. Jahr'!$D23+1),0),IF('Personalkosten 2. Jahr'!$C23>0,'Personalkosten 2. Jahr'!$M23/12,0))","v":0},{"$f":"IF('Personalkosten 2. Jahr'!$D23>0,IF('Personalkosten 2. Jahr'!$D23<=Hilfstabelle!F$2=AND('Personalkosten 2. Jahr'!$E23>=Hilfstabelle!F$2),'Personalkosten 2. Jahr'!$M23/('Personalkosten 2. Jahr'!$E23-'Personalkosten 2. Jahr'!$D23+1),0),IF('Personalkosten 2. Jahr'!$C23>0,'Personalkosten 2. Jahr'!$M23/12,0))","v":0},{"$f":"IF('Personalkosten 2. Jahr'!$D23>0,IF('Personalkosten 2. Jahr'!$D23<=Hilfstabelle!G$2=AND('Personalkosten 2. Jahr'!$E23>=Hilfstabelle!G$2),'Personalkosten 2. Jahr'!$M23/('Personalkosten 2. Jahr'!$E23-'Personalkosten 2. Jahr'!$D23+1),0),IF('Personalkosten 2. Jahr'!$C23>0,'Personalkosten 2. Jahr'!$M23/12,0))","v":0},{"$f":"IF('Personalkosten 2. Jahr'!$D23>0,IF('Personalkosten 2. Jahr'!$D23<=Hilfstabelle!H$2=AND('Personalkosten 2. Jahr'!$E23>=Hilfstabelle!H$2),'Personalkosten 2. Jahr'!$M23/('Personalkosten 2. Jahr'!$E23-'Personalkosten 2. Jahr'!$D23+1),0),IF('Personalkosten 2. Jahr'!$C23>0,'Personalkosten 2. Jahr'!$M23/12,0))","v":0},{"$f":"IF('Personalkosten 2. Jahr'!$D23>0,IF('Personalkosten 2. Jahr'!$D23<=Hilfstabelle!I$2=AND('Personalkosten 2. Jahr'!$E23>=Hilfstabelle!I$2),'Personalkosten 2. Jahr'!$M23/('Personalkosten 2. Jahr'!$E23-'Personalkosten 2. Jahr'!$D23+1),0),IF('Personalkosten 2. Jahr'!$C23>0,'Personalkosten 2. Jahr'!$M23/12,0))","v":0},{"$f":"IF('Personalkosten 2. Jahr'!$D23>0,IF('Personalkosten 2. Jahr'!$D23<=Hilfstabelle!J$2=AND('Personalkosten 2. Jahr'!$E23>=Hilfstabelle!J$2),'Personalkosten 2. Jahr'!$M23/('Personalkosten 2. Jahr'!$E23-'Personalkosten 2. Jahr'!$D23+1),0),IF('Personalkosten 2. Jahr'!$C23>0,'Personalkosten 2. Jahr'!$M23/12,0))","v":0},{"$f":"IF('Personalkosten 2. Jahr'!$D23>0,IF('Personalkosten 2. Jahr'!$D23<=Hilfstabelle!K$2=AND('Personalkosten 2. Jahr'!$E23>=Hilfstabelle!K$2),'Personalkosten 2. Jahr'!$M23/('Personalkosten 2. Jahr'!$E23-'Personalkosten 2. Jahr'!$D23+1),0),IF('Personalkosten 2. Jahr'!$C23>0,'Personalkosten 2. Jahr'!$M23/12,0))","v":0},{"$f":"IF('Personalkosten 2. Jahr'!$D23>0,IF('Personalkosten 2. Jahr'!$D23<=Hilfstabelle!L$2=AND('Personalkosten 2. Jahr'!$E23>=Hilfstabelle!L$2),'Personalkosten 2. Jahr'!$M23/('Personalkosten 2. Jahr'!$E23-'Personalkosten 2. Jahr'!$D23+1),0),IF('Personalkosten 2. Jahr'!$C23>0,'Personalkosten 2. Jahr'!$M23/12,0))","v":0},{"$f":"IF('Personalkosten 2. Jahr'!$D23>0,IF('Personalkosten 2. Jahr'!$D23<=Hilfstabelle!M$2=AND('Personalkosten 2. Jahr'!$E23>=Hilfstabelle!M$2),'Personalkosten 2. Jahr'!$M23/('Personalkosten 2. Jahr'!$E23-'Personalkosten 2. Jahr'!$D23+1),0),IF('Personalkosten 2. Jahr'!$C23>0,'Personalkosten 2. Jahr'!$M23/12,0))","v":0},0]
["BG+",{"$f":"('Personalkosten 2. Jahr'!$M$25+'Personalkosten 2. Jahr'!$M$26)*Hilfstabelle!B37/'Personalkosten 2. Jahr'!$M$24","v":{"$error":"#DIV/0!"}},{"$f":"('Personalkosten 2. Jahr'!$M$25+'Personalkosten 2. Jahr'!$M$26)*Hilfstabelle!C37/'Personalkosten 2. Jahr'!$M$24","v":{"$error":"#DIV/0!"}},{"$f":"('Personalkosten 2. Jahr'!$M$25+'Personalkosten 2. Jahr'!$M$26)*Hilfstabelle!D37/'Personalkosten 2. Jahr'!$M$24","v":{"$error":"#DIV/0!"}},{"$f":"('Personalkosten 2. Jahr'!$M$25+'Personalkosten 2. Jahr'!$M$26)*Hilfstabelle!E37/'Personalkosten 2. Jahr'!$M$24","v":{"$error":"#DIV/0!"}},{"$f":"('Personalkosten 2. Jahr'!$M$25+'Personalkosten 2. Jahr'!$M$26)*Hilfstabelle!F37/'Personalkosten 2. Jahr'!$M$24","v":{"$error":"#DIV/0!"}},{"$f":"('Personalkosten 2. Jahr'!$M$25+'Personalkosten 2. Jahr'!$M$26)*Hilfstabelle!G37/'Personalkosten 2. Jahr'!$M$24","v":{"$error":"#DIV/0!"}},{"$f":"('Personalkosten 2. Jahr'!$M$25+'Personalkosten 2. Jahr'!$M$26)*Hilfstabelle!H37/'Personalkosten 2. Jahr'!$M$24","v":{"$error":"#DIV/0!"}},{"$f":"('Personalkosten 2. Jahr'!$M$25+'Personalkosten 2. Jahr'!$M$26)*Hilfstabelle!I37/'Personalkosten 2. Jahr'!$M$24","v":{"$error":"#DIV/0!"}},{"$f":"('Personalkosten 2. Jahr'!$M$25+'Personalkosten 2. Jahr'!$M$26)*Hilfstabelle!J37/'Personalkosten 2. Jahr'!$M$24","v":{"$error":"#DIV/0!"}},{"$f":"('Personalkosten 2. Jahr'!$M$25+'Personalkosten 2. Jahr'!$M$26)*Hilfstabelle!K37/'Personalkosten 2. Jahr'!$M$24","v":{"$error":"#DIV/0!"}},{"$f":"('Personalkosten 2. Jahr'!$M$25+'Personalkosten 2. Jahr'!$M$26)*Hilfstabelle!L37/'Personalkosten 2. Jahr'!$M$24","v":{"$error":"#DIV/0!"}},{"$f":"('Personalkosten 2. Jahr'!$M$25+'Personalkosten 2. Jahr'!$M$26)*Hilfstabelle!M37/'Personalkosten 2. Jahr'!$M$24","v":{"$error":"#DIV/0!"}},{"$error":"#DIV/0!"}]
["Gesamt",{"$f":"SUM(B24:B35)","v":{"v":0,"d":"0.0"}},{"$f":"SUM(C24:C35)","v":{"v":0,"d":"0.0"}},{"$f":"SUM(D24:D35)","v":{"v":0,"d":"0.0"}},{"v":0,"d":"0.0"},{"v":0,"d":"0.0"},{"v":0,"d":"0.0"},{"v":0,"d":"0.0"},{"v":0,"d":"0.0"},{"v":0,"d":"0.0"},{"v":0,"d":"0.0"},{"v":0,"d":"0.0"},{"v":0,"d":"0.0"},0]
["Gesamt",{"$f":"IF(B37>0,B36+B37,B37)","v":{"v":0,"d":"0.0"}},{"$f":"IF(C37>0,C36+C37,C37)","v":{"v":0,"d":"0.0"}},{"$f":"IF(D37>0,D36+D37,D37)","v":{"v":0,"d":"0.0"}},{"v":0,"d":"0.0"},{"v":0,"d":"0.0"},{"v":0,"d":"0.0"},{"v":0,"d":"0.0"},{"v":0,"d":"0.0"},{"v":0,"d":"0.0"},{"v":0,"d":"0.0"},{"v":0,"d":"0.0"},{"v":0,"d":"0.0"},{"v":0,"d":"0.0"}]
[]
[]
[]
[]
[]
["3.Jahr",1,2,3,4,5,6,7,8,9,10,11,12,"Gesamt"]
[1,{"$f":"IF('Personalkosten 3. Jahr'!$D12>0,IF('Personalkosten 3. Jahr'!$D12<=Hilfstabelle!B$2=AND('Personalkosten 3. Jahr'!$E12>=Hilfstabelle!B$2),'Personalkosten 3. Jahr'!$M12/('Personalkosten 3. Jahr'!$E12-'Personalkosten 3. Jahr'!$D12+1),0),IF('Personalkosten 3. Jahr'!$C12>0,'Personalkosten 3. Jahr'!$M12/12,0))","v":0},{"$f":"IF('Personalkosten 3. Jahr'!$D12>0,IF('Personalkosten 3. Jahr'!$D12<=Hilfstabelle!C$2=AND('Personalkosten 3. Jahr'!$E12>=Hilfstabelle!C$2),'Personalkosten 3. Jahr'!$M12/('Personalkosten 3. Jahr'!$E12-'Personalkosten 3. Jahr'!$D12+1),0),IF('Personalkosten 3. Jahr'!$C12>0,'Personalkosten 3. Jahr'!$M12/12,0))","v":0},{"$f":"IF('Personalkosten 3. Jahr'!$D12>0,IF('Personalkosten 3. Jahr'!$D12<=Hilfstabelle!D$2=AND('Personalkosten 3. Jahr'!$E12>=Hilfstabelle!D$2),'Personalkosten 3. Jahr'!$M12/('Personalkosten 3. Jahr'!$E12-'Personalkosten 3. Jahr'!$D12+1),0),IF('Personalkosten 3. Jahr'!$C12>0,'Personalkosten 3. Jahr'!$M12/12,0))","v":0},{"$f":"IF('Personalkosten 3. Jahr'!$D12>0,IF('Personalkosten 3. Jahr'!$D12<=Hilfstabelle!E$2=AND('Personalkosten 3. Jahr'!$E12>=Hilfstabelle!E$2),'Personalkosten 3. Jahr'!$M12/('Personalkosten 3. Jahr'!$E12-'Personalkosten 3. Jahr'!$D12+1),0),IF('Personalkosten 3. Jahr'!$C12>0,'Personalkosten 3. Jahr'!$M12/12,0))","v":0},{"$f":"IF('Personalkosten 3. Jahr'!$D12>0,IF('Personalkosten 3. Jahr'!$D12<=Hilfstabelle!F$2=AND('Personalkosten 3. Jahr'!$E12>=Hilfstabelle!F$2),'Personalkosten 3. Jahr'!$M12/('Personalkosten 3. Jahr'!$E12-'Personalkosten 3. Jahr'!$D12+1),0),IF('Personalkosten 3. Jahr'!$C12>0,'Personalkosten 3. Jahr'!$M12/12,0))","v":0},{"$f":"IF('Personalkosten 3. Jahr'!$D12>0,IF('Personalkosten 3. Jahr'!$D12<=Hilfstabelle!G$2=AND('Personalkosten 3. Jahr'!$E12>=Hilfstabelle!G$2),'Personalkosten 3. Jahr'!$M12/('Personalkosten 3. Jahr'!$E12-'Personalkosten 3. Jahr'!$D12+1),0),IF('Personalkosten 3. Jahr'!$C12>0,'Personalkosten 3. Jahr'!$M12/12,0))","v":0},{"$f":"IF('Personalkosten 3. Jahr'!$D12>0,IF('Personalkosten 3. Jahr'!$D12<=Hilfstabelle!H$2=AND('Personalkosten 3. Jahr'!$E12>=Hilfstabelle!H$2),'Personalkosten 3. Jahr'!$M12/('Personalkosten 3. Jahr'!$E12-'Personalkosten 3. Jahr'!$D12+1),0),IF('Personalkosten 3. Jahr'!$C12>0,'Personalkosten 3. Jahr'!$M12/12,0))","v":0},{"$f":"IF('Personalkosten 3. Jahr'!$D12>0,IF('Personalkosten 3. Jahr'!$D12<=Hilfstabelle!I$2=AND('Personalkosten 3. Jahr'!$E12>=Hilfstabelle!I$2),'Personalkosten 3. Jahr'!$M12/('Personalkosten 3. Jahr'!$E12-'Personalkosten 3. Jahr'!$D12+1),0),IF('Personalkosten 3. Jahr'!$C12>0,'Personalkosten 3. Jahr'!$M12/12,0))","v":0},{"$f":"IF('Personalkosten 3. Jahr'!$D12>0,IF('Personalkosten 3. Jahr'!$D12<=Hilfstabelle!J$2=AND('Personalkosten 3. Jahr'!$E12>=Hilfstabelle!J$2),'Personalkosten 3. Jahr'!$M12/('Personalkosten 3. Jahr'!$E12-'Personalkosten 3. Jahr'!$D12+1),0),IF('Personalkosten 3. Jahr'!$C12>0,'Personalkosten 3. Jahr'!$M12/12,0))","v":0},{"$f":"IF('Personalkosten 3. Jahr'!$D12>0,IF('Personalkosten 3. Jahr'!$D12<=Hilfstabelle!K$2=AND('Personalkosten 3. Jahr'!$E12>=Hilfstabelle!K$2),'Personalkosten 3. Jahr'!$M12/('Personalkosten 3. Jahr'!$E12-'Personalkosten 3. Jahr'!$D12+1),0),IF('Personalkosten 3. Jahr'!$C12>0,'Personalkosten 3. Jahr'!$M12/12,0))","v":0},{"$f":"IF('Personalkosten 3. Jahr'!$D12>0,IF('Personalkosten 3. Jahr'!$D12<=Hilfstabelle!L$2=AND('Personalkosten 3. Jahr'!$E12>=Hilfstabelle!L$2),'Personalkosten 3. Jahr'!$M12/('Personalkosten 3. Jahr'!$E12-'Personalkosten 3. Jahr'!$D12+1),0),IF('Personalkosten 3. Jahr'!$C12>0,'Personalkosten 3. Jahr'!$M12/12,0))","v":0},{"$f":"IF('Personalkosten 3. Jahr'!$D12>0,IF('Personalkosten 3. Jahr'!$D12<=Hilfstabelle!M$2=AND('Personalkosten 3. Jahr'!$E12>=Hilfstabelle!M$2),'Personalkosten 3. Jahr'!$M12/('Personalkosten 3. Jahr'!$E12-'Personalkosten 3. Jahr'!$D12+1),0),IF('Personalkosten 3. Jahr'!$C12>0,'Personalkosten 3. Jahr'!$M12/12,0))","v":0},{"$f":"SUM(B45:M45)","v":0}]
[2,{"$f":"IF('Personalkosten 3. Jahr'!$D13>0,IF('Personalkosten 3. Jahr'!$D13<=Hilfstabelle!B$2=AND('Personalkosten 3. Jahr'!$E13>=Hilfstabelle!B$2),'Personalkosten 3. Jahr'!$M13/('Personalkosten 3. Jahr'!$E13-'Personalkosten 3. Jahr'!$D13+1),0),IF('Personalkosten 3. Jahr'!$C13>0,'Personalkosten 3. Jahr'!$M13/12,0))","v":0},{"$f":"IF('Personalkosten 3. Jahr'!$D13>0,IF('Personalkosten 3. Jahr'!$D13<=Hilfstabelle!C$2=AND('Personalkosten 3. Jahr'!$E13>=Hilfstabelle!C$2),'Personalkosten 3. Jahr'!$M13/('Personalkosten 3. Jahr'!$E13-'Personalkosten 3. Jahr'!$D13+1),0),IF('Personalkosten 3. Jahr'!$C13>0,'Personalkosten 3. Jahr'!$M13/12,0))","v":0},{"$f":"IF('Personalkosten 3. Jahr'!$D13>0,IF('Personalkosten 3. Jahr'!$D13<=Hilfstabelle!D$2=AND('Personalkosten 3. Jahr'!$E13>=Hilfstabelle!D$2),'Personalkosten 3. Jahr'!$M13/('Personalkosten 3. Jahr'!$E13-'Personalkosten 3. Jahr'!$D13+1),0),IF('Personalkosten 3. Jahr'!$C13>0,'Personalkosten 3. Jahr'!$M13/12,0))","v":0},{"$f":"IF('Personalkosten 3. Jahr'!$D13>0,IF('Personalkosten 3. Jahr'!$D13<=Hilfstabelle!E$2=AND('Personalkosten 3. Jahr'!$E13>=Hilfstabelle!E$2),'Personalkosten 3. Jahr'!$M13/('Personalkosten 3. Jahr'!$E13-'Personalkosten 3. Jahr'!$D13+1),0),IF('Personalkosten 3. Jahr'!$C13>0,'Personalkosten 3. Jahr'!$M13/12,0))","v":0},{"$f":"IF('Personalkosten 3. Jahr'!$D13>0,IF('Personalkosten 3. Jahr'!$D13<=Hilfstabelle!F$2=AND('Personalkosten 3. Jahr'!$E13>=Hilfstabelle!F$2),'Personalkosten 3. Jahr'!$M13/('Personalkosten 3. Jahr'!$E13-'Personalkosten 3. Jahr'!$D13+1),0),IF('Personalkosten 3. Jahr'!$C13>0,'Personalkosten 3. Jahr'!$M13/12,0))","v":0},{"$f":"IF('Personalkosten 3. Jahr'!$D13>0,IF('Personalkosten 3. Jahr'!$D13<=Hilfstabelle!G$2=AND('Personalkosten 3. Jahr'!$E13>=Hilfstabelle!G$2),'Personalkosten 3. Jahr'!$M13/('Personalkosten 3. Jahr'!$E13-'Personalkosten 3. Jahr'!$D13+1),0),IF('Personalkosten 3. Jahr'!$C13>0,'Personalkosten 3. Jahr'!$M13/12,0))","v":0},{"$f":"IF('Personalkosten 3. Jahr'!$D13>0,IF('Personalkosten 3. Jahr'!$D13<=Hilfstabelle!H$2=AND('Personalkosten 3. Jahr'!$E13>=Hilfstabelle!H$2),'Personalkosten 3. Jahr'!$M13/('Personalkosten 3. Jahr'!$E13-'Personalkosten 3. Jahr'!$D13+1),0),IF('Personalkosten 3. Jahr'!$C13>0,'Personalkosten 3. Jahr'!$M13/12,0))","v":0},{"$f":"IF('Personalkosten 3. Jahr'!$D13>0,IF('Personalkosten 3. Jahr'!$D13<=Hilfstabelle!I$2=AND('Personalkosten 3. Jahr'!$E13>=Hilfstabelle!I$2),'Personalkosten 3. Jahr'!$M13/('Personalkosten 3. Jahr'!$E13-'Personalkosten 3. Jahr'!$D13+1),0),IF('Personalkosten 3. Jahr'!$C13>0,'Personalkosten 3. Jahr'!$M13/12,0))","v":0},{"$f":"IF('Personalkosten 3. Jahr'!$D13>0,IF('Personalkosten 3. Jahr'!$D13<=Hilfstabelle!J$2=AND('Personalkosten 3. Jahr'!$E13>=Hilfstabelle!J$2),'Personalkosten 3. Jahr'!$M13/('Personalkosten 3. Jahr'!$E13-'Personalkosten 3. Jahr'!$D13+1),0),IF('Personalkosten 3. Jahr'!$C13>0,'Personalkosten 3. Jahr'!$M13/12,0))","v":0},{"$f":"IF('Personalkosten 3. Jahr'!$D13>0,IF('Personalkosten 3. Jahr'!$D13<=Hilfstabelle!K$2=AND('Personalkosten 3. Jahr'!$E13>=Hilfstabelle!K$2),'Personalkosten 3. Jahr'!$M13/('Personalkosten 3. Jahr'!$E13-'Personalkosten 3. Jahr'!$D13+1),0),IF('Personalkosten 3. Jahr'!$C13>0,'Personalkosten 3. Jahr'!$M13/12,0))","v":0},{"$f":"IF('Personalkosten 3. Jahr'!$D13>0,IF('Personalkosten 3. Jahr'!$D13<=Hilfstabelle!L$2=AND('Personalkosten 3. Jahr'!$E13>=Hilfstabelle!L$2),'Personalkosten 3. Jahr'!$M13/('Personalkosten 3. Jahr'!$E13-'Personalkosten 3. Jahr'!$D13+1),0),IF('Personalkosten 3. Jahr'!$C13>0,'Personalkosten 3. Jahr'!$M13/12,0))","v":0},{"$f":"IF('Personalkosten 3. Jahr'!$D13>0,IF('Personalkosten 3. Jahr'!$D13<=Hilfstabelle!M$2=AND('Personalkosten 3. Jahr'!$E13>=Hilfstabelle!M$2),'Personalkosten 3. Jahr'!$M13/('Personalkosten 3. Jahr'!$E13-'Personalkosten 3. Jahr'!$D13+1),0),IF('Personalkosten 3. Jahr'!$C13>0,'Personalkosten 3. Jahr'!$M13/12,0))","v":0},0]
[3,{"$f":"IF('Personalkosten 3. Jahr'!$D14>0,IF('Personalkosten 3. Jahr'!$D14<=Hilfstabelle!B$2=AND('Personalkosten 3. Jahr'!$E14>=Hilfstabelle!B$2),'Personalkosten 3. Jahr'!$M14/('Personalkosten 3. Jahr'!$E14-'Personalkosten 3. Jahr'!$D14+1),0),IF('Personalkosten 3. Jahr'!$C14>0,'Personalkosten 3. Jahr'!$M14/12,0))","v":0},{"$f":"IF('Personalkosten 3. Jahr'!$D14>0,IF('Personalkosten 3. Jahr'!$D14<=Hilfstabelle!C$2=AND('Personalkosten 3. Jahr'!$E14>=Hilfstabelle!C$2),'Personalkosten 3. Jahr'!$M14/('Personalkosten 3. Jahr'!$E14-'Personalkosten 3. Jahr'!$D14+1),0),IF('Personalkosten 3. Jahr'!$C14>0,'Personalkosten 3. Jahr'!$M14/12,0))","v":0},{"$f":"IF('Personalkosten 3. Jahr'!$D14>0,IF('Personalkosten 3. Jahr'!$D14<=Hilfstabelle!D$2=AND('Personalkosten 3. Jahr'!$E14>=Hilfstabelle!D$2),'Personalkosten 3. Jahr'!$M14/('Personalkosten 3. Jahr'!$E14-'Personalkosten 3. Jahr'!$D14+1),0),IF('Personalkosten 3. Jahr'!$C14>0,'Personalkosten 3. Jahr'!$M14/12,0))","v":0},{"$f":"IF('Personalkosten 3. Jahr'!$D14>0,IF('Personalkosten 3. Jahr'!$D14<=Hilfstabelle!E$2=AND('Personalkosten 3. Jahr'!$E14>=Hilfstabelle!E$2),'Personalkosten 3. Jahr'!$M14/('Personalkosten 3. Jahr'!$E14-'Personalkosten 3. Jahr'!$D14+1),0),IF('Personalkosten 3. Jahr'!$C14>0,'Personalkosten 3. Jahr'!$M14/12,0))","v":0},{"$f":"IF('Personalkosten 3. Jahr'!$D14>0,IF('Personalkosten 3. Jahr'!$D14<=Hilfstabelle!F$2=AND('Personalkosten 3. Jahr'!$E14>=Hilfstabelle!F$2),'Personalkosten 3. Jahr'!$M14/('Personalkosten 3. Jahr'!$E14-'Personalkosten 3. Jahr'!$D14+1),0),IF('Personalkosten 3. Jahr'!$C14>0,'Personalkosten 3. Jahr'!$M14/12,0))","v":0},{"$f":"IF('Personalkosten 3. Jahr'!$D14>0,IF('Personalkosten 3. Jahr'!$D14<=Hilfstabelle!G$2=AND('Personalkosten 3. Jahr'!$E14>=Hilfstabelle!G$2),'Personalkosten 3. Jahr'!$M14/('Personalkosten 3. Jahr'!$E14-'Personalkosten 3. Jahr'!$D14+1),0),IF('Personalkosten 3. Jahr'!$C14>0,'Personalkosten 3. Jahr'!$M14/12,0))","v":0},{"$f":"IF('Personalkosten 3. Jahr'!$D14>0,IF('Personalkosten 3. Jahr'!$D14<=Hilfstabelle!H$2=AND('Personalkosten 3. Jahr'!$E14>=Hilfstabelle!H$2),'Personalkosten 3. Jahr'!$M14/('Personalkosten 3. Jahr'!$E14-'Personalkosten 3. Jahr'!$D14+1),0),IF('Personalkosten 3. Jahr'!$C14>0,'Personalkosten 3. Jahr'!$M14/12,0))","v":0},{"$f":"IF('Personalkosten 3. Jahr'!$D14>0,IF('Personalkosten 3. Jahr'!$D14<=Hilfstabelle!I$2=AND('Personalkosten 3. Jahr'!$E14>=Hilfstabelle!I$2),'Personalkosten 3. Jahr'!$M14/('Personalkosten 3. Jahr'!$E14-'Personalkosten 3. Jahr'!$D14+1),0),IF('Personalkosten 3. Jahr'!$C14>0,'Personalkosten 3. Jahr'!$M14/12,0))","v":0},{"$f":"IF('Personalkosten 3. Jahr'!$D14>0,IF('Personalkosten 3. Jahr'!$D14<=Hilfstabelle!J$2=AND('Personalkosten 3. Jahr'!$E14>=Hilfstabelle!J$2),'Personalkosten 3. Jahr'!$M14/('Personalkosten 3. Jahr'!$E14-'Personalkosten 3. Jahr'!$D14+1),0),IF('Personalkosten 3. Jahr'!$C14>0,'Personalkosten 3. Jahr'!$M14/12,0))","v":0},{"$f":"IF('Personalkosten 3. Jahr'!$D14>0,IF('Personalkosten 3. Jahr'!$D14<=Hilfstabelle!K$2=AND('Personalkosten 3. Jahr'!$E14>=Hilfstabelle!K$2),'Personalkosten 3. Jahr'!$M14/('Personalkosten 3. Jahr'!$E14-'Personalkosten 3. Jahr'!$D14+1),0),IF('Personalkosten 3. Jahr'!$C14>0,'Personalkosten 3. Jahr'!$M14/12,0))","v":0},{"$f":"IF('Personalkosten 3. Jahr'!$D14>0,IF('Personalkosten 3. Jahr'!$D14<=Hilfstabelle!L$2=AND('Personalkosten 3. Jahr'!$E14>=Hilfstabelle!L$2),'Personalkosten 3. Jahr'!$M14/('Personalkosten 3. Jahr'!$E14-'Personalkosten 3. Jahr'!$D14+1),0),IF('Personalkosten 3. Jahr'!$C14>0,'Personalkosten 3. Jahr'!$M14/12,0))","v":0},{"$f":"IF('Personalkosten 3. Jahr'!$D14>0,IF('Personalkosten 3. Jahr'!$D14<=Hilfstabelle!M$2=AND('Personalkosten 3. Jahr'!$E14>=Hilfstabelle!M$2),'Personalkosten 3. Jahr'!$M14/('Personalkosten 3. Jahr'!$E14-'Personalkosten 3. Jahr'!$D14+1),0),IF('Personalkosten 3. Jahr'!$C14>0,'Personalkosten 3. Jahr'!$M14/12,0))","v":0},0]
[4,{"$f":"IF('Personalkosten 3. Jahr'!$D15>0,IF('Personalkosten 3. Jahr'!$D15<=Hilfstabelle!B$2=AND('Personalkosten 3. Jahr'!$E15>=Hilfstabelle!B$2),'Personalkosten 3. Jahr'!$M15/('Personalkosten 3. Jahr'!$E15-'Personalkosten 3. Jahr'!$D15+1),0),IF('Personalkosten 3. Jahr'!$C15>0,'Personalkosten 3. Jahr'!$M15/12,0))","v":0},{"$f":"IF('Personalkosten 3. Jahr'!$D15>0,IF('Personalkosten 3. Jahr'!$D15<=Hilfstabelle!C$2=AND('Personalkosten 3. Jahr'!$E15>=Hilfstabelle!C$2),'Personalkosten 3. Jahr'!$M15/('Personalkosten 3. Jahr'!$E15-'Personalkosten 3. Jahr'!$D15+1),0),IF('Personalkosten 3. Jahr'!$C15>0,'Personalkosten 3. Jahr'!$M15/12,0))","v":0},{"$f":"IF('Personalkosten 3. Jahr'!$D15>0,IF('Personalkosten 3. Jahr'!$D15<=Hilfstabelle!D$2=AND('Personalkosten 3. Jahr'!$E15>=Hilfstabelle!D$2),'Personalkosten 3. Jahr'!$M15/('Personalkosten 3. Jahr'!$E15-'Personalkosten 3. Jahr'!$D15+1),0),IF('Personalkosten 3. Jahr'!$C15>0,'Personalkosten 3. Jahr'!$M15/12,0))","v":0},{"$f":"IF('Personalkosten 3. Jahr'!$D15>0,IF('Personalkosten 3. Jahr'!$D15<=Hilfstabelle!E$2=AND('Personalkosten 3. Jahr'!$E15>=Hilfstabelle!E$2),'Personalkosten 3. Jahr'!$M15/('Personalkosten 3. Jahr'!$E15-'Personalkosten 3. Jahr'!$D15+1),0),IF('Personalkosten 3. Jahr'!$C15>0,'Personalkosten 3. Jahr'!$M15/12,0))","v":0},{"$f":"IF('Personalkosten 3. Jahr'!$D15>0,IF('Personalkosten 3. Jahr'!$D15<=Hilfstabelle!F$2=AND('Personalkosten 3. Jahr'!$E15>=Hilfstabelle!F$2),'Personalkosten 3. Jahr'!$M15/('Personalkosten 3. Jahr'!$E15-'Personalkosten 3. Jahr'!$D15+1),0),IF('Personalkosten 3. Jahr'!$C15>0,'Personalkosten 3. Jahr'!$M15/12,0))","v":0},{"$f":"IF('Personalkosten 3. Jahr'!$D15>0,IF('Personalkosten 3. Jahr'!$D15<=Hilfstabelle!G$2=AND('Personalkosten 3. Jahr'!$E15>=Hilfstabelle!G$2),'Personalkosten 3. Jahr'!$M15/('Personalkosten 3. Jahr'!$E15-'Personalkosten 3. Jahr'!$D15+1),0),IF('Personalkosten 3. Jahr'!$C15>0,'Personalkosten 3. Jahr'!$M15/12,0))","v":0},{"$f":"IF('Personalkosten 3. Jahr'!$D15>0,IF('Personalkosten 3. Jahr'!$D15<=Hilfstabelle!H$2=AND('Personalkosten 3. Jahr'!$E15>=Hilfstabelle!H$2),'Personalkosten 3. Jahr'!$M15/('Personalkosten 3. Jahr'!$E15-'Personalkosten 3. Jahr'!$D15+1),0),IF('Personalkosten 3. Jahr'!$C15>0,'Personalkosten 3. Jahr'!$M15/12,0))","v":0},{"$f":"IF('Personalkosten 3. Jahr'!$D15>0,IF('Personalkosten 3. Jahr'!$D15<=Hilfstabelle!I$2=AND('Personalkosten 3. Jahr'!$E15>=Hilfstabelle!I$2),'Personalkosten 3. Jahr'!$M15/('Personalkosten 3. Jahr'!$E15-'Personalkosten 3. Jahr'!$D15+1),0),IF('Personalkosten 3. Jahr'!$C15>0,'Personalkosten 3. Jahr'!$M15/12,0))","v":0},{"$f":"IF('Personalkosten 3. Jahr'!$D15>0,IF('Personalkosten 3. Jahr'!$D15<=Hilfstabelle!J$2=AND('Personalkosten 3. Jahr'!$E15>=Hilfstabelle!J$2),'Personalkosten 3. Jahr'!$M15/('Personalkosten 3. Jahr'!$E15-'Personalkosten 3. Jahr'!$D15+1),0),IF('Personalkosten 3. Jahr'!$C15>0,'Personalkosten 3. Jahr'!$M15/12,0))","v":0},{"$f":"IF('Personalkosten 3. Jahr'!$D15>0,IF('Personalkosten 3. Jahr'!$D15<=Hilfstabelle!K$2=AND('Personalkosten 3. Jahr'!$E15>=Hilfstabelle!K$2),'Personalkosten 3. Jahr'!$M15/('Personalkosten 3. Jahr'!$E15-'Personalkosten 3. Jahr'!$D15+1),0),IF('Personalkosten 3. Jahr'!$C15>0,'Personalkosten 3. Jahr'!$M15/12,0))","v":0},{"$f":"IF('Personalkosten 3. Jahr'!$D15>0,IF('Personalkosten 3. Jahr'!$D15<=Hilfstabelle!L$2=AND('Personalkosten 3. Jahr'!$E15>=Hilfstabelle!L$2),'Personalkosten 3. Jahr'!$M15/('Personalkosten 3. Jahr'!$E15-'Personalkosten 3. Jahr'!$D15+1),0),IF('Personalkosten 3. Jahr'!$C15>0,'Personalkosten 3. Jahr'!$M15/12,0))","v":0},{"$f":"IF('Personalkosten 3. Jahr'!$D15>0,IF('Personalkosten 3. Jahr'!$D15<=Hilfstabelle!M$2=AND('Personalkosten 3. Jahr'!$E15>=Hilfstabelle!M$2),'Personalkosten 3. Jahr'!$M15/('Personalkosten 3. Jahr'!$E15-'Personalkosten 3. Jahr'!$D15+1),0),IF('Personalkosten 3. Jahr'!$C15>0,'Personalkosten 3. Jahr'!$M15/12,0))","v":0},0]
[5,{"$f":"IF('Personalkosten 3. Jahr'!$D16>0,IF('Personalkosten 3. Jahr'!$D16<=Hilfstabelle!B$2=AND('Personalkosten 3. Jahr'!$E16>=Hilfstabelle!B$2),'Personalkosten 3. Jahr'!$M16/('Personalkosten 3. Jahr'!$E16-'Personalkosten 3. Jahr'!$D16+1),0),IF('Personalkosten 3. Jahr'!$C16>0,'Personalkosten 3. Jahr'!$M16/12,0))","v":0},{"$f":"IF('Personalkosten 3. Jahr'!$D16>0,IF('Personalkosten 3. Jahr'!$D16<=Hilfstabelle!C$2=AND('Personalkosten 3. Jahr'!$E16>=Hilfstabelle!C$2),'Personalkosten 3. Jahr'!$M16/('Personalkosten 3. Jahr'!$E16-'Personalkosten 3. Jahr'!$D16+1),0),IF('Personalkosten 3. Jahr'!$C16>0,'Personalkosten 3. Jahr'!$M16/12,0))","v":0},{"$f":"IF('Personalkosten 3. Jahr'!$D16>0,IF('Personalkosten 3. Jahr'!$D16<=Hilfstabelle!D$2=AND('Personalkosten 3. Jahr'!$E16>=Hilfstabelle!D$2),'Personalkosten 3. Jahr'!$M16/('Personalkosten 3. Jahr'!$E16-'Personalkosten 3. Jahr'!$D16+1),0),IF('Personalkosten 3. Jahr'!$C16>0,'Personalkosten 3. Jahr'!$M16/12,0))","v":0},{"$f":"IF('Personalkosten 3. Jahr'!$D16>0,IF('Personalkosten 3. Jahr'!$D16<=Hilfstabelle!E$2=AND('Personalkosten 3. Jahr'!$E16>=Hilfstabelle!E$2),'Personalkosten 3. Jahr'!$M16/('Personalkosten 3. Jahr'!$E16-'Personalkosten 3. Jahr'!$D16+1),0),IF('Personalkosten 3. Jahr'!$C16>0,'Personalkosten 3. Jahr'!$M16/12,0))","v":0},{"$f":"IF('Personalkosten 3. Jahr'!$D16>0,IF('Personalkosten 3. Jahr'!$D16<=Hilfstabelle!F$2=AND('Personalkosten 3. Jahr'!$E16>=Hilfstabelle!F$2),'Personalkosten 3. Jahr'!$M16/('Personalkosten 3. Jahr'!$E16-'Personalkosten 3. Jahr'!$D16+1),0),IF('Personalkosten 3. Jahr'!$C16>0,'Personalkosten 3. Jahr'!$M16/12,0))","v":0},{"$f":"IF('Personalkosten 3. Jahr'!$D16>0,IF('Personalkosten 3. Jahr'!$D16<=Hilfstabelle!G$2=AND('Personalkosten 3. Jahr'!$E16>=Hilfstabelle!G$2),'Personalkosten 3. Jahr'!$M16/('Personalkosten 3. Jahr'!$E16-'Personalkosten 3. Jahr'!$D16+1),0),IF('Personalkosten 3. Jahr'!$C16>0,'Personalkosten 3. Jahr'!$M16/12,0))","v":0},{"$f":"IF('Personalkosten 3. Jahr'!$D16>0,IF('Personalkosten 3. Jahr'!$D16<=Hilfstabelle!H$2=AND('Personalkosten 3. Jahr'!$E16>=Hilfstabelle!H$2),'Personalkosten 3. Jahr'!$M16/('Personalkosten 3. Jahr'!$E16-'Personalkosten 3. Jahr'!$D16+1),0),IF('Personalkosten 3. Jahr'!$C16>0,'Personalkosten 3. Jahr'!$M16/12,0))","v":0},{"$f":"IF('Personalkosten 3. Jahr'!$D16>0,IF('Personalkosten 3. Jahr'!$D16<=Hilfstabelle!I$2=AND('Personalkosten 3. Jahr'!$E16>=Hilfstabelle!I$2),'Personalkosten 3. Jahr'!$M16/('Personalkosten 3. Jahr'!$E16-'Personalkosten 3. Jahr'!$D16+1),0),IF('Personalkosten 3. Jahr'!$C16>0,'Personalkosten 3. Jahr'!$M16/12,0))","v":0},{"$f":"IF('Personalkosten 3. Jahr'!$D16>0,IF('Personalkosten 3. Jahr'!$D16<=Hilfstabelle!J$2=AND('Personalkosten 3. Jahr'!$E16>=Hilfstabelle!J$2),'Personalkosten 3. Jahr'!$M16/('Personalkosten 3. Jahr'!$E16-'Personalkosten 3. Jahr'!$D16+1),0),IF('Personalkosten 3. Jahr'!$C16>0,'Personalkosten 3. Jahr'!$M16/12,0))","v":0},{"$f":"IF('Personalkosten 3. Jahr'!$D16>0,IF('Personalkosten 3. Jahr'!$D16<=Hilfstabelle!K$2=AND('Personalkosten 3. Jahr'!$E16>=Hilfstabelle!K$2),'Personalkosten 3. Jahr'!$M16/('Personalkosten 3. Jahr'!$E16-'Personalkosten 3. Jahr'!$D16+1),0),IF('Personalkosten 3. Jahr'!$C16>0,'Personalkosten 3. Jahr'!$M16/12,0))","v":0},{"$f":"IF('Personalkosten 3. Jahr'!$D16>0,IF('Personalkosten 3. Jahr'!$D16<=Hilfstabelle!L$2=AND('Personalkosten 3. Jahr'!$E16>=Hilfstabelle!L$2),'Personalkosten 3. Jahr'!$M16/('Personalkosten 3. Jahr'!$E16-'Personalkosten 3. Jahr'!$D16+1),0),IF('Personalkosten 3. Jahr'!$C16>0,'Personalkosten 3. Jahr'!$M16/12,0))","v":0},{"$f":"IF('Personalkosten 3. Jahr'!$D16>0,IF('Personalkosten 3. Jahr'!$D16<=Hilfstabelle!M$2=AND('Personalkosten 3. Jahr'!$E16>=Hilfstabelle!M$2),'Personalkosten 3. Jahr'!$M16/('Personalkosten 3. Jahr'!$E16-'Personalkosten 3. Jahr'!$D16+1),0),IF('Personalkosten 3. Jahr'!$C16>0,'Personalkosten 3. Jahr'!$M16/12,0))","v":0},0]
[6,{"$f":"IF('Personalkosten 3. Jahr'!$D17>0,IF('Personalkosten 3. Jahr'!$D17<=Hilfstabelle!B$2=AND('Personalkosten 3. Jahr'!$E17>=Hilfstabelle!B$2),'Personalkosten 3. Jahr'!$M17/('Personalkosten 3. Jahr'!$E17-'Personalkosten 3. Jahr'!$D17+1),0),IF('Personalkosten 3. Jahr'!$C17>0,'Personalkosten 3. Jahr'!$M17/12,0))","v":0},{"$f":"IF('Personalkosten 3. Jahr'!$D17>0,IF('Personalkosten 3. Jahr'!$D17<=Hilfstabelle!C$2=AND('Personalkosten 3. Jahr'!$E17>=Hilfstabelle!C$2),'Personalkosten 3. Jahr'!$M17/('Personalkosten 3. Jahr'!$E17-'Personalkosten 3. Jahr'!$D17+1),0),IF('Personalkosten 3. Jahr'!$C17>0,'Personalkosten 3. Jahr'!$M17/12,0))","v":0},{"$f":"IF('Personalkosten 3. Jahr'!$D17>0,IF('Personalkosten 3. Jahr'!$D17<=Hilfstabelle!D$2=AND('Personalkosten 3. Jahr'!$E17>=Hilfstabelle!D$2),'Personalkosten 3. Jahr'!$M17/('Personalkosten 3. Jahr'!$E17-'Personalkosten 3. Jahr'!$D17+1),0),IF('Personalkosten 3. Jahr'!$C17>0,'Personalkosten 3. Jahr'!$M17/12,0))","v":0},{"$f":"IF('Personalkosten 3. Jahr'!$D17>0,IF('Personalkosten 3. Jahr'!$D17<=Hilfstabelle!E$2=AND('Personalkosten 3. Jahr'!$E17>=Hilfstabelle!E$2),'Personalkosten 3. Jahr'!$M17/('Personalkosten 3. Jahr'!$E17-'Personalkosten 3. Jahr'!$D17+1),0),IF('Personalkosten 3. Jahr'!$C17>0,'Personalkosten 3. Jahr'!$M17/12,0))","v":0},{"$f":"IF('Personalkosten 3. Jahr'!$D17>0,IF('Personalkosten 3. Jahr'!$D17<=Hilfstabelle!F$2=AND('Personalkosten 3. Jahr'!$E17>=Hilfstabelle!F$2),'Personalkosten 3. Jahr'!$M17/('Personalkosten 3. Jahr'!$E17-'Personalkosten 3. Jahr'!$D17+1),0),IF('Personalkosten 3. Jahr'!$C17>0,'Personalkosten 3. Jahr'!$M17/12,0))","v":0},{"$f":"IF('Personalkosten 3. Jahr'!$D17>0,IF('Personalkosten 3. Jahr'!$D17<=Hilfstabelle!G$2=AND('Personalkosten 3. Jahr'!$E17>=Hilfstabelle!G$2),'Personalkosten 3. Jahr'!$M17/('Personalkosten 3. Jahr'!$E17-'Personalkosten 3. Jahr'!$D17+1),0),IF('Personalkosten 3. Jahr'!$C17>0,'Personalkosten 3. Jahr'!$M17/12,0))","v":0},{"$f":"IF('Personalkosten 3. Jahr'!$D17>0,IF('Personalkosten 3. Jahr'!$D17<=Hilfstabelle!H$2=AND('Personalkosten 3. Jahr'!$E17>=Hilfstabelle!H$2),'Personalkosten 3. Jahr'!$M17/('Personalkosten 3. Jahr'!$E17-'Personalkosten 3. Jahr'!$D17+1),0),IF('Personalkosten 3. Jahr'!$C17>0,'Personalkosten 3. Jahr'!$M17/12,0))","v":0},{"$f":"IF('Personalkosten 3. Jahr'!$D17>0,IF('Personalkosten 3. Jahr'!$D17<=Hilfstabelle!I$2=AND('Personalkosten 3. Jahr'!$E17>=Hilfstabelle!I$2),'Personalkosten 3. Jahr'!$M17/('Personalkosten 3. Jahr'!$E17-'Personalkosten 3. Jahr'!$D17+1),0),IF('Personalkosten 3. Jahr'!$C17>0,'Personalkosten 3. Jahr'!$M17/12,0))","v":0},{"$f":"IF('Personalkosten 3. Jahr'!$D17>0,IF('Personalkosten 3. Jahr'!$D17<=Hilfstabelle!J$2=AND('Personalkosten 3. Jahr'!$E17>=Hilfstabelle!J$2),'Personalkosten 3. Jahr'!$M17/('Personalkosten 3. Jahr'!$E17-'Personalkosten 3. Jahr'!$D17+1),0),IF('Personalkosten 3. Jahr'!$C17>0,'Personalkosten 3. Jahr'!$M17/12,0))","v":0},{"$f":"IF('Personalkosten 3. Jahr'!$D17>0,IF('Personalkosten 3. Jahr'!$D17<=Hilfstabelle!K$2=AND('Personalkosten 3. Jahr'!$E17>=Hilfstabelle!K$2),'Personalkosten 3. Jahr'!$M17/('Personalkosten 3. Jahr'!$E17-'Personalkosten 3. Jahr'!$D17+1),0),IF('Personalkosten 3. Jahr'!$C17>0,'Personalkosten 3. Jahr'!$M17/12,0))","v":0},{"$f":"IF('Personalkosten 3. Jahr'!$D17>0,IF('Personalkosten 3. Jahr'!$D17<=Hilfstabelle!L$2=AND('Personalkosten 3. Jahr'!$E17>=Hilfstabelle!L$2),'Personalkosten 3. Jahr'!$M17/('Personalkosten 3. Jahr'!$E17-'Personalkosten 3. Jahr'!$D17+1),0),IF('Personalkosten 3. Jahr'!$C17>0,'Personalkosten 3. Jahr'!$M17/12,0))","v":0},{"$f":"IF('Personalkosten 3. Jahr'!$D17>0,IF('Personalkosten 3. Jahr'!$D17<=Hilfstabelle!M$2=AND('Personalkosten 3. Jahr'!$E17>=Hilfstabelle!M$2),'Personalkosten 3. Jahr'!$M17/('Personalkosten 3. Jahr'!$E17-'Personalkosten 3. Jahr'!$D17+1),0),IF('Personalkosten 3. Jahr'!$C17>0,'Personalkosten 3. Jahr'!$M17/12,0))","v":0},0]
[7,{"$f":"IF('Personalkosten 3. Jahr'!$D18>0,IF('Personalkosten 3. Jahr'!$D18<=Hilfstabelle!B$2=AND('Personalkosten 3. Jahr'!$E18>=Hilfstabelle!B$2),'Personalkosten 3. Jahr'!$M18/('Personalkosten 3. Jahr'!$E18-'Personalkosten 3. Jahr'!$D18+1),0),IF('Personalkosten 3. Jahr'!$C18>0,'Personalkosten 3. Jahr'!$M18/12,0))","v":0},{"$f":"IF('Personalkosten 3. Jahr'!$D18>0,IF('Personalkosten 3. Jahr'!$D18<=Hilfstabelle!C$2=AND('Personalkosten 3. Jahr'!$E18>=Hilfstabelle!C$2),'Personalkosten 3. Jahr'!$M18/('Personalkosten 3. Jahr'!$E18-'Personalkosten 3. Jahr'!$D18+1),0),IF('Personalkosten 3. Jahr'!$C18>0,'Personalkosten 3. Jahr'!$M18/12,0))","v":0},{"$f":"IF('Personalkosten 3. Jahr'!$D18>0,IF('Personalkosten 3. Jahr'!$D18<=Hilfstabelle!D$2=AND('Personalkosten 3. Jahr'!$E18>=Hilfstabelle!D$2),'Personalkosten 3. Jahr'!$M18/('Personalkosten 3. Jahr'!$E18-'Personalkosten 3. Jahr'!$D18+1),0),IF('Personalkosten 3. Jahr'!$C18>0,'Personalkosten 3. Jahr'!$M18/12,0))","v":0},{"$f":"IF('Personalkosten 3. Jahr'!$D18>0,IF('Personalkosten 3. Jahr'!$D18<=Hilfstabelle!E$2=AND('Personalkosten 3. Jahr'!$E18>=Hilfstabelle!E$2),'Personalkosten 3. Jahr'!$M18/('Personalkosten 3. Jahr'!$E18-'Personalkosten 3. Jahr'!$D18+1),0),IF('Personalkosten 3. Jahr'!$C18>0,'Personalkosten 3. Jahr'!$M18/12,0))","v":0},{"$f":"IF('Personalkosten 3. Jahr'!$D18>0,IF('Personalkosten 3. Jahr'!$D18<=Hilfstabelle!F$2=AND('Personalkosten 3. Jahr'!$E18>=Hilfstabelle!F$2),'Personalkosten 3. Jahr'!$M18/('Personalkosten 3. Jahr'!$E18-'Personalkosten 3. Jahr'!$D18+1),0),IF('Personalkosten 3. Jahr'!$C18>0,'Personalkosten 3. Jahr'!$M18/12,0))","v":0},{"$f":"IF('Personalkosten 3. Jahr'!$D18>0,IF('Personalkosten 3. Jahr'!$D18<=Hilfstabelle!G$2=AND('Personalkosten 3. Jahr'!$E18>=Hilfstabelle!G$2),'Personalkosten 3. Jahr'!$M18/('Personalkosten 3. Jahr'!$E18-'Personalkosten 3. Jahr'!$D18+1),0),IF('Personalkosten 3. Jahr'!$C18>0,'Personalkosten 3. Jahr'!$M18/12,0))","v":0},{"$f":"IF('Personalkosten 3. Jahr'!$D18>0,IF('Personalkosten 3. Jahr'!$D18<=Hilfstabelle!H$2=AND('Personalkosten 3. Jahr'!$E18>=Hilfstabelle!H$2),'Personalkosten 3. Jahr'!$M18/('Personalkosten 3. Jahr'!$E18-'Personalkosten 3. Jahr'!$D18+1),0),IF('Personalkosten 3. Jahr'!$C18>0,'Personalkosten 3. Jahr'!$M18/12,0))","v":0},{"$f":"IF('Personalkosten 3. Jahr'!$D18>0,IF('Personalkosten 3. Jahr'!$D18<=Hilfstabelle!I$2=AND('Personalkosten 3. Jahr'!$E18>=Hilfstabelle!I$2),'Personalkosten 3. Jahr'!$M18/('Personalkosten 3. Jahr'!$E18-'Personalkosten 3. Jahr'!$D18+1),0),IF('Personalkosten 3. Jahr'!$C18>0,'Personalkosten 3. Jahr'!$M18/12,0))","v":0},{"$f":"IF('Personalkosten 3. Jahr'!$D18>0,IF('Personalkosten 3. Jahr'!$D18<=Hilfstabelle!J$2=AND('Personalkosten 3. Jahr'!$E18>=Hilfstabelle!J$2),'Personalkosten 3. Jahr'!$M18/('Personalkosten 3. Jahr'!$E18-'Personalkosten 3. Jahr'!$D18+1),0),IF('Personalkosten 3. Jahr'!$C18>0,'Personalkosten 3. Jahr'!$M18/12,0))","v":0},{"$f":"IF('Personalkosten 3. Jahr'!$D18>0,IF('Personalkosten 3. Jahr'!$D18<=Hilfstabelle!K$2=AND('Personalkosten 3. Jahr'!$E18>=Hilfstabelle!K$2),'Personalkosten 3. Jahr'!$M18/('Personalkosten 3. Jahr'!$E18-'Personalkosten 3. Jahr'!$D18+1),0),IF('Personalkosten 3. Jahr'!$C18>0,'Personalkosten 3. Jahr'!$M18/12,0))","v":0},{"$f":"IF('Personalkosten 3. Jahr'!$D18>0,IF('Personalkosten 3. Jahr'!$D18<=Hilfstabelle!L$2=AND('Personalkosten 3. Jahr'!$E18>=Hilfstabelle!L$2),'Personalkosten 3. Jahr'!$M18/('Personalkosten 3. Jahr'!$E18-'Personalkosten 3. Jahr'!$D18+1),0),IF('Personalkosten 3. Jahr'!$C18>0,'Personalkosten 3. Jahr'!$M18/12,0))","v":0},{"$f":"IF('Personalkosten 3. Jahr'!$D18>0,IF('Personalkosten 3. Jahr'!$D18<=Hilfstabelle!M$2=AND('Personalkosten 3. Jahr'!$E18>=Hilfstabelle!M$2),'Personalkosten 3. Jahr'!$M18/('Personalkosten 3. Jahr'!$E18-'Personalkosten 3. Jahr'!$D18+1),0),IF('Personalkosten 3. Jahr'!$C18>0,'Personalkosten 3. Jahr'!$M18/12,0))","v":0},0]
[8,{"$f":"IF('Personalkosten 3. Jahr'!$D19>0,IF('Personalkosten 3. Jahr'!$D19<=Hilfstabelle!B$2=AND('Personalkosten 3. Jahr'!$E19>=Hilfstabelle!B$2),'Personalkosten 3. Jahr'!$M19/('Personalkosten 3. Jahr'!$E19-'Personalkosten 3. Jahr'!$D19+1),0),IF('Personalkosten 3. Jahr'!$C19>0,'Personalkosten 3. Jahr'!$M19/12,0))","v":0},{"$f":"IF('Personalkosten 3. Jahr'!$D19>0,IF('Personalkosten 3. Jahr'!$D19<=Hilfstabelle!C$2=AND('Personalkosten 3. Jahr'!$E19>=Hilfstabelle!C$2),'Personalkosten 3. Jahr'!$M19/('Personalkosten 3. Jahr'!$E19-'Personalkosten 3. Jahr'!$D19+1),0),IF('Personalkosten 3. Jahr'!$C19>0,'Personalkosten 3. Jahr'!$M19/12,0))","v":0},{"$f":"IF('Personalkosten 3. Jahr'!$D19>0,IF('Personalkosten 3. Jahr'!$D19<=Hilfstabelle!D$2=AND('Personalkosten 3. Jahr'!$E19>=Hilfstabelle!D$2),'Personalkosten 3. Jahr'!$M19/('Personalkosten 3. Jahr'!$E19-'Personalkosten 3. Jahr'!$D19+1),0),IF('Personalkosten 3. Jahr'!$C19>0,'Personalkosten 3. Jahr'!$M19/12,0))","v":0},{"$f":"IF('Personalkosten 3. Jahr'!$D19>0,IF('Personalkosten 3. Jahr'!$D19<=Hilfstabelle!E$2=AND('Personalkosten 3. Jahr'!$E19>=Hilfstabelle!E$2),'Personalkosten 3. Jahr'!$M19/('Personalkosten 3. Jahr'!$E19-'Personalkosten 3. Jahr'!$D19+1),0),IF('Personalkosten 3. Jahr'!$C19>0,'Personalkosten 3. Jahr'!$M19/12,0))","v":0},{"$f":"IF('Personalkosten 3. Jahr'!$D19>0,IF('Personalkosten 3. Jahr'!$D19<=Hilfstabelle!F$2=AND('Personalkosten 3. Jahr'!$E19>=Hilfstabelle!F$2),'Personalkosten 3. Jahr'!$M19/('Personalkosten 3. Jahr'!$E19-'Personalkosten 3. Jahr'!$D19+1),0),IF('Personalkosten 3. Jahr'!$C19>0,'Personalkosten 3. Jahr'!$M19/12,0))","v":0},{"$f":"IF('Personalkosten 3. Jahr'!$D19>0,IF('Personalkosten 3. Jahr'!$D19<=Hilfstabelle!G$2=AND('Personalkosten 3. Jahr'!$E19>=Hilfstabelle!G$2),'Personalkosten 3. Jahr'!$M19/('Personalkosten 3. Jahr'!$E19-'Personalkosten 3. Jahr'!$D19+1),0),IF('Personalkosten 3. Jahr'!$C19>0,'Personalkosten 3. Jahr'!$M19/12,0))","v":0},{"$f":"IF('Personalkosten 3. Jahr'!$D19>0,IF('Personalkosten 3. Jahr'!$D19<=Hilfstabelle!H$2=AND('Personalkosten 3. Jahr'!$E19>=Hilfstabelle!H$2),'Personalkosten 3. Jahr'!$M19/('Personalkosten 3. Jahr'!$E19-'Personalkosten 3. Jahr'!$D19+1),0),IF('Personalkosten 3. Jahr'!$C19>0,'Personalkosten 3. Jahr'!$M19/12,0))","v":0},{"$f":"IF('Personalkosten 3. Jahr'!$D19>0,IF('Personalkosten 3. Jahr'!$D19<=Hilfstabelle!I$2=AND('Personalkosten 3. Jahr'!$E19>=Hilfstabelle!I$2),'Personalkosten 3. Jahr'!$M19/('Personalkosten 3. Jahr'!$E19-'Personalkosten 3. Jahr'!$D19+1),0),IF('Personalkosten 3. Jahr'!$C19>0,'Personalkosten 3. Jahr'!$M19/12,0))","v":0},{"$f":"IF('Personalkosten 3. Jahr'!$D19>0,IF('Personalkosten 3. Jahr'!$D19<=Hilfstabelle!J$2=AND('Personalkosten 3. Jahr'!$E19>=Hilfstabelle!J$2),'Personalkosten 3. Jahr'!$M19/('Personalkosten 3. Jahr'!$E19-'Personalkosten 3. Jahr'!$D19+1),0),IF('Personalkosten 3. Jahr'!$C19>0,'Personalkosten 3. Jahr'!$M19/12,0))","v":0},{"$f":"IF('Personalkosten 3. Jahr'!$D19>0,IF('Personalkosten 3. Jahr'!$D19<=Hilfstabelle!K$2=AND('Personalkosten 3. Jahr'!$E19>=Hilfstabelle!K$2),'Personalkosten 3. Jahr'!$M19/('Personalkosten 3. Jahr'!$E19-'Personalkosten 3. Jahr'!$D19+1),0),IF('Personalkosten 3. Jahr'!$C19>0,'Personalkosten 3. Jahr'!$M19/12,0))","v":0},{"$f":"IF('Personalkosten 3. Jahr'!$D19>0,IF('Personalkosten 3. Jahr'!$D19<=Hilfstabelle!L$2=AND('Personalkosten 3. Jahr'!$E19>=Hilfstabelle!L$2),'Personalkosten 3. Jahr'!$M19/('Personalkosten 3. Jahr'!$E19-'Personalkosten 3. Jahr'!$D19+1),0),IF('Personalkosten 3. Jahr'!$C19>0,'Personalkosten 3. Jahr'!$M19/12,0))","v":0},{"$f":"IF('Personalkosten 3. Jahr'!$D19>0,IF('Personalkosten 3. Jahr'!$D19<=Hilfstabelle!M$2=AND('Personalkosten 3. Jahr'!$E19>=Hilfstabelle!M$2),'Personalkosten 3. Jahr'!$M19/('Personalkosten 3. Jahr'!$E19-'Personalkosten 3. Jahr'!$D19+1),0),IF('Personalkosten 3. Jahr'!$C19>0,'Personalkosten 3. Jahr'!$M19/12,0))","v":0},0]
[9,{"$f":"IF('Personalkosten 3. Jahr'!$D20>0,IF('Personalkosten 3. Jahr'!$D20<=Hilfstabelle!B$2=AND('Personalkosten 3. Jahr'!$E20>=Hilfstabelle!B$2),'Personalkosten 3. Jahr'!$M20/('Personalkosten 3. Jahr'!$E20-'Personalkosten 3. Jahr'!$D20+1),0),IF('Personalkosten 3. Jahr'!$C20>0,'Personalkosten 3. Jahr'!$M20/12,0))","v":0},{"$f":"IF('Personalkosten 3. Jahr'!$D20>0,IF('Personalkosten 3. Jahr'!$D20<=Hilfstabelle!C$2=AND('Personalkosten 3. Jahr'!$E20>=Hilfstabelle!C$2),'Personalkosten 3. Jahr'!$M20/('Personalkosten 3. Jahr'!$E20-'Personalkosten 3. Jahr'!$D20+1),0),IF('Personalkosten 3. Jahr'!$C20>0,'Personalkosten 3. Jahr'!$M20/12,0))","v":0},{"$f":"IF('Personalkosten 3. Jahr'!$D20>0,IF('Personalkosten 3. Jahr'!$D20<=Hilfstabelle!D$2=AND('Personalkosten 3. Jahr'!$E20>=Hilfstabelle!D$2),'Personalkosten 3. Jahr'!$M20/('Personalkosten 3. Jahr'!$E20-'Personalkosten 3. Jahr'!$D20+1),0),IF('Personalkosten 3. Jahr'!$C20>0,'Personalkosten 3. Jahr'!$M20/12,0))","v":0},{"$f":"IF('Personalkosten 3. Jahr'!$D20>0,IF('Personalkosten 3. Jahr'!$D20<=Hilfstabelle!E$2=AND('Personalkosten 3. Jahr'!$E20>=Hilfstabelle!E$2),'Personalkosten 3. Jahr'!$M20/('Personalkosten 3. Jahr'!$E20-'Personalkosten 3. Jahr'!$D20+1),0),IF('Personalkosten 3. Jahr'!$C20>0,'Personalkosten 3. Jahr'!$M20/12,0))","v":0},{"$f":"IF('Personalkosten 3. Jahr'!$D20>0,IF('Personalkosten 3. Jahr'!$D20<=Hilfstabelle!F$2=AND('Personalkosten 3. Jahr'!$E20>=Hilfstabelle!F$2),'Personalkosten 3. Jahr'!$M20/('Personalkosten 3. Jahr'!$E20-'Personalkosten 3. Jahr'!$D20+1),0),IF('Personalkosten 3. Jahr'!$C20>0,'Personalkosten 3. Jahr'!$M20/12,0))","v":0},{"$f":"IF('Personalkosten 3. Jahr'!$D20>0,IF('Personalkosten 3. Jahr'!$D20<=Hilfstabelle!G$2=AND('Personalkosten 3. Jahr'!$E20>=Hilfstabelle!G$2),'Personalkosten 3. Jahr'!$M20/('Personalkosten 3. Jahr'!$E20-'Personalkosten 3. Jahr'!$D20+1),0),IF('Personalkosten 3. Jahr'!$C20>0,'Personalkosten 3. Jahr'!$M20/12,0))","v":0},{"$f":"IF('Personalkosten 3. Jahr'!$D20>0,IF('Personalkosten 3. Jahr'!$D20<=Hilfstabelle!H$2=AND('Personalkosten 3. Jahr'!$E20>=Hilfstabelle!H$2),'Personalkosten 3. Jahr'!$M20/('Personalkosten 3. Jahr'!$E20-'Personalkosten 3. Jahr'!$D20+1),0),IF('Personalkosten 3. Jahr'!$C20>0,'Personalkosten 3. Jahr'!$M20/12,0))","v":0},{"$f":"IF('Personalkosten 3. Jahr'!$D20>0,IF('Personalkosten 3. Jahr'!$D20<=Hilfstabelle!I$2=AND('Personalkosten 3. Jahr'!$E20>=Hilfstabelle!I$2),'Personalkosten 3. Jahr'!$M20/('Personalkosten 3. Jahr'!$E20-'Personalkosten 3. Jahr'!$D20+1),0),IF('Personalkosten 3. Jahr'!$C20>0,'Personalkosten 3. Jahr'!$M20/12,0))","v":0},{"$f":"IF('Personalkosten 3. Jahr'!$D20>0,IF('Personalkosten 3. Jahr'!$D20<=Hilfstabelle!J$2=AND('Personalkosten 3. Jahr'!$E20>=Hilfstabelle!J$2),'Personalkosten 3. Jahr'!$M20/('Personalkosten 3. Jahr'!$E20-'Personalkosten 3. Jahr'!$D20+1),0),IF('Personalkosten 3. Jahr'!$C20>0,'Personalkosten 3. Jahr'!$M20/12,0))","v":0},{"$f":"IF('Personalkosten 3. Jahr'!$D20>0,IF('Personalkosten 3. Jahr'!$D20<=Hilfstabelle!K$2=AND('Personalkosten 3. Jahr'!$E20>=Hilfstabelle!K$2),'Personalkosten 3. Jahr'!$M20/('Personalkosten 3. Jahr'!$E20-'Personalkosten 3. Jahr'!$D20+1),0),IF('Personalkosten 3. Jahr'!$C20>0,'Personalkosten 3. Jahr'!$M20/12,0))","v":0},{"$f":"IF('Personalkosten 3. Jahr'!$D20>0,IF('Personalkosten 3. Jahr'!$D20<=Hilfstabelle!L$2=AND('Personalkosten 3. Jahr'!$E20>=Hilfstabelle!L$2),'Personalkosten 3. Jahr'!$M20/('Personalkosten 3. Jahr'!$E20-'Personalkosten 3. Jahr'!$D20+1),0),IF('Personalkosten 3. Jahr'!$C20>0,'Personalkosten 3. Jahr'!$M20/12,0))","v":0},{"$f":"IF('Personalkosten 3. Jahr'!$D20>0,IF('Personalkosten 3. Jahr'!$D20<=Hilfstabelle!M$2=AND('Personalkosten 3. Jahr'!$E20>=Hilfstabelle!M$2),'Personalkosten 3. Jahr'!$M20/('Personalkosten 3. Jahr'!$E20-'Personalkosten 3. Jahr'!$D20+1),0),IF('Personalkosten 3. Jahr'!$C20>0,'Personalkosten 3. Jahr'!$M20/12,0))","v":0},0]
[10,{"$f":"IF('Personalkosten 3. Jahr'!$D21>0,IF('Personalkosten 3. Jahr'!$D21<=Hilfstabelle!B$2=AND('Personalkosten 3. Jahr'!$E21>=Hilfstabelle!B$2),'Personalkosten 3. Jahr'!$M21/('Personalkosten 3. Jahr'!$E21-'Personalkosten 3. Jahr'!$D21+1),0),IF('Personalkosten 3. Jahr'!$C21>0,'Personalkosten 3. Jahr'!$M21/12,0))","v":0},{"$f":"IF('Personalkosten 3. Jahr'!$D21>0,IF('Personalkosten 3. Jahr'!$D21<=Hilfstabelle!C$2=AND('Personalkosten 3. Jahr'!$E21>=Hilfstabelle!C$2),'Personalkosten 3. Jahr'!$M21/('Personalkosten 3. Jahr'!$E21-'Personalkosten 3. Jahr'!$D21+1),0),IF('Personalkosten 3. Jahr'!$C21>0,'Personalkosten 3. Jahr'!$M21/12,0))","v":0},{"$f":"IF('Personalkosten 3. Jahr'!$D21>0,IF('Personalkosten 3. Jahr'!$D21<=Hilfstabelle!D$2=AND('Personalkosten 3. Jahr'!$E21>=Hilfstabelle!D$2),'Personalkosten 3. Jahr'!$M21/('Personalkosten 3. Jahr'!$E21-'Personalkosten 3. Jahr'!$D21+1),0),IF('Personalkosten 3. Jahr'!$C21>0,'Personalkosten 3. Jahr'!$M21/12,0))","v":0},{"$f":"IF('Personalkosten 3. Jahr'!$D21>0,IF('Personalkosten 3. Jahr'!$D21<=Hilfstabelle!E$2=AND('Personalkosten 3. Jahr'!$E21>=Hilfstabelle!E$2),'Personalkosten 3. Jahr'!$M21/('Personalkosten 3. Jahr'!$E21-'Personalkosten 3. Jahr'!$D21+1),0),IF('Personalkosten 3. Jahr'!$C21>0,'Personalkosten 3. Jahr'!$M21/12,0))","v":0},{"$f":"IF('Personalkosten 3. Jahr'!$D21>0,IF('Personalkosten 3. Jahr'!$D21<=Hilfstabelle!F$2=AND('Personalkosten 3. Jahr'!$E21>=Hilfstabelle!F$2),'Personalkosten 3. Jahr'!$M21/('Personalkosten 3. Jahr'!$E21-'Personalkosten 3. Jahr'!$D21+1),0),IF('Personalkosten 3. Jahr'!$C21>0,'Personalkosten 3. Jahr'!$M21/12,0))","v":0},{"$f":"IF('Personalkosten 3. Jahr'!$D21>0,IF('Personalkosten 3. Jahr'!$D21<=Hilfstabelle!G$2=AND('Personalkosten 3. Jahr'!$E21>=Hilfstabelle!G$2),'Personalkosten 3. Jahr'!$M21/('Personalkosten 3. Jahr'!$E21-'Personalkosten 3. Jahr'!$D21+1),0),IF('Personalkosten 3. Jahr'!$C21>0,'Personalkosten 3. Jahr'!$M21/12,0))","v":0},{"$f":"IF('Personalkosten 3. Jahr'!$D21>0,IF('Personalkosten 3. Jahr'!$D21<=Hilfstabelle!H$2=AND('Personalkosten 3. Jahr'!$E21>=Hilfstabelle!H$2),'Personalkosten 3. Jahr'!$M21/('Personalkosten 3. Jahr'!$E21-'Personalkosten 3. Jahr'!$D21+1),0),IF('Personalkosten 3. Jahr'!$C21>0,'Personalkosten 3. Jahr'!$M21/12,0))","v":0},{"$f":"IF('Personalkosten 3. Jahr'!$D21>0,IF('Personalkosten 3. Jahr'!$D21<=Hilfstabelle!I$2=AND('Personalkosten 3. Jahr'!$E21>=Hilfstabelle!I$2),'Personalkosten 3. Jahr'!$M21/('Personalkosten 3. Jahr'!$E21-'Personalkosten 3. Jahr'!$D21+1),0),IF('Personalkosten 3. Jahr'!$C21>0,'Personalkosten 3. Jahr'!$M21/12,0))","v":0},{"$f":"IF('Personalkosten 3. Jahr'!$D21>0,IF('Personalkosten 3. Jahr'!$D21<=Hilfstabelle!J$2=AND('Personalkosten 3. Jahr'!$E21>=Hilfstabelle!J$2),'Personalkosten 3. Jahr'!$M21/('Personalkosten 3. Jahr'!$E21-'Personalkosten 3. Jahr'!$D21+1),0),IF('Personalkosten 3. Jahr'!$C21>0,'Personalkosten 3. Jahr'!$M21/12,0))","v":0},{"$f":"IF('Personalkosten 3. Jahr'!$D21>0,IF('Personalkosten 3. Jahr'!$D21<=Hilfstabelle!K$2=AND('Personalkosten 3. Jahr'!$E21>=Hilfstabelle!K$2),'Personalkosten 3. Jahr'!$M21/('Personalkosten 3. Jahr'!$E21-'Personalkosten 3. Jahr'!$D21+1),0),IF('Personalkosten 3. Jahr'!$C21>0,'Personalkosten 3. Jahr'!$M21/12,0))","v":0},{"$f":"IF('Personalkosten 3. Jahr'!$D21>0,IF('Personalkosten 3. Jahr'!$D21<=Hilfstabelle!L$2=AND('Personalkosten 3. Jahr'!$E21>=Hilfstabelle!L$2),'Personalkosten 3. Jahr'!$M21/('Personalkosten 3. Jahr'!$E21-'Personalkosten 3. Jahr'!$D21+1),0),IF('Personalkosten 3. Jahr'!$C21>0,'Personalkosten 3. Jahr'!$M21/12,0))","v":0},{"$f":"IF('Personalkosten 3. Jahr'!$D21>0,IF('Personalkosten 3. Jahr'!$D21<=Hilfstabelle!M$2=AND('Personalkosten 3. Jahr'!$E21>=Hilfstabelle!M$2),'Personalkosten 3. Jahr'!$M21/('Personalkosten 3. Jahr'!$E21-'Personalkosten 3. Jahr'!$D21+1),0),IF('Personalkosten 3. Jahr'!$C21>0,'Personalkosten 3. Jahr'!$M21/12,0))","v":0},0]
[11,{"$f":"IF('Personalkosten 3. Jahr'!$D22>0,IF('Personalkosten 3. Jahr'!$D22<=Hilfstabelle!B$2=AND('Personalkosten 3. Jahr'!$E22>=Hilfstabelle!B$2),'Personalkosten 3. Jahr'!$M22/('Personalkosten 3. Jahr'!$E22-'Personalkosten 3. Jahr'!$D22+1),0),IF('Personalkosten 3. Jahr'!$C22>0,'Personalkosten 3. Jahr'!$M22/12,0))","v":0},{"$f":"IF('Personalkosten 3. Jahr'!$D22>0,IF('Personalkosten 3. Jahr'!$D22<=Hilfstabelle!C$2=AND('Personalkosten 3. Jahr'!$E22>=Hilfstabelle!C$2),'Personalkosten 3. Jahr'!$M22/('Personalkosten 3. Jahr'!$E22-'Personalkosten 3. Jahr'!$D22+1),0),IF('Personalkosten 3. Jahr'!$C22>0,'Personalkosten 3. Jahr'!$M22/12,0))","v":0},{"$f":"IF('Personalkosten 3. Jahr'!$D22>0,IF('Personalkosten 3. Jahr'!$D22<=Hilfstabelle!D$2=AND('Personalkosten 3. Jahr'!$E22>=Hilfstabelle!D$2),'Personalkosten 3. Jahr'!$M22/('Personalkosten 3. Jahr'!$E22-'Personalkosten 3. Jahr'!$D22+1),0),IF('Personalkosten 3. Jahr'!$C22>0,'Personalkosten 3. Jahr'!$M22/12,0))","v":0},{"$f":"IF('Personalkosten 3. Jahr'!$D22>0,IF('Personalkosten 3. Jahr'!$D22<=Hilfstabelle!E$2=AND('Personalkosten 3. Jahr'!$E22>=Hilfstabelle!E$2),'Personalkosten 3. Jahr'!$M22/('Personalkosten 3. Jahr'!$E22-'Personalkosten 3. Jahr'!$D22+1),0),IF('Personalkosten 3. Jahr'!$C22>0,'Personalkosten 3. Jahr'!$M22/12,0))","v":0},{"$f":"IF('Personalkosten 3. Jahr'!$D22>0,IF('Personalkosten 3. Jahr'!$D22<=Hilfstabelle!F$2=AND('Personalkosten 3. Jahr'!$E22>=Hilfstabelle!F$2),'Personalkosten 3. Jahr'!$M22/('Personalkosten 3. Jahr'!$E22-'Personalkosten 3. Jahr'!$D22+1),0),IF('Personalkosten 3. Jahr'!$C22>0,'Personalkosten 3. Jahr'!$M22/12,0))","v":0},{"$f":"IF('Personalkosten 3. Jahr'!$D22>0,IF('Personalkosten 3. Jahr'!$D22<=Hilfstabelle!G$2=AND('Personalkosten 3. Jahr'!$E22>=Hilfstabelle!G$2),'Personalkosten 3. Jahr'!$M22/('Personalkosten 3. Jahr'!$E22-'Personalkosten 3. Jahr'!$D22+1),0),IF('Personalkosten 3. Jahr'!$C22>0,'Personalkosten 3. Jahr'!$M22/12,0))","v":0},{"$f":"IF('Personalkosten 3. Jahr'!$D22>0,IF('Personalkosten 3. Jahr'!$D22<=Hilfstabelle!H$2=AND('Personalkosten 3. Jahr'!$E22>=Hilfstabelle!H$2),'Personalkosten 3. Jahr'!$M22/('Personalkosten 3. Jahr'!$E22-'Personalkosten 3. Jahr'!$D22+1),0),IF('Personalkosten 3. Jahr'!$C22>0,'Personalkosten 3. Jahr'!$M22/12,0))","v":0},{"$f":"IF('Personalkosten 3. Jahr'!$D22>0,IF('Personalkosten 3. Jahr'!$D22<=Hilfstabelle!I$2=AND('Personalkosten 3. Jahr'!$E22>=Hilfstabelle!I$2),'Personalkosten 3. Jahr'!$M22/('Personalkosten 3. Jahr'!$E22-'Personalkosten 3. Jahr'!$D22+1),0),IF('Personalkosten 3. Jahr'!$C22>0,'Personalkosten 3. Jahr'!$M22/12,0))","v":0},{"$f":"IF('Personalkosten 3. Jahr'!$D22>0,IF('Personalkosten 3. Jahr'!$D22<=Hilfstabelle!J$2=AND('Personalkosten 3. Jahr'!$E22>=Hilfstabelle!J$2),'Personalkosten 3. Jahr'!$M22/('Personalkosten 3. Jahr'!$E22-'Personalkosten 3. Jahr'!$D22+1),0),IF('Personalkosten 3. Jahr'!$C22>0,'Personalkosten 3. Jahr'!$M22/12,0))","v":0},{"$f":"IF('Personalkosten 3. Jahr'!$D22>0,IF('Personalkosten 3. Jahr'!$D22<=Hilfstabelle!K$2=AND('Personalkosten 3. Jahr'!$E22>=Hilfstabelle!K$2),'Personalkosten 3. Jahr'!$M22/('Personalkosten 3. Jahr'!$E22-'Personalkosten 3. Jahr'!$D22+1),0),IF('Personalkosten 3. Jahr'!$C22>0,'Personalkosten 3. Jahr'!$M22/12,0))","v":0},{"$f":"IF('Personalkosten 3. Jahr'!$D22>0,IF('Personalkosten 3. Jahr'!$D22<=Hilfstabelle!L$2=AND('Personalkosten 3. Jahr'!$E22>=Hilfstabelle!L$2),'Personalkosten 3. Jahr'!$M22/('Personalkosten 3. Jahr'!$E22-'Personalkosten 3. Jahr'!$D22+1),0),IF('Personalkosten 3. Jahr'!$C22>0,'Personalkosten 3. Jahr'!$M22/12,0))","v":0},{"$f":"IF('Personalkosten 3. Jahr'!$D22>0,IF('Personalkosten 3. Jahr'!$D22<=Hilfstabelle!M$2=AND('Personalkosten 3. Jahr'!$E22>=Hilfstabelle!M$2),'Personalkosten 3. Jahr'!$M22/('Personalkosten 3. Jahr'!$E22-'Personalkosten 3. Jahr'!$D22+1),0),IF('Personalkosten 3. Jahr'!$C22>0,'Personalkosten 3. Jahr'!$M22/12,0))","v":0},0]
[12,{"$f":"IF('Personalkosten 3. Jahr'!$D23>0,IF('Personalkosten 3. Jahr'!$D23<=Hilfstabelle!B$2=AND('Personalkosten 3. Jahr'!$E23>=Hilfstabelle!B$2),'Personalkosten 3. Jahr'!$M23/('Personalkosten 3. Jahr'!$E23-'Personalkosten 3. Jahr'!$D23+1),0),IF('Personalkosten 3. Jahr'!$C23>0,'Personalkosten 3. Jahr'!$M23/12,0))","v":0},{"$f":"IF('Personalkosten 3. Jahr'!$D23>0,IF('Personalkosten 3. Jahr'!$D23<=Hilfstabelle!C$2=AND('Personalkosten 3. Jahr'!$E23>=Hilfstabelle!C$2),'Personalkosten 3. Jahr'!$M23/('Personalkosten 3. Jahr'!$E23-'Personalkosten 3. Jahr'!$D23+1),0),IF('Personalkosten 3. Jahr'!$C23>0,'Personalkosten 3. Jahr'!$M23/12,0))","v":0},{"$f":"IF('Personalkosten 3. Jahr'!$D23>0,IF('Personalkosten 3. Jahr'!$D23<=Hilfstabelle!D$2=AND('Personalkosten 3. Jahr'!$E23>=Hilfstabelle!D$2),'Personalkosten 3. Jahr'!$M23/('Personalkosten 3. Jahr'!$E23-'Personalkosten 3. Jahr'!$D23+1),0),IF('Personalkosten 3. Jahr'!$C23>0,'Personalkosten 3. Jahr'!$M23/12,0))","v":0},{"$f":"IF('Personalkosten 3. Jahr'!$D23>0,IF('Personalkosten 3. Jahr'!$D23<=Hilfstabelle!E$2=AND('Personalkosten 3. Jahr'!$E23>=Hilfstabelle!E$2),'Personalkosten 3. Jahr'!$M23/('Personalkosten 3. Jahr'!$E23-'Personalkosten 3. Jahr'!$D23+1),0),IF('Personalkosten 3. Jahr'!$C23>0,'Personalkosten 3. Jahr'!$M23/12,0))","v":0},{"$f":"IF('Personalkosten 3. Jahr'!$D23>0,IF('Personalkosten 3. Jahr'!$D23<=Hilfstabelle!F$2=AND('Personalkosten 3. Jahr'!$E23>=Hilfstabelle!F$2),'Personalkosten 3. Jahr'!$M23/('Personalkosten 3. Jahr'!$E23-'Personalkosten 3. Jahr'!$D23+1),0),IF('Personalkosten 3. Jahr'!$C23>0,'Personalkosten 3. Jahr'!$M23/12,0))","v":0},{"$f":"IF('Personalkosten 3. Jahr'!$D23>0,IF('Personalkosten 3. Jahr'!$D23<=Hilfstabelle!G$2=AND('Personalkosten 3. Jahr'!$E23>=Hilfstabelle!G$2),'Personalkosten 3. Jahr'!$M23/('Personalkosten 3. Jahr'!$E23-'Personalkosten 3. Jahr'!$D23+1),0),IF('Personalkosten 3. Jahr'!$C23>0,'Personalkosten 3. Jahr'!$M23/12,0))","v":0},{"$f":"IF('Personalkosten 3. Jahr'!$D23>0,IF('Personalkosten 3. Jahr'!$D23<=Hilfstabelle!H$2=AND('Personalkosten 3. Jahr'!$E23>=Hilfstabelle!H$2),'Personalkosten 3. Jahr'!$M23/('Personalkosten 3. Jahr'!$E23-'Personalkosten 3. Jahr'!$D23+1),0),IF('Personalkosten 3. Jahr'!$C23>0,'Personalkosten 3. Jahr'!$M23/12,0))","v":0},{"$f":"IF('Personalkosten 3. Jahr'!$D23>0,IF('Personalkosten 3. Jahr'!$D23<=Hilfstabelle!I$2=AND('Personalkosten 3. Jahr'!$E23>=Hilfstabelle!I$2),'Personalkosten 3. Jahr'!$M23/('Personalkosten 3. Jahr'!$E23-'Personalkosten 3. Jahr'!$D23+1),0),IF('Personalkosten 3. Jahr'!$C23>0,'Personalkosten 3. Jahr'!$M23/12,0))","v":0},{"$f":"IF('Personalkosten 3. Jahr'!$D23>0,IF('Personalkosten 3. Jahr'!$D23<=Hilfstabelle!J$2=AND('Personalkosten 3. Jahr'!$E23>=Hilfstabelle!J$2),'Personalkosten 3. Jahr'!$M23/('Personalkosten 3. Jahr'!$E23-'Personalkosten 3. Jahr'!$D23+1),0),IF('Personalkosten 3. Jahr'!$C23>0,'Personalkosten 3. Jahr'!$M23/12,0))","v":0},{"$f":"IF('Personalkosten 3. Jahr'!$D23>0,IF('Personalkosten 3. Jahr'!$D23<=Hilfstabelle!K$2=AND('Personalkosten 3. Jahr'!$E23>=Hilfstabelle!K$2),'Personalkosten 3. Jahr'!$M23/('Personalkosten 3. Jahr'!$E23-'Personalkosten 3. Jahr'!$D23+1),0),IF('Personalkosten 3. Jahr'!$C23>0,'Personalkosten 3. Jahr'!$M23/12,0))","v":0},{"$f":"IF('Personalkosten 3. Jahr'!$D23>0,IF('Personalkosten 3. Jahr'!$D23<=Hilfstabelle!L$2=AND('Personalkosten 3. Jahr'!$E23>=Hilfstabelle!L$2),'Personalkosten 3. Jahr'!$M23/('Personalkosten 3. Jahr'!$E23-'Personalkosten 3. Jahr'!$D23+1),0),IF('Personalkosten 3. Jahr'!$C23>0,'Personalkosten 3. Jahr'!$M23/12,0))","v":0},{"$f":"IF('Personalkosten 3. Jahr'!$D23>0,IF('Personalkosten 3. Jahr'!$D23<=Hilfstabelle!M$2=AND('Personalkosten 3. Jahr'!$E23>=Hilfstabelle!M$2),'Personalkosten 3. Jahr'!$M23/('Personalkosten 3. Jahr'!$E23-'Personalkosten 3. Jahr'!$D23+1),0),IF('Personalkosten 3. Jahr'!$C23>0,'Personalkosten 3. Jahr'!$M23/12,0))","v":0},0]
["BG+",{"$f":"('Personalkosten 3. Jahr'!$M$25+'Personalkosten 3. Jahr'!$M$26)*Hilfstabelle!B58/'Personalkosten 3. Jahr'!$M$24","v":{"$error":"#DIV/0!"}},{"$f":"('Personalkosten 3. Jahr'!$M$25+'Personalkosten 3. Jahr'!$M$26)*Hilfstabelle!C58/'Personalkosten 3. Jahr'!$M$24","v":{"$error":"#DIV/0!"}},{"$f":"('Personalkosten 3. Jahr'!$M$25+'Personalkosten 3. Jahr'!$M$26)*Hilfstabelle!D58/'Personalkosten 3. Jahr'!$M$24","v":{"$error":"#DIV/0!"}},{"$f":"('Personalkosten 3. Jahr'!$M$25+'Personalkosten 3. Jahr'!$M$26)*Hilfstabelle!E58/'Personalkosten 3. Jahr'!$M$24","v":{"$error":"#DIV/0!"}},{"$f":"('Personalkosten 3. Jahr'!$M$25+'Personalkosten 3. Jahr'!$M$26)*Hilfstabelle!F58/'Personalkosten 3. Jahr'!$M$24","v":{"$error":"#DIV/0!"}},{"$f":"('Personalkosten 3. Jahr'!$M$25+'Personalkosten 3. Jahr'!$M$26)*Hilfstabelle!G58/'Personalkosten 3. Jahr'!$M$24","v":{"$error":"#DIV/0!"}},{"$f":"('Personalkosten 3. Jahr'!$M$25+'Personalkosten 3. Jahr'!$M$26)*Hilfstabelle!H58/'Personalkosten 3. Jahr'!$M$24","v":{"$error":"#DIV/0!"}},{"$f":"('Personalkosten 3. Jahr'!$M$25+'Personalkosten 3. Jahr'!$M$26)*Hilfstabelle!I58/'Personalkosten 3. Jahr'!$M$24","v":{"$error":"#DIV/0!"}},{"$f":"('Personalkosten 3. Jahr'!$M$25+'Personalkosten 3. Jahr'!$M$26)*Hilfstabelle!J58/'Personalkosten 3. Jahr'!$M$24","v":{"$error":"#DIV/0!"}},{"$f":"('Personalkosten 3. Jahr'!$M$25+'Personalkosten 3. Jahr'!$M$26)*Hilfstabelle!K58/'Personalkosten 3. Jahr'!$M$24","v":{"$error":"#DIV/0!"}},{"$f":"('Personalkosten 3. Jahr'!$M$25+'Personalkosten 3. Jahr'!$M$26)*Hilfstabelle!L58/'Personalkosten 3. Jahr'!$M$24","v":{"$error":"#DIV/0!"}},{"$f":"('Personalkosten 3. Jahr'!$M$25+'Personalkosten 3. Jahr'!$M$26)*Hilfstabelle!M58/'Personalkosten 3. Jahr'!$M$24","v":{"$error":"#DIV/0!"}},{"$f":"SUM(B57:M57)","v":{"$error":"#DIV/0!"}}]
["Gesamt",{"$f":"SUM(B45:B56)","v":0},0,0,0,0,0,0,0,0,0,0,0,{"$f":"SUM(B58:M58)","v":0}]
["Gesamt",{"$f":"IF(B58>0,B57+B58,B58)","v":0},{"$f":"IF(C58>0,C57+C58,C58)","v":0},0,0,0,0,0,0,0,0,0,0,{"$f":"SUM(B59:M59)","v":0}]
[]
[]
["2. Tilgungsverteilung drei Jahre für Tilgungsdarlehen"]
["1. Jahr",1,2,3,4,5,6,7,8,9,10,11,12,"Gesamt"]
["Darlehen 1:",{"$f":"IF(B$63<='Zins und Tilgung'!$H$7,0,'Zins und Tilgung'!$J13/(12-'Zins und Tilgung'!$H$7))","v":{"v":0,"d":"0.0"}},{"$f":"IF(C$63<='Zins und Tilgung'!$H$7,0,'Zins und Tilgung'!$J13/(12-'Zins und Tilgung'!$H$7))","v":{"v":0,"d":"0.0"}},{"$f":"IF(D$63<='Zins und Tilgung'!$H$7,0,'Zins und Tilgung'!$J13/(12-'Zins und Tilgung'!$H$7))","v":{"v":0,"d":"0.0"}},{"$f":"IF(E$63<='Zins und Tilgung'!$H$7,0,'Zins und Tilgung'!$J13/(12-'Zins und Tilgung'!$H$7))","v":{"v":0,"d":"0.0"}},{"$f":"IF(F$63<='Zins und Tilgung'!$H$7,0,'Zins und Tilgung'!$J13/(12-'Zins und Tilgung'!$H$7))","v":{"v":0,"d":"0.0"}},{"$f":"IF(G$63<='Zins und Tilgung'!$H$7,0,'Zins und Tilgung'!$J13/(12-'Zins und Tilgung'!$H$7))","v":{"v":0,"d":"0.0"}},{"$f":"IF(H$63<='Zins und Tilgung'!$H$7,0,'Zins und Tilgung'!$J13/(12-'Zins und Tilgung'!$H$7))","v":{"v":0,"d":"0.0"}},{"$f":"IF(I$63<='Zins und Tilgung'!$H$7,0,'Zins und Tilgung'!$J13/(12-'Zins und Tilgung'!$H$7))","v":{"v":0,"d":"0.0"}},{"$f":"IF(J$63<='Zins und Tilgung'!$H$7,0,'Zins und Tilgung'!$J13/(12-'Zins und Tilgung'!$H$7))","v":{"v":0,"d":"0.0"}},{"$f":"IF(K$63<='Zins und Tilgung'!$H$7,0,'Zins und Tilgung'!$J13/(12-'Zins und Tilgung'!$H$7))","v":{"v":0,"d":"0.0"}},{"$f":"IF(L$63<='Zins und Tilgung'!$H$7,0,'Zins und Tilgung'!$J13/(12-'Zins und Tilgung'!$H$7))","v":{"v":0,"d":"0.0"}},{"$f":"IF(M$63<='Zins und Tilgung'!$H$7,0,'Zins und Tilgung'!$J13/(12-'Zins und Tilgung'!$H$7))","v":{"v":0,"d":"0.0"}},{"$f":"SUM(B64:M64)","v":0}]
["Darlehen 2:",{"$f":"IF(B$63<='Zins und Tilgung'!$N$7,0,'Zins und Tilgung'!$P13/(12-'Zins und Tilgung'!$N$7))","v":{"v":0,"d":"0.0"}},{"$f":"IF(C$63<='Zins und Tilgung'!$N$7,0,'Zins und Tilgung'!$P13/(12-'Zins und Tilgung'!$N$7))","v":{"v":0,"d":"0.0"}},{"$f":"IF(D$63<='Zins und Tilgung'!$N$7,0,'Zins und Tilgung'!$P13/(12-'Zins und Tilgung'!$N$7))","v":{"v":0,"d":"0.0"}},{"$f":"IF(E$63<='Zins und Tilgung'!$N$7,0,'Zins und Tilgung'!$P13/(12-'Zins und Tilgung'!$N$7))","v":{"v":0,"d":"0.0"}},{"$f":"IF(F$63<='Zins und Tilgung'!$N$7,0,'Zins und Tilgung'!$P13/(12-'Zins und Tilgung'!$N$7))","v":{"v":0,"d":"0.0"}},{"$f":"IF(G$63<='Zins und Tilgung'!$N$7,0,'Zins und Tilgung'!$P13/(12-'Zins und Tilgung'!$N$7))","v":{"v":0,"d":"0.0"}},{"$f":"IF(H$63<='Zins und Tilgung'!$N$7,0,'Zins und Tilgung'!$P13/(12-'Zins und Tilgung'!$N$7))","v":{"v":0,"d":"0.0"}},{"$f":"IF(I$63<='Zins und Tilgung'!$N$7,0,'Zins und Tilgung'!$P13/(12-'Zins und Tilgung'!$N$7))","v":{"v":0,"d":"0.0"}},{"$f":"IF(J$63<='Zins und Tilgung'!$N$7,0,'Zins und Tilgung'!$P13/(12-'Zins und Tilgung'!$N$7))","v":{"v":0,"d":"0.0"}},{"$f":"IF(K$63<='Zins und Tilgung'!$N$7,0,'Zins und Tilgung'!$P13/(12-'Zins und Tilgung'!$N$7))","v":{"v":0,"d":"0.0"}},{"$f":"IF(L$63<='Zins und Tilgung'!$N$7,0,'Zins und Tilgung'!$P13/(12-'Zins und Tilgung'!$N$7))","v":{"v":0,"d":"0.0"}},{"$f":"IF(M$63<='Zins und Tilgung'!$N$7,0,'Zins und Tilgung'!$P13/(12-'Zins und Tilgung'!$N$7))","v":{"v":0,"d":"0.0"}},{"$f":"SUM(B65:M65)","v":0}]
["Mikromezzanin",{"$f":"IF(B$63<='Zins und Tilgung'!$T$8*12,0,'Zins und Tilgung'!$V14/(12-'Zins und Tilgung'!$T$7))","v":{"v":0,"d":"0.0"}},{"$f":"IF(C$63<='Zins und Tilgung'!$T$7,0,'Zins und Tilgung'!$V14/(12-'Zins und Tilgung'!$T$7))","v":{"v":0,"d":"0.0"}},{"$f":"IF(D$63<='Zins und Tilgung'!$T$7,0,'Zins und Tilgung'!$V14/(12-'Zins und Tilgung'!$T$7))","v":{"v":0,"d":"0.0"}},{"$f":"IF(E$63<='Zins und Tilgung'!$T$7,0,'Zins und Tilgung'!$V14/(12-'Zins und Tilgung'!$T$7))","v":{"v":0,"d":"0.0"}},{"$f":"IF(F$63<='Zins und Tilgung'!$T$7,0,'Zins und Tilgung'!$V14/(12-'Zins und Tilgung'!$T$7))","v":{"v":0,"d":"0.0"}},{"$f":"IF(G$63<='Zins und Tilgung'!$T$7,0,'Zins und Tilgung'!$V14/(12-'Zins und Tilgung'!$T$7))","v":{"v":0,"d":"0.0"}},{"$f":"IF(H$63<='Zins und Tilgung'!$T$7,0,'Zins und Tilgung'!$V14/(12-'Zins und Tilgung'!$T$7))","v":{"v":0,"d":"0.0"}},{"$f":"IF(I$63<='Zins und Tilgung'!$T$7,0,'Zins und Tilgung'!$V14/(12-'Zins und Tilgung'!$T$7))","v":{"v":0,"d":"0.0"}},{"$f":"IF(J$63<='Zins und Tilgung'!$T$7,0,'Zins und Tilgung'!$V14/(12-'Zins und Tilgung'!$T$7))","v":{"v":0,"d":"0.0"}},{"$f":"IF(K$63<='Zins und Tilgung'!$T$7,0,'Zins und Tilgung'!$V14/(12-'Zins und Tilgung'!$T$7))","v":{"v":0,"d":"0.0"}},{"$f":"IF('Zins und Tilgung'!$T1<=12,'Zins und Tilgung'!$V8/12,IF(L$69<='Zins und Tilgung'!$T$7,0,'Zins und Tilgung'!$V8/(24-'Zins und Tilgung'!$T$7)))","v":{"v":0,"d":"0.0"}},{"$f":"IF('Zins und Tilgung'!$T1<=12,'Zins und Tilgung'!$V8/12,IF(M$69<='Zins und Tilgung'!$T$7,0,'Zins und Tilgung'!$V8/(24-'Zins und Tilgung'!$T$7)))","v":{"v":0,"d":"0.0"}},{"$f":"SUM(B66:M66)","v":0}]
["Gesamt",{"$f":"SUM(B64:B66)","v":{"v":0,"d":"0.0"}},{"$f":"SUM(C64:C66)","v":{"v":0,"d":"0.0"}},{"v":0,"d":"0.0"},{"v":0,"d":"0.0"},{"v":0,"d":"0.0"},{"v":0,"d":"0.0"},{"v":0,"d":"0.0"},{"v":0,"d":"0.0"},{"v":0,"d":"0.0"},{"v":0,"d":"0.0"},{"v":0,"d":"0.0"},{"v":0,"d":"0.0"},{"$f":"SUM(N64:N66)","v":0},{"$f":"SUM(B67:M67)","v":{"v":0,"d":"0.0"}}]
[]
["2. Jahr",13,14,15,16,17,18,19,20,21,22,23,24,"Gesamt"]
["Darlehen 1:",{"$f":"IF('Zins und Tilgung'!$H7<=12,'Zins und Tilgung'!$J14/12,IF(B$69<='Zins und Tilgung'!$H$7,0,'Zins und Tilgung'!$J14/(24-'Zins und Tilgung'!$H$7)))","v":{"v":0,"d":"0.0"}},{"$f":"IF('Zins und Tilgung'!$H7<=12,'Zins und Tilgung'!$J14/12,IF(C$69<='Zins und Tilgung'!$H$7,0,'Zins und Tilgung'!$J14/(24-'Zins und Tilgung'!$H$7)))","v":{"v":0,"d":"0.0"}},{"$f":"IF('Zins und Tilgung'!$H7<=12,'Zins und Tilgung'!$J14/12,IF(D$69<='Zins und Tilgung'!$H$7,0,'Zins und Tilgung'!$J14/(24-'Zins und Tilgung'!$H$7)))","v":{"v":0,"d":"0.0"}},{"$f":"IF('Zins und Tilgung'!$H7<=12,'Zins und Tilgung'!$J14/12,IF(E$69<='Zins und Tilgung'!$H$7,0,'Zins und Tilgung'!$J14/(24-'Zins und Tilgung'!$H$7)))","v":{"v":0,"d":"0.0"}},{"$f":"IF('Zins und Tilgung'!$H7<=12,'Zins und Tilgung'!$J14/12,IF(F$69<='Zins und Tilgung'!$H$7,0,'Zins und Tilgung'!$J14/(24-'Zins und Tilgung'!$H$7)))","v":{"v":0,"d":"0.0"}},{"$f":"IF('Zins und Tilgung'!$H7<=12,'Zins und Tilgung'!$J14/12,IF(G$69<='Zins und Tilgung'!$H$7,0,'Zins und Tilgung'!$J14/(24-'Zins und Tilgung'!$H$7)))","v":{"v":0,"d":"0.0"}},{"$f":"IF('Zins und Tilgung'!$H7<=12,'Zins und Tilgung'!$J14/12,IF(H$69<='Zins und Tilgung'!$H$7,0,'Zins und Tilgung'!$J14/(24-'Zins und Tilgung'!$H$7)))","v":{"v":0,"d":"0.0"}},{"$f":"IF('Zins und Tilgung'!$H7<=12,'Zins und Tilgung'!$J14/12,IF(I$69<='Zins und Tilgung'!$H$7,0,'Zins und Tilgung'!$J14/(24-'Zins und Tilgung'!$H$7)))","v":{"v":0,"d":"0.0"}},{"$f":"IF('Zins und Tilgung'!$H7<=12,'Zins und Tilgung'!$J14/12,IF(J$69<='Zins und Tilgung'!$H$7,0,'Zins und Tilgung'!$J14/(24-'Zins und Tilgung'!$H$7)))","v":{"v":0,"d":"0.0"}},{"$f":"IF('Zins und Tilgung'!$H7<=12,'Zins und Tilgung'!$J14/12,IF(K$69<='Zins und Tilgung'!$H$7,0,'Zins und Tilgung'!$J14/(24-'Zins und Tilgung'!$H$7)))","v":{"v":0,"d":"0.0"}},{"$f":"IF('Zins und Tilgung'!$H7<=12,'Zins und Tilgung'!$J14/12,IF(L$69<='Zins und Tilgung'!$H$7,0,'Zins und Tilgung'!$J14/(24-'Zins und Tilgung'!$H$7)))","v":{"v":0,"d":"0.0"}},{"$f":"IF('Zins und Tilgung'!$H7<=12,'Zins und Tilgung'!$J14/12,IF(M$69<='Zins und Tilgung'!$H$7,0,'Zins und Tilgung'!$J14/(24-'Zins und Tilgung'!$H$7)))","v":{"v":0,"d":"0.0"}},{"$f":"SUM(B70:M70)","v":0}]
["Darlehen 2:",{"$f":"IF('Zins und Tilgung'!$N7<=12,'Zins und Tilgung'!$P14/12,IF(B$69<='Zins und Tilgung'!$N$7,0,'Zins und Tilgung'!$P14/(24-'Zins und Tilgung'!$N$7)))","v":{"v":0,"d":"0.0"}},{"$f":"IF('Zins und Tilgung'!$N7<=12,'Zins und Tilgung'!$P14/12,IF(C$69<='Zins und Tilgung'!$N$7,0,'Zins und Tilgung'!$P14/(24-'Zins und Tilgung'!$N$7)))","v":{"v":0,"d":"0.0"}},{"$f":"IF('Zins und Tilgung'!$N7<=12,'Zins und Tilgung'!$P14/12,IF(D$69<='Zins und Tilgung'!$N$7,0,'Zins und Tilgung'!$P14/(24-'Zins und Tilgung'!$N$7)))","v":{"v":0,"d":"0.0"}},{"$f":"IF('Zins und Tilgung'!$N7<=12,'Zins und Tilgung'!$P14/12,IF(E$69<='Zins und Tilgung'!$N$7,0,'Zins und Tilgung'!$P14/(24-'Zins und Tilgung'!$N$7)))","v":{"v":0,"d":"0.0"}},{"$f":"IF('Zins und Tilgung'!$N7<=12,'Zins und Tilgung'!$P14/12,IF(F$69<='Zins und Tilgung'!$N$7,0,'Zins und Tilgung'!$P14/(24-'Zins und Tilgung'!$N$7)))","v":{"v":0,"d":"0.0"}},{"$f":"IF('Zins und Tilgung'!$N7<=12,'Zins und Tilgung'!$P14/12,IF(G$69<='Zins und Tilgung'!$N$7,0,'Zins und Tilgung'!$P14/(24-'Zins und Tilgung'!$N$7)))","v":{"v":0,"d":"0.0"}},{"$f":"IF('Zins und Tilgung'!$N7<=12,'Zins und Tilgung'!$P14/12,IF(H$69<='Zins und Tilgung'!$N$7,0,'Zins und Tilgung'!$P14/(24-'Zins und Tilgung'!$N$7)))","v":{"v":0,"d":"0.0"}},{"$f":"IF('Zins und Tilgung'!$N7<=12,'Zins und Tilgung'!$P14/12,IF(I$69<='Zins und Tilgung'!$N$7,0,'Zins und Tilgung'!$P14/(24-'Zins und Tilgung'!$N$7)))","v":{"v":0,"d":"0.0"}},{"$f":"IF('Zins und Tilgung'!$N7<=12,'Zins und Tilgung'!$P14/12,IF(J$69<='Zins und Tilgung'!$N$7,0,'Zins und Tilgung'!$P14/(24-'Zins und Tilgung'!$N$7)))","v":{"v":0,"d":"0.0"}},{"$f":"IF('Zins und Tilgung'!$N7<=12,'Zins und Tilgung'!$P14/12,IF(K$69<='Zins und Tilgung'!$N$7,0,'Zins und Tilgung'!$P14/(24-'Zins und Tilgung'!$N$7)))","v":{"v":0,"d":"0.0"}},{"$f":"IF('Zins und Tilgung'!$N7<=12,'Zins und Tilgung'!$P14/12,IF(L$69<='Zins und Tilgung'!$N$7,0,'Zins und Tilgung'!$P14/(24-'Zins und Tilgung'!$N$7)))","v":{"v":0,"d":"0.0"}},{"$f":"IF('Zins und Tilgung'!$N7<=12,'Zins und Tilgung'!$P14/12,IF(M$69<='Zins und Tilgung'!$N$7,0,'Zins und Tilgung'!$P14/(24-'Zins und Tilgung'!$N$7)))","v":{"v":0,"d":"0.0"}},{"$f":"SUM(B71:M71)","v":0}]
["Mikromezzanin",{"$f":"IF('Zins und Tilgung'!$T7<=12,'Zins und Tilgung'!$V15/12,IF(B$69<='Zins und Tilgung'!$T$7,0,'Zins und Tilgung'!$V15/(24-'Zins und Tilgung'!$T$7)))","v":{"v":0,"d":"0.0"}},{"$f":"IF('Zins und Tilgung'!$T7<=12,'Zins und Tilgung'!$V15/12,IF(C$69<='Zins und Tilgung'!$T$7,0,'Zins und Tilgung'!$V15/(24-'Zins und Tilgung'!$T$7)))","v":{"v":0,"d":"0.0"}},{"$f":"IF('Zins und Tilgung'!$T7<=12,'Zins und Tilgung'!$V15/12,IF(D$69<='Zins und Tilgung'!$T$7,0,'Zins und Tilgung'!$V15/(24-'Zins und Tilgung'!$T$7)))","v":{"v":0,"d":"0.0"}},{"$f":"IF('Zins und Tilgung'!$T7<=12,'Zins und Tilgung'!$V15/12,IF(E$69<='Zins und Tilgung'!$T$7,0,'Zins und Tilgung'!$V15/(24-'Zins und Tilgung'!$T$7)))","v":{"v":0,"d":"0.0"}},{"$f":"IF('Zins und Tilgung'!$T7<=12,'Zins und Tilgung'!$V15/12,IF(F$69<='Zins und Tilgung'!$T$7,0,'Zins und Tilgung'!$V15/(24-'Zins und Tilgung'!$T$7)))","v":{"v":0,"d":"0.0"}},{"$f":"IF('Zins und Tilgung'!$T7<=12,'Zins und Tilgung'!$V15/12,IF(G$69<='Zins und Tilgung'!$T$7,0,'Zins und Tilgung'!$V15/(24-'Zins und Tilgung'!$T$7)))","v":{"v":0,"d":"0.0"}},{"$f":"IF('Zins und Tilgung'!$T7<=12,'Zins und Tilgung'!$V15/12,IF(H$69<='Zins und Tilgung'!$T$7,0,'Zins und Tilgung'!$V15/(24-'Zins und Tilgung'!$T$7)))","v":{"v":0,"d":"0.0"}},{"$f":"IF('Zins und Tilgung'!$T7<=12,'Zins und Tilgung'!$V15/12,IF(I$69<='Zins und Tilgung'!$T$7,0,'Zins und Tilgung'!$V15/(24-'Zins und Tilgung'!$T$7)))","v":{"v":0,"d":"0.0"}},{"$f":"IF('Zins und Tilgung'!$T7<=12,'Zins und Tilgung'!$V15/12,IF(J$69<='Zins und Tilgung'!$T$7,0,'Zins und Tilgung'!$V15/(24-'Zins und Tilgung'!$T$7)))","v":{"v":0,"d":"0.0"}},{"$f":"IF('Zins und Tilgung'!$T7<=12,'Zins und Tilgung'!$V15/12,IF(K$69<='Zins und Tilgung'!$T$7,0,'Zins und Tilgung'!$V15/(24-'Zins und Tilgung'!$T$7)))","v":{"v":0,"d":"0.0"}},{"$f":"IF('Zins und Tilgung'!$T7<=12,'Zins und Tilgung'!$V15/12,IF(L$69<='Zins und Tilgung'!$T$7,0,'Zins und Tilgung'!$V15/(24-'Zins und Tilgung'!$T$7)))","v":{"v":0,"d":"0.0"}},{"$f":"IF('Zins und Tilgung'!$T7<=12,'Zins und Tilgung'!$V15/12,IF(M$69<='Zins und Tilgung'!$T$7,0,'Zins und Tilgung'!$V15/(24-'Zins und Tilgung'!$T$7)))","v":{"v":0,"d":"0.0"}},{"$f":"SUM(B72:M72)","v":0}]
["Gesamt",{"$f":"SUM(B70:B72)","v":{"v":0,"d":"0.0"}},{"v":0,"d":"0.0"},{"v":0,"d":"0.0"},{"v":0,"d":"0.0"},{"v":0,"d":"0.0"},{"v":0,"d":"0.0"},{"v":0,"d":"0.0"},{"v":0,"d":"0.0"},{"v":0,"d":"0.0"},{"v":0,"d":"0.0"},{"v":0,"d":"0.0"},{"v":0,"d":"0.0"},{"$f":"SUM(N70:N72)","v":0},{"$f":"SUM(B73:M73)","v":{"v":0,"d":"0.0"}}]
[]
["3. Jahr",25,26,27,28,29,30,31,32,33,34,35,36,"Gesamt"]
["Darlehen 1:",{"$f":"IF('Zins und Tilgung'!$H7<=24,'Zins und Tilgung'!$J15/12,IF(B$75<='Zins und Tilgung'!$H$7,0,'Zins und Tilgung'!$J15/(36-'Zins und Tilgung'!$H$7)))","v":{"v":0,"d":"0.0"}},{"$f":"IF('Zins und Tilgung'!$H7<=24,'Zins und Tilgung'!$J15/12,IF(C$75<='Zins und Tilgung'!$H$7,0,'Zins und Tilgung'!$J15/(36-'Zins und Tilgung'!$H$7)))","v":{"v":0,"d":"0.0"}},{"$f":"IF('Zins und Tilgung'!$H7<=24,'Zins und Tilgung'!$J15/12,IF(D$75<='Zins und Tilgung'!$H$7,0,'Zins und Tilgung'!$J15/(36-'Zins und Tilgung'!$H$7)))","v":{"v":0,"d":"0.0"}},{"$f":"IF('Zins und Tilgung'!$H7<=24,'Zins und Tilgung'!$J15/12,IF(E$75<='Zins und Tilgung'!$H$7,0,'Zins und Tilgung'!$J15/(36-'Zins und Tilgung'!$H$7)))","v":{"v":0,"d":"0.0"}},{"$f":"IF('Zins und Tilgung'!$H7<=24,'Zins und Tilgung'!$J15/12,IF(F$75<='Zins und Tilgung'!$H$7,0,'Zins und Tilgung'!$J15/(36-'Zins und Tilgung'!$H$7)))","v":{"v":0,"d":"0.0"}},{"$f":"IF('Zins und Tilgung'!$H7<=24,'Zins und Tilgung'!$J15/12,IF(G$75<='Zins und Tilgung'!$H$7,0,'Zins und Tilgung'!$J15/(36-'Zins und Tilgung'!$H$7)))","v":{"v":0,"d":"0.0"}},{"$f":"IF('Zins und Tilgung'!$H7<=24,'Zins und Tilgung'!$J15/12,IF(H$75<='Zins und Tilgung'!$H$7,0,'Zins und Tilgung'!$J15/(36-'Zins und Tilgung'!$H$7)))","v":{"v":0,"d":"0.0"}},{"$f":"IF('Zins und Tilgung'!$H7<=24,'Zins und Tilgung'!$J15/12,IF(I$75<='Zins und Tilgung'!$H$7,0,'Zins und Tilgung'!$J15/(36-'Zins und Tilgung'!$H$7)))","v":{"v":0,"d":"0.0"}},{"$f":"IF('Zins und Tilgung'!$H7<=24,'Zins und Tilgung'!$J15/12,IF(J$75<='Zins und Tilgung'!$H$7,0,'Zins und Tilgung'!$J15/(36-'Zins und Tilgung'!$H$7)))","v":{"v":0,"d":"0.0"}},{"$f":"IF('Zins und Tilgung'!$H7<=24,'Zins und Tilgung'!$J15/12,IF(K$75<='Zins und Tilgung'!$H$7,0,'Zins und Tilgung'!$J15/(36-'Zins und Tilgung'!$H$7)))","v":{"v":0,"d":"0.0"}},{"$f":"IF('Zins und Tilgung'!$H7<=24,'Zins und Tilgung'!$J15/12,IF(L$75<='Zins und Tilgung'!$H$7,0,'Zins und Tilgung'!$J15/(36-'Zins und Tilgung'!$H$7)))","v":{"v":0,"d":"0.0"}},{"$f":"IF('Zins und Tilgung'!$H7<=24,'Zins und Tilgung'!$J15/12,IF(M$75<='Zins und Tilgung'!$H$7,0,'Zins und Tilgung'!$J15/(36-'Zins und Tilgung'!$H$7)))","v":{"v":0,"d":"0.0"}},{"$f":"SUM(B76:M76)","v":0}]
["Darlehen 2:",{"$f":"IF('Zins und Tilgung'!$N7<=24,'Zins und Tilgung'!$P15/12,IF(B$75<='Zins und Tilgung'!$N$7,0,'Zins und Tilgung'!$P15/(36-'Zins und Tilgung'!$N$7)))","v":{"v":0,"d":"0.0"}},{"$f":"IF('Zins und Tilgung'!$N7<=24,'Zins und Tilgung'!$P15/12,IF(C$75<='Zins und Tilgung'!$N$7,0,'Zins und Tilgung'!$P15/(36-'Zins und Tilgung'!$N$7)))","v":{"v":0,"d":"0.0"}},{"$f":"IF('Zins und Tilgung'!$N7<=24,'Zins und Tilgung'!$P15/12,IF(D$75<='Zins und Tilgung'!$N$7,0,'Zins und Tilgung'!$P15/(36-'Zins und Tilgung'!$N$7)))","v":{"v":0,"d":"0.0"}},{"$f":"IF('Zins und Tilgung'!$N7<=24,'Zins und Tilgung'!$P15/12,IF(E$75<='Zins und Tilgung'!$N$7,0,'Zins und Tilgung'!$P15/(36-'Zins und Tilgung'!$N$7)))","v":{"v":0,"d":"0.0"}},{"$f":"IF('Zins und Tilgung'!$N7<=24,'Zins und Tilgung'!$P15/12,IF(F$75<='Zins und Tilgung'!$N$7,0,'Zins und Tilgung'!$P15/(36-'Zins und Tilgung'!$N$7)))","v":{"v":0,"d":"0.0"}},{"$f":"IF('Zins und Tilgung'!$N7<=24,'Zins und Tilgung'!$P15/12,IF(G$75<='Zins und Tilgung'!$N$7,0,'Zins und Tilgung'!$P15/(36-'Zins und Tilgung'!$N$7)))","v":{"v":0,"d":"0.0"}},{"$f":"IF('Zins und Tilgung'!$N7<=24,'Zins und Tilgung'!$P15/12,IF(H$75<='Zins und Tilgung'!$N$7,0,'Zins und Tilgung'!$P15/(36-'Zins und Tilgung'!$N$7)))","v":{"v":0,"d":"0.0"}},{"$f":"IF('Zins und Tilgung'!$N7<=24,'Zins und Tilgung'!$P15/12,IF(I$75<='Zins und Tilgung'!$N$7,0,'Zins und Tilgung'!$P15/(36-'Zins und Tilgung'!$N$7)))","v":{"v":0,"d":"0.0"}},{"$f":"IF('Zins und Tilgung'!$N7<=24,'Zins und Tilgung'!$P15/12,IF(J$75<='Zins und Tilgung'!$N$7,0,'Zins und Tilgung'!$P15/(36-'Zins und Tilgung'!$N$7)))","v":{"v":0,"d":"0.0"}},{"$f":"IF('Zins und Tilgung'!$N7<=24,'Zins und Tilgung'!$P15/12,IF(K$75<='Zins und Tilgung'!$N$7,0,'Zins und Tilgung'!$P15/(36-'Zins und Tilgung'!$N$7)))","v":{"v":0,"d":"0.0"}},{"$f":"IF('Zins und Tilgung'!$N7<=24,'Zins und Tilgung'!$P15/12,IF(L$75<='Zins und Tilgung'!$N$7,0,'Zins und Tilgung'!$P15/(36-'Zins und Tilgung'!$N$7)))","v":{"v":0,"d":"0.0"}},{"$f":"IF('Zins und Tilgung'!$N7<=24,'Zins und Tilgung'!$P15/12,IF(M$75<='Zins und Tilgung'!$N$7,0,'Zins und Tilgung'!$P15/(36-'Zins und Tilgung'!$N$7)))","v":{"v":0,"d":"0.0"}},{"$f":"SUM(B77:M77)","v":0}]
["Mikromezzanin",{"$f":"IF('Zins und Tilgung'!$T7<=24,'Zins und Tilgung'!$V16/12,IF(B$75<='Zins und Tilgung'!$T$7,0,'Zins und Tilgung'!$V16/(36-'Zins und Tilgung'!$T$7)))","v":{"v":0,"d":"0.0"}},{"$f":"IF('Zins und Tilgung'!$T7<=24,'Zins und Tilgung'!$V16/12,IF(C$75<='Zins und Tilgung'!$T$7,0,'Zins und Tilgung'!$V16/(36-'Zins und Tilgung'!$T$7)))","v":{"v":0,"d":"0.0"}},{"$f":"IF('Zins und Tilgung'!$T7<=24,'Zins und Tilgung'!$V16/12,IF(D$75<='Zins und Tilgung'!$T$7,0,'Zins und Tilgung'!$V16/(36-'Zins und Tilgung'!$T$7)))","v":{"v":0,"d":"0.0"}},{"$f":"IF('Zins und Tilgung'!$T7<=24,'Zins und Tilgung'!$V16/12,IF(E$75<='Zins und Tilgung'!$T$7,0,'Zins und Tilgung'!$V16/(36-'Zins und Tilgung'!$T$7)))","v":{"v":0,"d":"0.0"}},{"$f":"IF('Zins und Tilgung'!$T7<=24,'Zins und Tilgung'!$V16/12,IF(F$75<='Zins und Tilgung'!$T$7,0,'Zins und Tilgung'!$V16/(36-'Zins und Tilgung'!$T$7)))","v":{"v":0,"d":"0.0"}},{"$f":"IF('Zins und Tilgung'!$T7<=24,'Zins und Tilgung'!$V16/12,IF(G$75<='Zins und Tilgung'!$T$7,0,'Zins und Tilgung'!$V16/(36-'Zins und Tilgung'!$T$7)))","v":{"v":0,"d":"0.0"}},{"$f":"IF('Zins und Tilgung'!$T7<=24,'Zins und Tilgung'!$V16/12,IF(H$75<='Zins und Tilgung'!$T$7,0,'Zins und Tilgung'!$V16/(36-'Zins und Tilgung'!$T$7)))","v":{"v":0,"d":"0.0"}},{"$f":"IF('Zins und Tilgung'!$T7<=24,'Zins und Tilgung'!$V16/12,IF(I$75<='Zins und Tilgung'!$T$7,0,'Zins und Tilgung'!$V16/(36-'Zins und Tilgung'!$T$7)))","v":{"v":0,"d":"0.0"}},{"$f":"IF('Zins und Tilgung'!$T7<=24,'Zins und Tilgung'!$V16/12,IF(J$75<='Zins und Tilgung'!$T$7,0,'Zins und Tilgung'!$V16/(36-'Zins und Tilgung'!$T$7)))","v":{"v":0,"d":"0.0"}},{"$f":"IF('Zins und Tilgung'!$T7<=24,'Zins und Tilgung'!$V16/12,IF(K$75<='Zins und Tilgung'!$T$7,0,'Zins und Tilgung'!$V16/(36-'Zins und Tilgung'!$T$7)))","v":{"v":0,"d":"0.0"}},{"$f":"IF('Zins und Tilgung'!$T7<=24,'Zins und Tilgung'!$V16/12,IF(L$75<='Zins und Tilgung'!$T$7,0,'Zins und Tilgung'!$V16/(36-'Zins und Tilgung'!$T$7)))","v":{"v":0,"d":"0.0"}},{"$f":"IF('Zins und Tilgung'!$T7<=24,'Zins und Tilgung'!$V16/12,IF(M$75<='Zins und Tilgung'!$T$7,0,'Zins und Tilgung'!$V16/(36-'Zins und Tilgung'!$T$7)))","v":{"v":0,"d":"0.0"}},{"$f":"SUM(B78:M78)","v":0}]
["Gesamt",{"$f":"SUM(B76:B78)","v":{"v":0,"d":"0.0"}},{"v":0,"d":"0.0"},{"v":0,"d":"0.0"},{"v":0,"d":"0.0"},{"v":0,"d":"0.0"},{"v":0,"d":"0.0"},{"v":0,"d":"0.0"},{"v":0,"d":"0.0"},{"v":0,"d":"0.0"},{"v":0,"d":"0.0"},{"v":0,"d":"0.0"},{"v":0,"d":"0.0"},{"$f":"SUM(N76:N78)","v":0},{"$f":"SUM(B79:M79)","v":{"v":0,"d":"0.0"}}]
[]
[]
["3. Zinsverteilung drei Jahre für Tilgungsdarlehen"]
["1. Jahr",1,2,3,4,5,6,7,8,9,10,11,12,"Gesamt"]
["Darlehen 1:",{"$f":"IF(B64=0,'Zins und Tilgung'!$H13*'Zins und Tilgung'!$H$5/100/12,('Zins und Tilgung'!H$13-Hilfstabelle!$B64)*'Zins und Tilgung'!$H$5/100/12)","v":{"v":0,"d":"0.0"}},{"$f":"IF(C64=0,'Zins und Tilgung'!$H13*'Zins und Tilgung'!$H$5/100/12,('Zins und Tilgung'!$H13-SUM($B64:C64))*'Zins und Tilgung'!$H$5/100/12)","v":{"v":0,"d":"0.0"}},{"$f":"IF(D64=0,'Zins und Tilgung'!$H13*'Zins und Tilgung'!$H$5/100/12,('Zins und Tilgung'!$H13-SUM($B64:D64))*'Zins und Tilgung'!$H$5/100/12)","v":{"v":0,"d":"0.0"}},{"$f":"IF(E64=0,'Zins und Tilgung'!$H13*'Zins und Tilgung'!$H$5/100/12,('Zins und Tilgung'!$H13-SUM($B64:E64))*'Zins und Tilgung'!$H$5/100/12)","v":{"v":0,"d":"0.0"}},{"$f":"IF(F64=0,'Zins und Tilgung'!$H13*'Zins und Tilgung'!$H$5/100/12,('Zins und Tilgung'!$H13-SUM($B64:F64))*'Zins und Tilgung'!$H$5/100/12)","v":{"v":0,"d":"0.0"}},{"$f":"IF(G64=0,'Zins und Tilgung'!$H13*'Zins und Tilgung'!$H$5/100/12,('Zins und Tilgung'!$H13-SUM($B64:G64))*'Zins und Tilgung'!$H$5/100/12)","v":{"v":0,"d":"0.0"}},{"$f":"IF(H64=0,'Zins und Tilgung'!$H13*'Zins und Tilgung'!$H$5/100/12,('Zins und Tilgung'!$H13-SUM($B64:H64))*'Zins und Tilgung'!$H$5/100/12)","v":{"v":0,"d":"0.0"}},{"$f":"IF(I64=0,'Zins und Tilgung'!$H13*'Zins und Tilgung'!$H$5/100/12,('Zins und Tilgung'!$H13-SUM($B64:I64))*'Zins und Tilgung'!$H$5/100/12)","v":{"v":0,"d":"0.0"}},{"$f":"IF(J64=0,'Zins und Tilgung'!$H13*'Zins und Tilgung'!$H$5/100/12,('Zins und Tilgung'!$H13-SUM($B64:J64))*'Zins und Tilgung'!$H$5/100/12)","v":{"v":0,"d":"0.0"}},{"$f":"IF(K64=0,'Zins und Tilgung'!$H13*'Zins und Tilgung'!$H$5/100/12,('Zins und Tilgung'!$H13-SUM($B64:K64))*'Zins und Tilgung'!$H$5/100/12)","v":{"v":0,"d":"0.0"}},{"$f":"IF(L64=0,'Zins und Tilgung'!$H13*'Zins und Tilgung'!$H$5/100/12,('Zins und Tilgung'!$H13-SUM($B64:L64))*'Zins und Tilgung'!$H$5/100/12)","v":{"v":0,"d":"0.0"}},{"$f":"IF(M64=0,'Zins und Tilgung'!$H13*'Zins und Tilgung'!$H$5/100/12,('Zins und Tilgung'!$H13-SUM($B64:M64))*'Zins und Tilgung'!$H$5/100/12)","v":{"v":0,"d":"0.0"}},{"$f":"SUM(B84:M84)","v":0}]
["Darlehen 2:",{"$f":"IF(B65=0,'Zins und Tilgung'!$N13*'Zins und Tilgung'!$N$5/100/12,('Zins und Tilgung'!N$13-Hilfstabelle!$B65)*'Zins und Tilgung'!$N$5/100/12)","v":{"v":0,"d":"0.0"}},{"$f":"IF(C65=0,'Zins und Tilgung'!$N13*'Zins und Tilgung'!$N$5/100/12,('Zins und Tilgung'!$N13-SUM($B65:C65))*'Zins und Tilgung'!$N$5/100/12)","v":{"v":0,"d":"0.0"}},{"$f":"IF(D65=0,'Zins und Tilgung'!$N13*'Zins und Tilgung'!$N$5/100/12,('Zins und Tilgung'!$N13-SUM($B65:D65))*'Zins und Tilgung'!$N$5/100/12)","v":{"v":0,"d":"0.0"}},{"$f":"IF(E65=0,'Zins und Tilgung'!$N13*'Zins und Tilgung'!$N$5/100/12,('Zins und Tilgung'!$N13-SUM($B65:E65))*'Zins und Tilgung'!$N$5/100/12)","v":{"v":0,"d":"0.0"}},{"$f":"IF(F65=0,'Zins und Tilgung'!$N13*'Zins und Tilgung'!$N$5/100/12,('Zins und Tilgung'!$N13-SUM($B65:F65))*'Zins und Tilgung'!$N$5/100/12)","v":{"v":0,"d":"0.0"}},{"$f":"IF(G65=0,'Zins und Tilgung'!$N13*'Zins und Tilgung'!$N$5/100/12,('Zins und Tilgung'!$N13-SUM($B65:G65))*'Zins und Tilgung'!$N$5/100/12)","v":{"v":0,"d":"0.0"}},{"$f":"IF(H65=0,'Zins und Tilgung'!$N13*'Zins und Tilgung'!$N$5/100/12,('Zins und Tilgung'!$N13-SUM($B65:H65))*'Zins und Tilgung'!$N$5/100/12)","v":{"v":0,"d":"0.0"}},{"$f":"IF(I65=0,'Zins und Tilgung'!$N13*'Zins und Tilgung'!$N$5/100/12,('Zins und Tilgung'!$N13-SUM($B65:I65))*'Zins und Tilgung'!$N$5/100/12)","v":{"v":0,"d":"0.0"}},{"$f":"IF(J65=0,'Zins und Tilgung'!$N13*'Zins und Tilgung'!$N$5/100/12,('Zins und Tilgung'!$N13-SUM($B65:J65))*'Zins und Tilgung'!$N$5/100/12)","v":{"v":0,"d":"0.0"}},{"$f":"IF(K65=0,'Zins und Tilgung'!$N13*'Zins und Tilgung'!$N$5/100/12,('Zins und Tilgung'!$N13-SUM($B65:K65))*'Zins und Tilgung'!$N$5/100/12)","v":{"v":0,"d":"0.0"}},{"$f":"IF(L65=0,'Zins und Tilgung'!$N13*'Zins und Tilgung'!$N$5/100/12,('Zins und Tilgung'!$N13-SUM($B65:L65))*'Zins und Tilgung'!$N$5/100/12)","v":{"v":0,"d":"0.0"}},{"$f":"IF(M65=0,'Zins und Tilgung'!$N13*'Zins und Tilgung'!$N$5/100/12,('Zins und Tilgung'!$N13-SUM($B65:M65))*'Zins und Tilgung'!$N$5/100/12)","v":{"v":0,"d":"0.0"}},{"$f":"SUM(B85:M85)","v":0}]
["Mikromezzanin",{"$f":"IF(AND(MONTH('Liquiditätsplan-1.Jahr'!$D10)>=8,MONTH('Liquiditätsplan-1.Jahr'!D10)=7),'Zins und Tilgung'!$T4*'Zins und Tilgung'!$T6/100,0)","v":{"v":0,"d":"0.0"}},{"$f":"IF(AND(MONTH('Liquiditätsplan-1.Jahr'!$D10)>=8,MONTH('Liquiditätsplan-1.Jahr'!E10)=7),'Zins und Tilgung'!$T4*'Zins und Tilgung'!$T6/100,0)","v":{"v":0,"d":"0.0"}},{"$f":"'Zins und Tilgung'!$T$4*'Zins und Tilgung'!$T$5*0.25/100+IF(AND(MONTH('Liquiditätsplan-1.Jahr'!$D10)>=8,MONTH('Liquiditätsplan-1.Jahr'!F10)=7),'Zins und Tilgung'!$T4*'Zins und Tilgung'!$T6/100,0)","v":{"v":0,"d":"0.0"}},{"$f":"IF(AND(MONTH('Liquiditätsplan-1.Jahr'!$D10)>=8,MONTH('Liquiditätsplan-1.Jahr'!G10)=7),'Zins und Tilgung'!$T4*'Zins und Tilgung'!$T6/100,0)","v":{"v":0,"d":"0.0"}},{"$f":"IF(AND(MONTH('Liquiditätsplan-1.Jahr'!$D10)>=8,MONTH('Liquiditätsplan-1.Jahr'!H10)=7),'Zins und Tilgung'!$T4*'Zins und Tilgung'!$T6/100,0)","v":{"v":0,"d":"0.0"}},{"$f":"'Zins und Tilgung'!$T$4*'Zins und Tilgung'!$T$5*0.25/100+IF(AND(MONTH('Liquiditätsplan-1.Jahr'!$D10)>=8,MONTH('Liquiditätsplan-1.Jahr'!I10)=7),'Zins und Tilgung'!$T4*'Zins und Tilgung'!$T6/100,0)","v":{"v":0,"d":"0.0"}},{"$f":"IF(AND(MONTH('Liquiditätsplan-1.Jahr'!$D10)>=8,MONTH('Liquiditätsplan-1.Jahr'!J10)=7),'Zins und Tilgung'!$T4*'Zins und Tilgung'!$T6/100,0)","v":{"v":0,"d":"0.0"}},{"$f":"IF(AND(MONTH('Liquiditätsplan-1.Jahr'!$D10)>=8,MONTH('Liquiditätsplan-1.Jahr'!K10)=7),'Zins und Tilgung'!$T4*'Zins und Tilgung'!$T6/100,0)","v":{"v":0,"d":"0.0"}},{"$f":"'Zins und Tilgung'!$T$4*'Zins und Tilgung'!$T$5*0.25/100+IF(AND(MONTH('Liquiditätsplan-1.Jahr'!$D10)>=8,MONTH('Liquiditätsplan-1.Jahr'!L10)=7),'Zins und Tilgung'!$T4*'Zins und Tilgung'!$T6/100,0)","v":{"v":0,"d":"0.0"}},{"$f":"IF(AND(MONTH('Liquiditätsplan-1.Jahr'!$D10)>=8,MONTH('Liquiditätsplan-1.Jahr'!M10)=7),'Zins und Tilgung'!$T4*'Zins und Tilgung'!$T6/100,0)","v":{"v":0,"d":"0.0"}},{"$f":"IF(AND(MONTH('Liquiditätsplan-1.Jahr'!$D10)>=8,MONTH('Liquiditätsplan-1.Jahr'!N10)=7),'Zins und Tilgung'!$T4*'Zins und Tilgung'!$T6/100,0)","v":{"v":0,"d":"0.0"}},{"$f":"'Zins und Tilgung'!$T$4*'Zins und Tilgung'!$T$5*0.25/100+IF(AND(MONTH('Liquiditätsplan-1.Jahr'!$D10)>=8,MONTH('Liquiditätsplan-1.Jahr'!O10)=7),'Zins und Tilgung'!$T4*'Zins und Tilgung'!$T6/100,0)","v":{"v":0,"d":"0.0"}},{"$f":"SUM(B86:M86)","v":0}]
["Gesamt",{"$f":"SUM(B84:B86)","v":{"v":0,"d":"0.0"}},{"$f":"SUM(C84:C86)","v":{"v":0,"d":"0.0"}},{"v":0,"d":"0.0"},{"v":0,"d":"0.0"},{"v":0,"d":"0.0"},{"v":0,"d":"0.0"},{"v":0,"d":"0.0"},{"v":0,"d":"0.0"},{"v":0,"d":"0.0"},{"v":0,"d":"0.0"},{"v":0,"d":"0.0"},{"v":0,"d":"0.0"},{"$f":"SUM(N84:N86)","v":0},{"$f":"SUM(B87:M87)","v":{"v":0,"d":"0.0"}}]
[]
["2. Jahr",13,14,15,16,17,18,19,20,21,22,23,24,"Gesamt"]
["Darlehen 1:",{"$f":"IF(B70=0,'Zins und Tilgung'!$H14*'Zins und Tilgung'!$H$5/100/12,('Zins und Tilgung'!H$14-Hilfstabelle!$B70)*'Zins und Tilgung'!$H$5/100/12)","v":{"v":0,"d":"0.0"}},{"$f":"IF(C70=0,'Zins und Tilgung'!$H14*'Zins und Tilgung'!$H$5/100/12,('Zins und Tilgung'!$H14-SUM($B70:C70))*'Zins und Tilgung'!$H$5/100/12)","v":{"v":0,"d":"0.0"}},{"$f":"IF(D70=0,'Zins und Tilgung'!$H14*'Zins und Tilgung'!$H$5/100/12,('Zins und Tilgung'!$H14-SUM($B70:D70))*'Zins und Tilgung'!$H$5/100/12)","v":{"v":0,"d":"0.0"}},{"$f":"IF(E70=0,'Zins und Tilgung'!$H14*'Zins und Tilgung'!$H$5/100/12,('Zins und Tilgung'!$H14-SUM($B70:E70))*'Zins und Tilgung'!$H$5/100/12)","v":{"v":0,"d":"0.0"}},{"$f":"IF(F70=0,'Zins und Tilgung'!$H14*'Zins und Tilgung'!$H$5/100/12,('Zins und Tilgung'!$H14-SUM($B70:F70))*'Zins und Tilgung'!$H$5/100/12)","v":{"v":0,"d":"0.0"}},{"$f":"IF(G70=0,'Zins und Tilgung'!$H14*'Zins und Tilgung'!$H$5/100/12,('Zins und Tilgung'!$H14-SUM($B70:G70))*'Zins und Tilgung'!$H$5/100/12)","v":{"v":0,"d":"0.0"}},{"$f":"IF(H70=0,'Zins und Tilgung'!$H14*'Zins und Tilgung'!$H$5/100/12,('Zins und Tilgung'!$H14-SUM($B70:H70))*'Zins und Tilgung'!$H$5/100/12)","v":{"v":0,"d":"0.0"}},{"$f":"IF(I70=0,'Zins und Tilgung'!$H14*'Zins und Tilgung'!$H$5/100/12,('Zins und Tilgung'!$H14-SUM($B70:I70))*'Zins und Tilgung'!$H$5/100/12)","v":{"v":0,"d":"0.0"}},{"$f":"IF(J70=0,'Zins und Tilgung'!$H14*'Zins und Tilgung'!$H$5/100/12,('Zins und Tilgung'!$H14-SUM($B70:J70))*'Zins und Tilgung'!$H$5/100/12)","v":{"v":0,"d":"0.0"}},{"$f":"IF(K70=0,'Zins und Tilgung'!$H14*'Zins und Tilgung'!$H$5/100/12,('Zins und Tilgung'!$H14-SUM($B70:K70))*'Zins und Tilgung'!$H$5/100/12)","v":{"v":0,"d":"0.0"}},{"$f":"IF(L70=0,'Zins und Tilgung'!$H14*'Zins und Tilgung'!$H$5/100/12,('Zins und Tilgung'!$H14-SUM($B70:L70))*'Zins und Tilgung'!$H$5/100/12)","v":{"v":0,"d":"0.0"}},{"$f":"IF(M70=0,'Zins und Tilgung'!$H14*'Zins und Tilgung'!$H$5/100/12,('Zins und Tilgung'!$H14-SUM($B70:M70))*'Zins und Tilgung'!$H$5/100/12)","v":{"v":0,"d":"0.0"}},{"$f":"SUM(B90:M90)","v":0}]
["Darlehen 2:",{"$f":"IF(B71=0,'Zins und Tilgung'!$N14*'Zins und Tilgung'!$N$5/100/12,('Zins und Tilgung'!N$14-Hilfstabelle!$B71)*'Zins und Tilgung'!$N$5/100/12)","v":{"v":0,"d":"0.0"}},{"$f":"IF(C71=0,'Zins und Tilgung'!$N14*'Zins und Tilgung'!$N$5/100/12,('Zins und Tilgung'!$N14-SUM($B71:C71))*'Zins und Tilgung'!$N$5/100/12)","v":{"v":0,"d":"0.0"}},{"$f":"IF(D71=0,'Zins und Tilgung'!$N14*'Zins und Tilgung'!$N$5/100/12,('Zins und Tilgung'!$N14-SUM($B71:D71))*'Zins und Tilgung'!$N$5/100/12)","v":{"v":0,"d":"0.0"}},{"$f":"IF(E71=0,'Zins und Tilgung'!$N14*'Zins und Tilgung'!$N$5/100/12,('Zins und Tilgung'!$N14-SUM($B71:E71))*'Zins und Tilgung'!$N$5/100/12)","v":{"v":0,"d":"0.0"}},{"$f":"IF(F71=0,'Zins und Tilgung'!$N14*'Zins und Tilgung'!$N$5/100/12,('Zins und Tilgung'!$N14-SUM($B71:F71))*'Zins und Tilgung'!$N$5/100/12)","v":{"v":0,"d":"0.0"}},{"$f":"IF(G71=0,'Zins und Tilgung'!$N14*'Zins und Tilgung'!$N$5/100/12,('Zins und Tilgung'!$N14-SUM($B71:G71))*'Zins und Tilgung'!$N$5/100/12)","v":{"v":0,"d":"0.0"}},{"$f":"IF(H71=0,'Zins und Tilgung'!$N14*'Zins und Tilgung'!$N$5/100/12,('Zins und Tilgung'!$N14-SUM($B71:H71))*'Zins und Tilgung'!$N$5/100/12)","v":{"v":0,"d":"0.0"}},{"$f":"IF(I71=0,'Zins und Tilgung'!$N14*'Zins und Tilgung'!$N$5/100/12,('Zins und Tilgung'!$N14-SUM($B71:I71))*'Zins und Tilgung'!$N$5/100/12)","v":{"v":0,"d":"0.0"}},{"$f":"IF(J71=0,'Zins und Tilgung'!$N14*'Zins und Tilgung'!$N$5/100/12,('Zins und Tilgung'!$N14-SUM($B71:J71))*'Zins und Tilgung'!$N$5/100/12)","v":{"v":0,"d":"0.0"}},{"$f":"IF(K71=0,'Zins und Tilgung'!$N14*'Zins und Tilgung'!$N$5/100/12,('Zins und Tilgung'!$N14-SUM($B71:K71))*'Zins und Tilgung'!$N$5/100/12)","v":{"v":0,"d":"0.0"}},{"$f":"IF(L71=0,'Zins und Tilgung'!$N14*'Zins und Tilgung'!$N$5/100/12,('Zins und Tilgung'!$N14-SUM($B71:L71))*'Zins und Tilgung'!$N$5/100/12)","v":{"v":0,"d":"0.0"}},{"$f":"IF(M71=0,'Zins und Tilgung'!$N14*'Zins und Tilgung'!$N$5/100/12,('Zins und Tilgung'!$N14-SUM($B71:M71))*'Zins und Tilgung'!$N$5/100/12)","v":{"v":0,"d":"0.0"}},{"$f":"SUM(B91:M91)","v":0}]
["Mikromezzanin",{"$f":"IF(MONTH('Liquiditätsplan-2.Jahr'!D$10)=7,'Zins und Tilgung'!$T$4*'Zins und Tilgung'!$T$6/100,0)","v":{"v":0,"d":"0.0"}},{"$f":"IF(MONTH('Liquiditätsplan-2.Jahr'!E$10)=7,'Zins und Tilgung'!$T$4*'Zins und Tilgung'!$T$6/100,0)","v":{"v":0,"d":"0.0"}},{"$f":"'Zins und Tilgung'!$T$4*'Zins und Tilgung'!$T$5*0.25/100+IF(MONTH('Liquiditätsplan-2.Jahr'!F$10)=7,'Zins und Tilgung'!$T$4*'Zins und Tilgung'!$T$6/100,0)","v":{"v":0,"d":"0.0"}},{"$f":"IF(MONTH('Liquiditätsplan-2.Jahr'!G$10)=7,'Zins und Tilgung'!$T$4*'Zins und Tilgung'!$T$6/100,0)","v":{"v":0,"d":"0.0"}},{"$f":"IF(MONTH('Liquiditätsplan-2.Jahr'!H$10)=7,'Zins und Tilgung'!$T$4*'Zins und Tilgung'!$T$6/100,0)","v":{"v":0,"d":"0.0"}},{"$f":"'Zins und Tilgung'!$T$4*'Zins und Tilgung'!$T$5*0.25/100+IF(MONTH('Liquiditätsplan-2.Jahr'!I$10)=7,'Zins und Tilgung'!$T$4*'Zins und Tilgung'!$T$6/100,0)","v":{"v":0,"d":"0.0"}},{"$f":"IF(MONTH('Liquiditätsplan-2.Jahr'!J$10)=7,'Zins und Tilgung'!$T$4*'Zins und Tilgung'!$T$6/100,0)","v":{"v":0,"d":"0.0"}},{"$f":"IF(MONTH('Liquiditätsplan-2.Jahr'!K$10)=7,'Zins und Tilgung'!$T$4*'Zins und Tilgung'!$T$6/100,0)","v":{"v":0,"d":"0.0"}},{"$f":"'Zins und Tilgung'!$T$4*'Zins und Tilgung'!$T$5*0.25/100+IF(MONTH('Liquiditätsplan-2.Jahr'!L$10)=7,'Zins und Tilgung'!$T$4*'Zins und Tilgung'!$T$6/100,0)","v":{"v":0,"d":"0.0"}},{"$f":"IF(MONTH('Liquiditätsplan-2.Jahr'!M$10)=7,'Zins und Tilgung'!$T$4*'Zins und Tilgung'!$T$6/100,0)","v":{"v":0,"d":"0.0"}},{"$f":"IF(MONTH('Liquiditätsplan-2.Jahr'!N$10)=7,'Zins und Tilgung'!$T$4*'Zins und Tilgung'!$T$6/100,0)","v":{"v":0,"d":"0.0"}},{"$f":"'Zins und Tilgung'!$T$4*'Zins und Tilgung'!$T$5*0.25/100+IF(MONTH('Liquiditätsplan-2.Jahr'!O$10)=7,'Zins und Tilgung'!$T$4*'Zins und Tilgung'!$T$6/100,0)","v":{"v":0,"d":"0.0"}},{"$f":"SUM(B92:M92)","v":0}]
["Gesamt",{"$f":"SUM(B90:B92)","v":{"v":0,"d":"0.0"}},{"v":0,"d":"0.0"},{"v":0,"d":"0.0"},{"v":0,"d":"0.0"},{"v":0,"d":"0.0"},{"v":0,"d":"0.0"},{"v":0,"d":"0.0"},{"v":0,"d":"0.0"},{"v":0,"d":"0.0"},{"v":0,"d":"0.0"},{"v":0,"d":"0.0"},{"v":0,"d":"0.0"},{"$f":"SUM(N90:N92)","v":0},{"$f":"SUM(B93:M93)","v":{"v":0,"d":"0.0"}}]
[]
["3. Jahr",25,26,27,28,29,30,31,32,33,34,35,36,"Gesamt"]
["Darlehen 1:",{"$f":"IF(B76=0,'Zins und Tilgung'!$H15*'Zins und Tilgung'!$H$5/100/12,('Zins und Tilgung'!H$15-Hilfstabelle!$B76)*'Zins und Tilgung'!$H$5/100/12)","v":{"v":0,"d":"0.0"}},{"$f":"IF(C76=0,'Zins und Tilgung'!$H15*'Zins und Tilgung'!$H$5/100/12,('Zins und Tilgung'!$H15-SUM($B76:C76))*'Zins und Tilgung'!$H$5/100/12)","v":{"v":0,"d":"0.0"}},{"$f":"IF(D76=0,'Zins und Tilgung'!$H15*'Zins und Tilgung'!$H$5/100/12,('Zins und Tilgung'!$H15-SUM($B76:D76))*'Zins und Tilgung'!$H$5/100/12)","v":{"v":0,"d":"0.0"}},{"$f":"IF(E76=0,'Zins und Tilgung'!$H15*'Zins und Tilgung'!$H$5/100/12,('Zins und Tilgung'!$H15-SUM($B76:E76))*'Zins und Tilgung'!$H$5/100/12)","v":{"v":0,"d":"0.0"}},{"$f":"IF(F76=0,'Zins und Tilgung'!$H15*'Zins und Tilgung'!$H$5/100/12,('Zins und Tilgung'!$H15-SUM($B76:F76))*'Zins und Tilgung'!$H$5/100/12)","v":{"v":0,"d":"0.0"}},{"$f":"IF(G76=0,'Zins und Tilgung'!$H15*'Zins und Tilgung'!$H$5/100/12,('Zins und Tilgung'!$H15-SUM($B76:G76))*'Zins und Tilgung'!$H$5/100/12)","v":{"v":0,"d":"0.0"}},{"$f":"IF(H76=0,'Zins und Tilgung'!$H15*'Zins und Tilgung'!$H$5/100/12,('Zins und Tilgung'!$H15-SUM($B76:H76))*'Zins und Tilgung'!$H$5/100/12)","v":{"v":0,"d":"0.0"}},{"$f":"IF(I76=0,'Zins und Tilgung'!$H15*'Zins und Tilgung'!$H$5/100/12,('Zins und Tilgung'!$H15-SUM($B76:I76))*'Zins und Tilgung'!$H$5/100/12)","v":{"v":0,"d":"0.0"}},{"$f":"IF(J76=0,'Zins und Tilgung'!$H15*'Zins und Tilgung'!$H$5/100/12,('Zins und Tilgung'!$H15-SUM($B76:J76))*'Zins und Tilgung'!$H$5/100/12)","v":{"v":0,"d":"0.0"}},{"$f":"IF(K76=0,'Zins und Tilgung'!$H15*'Zins und Tilgung'!$H$5/100/12,('Zins und Tilgung'!$H15-SUM($B76:K76))*'Zins und Tilgung'!$H$5/100/12)","v":{"v":0,"d":"0.0"}},{"$f":"IF(L76=0,'Zins und Tilgung'!$H15*'Zins und Tilgung'!$H$5/100/12,('Zins und Tilgung'!$H15-SUM($B76:L76))*'Zins und Tilgung'!$H$5/100/12)","v":{"v":0,"d":"0.0"}},{"$f":"IF(M76=0,'Zins und Tilgung'!$H15*'Zins und Tilgung'!$H$5/100/12,('Zins und Tilgung'!$H15-SUM($B76:M76))*'Zins und Tilgung'!$H$5/100/12)","v":{"v":0,"d":"0.0"}},{"$f":"SUM(B96:M96)","v":0}]
["Darlehen 2:",{"$f":"IF(B77=0,'Zins und Tilgung'!$N15*'Zins und Tilgung'!$N$5/100/12,('Zins und Tilgung'!N$15-Hilfstabelle!$B77)*'Zins und Tilgung'!$N$5/100/12)","v":{"v":0,"d":"0.0"}},{"$f":"IF(C77=0,'Zins und Tilgung'!$N15*'Zins und Tilgung'!$N$5/100/12,('Zins und Tilgung'!$N15-SUM($B77:C77))*'Zins und Tilgung'!$N$5/100/12)","v":{"v":0,"d":"0.0"}},{"$f":"IF(D77=0,'Zins und Tilgung'!$N15*'Zins und Tilgung'!$N$5/100/12,('Zins und Tilgung'!$N15-SUM($B77:D77))*'Zins und Tilgung'!$N$5/100/12)","v":{"v":0,"d":"0.0"}},{"$f":"IF(E77=0,'Zins und Tilgung'!$N15*'Zins und Tilgung'!$N$5/100/12,('Zins und Tilgung'!$N15-SUM($B77:E77))*'Zins und Tilgung'!$N$5/100/12)","v":{"v":0,"d":"0.0"}},{"$f":"IF(F77=0,'Zins und Tilgung'!$N15*'Zins und Tilgung'!$N$5/100/12,('Zins und Tilgung'!$N15-SUM($B77:F77))*'Zins und Tilgung'!$N$5/100/12)","v":{"v":0,"d":"0.0"}},{"$f":"IF(G77=0,'Zins und Tilgung'!$N15*'Zins und Tilgung'!$N$5/100/12,('Zins und Tilgung'!$N15-SUM($B77:G77))*'Zins und Tilgung'!$N$5/100/12)","v":{"v":0,"d":"0.0"}},{"$f":"IF(H77=0,'Zins und Tilgung'!$N15*'Zins und Tilgung'!$N$5/100/12,('Zins und Tilgung'!$N15-SUM($B77:H77))*'Zins und Tilgung'!$N$5/100/12)","v":{"v":0,"d":"0.0"}},{"$f":"IF(I77=0,'Zins und Tilgung'!$N15*'Zins und Tilgung'!$N$5/100/12,('Zins und Tilgung'!$N15-SUM($B77:I77))*'Zins und Tilgung'!$N$5/100/12)","v":{"v":0,"d":"0.0"}},{"$f":"IF(J77=0,'Zins und Tilgung'!$N15*'Zins und Tilgung'!$N$5/100/12,('Zins und Tilgung'!$N15-SUM($B77:J77))*'Zins und Tilgung'!$N$5/100/12)","v":{"v":0,"d":"0.0"}},{"$f":"IF(K77=0,'Zins und Tilgung'!$N15*'Zins und Tilgung'!$N$5/100/12,('Zins und Tilgung'!$N15-SUM($B77:K77))*'Zins und Tilgung'!$N$5/100/12)","v":{"v":0,"d":"0.0"}},{"$f":"IF(L77=0,'Zins und Tilgung'!$N15*'Zins und Tilgung'!$N$5/100/12,('Zins und Tilgung'!$N15-SUM($B77:L77))*'Zins und Tilgung'!$N$5/100/12)","v":{"v":0,"d":"0.0"}},{"$f":"IF(M77=0,'Zins und Tilgung'!$N15*'Zins und Tilgung'!$N$5/100/12,('Zins und Tilgung'!$N15-SUM($B77:M77))*'Zins und Tilgung'!$N$5/100/12)","v":{"v":0,"d":"0.0"}},{"$f":"SUM(B97:M97)","v":0}]
["Mikromezzanin",{"$f":"IF(MONTH('Liquiditätsplan-3.Jahr'!D$10)=7,'Zins und Tilgung'!$T$4*'Zins und Tilgung'!$T$6/100,0)","v":{"v":0,"d":"0.0"}},{"$f":"IF(MONTH('Liquiditätsplan-3.Jahr'!E$10)=7,'Zins und Tilgung'!$T$4*'Zins und Tilgung'!$T$6/100,0)","v":{"v":0,"d":"0.0"}},{"$f":"'Zins und Tilgung'!$T$4*'Zins und Tilgung'!$T$5*0.25/100+IF(MONTH('Liquiditätsplan-3.Jahr'!F$10)=7,'Zins und Tilgung'!$T$4*'Zins und Tilgung'!$T$6/100,0)","v":{"v":0,"d":"0.0"}},{"$f":"IF(MONTH('Liquiditätsplan-3.Jahr'!G$10)=7,'Zins und Tilgung'!$T$4*'Zins und Tilgung'!$T$6/100,0)","v":{"v":0,"d":"0.0"}},{"$f":"IF(MONTH('Liquiditätsplan-3.Jahr'!H$10)=7,'Zins und Tilgung'!$T$4*'Zins und Tilgung'!$T$6/100,0)","v":{"v":0,"d":"0.0"}},{"$f":"'Zins und Tilgung'!$T$4*'Zins und Tilgung'!$T$5*0.25/100+IF(MONTH('Liquiditätsplan-3.Jahr'!I$10)=7,'Zins und Tilgung'!$T$4*'Zins und Tilgung'!$T$6/100,0)","v":{"v":0,"d":"0.0"}},{"$f":"IF(MONTH('Liquiditätsplan-3.Jahr'!J$10)=7,'Zins und Tilgung'!$T$4*'Zins und Tilgung'!$T$6/100,0)","v":{"v":0,"d":"0.0"}},{"$f":"IF(MONTH('Liquiditätsplan-3.Jahr'!K$10)=7,'Zins und Tilgung'!$T$4*'Zins und Tilgung'!$T$6/100,0)","v":{"v":0,"d":"0.0"}},{"$f":"'Zins und Tilgung'!$T$4*'Zins und Tilgung'!$T$5*0.25/100+IF(MONTH('Liquiditätsplan-3.Jahr'!L$10)=7,'Zins und Tilgung'!$T$4*'Zins und Tilgung'!$T$6/100,0)","v":{"v":0,"d":"0.0"}},{"$f":"IF(MONTH('Liquiditätsplan-3.Jahr'!M$10)=7,'Zins und Tilgung'!$T$4*'Zins und Tilgung'!$T$6/100,0)","v":{"v":0,"d":"0.0"}},{"$f":"IF(MONTH('Liquiditätsplan-3.Jahr'!N$10)=7,'Zins und Tilgung'!$T$4*'Zins und Tilgung'!$T$6/100,0)","v":{"v":0,"d":"0.0"}},{"$f":"'Zins und Tilgung'!$T$4*'Zins und Tilgung'!$T$5*0.25/100+IF(MONTH('Liquiditätsplan-3.Jahr'!O$10)=7,'Zins und Tilgung'!$T$4*'Zins und Tilgung'!$T$6/100,0)","v":{"v":0,"d":"0.0"}},{"$f":"SUM(B98:M98)","v":0}]
["Gesamt",{"$f":"SUM(B96:B98)","v":{"v":0,"d":"0.0"}},{"v":0,"d":"0.0"},{"v":0,"d":"0.0"},{"v":0,"d":"0.0"},{"v":0,"d":"0.0"},{"v":0,"d":"0.0"},{"v":0,"d":"0.0"},{"v":0,"d":"0.0"},{"v":0,"d":"0.0"},{"v":0,"d":"0.0"},{"v":0,"d":"0.0"},{"v":0,"d":"0.0"},{"$f":"SUM(N96:N98)","v":0},{"$f":"SUM(B99:M99)","v":{"v":0,"d":"0.0"}}]